Workbook

Sheet FMIS and OBD
A1: FMIS & OBD data set (Jun 2013) | H1: Q1 > Does the Finance Ministry/Dept have a web site or portal dedicated to publish Public Finance (PF) information? | L1: Q2 > Is there a web site / doc on FMIS solution? | N1: Q3 > What is the source of information for publishing PF information? | U1: Q4 > Is the PF information meaningful to citizens or budget entities? | Y1: Q5 > Is the data str/list of BC/CoA published? | AA1: Q6 > Annual budget plans | AD1: Q7 > Medium-Term Expenditure Framework | AH1: Q8 > Investment plans | AK1: Q9 > Budget execution results | AO1: Q10 > External audit of budget | AR1: Q11 > What is the level of detail of the public expenditure / revenue information published online | BD1: Q12 > Is there an Open Gov/Data web site? | BF1: Q13 > FMIS support for Sub-Natl Gov (SNG) | BH1: Q14 > Harmonized acct for all levels (incl SNG) | BJ1: Q15 > Are there other government web sites reporing budget results/performance? | BP1: Q16 > Is there a web site on Access to Info / Std? | BR1: Q17 > PFM regulations published? | BT1: Q18 > Compliance with intl reporting std? | BV1: Q19 > Are there a feedback / monitoring options? | BY1: Q20 > What languages are used to publish PF data? | CD1: FMIS solutions | CO1: PEFA Performance Indicators | DA1: PEFA Averages | DC1: Other indicators | DG1: UN e-Gov 2012 Indices | DL1: Region | DM1: Other Categories | DQ1: Open Source Policies adopted by the governments (2010) | EB1: Verified by Gov officials | EC1: Results: FMIS & OBD Practice Groups
A2: # | B2: Flag | C2: Economy | D2: Level | E2: Population | F2: GNI | G2: GNIPC | H2: Q1.1 MoF URL | I2: Q1.2 Org Name | J2: Q1.3 | K2: Q1.4 PF Data URL | L2: Q2.1 | M2: Q2.2 FMIS URL | N2: Q3.1 | O2: Q3.2 Dynamic Q | P2: Q3.3 | Q2: Q3.4 Open Data | R2: Q3.5 | S2: Q3.6 | T2: Q3.7 Reliability | U2: Q4.1 | V2: Q4.2 | W2: Q4.3 | X2: Q4.4 Ctz Budget | Y2: Q5.1 | Z2: Q5.2 BC/CoA | AA2: Q6.1 | AB2: Q6.2 | AC2: Q6.3 | AD2: Q7.1 | AE2: Q7.2 | AF2: Q7.3 | AG2: Q7.4 | AH2: Q8.1 | AI2: Q8.2 | AJ2: Q8.3 | AK2: Q9.1 | AL2: Q9.2 | AM2: Q9.3 | AN2: Q9.4 | AO2: Q10.1 | AP2: Q10.2 | AQ2: Q10.3 | AR2: Q11.1 | AS2: Q11.2 | AT2: Q11.3 | AU2: Q11.4 | AV2: Q11.5 | AW2: Q11.6 | AX2: Q11.7 | AY2: Q11.8 | AZ2: Q11.9 | BA2: Q11.10 | BB2: Q11.11 | BC2: Q11.12 Other | BD2: Q12.1 | BE2: Q12.2 Open Gov/Open Data | BF2: Q13.1 | BG2: Q13.2 FMIS SNG | BH2: Q14.1 | BI2: Q14.2 Acct SNG | BJ2: Q15.1 | BK2: Q15.2 Stats URL | BL2: Q15.3 Stats Org | BM2: Q15.4 CB URL | BN2: Q15.5 Cent Bank | BO2: Q15.6 Other URL | BP2: Q16.1 | BQ2: Q16.2 ATI | BR2: Q17.1 | BS2: Q17.2 PFM Reg | BT2: Q18.1 | BU2: Q18.2 Other Rep | BV2: Q19.1 | BW2: Q19.2 | BX2: Q19.3 Feedback | BY2: Q20.1 | BZ2: Q20.2 | CA2: Q20.3 | CB2: Q20.4 | CC2: Q20.5 | CD2: FMIS / TS | CE2: FMIS | CF2: Tpl | CG2: Func | CH2: Status | CI2: Op Yr | CJ2: Scope | CK2: Type | CL2: ASW | CM2: ASW Solution | CN2: Arch | CO2: PEFA Yr | CP2: Stat | CQ2: PI-5 | CR2: PI-6 | CS2: PI-10 | CT2: PI-12 | CU2: PI-22 | CV2: PI-23 | CW2: PI-24 | CX2: PI-25 | CY2: PI-26 | CZ2: D-2 | DA2: Avg10 | DB2: Avg | DC2: OBI_12 | DD2: OBI_10 | DE2: OGP | DF2: MTEF | DG2: eGov12 | DH2: eGov | DI2: eOS | DJ2: eTC | DK2: eHC | DL2: Region | DM2: Zone | DN2: OECD | DO2: APEC | DP2: Fragile | DQ2: Economies | DR2: OSS Gov | DS2: R | DT2: A | DU2: P | DV2: M | DW2: OSS Loc | DX2: R | DY2: A | DZ2: P | EA2: M | EB2: Verif date | EC2: Tot Pts | ED2: Score | EE2: Group | EG2: # | EH2: Economy | EI2: Code | EJ2: Year | EK2: Pov (%p) | EL2: YearN | EM2: PovN (%p) | EN2: People | EO2: PeopleN | EP2: A | EQ2: AMP | ER2: DAD
A3: 1 | C3: Afghanistan | D3: LIC | E3: 35320.445 | F3: 16589.62033 | G3: 470 | H3: http://www.mof.gov.af | I3: Afghanistan Ministry of Finance | J3: 2 | K3: http://www.budgetmof.gov.af | L3: 2 | M3: http://mof.gov.af/en/page/1149 | N3: 1 | O3: - | P3: 1 | Q3: http://www.budgetmof.gov.af/index.php?option=com_content&view=article&id=49&Itemid=76&lang=en | R3: 0 | S3: 0 | T3: http://www.budgetmof.gov.af/index.php?option=com_content&view=article&id=49&Itemid=76&lang=en | U3: 1 | V3: 1 | W3: 1 | X3: http://www.budgetmof.gov.af/index.php?option=com_content&view=article&id=86&Itemid=126&lang=en | Y3: 1 | Z3: http://www.budgetmof.gov.af/index.php?option=com_content&view=article&id=107&Itemid=99&lang=en | AA3: 1 | AB3: 1 | AC3: 2005 | AD3: 1 | AE3: 0 | AF3: 3 | AG3: 2010 | AH3: 0 | AJ3: - | AK3: 1 | AL3: 2 | AM3: 1 | AN3: 2005 | AO3: 0 | AQ3: - | AR3: 1 | AS3: 1 | AT3: 1 | AU3: 0 | AV3: 0 | AW3: 1 | AX3: 1 | AY3: 0 | AZ3: 1 | BA3: 1 | BB3: 0 | BC3: - | BD3: 0 | BE3: - | BF3: 1 | BG3: http://www.budgetmof.gov.af/index.php?option=com_content&view=article&id=126%3A-what-is-the-afghanistan-financial-management-information-system-afmis&catid=58%3Aict-issues&Itemid=44&lang=en | BH3: 1 | BI3: http://www.budgetmof.gov.af/index.php?option=com_content&view=article&id=107&Itemid=99&lang=en | BJ3: 3 | BK3: http://www.cso.gov.af | BL3: Central Statistics Office | BM3: http://www.centralbank.gov.af | BN3: Bank of Afghanistan | BO3: http://www.treasury.gov.af | BP3: 0 | BQ3: - | BR3: 1 | BS3: http://www.treasury.gov.af/index_files/Page1081.htm | BT3: 2 | BU3: National laws and regulations | BV3: 1 | BW3: 3 | BX3: - | BY3: per | BZ3: eng | CA3: - | CB3: - | CC3: 0 | CD3: AFMIS | CE3: Afghanistan Financial Management Information System | CF3: C | CG3: T | CH3: 3 | CI3: 2011 | CJ3: C+L | CK3: 4 | CL3: 2 | CM3: FreeBalance | CN3: CS | CO3: Jun 2008 | CP3: Public | CQ3: C | CR3: B | CS3: B | CT3: B | CU3: B | CV3: D | CW3: C+ | CX3: B+ | CY3: C | CZ3: D | DA3: 2.4 | DB3: 2.370967742 | DC3: 59 | DD3: 21 | DF3: 1 | DG3: 184 | DH3: 0.1701 | DI3: 0.2353 | DJ3: 0.0573 | DK3: 0.2178 | DL3: SAR | DP3: F | DQ3: =C3 -> Afghanistan | DR3: =SUM(DS3:DV3) -> 0 | DW3: =SUM(DX3:EA3) -> 0 | EC3: =J3+L3+N3+P3+R3+S3+U3+V3+W3+Y3+AA3+AB3+AD3+AE3+AH3+AI3+AK3+AM3+AO3+AP3 -> 15 | ED3: =EC3/26*100 -> 57.69230769 | EE3: =IF(ED3<25,"D",IF(ED3<50,"C",IF(ED3<75,"B","A"))) -> B | EG3: 1 | EH3: Afghanistan | EI3: AFG | EL3: 2008 | EM3: 36 | EO3: 12715.3602 | ER3: DAD
A4: 2 | C4: Albania | D4: LMIC | E4: 3215.988 | F4: 12787.50499 | G4: 3980 | H4: http://www.minfin.gov.al | I4: Ministry of Finance of the Republic of Albania | J4: 2 | K4: http://www.minfin.gov.al/minfin/Buxheti_1265_1.php | L4: 1 | M4: http://www.minfin.gov.al/minfin/Sistemi_AMoFTS_1377_1.php | N4: 1 | O4: - | P4: 1 | Q4: http://www.minfin.gov.al/minfin/Buxheti_2012_1821_1.php | R4: 0 | S4: 0 | T4: http://www.minfin.gov.al/minfin/Sistemi_AMoFTS_1377_1.php | U4: 1 | V4: 1 | W4: 0 | X4: - | Y4: 1 | Z4: http://www.minfin.gov.al/minfin/Thesari_1269_1.php | AA4: 1 | AB4: 1 | AC4: 2003 | AD4: 1 | AE4: 1 | AF4: 3 | AG4: 2002 | AH4: 0 | AJ4: - | AK4: 1 | AL4: 2 | AM4: 1 | AN4: 2002 | AO4: 1 | AP4: 1 | AQ4: 2009 | AR4: 1 | AS4: 1 | AT4: 1 | AU4: 0 | AV4: 0 | AW4: 1 | AX4: 1 | AY4: 1 | AZ4: 1 | BA4: 1 | BB4: 0 | BC4: - | BD4: 1 | BE4: http://open.data.al/ | BF4: 0 | BG4: - | BH4: 1 | BI4: http://www.minfin.gov.al/minfin/GFS_ne_Vite_1597_1.php | BJ4: 1 | BK4: http://www.instat.gov.al | BL4: Institute of Statistics | BM4: http://www.bankofalbania.org | BN4: Bank of Albania | BO4: - | BP4: 1 | BQ4: http://www.minfin.gov.al/minfin/Kushtet_e_perdorimit_156_1.php | BR4: 1 | BS4: http://www.minfin.gov.al/minfin/Legjislacioni_5_1.php | BT4: 2 | BU4: National budget rules | BV4: 1 | BW4: 3 | BX4: Social media tools: Facebook, Twitter, Youtube | BY4: alb | BZ4: eng | CA4: - | CB4: - | CC4: 0 | CD4: AMoFTS | CE4: Albania Ministry of Finance Treasury System | CF4: C | CG4: T | CH4: 1 | CI4: 2010 | CJ4: C+L | CK4: 1 | CL4: 2 | CM4: Oracle | CN4: Web | CO4: Jan 2012 | CP4: Public | CQ4: A | CR4: B | CS4: B | CT4: C+ | CU4: A | CV4: C | CW4: C+ | CX4: A | CY4: C+ | CZ4: D+ | DA4: 2.9 | DB4: 2.948275862 | DC4: 47 | DD4: 33 | DE4: 1 | DF4: 2 | DG4: 86 | DH4: 0.5161 | DI4: 0.4248 | DJ4: 0.337 | DK4: 0.7863 | DL4: ECA | DQ4: =C4 -> Albania | DR4: =SUM(DS4:DV4) -> 0 | DW4: =SUM(DX4:EA4) -> 0 | EB4: 2013-05-02 | EC4: 16 | ED4: =EC4/26*100 -> 61.53846154 | EE4: =IF(ED4<25,"D",IF(ED4<50,"C",IF(ED4<75,"B","A"))) -> B | EG4: 2 | EH4: Albania | EI4: ALB | EJ4: 2008 | EK4: <2 | EL4: 2008 | EM4: 12.4 | EN4: 20 | EO4: 398.782512
A5: 3 | C5: Algeria | D5: UMIC | E5: 35980.193 | F5: 160814.0542 | G5: 4470 | H5: http://www.mf.gov.dz | I5: Ministère des Finances | J5: 1 | K5: http://www.mf.gov.dz/rubriques/58/Publications-et-Rapports.html | L5: 1 | M5: http://www-wds.worldbank.org/external/default/WDSContentServer/WDSP/IB/2010/01/13/000334955_20100113020615/Rendered/PDF/ICR113000P06491C0disclosed011111101.pdf | N5: 1 | O5: - | P5: 0 | Q5: - | R5: 1 | S5: 0 | T5: http://www.mf.gov.dz/article_pdf/upl-afdca3db442ba9b939e38a972bfba213.pdf | U5: 1 | V5: 1 | W5: 0 | X5: - | Y5: 0 | Z5: - | AA5: 1 | AB5: 1 | AC5: 2001 | AD5: 0 | AF5: - | AG5: - | AH5: 0 | AJ5: - | AK5: 1 | AL5: 4 | AM5: 0 | AN5: 2009 | AO5: 0 | AQ5: - | AR5: 1 | AS5: 1 | AT5: 0 | AU5: 0 | AV5: 0 | AW5: 0 | AX5: 0 | AY5: 0 | AZ5: 0 | BA5: 0 | BB5: 0 | BC5: - | BD5: 0 | BE5: - | BF5: 0 | BG5: - | BH5: 0 | BI5: - | BJ5: 0 | BK5: http://www.ons.dz | BL5: National Office of Statistiques | BM5: http://www.bank-of-algeria.dz | BN5: Bank of Algeria | BO5: - | BP5: 0 | BQ5: - | BR5: 0 | BS5: - | BT5: 2 | BV5: 0 | BW5: 3 | BX5: - | BY5: fre | BZ5: ara | CA5: - | CB5: - | CC5: 0 | CD5: IBMIS | CE5: Integrated Budget Management Information System | CF5: C | CG5: F | CH5: 3 | CI5: 2010 | CJ5: C | CK5: 5 | CL5: 1 | CM5: LDSW > Oracle? | CN5: Web | CO5: Jul 2010 | CP5: Final | CQ5: X | CR5: X | CS5: X | CT5: X | CU5: X | CV5: X | CW5: X | CX5: X | CY5: X | CZ5: X | DA5: 2.333333333 | DB5: 2.615384615 | DC5: 13 | DD5: 1 | DF5: 2 | DG5: 132 | DH5: 0.3608 | DI5: 0.2549 | DJ5: 0.1812 | DK5: 0.6463 | DL5: MNA | DQ5: Algeria | DR5: 0 | DW5: 0 | EC5: 9 | ED5: 34.61538462 | EE5: C | EG5: 3 | EH5: Algeria | EI5: DZA | EJ5: 1995 | EK5: 6.8 | EN5: 2446.653124
A6: 4 | C6: Andorra | D6: HIC | E6: 86.165 | F6: 3712 | G6: 43080.13695 | H6: http://www.finances.ad | I6: Ministeri de Finances, Andorra | J6: 2 | K6: http://www.finances.ad/index.php?option=com_content&view=article&id=25&Itemid=33 | L6: 1 | M6: http://www.finances.ad/index.php?option=com_content&view=article&id=19&Itemid=26 | N6: 1 | O6: - | P6: 0 | Q6: - | R6: 0 | S6: 0 | T6: - | U6: 1 | V6: 1 | W6: 1 | X6: http://www.tramits.ad/index.php?option=com_content&view=category&id=42&Itemid=69 | Y6: 1 | Z6: http://www.finances.ad/images/Pressupostos/Pressupost_2008/00-Index/Indgral.htm | AA6: 1 | AB6: 0 | AC6: 2008 | AD6: 0 | AF6: - | AG6: - | AH6: 0 | AJ6: - | AK6: 1 | AL6: 4 | AM6: 0 | AN6: 2007 | AO6: 0 | AQ6: - | AR6: 1 | AS6: 1 | AT6: 0 | AU6: 0 | AV6: 0 | AW6: 1 | AX6: 1 | AY6: 0 | AZ6: 1 | BA6: 1 | BB6: 0 | BC6: - | BD6: 0 | BE6: - | BF6: 0 | BG6: - | BH6: 0 | BI6: - | BJ6: 0 | BK6: http://www.estadistica.ad | BL6: Department of Studies and Statistics | BM6: http://www.inaf.ad | BN6: Institut Nacional Andorrà de Finances | BO6: - | BP6: 1 | BQ6: http://www.finances.ad/index.php?option=com_content&view=article&id=1&Itemid=2 | BR6: 1 | BS6: http://www.finances.ad/index.php?option=com_content&view=article&id=16&Itemid=22 | BT6: 0 | BU6: National laws and regulations | BV6: 0 | BW6: 3 | BX6: - | BY6: cat | BZ6: - | CA6: - | CB6: - | CC6: - | CD6: FMIS | CE6: Financial Management Information System | CF6: C | CG6: F | CH6: 1 | CI6: 2005 | CJ6: C | CK6: 1 | CL6: 1 | CM6: LDSW | CN6: Web | CO6: - | CP6: - | CQ6: - | CR6: - | CS6: - | CT6: - | CU6: - | CV6: - | CW6: - | CX6: - | CY6: - | CZ6: - | DA6: - | DB6: - | DC6: - | DD6: - | DF6: - | DG6: 58 | DH6: 0.6172 | DI6: 0.3137 | DJ6: 0.7315 | DK6: 0.8063 | DM6: EUR | DQ6: Andorra | DR6: 0 | DW6: 0 | EC6: 10 | ED6: 38.46153846 | EE6: C | EG6: 4 | EH6: Andorra | EI6: AND
A7: 5 | C7: Angola | D7: LMIC | E7: 19618.432 | F7: 75216.45095 | G7: 3830 | H7: http://www.minfin.gv.ao | I7: Ministério das Finanças | J7: 2 | K7: http://www.minfin.gv.ao/docs/dspPublications.htm | L7: 1 | M7: http://www-wds.worldbank.org/external/default/WDSContentServer/WDSP/IB/2005/03/10/000090341_20050310101310/Rendered/PDF/290360AO.pdf | N7: 1 | O7: - | P7: 0 | Q7: - | R7: 1 | S7: 1 | T7: http://www.minfin.gv.ao/docs/dspRelExecOGE.htm | U7: 1 | V7: 1 | W7: 0 | X7: - | Y7: 1 | Z7: http://www.minfin.gv.ao/docs/dspPlanContEstd.htm | AA7: 1 | AB7: 0 | AC7: 2006 | AD7: 0 | AF7: - | AG7: - | AH7: 1 | AI7: 0 | AJ7: 2008 | AK7: 1 | AL7: 4 | AM7: 0 | AN7: 2006 | AO7: 0 | AQ7: - | AR7: 1 | AS7: 1 | AT7: 1 | AU7: 0 | AV7: 0 | AW7: 1 | AX7: 1 | AY7: 1 | AZ7: 1 | BA7: 0 | BB7: 0 | BC7: - | BD7: 0 | BE7: - | BF7: 0 | BG7: - | BH7: 1 | BI7: http://www.minfin.gv.ao/docs/dspPlanContEstd.htm | BJ7: 0 | BK7: http://www.ine-ao.com | BL7: Instituto Nacional de Estatistica (Angola) | BM7: http://www.bna.ao | BN7: National Bank of Angola | BO7: - | BP7: 0 | BQ7: - | BR7: 1 | BS7: http://www.minfin.gv.ao/docs/dspGenLeg.htm | BT7: 0 | BU7: - | BV7: 0 | BW7: 3 | BX7: - | BY7: por | BZ7: - | CA7: - | CB7: - | CC7: - | CD7: SIGFE | CE7: Sistema Integrado de Gestiio das Finanqas do Estado | CF7: C | CG7: T | CH7: 3 | CI7: 2004 | CJ7: C | CK7: 1 | CL7: 1 | CM7: LDSW > Oracle | CN7: Web | CO7: - | CP7: - | CQ7: - | CR7: - | CS7: - | CT7: - | CU7: - | CV7: - | CW7: - | CX7: - | CY7: - | CZ7: - | DA7: - | DB7: - | DC7: 28 | DD7: 26 | DF7: 0 | DG7: 142 | DH7: 0.3203 | DI7: 0.3333 | DJ7: 0.0892 | DK7: 0.5383 | DL7: AFR | DP7: F | DQ7: Angola | DR7: 0 | DW7: 0 | EC7: 12 | ED7: 46.15384615 | EE7: C | EG7: 5 | EH7: Angola | EI7: AGO | EJ7: 2000 | EK7: 54.3 | EL7: 2000 | EM7: 62.3 | EN7: 10652.80858 | EO7: 12222.28314
A8: 6 | C8: Antigua and Barbuda | D8: UMIC | E8: 89.612 | F8: 1070.373731 | G8: 11940 | H8: http://www.antigua.gov.ag | I8: Ministry of Finance, Economy and Public Administration | J8: 1 | K8: http://www.antigua.gov.ag/article_details.php?id=64&category=42 | L8: 2 | M8: http://www.ab.gov.ag/article_details.php?id=1509&category=38 | N8: 1 | O8: - | P8: 0 | Q8: - | R8: 0 | S8: 0 | T8: - | U8: 1 | V8: 1 | W8: 0 | X8: - | Y8: 0 | Z8: - | AA8: 1 | AB8: 1 | AC8: 2011 | AD8: 0 | AF8: - | AG8: - | AH8: 0 | AJ8: - | AK8: 1 | AL8: 4 | AM8: 1 | AN8: 2009 | AO8: 0 | AQ8: - | AR8: 1 | AS8: 0 | AT8: 0 | AU8: 1 | AV8: 0 | AW8: 1 | AX8: 1 | AY8: 0 | AZ8: 0 | BA8: 0 | BB8: 0 | BC8: - | BD8: 0 | BE8: - | BF8: 0 | BG8: - | BH8: 0 | BI8: - | BJ8: 0 | BK8: http://ab.gov.ag/article_details.php?id=65 | BL8: Statistics and Reports | BM8: http://www.eccb-centralbank.org | BN8: East Caribbean Central Bank | BO8: - | BP8: 1 | BQ8: http://www.antigua.gov.ag/article_details.php?id=201&category=55 | BR8: 0 | BS8: - | BT8: 0 | BU8: - | BV8: 0 | BW8: 3 | BX8: Contact information for other ministries. Social media tools: Facebook, Twitter, Youtube | BY8: eng | BZ8: - | CA8: - | CB8: - | CC8: - | CD8: IFMS | CE8: Integrated Financial Management System | CF8: C | CG8: F | CH8: 1 | CI8: 2012 | CJ8: C | CK8: 1 | CL8: 2 | CM8: FreeBalance | CN8: Web | CO8: Aug 2010 | CP8: Final | CQ8: X | CR8: X | CS8: X | CT8: X | CU8: X | CV8: X | CW8: X | CX8: X | CY8: X | CZ8: X | DA8: 1.4 | DB8: 1.533333333 | DC8: - | DD8: - | DF8: 0 | DG8: 49 | DH8: 0.6345 | DI8: 0.3072 | DJ8: 0.7192 | DK8: 0.877 | DL8: LCR | DQ8: Antigua and Barbuda | DR8: 0 | DW8: 0 | EC8: 10 | ED8: 38.46153846 | EE8: C | EG8: 6 | EH8: Antigua and Barbuda | EI8: ATG
A9: 7 | C9: Argentina | D9: UMIC | E9: 40764.561 | F9: 397095.8335 | G9: 9740 | H9: http://www.mecon.gov.ar | I9: Ministerio de Economía y Finanzas Públicas | J9: 2 | K9: http://contenidos.mecon.gov.ar/informacion/ | L9: 2 | M9: http://administracionfinanciera.mecon.gov.ar | N9: 3 | O9: http://sitiodelciudadano.mecon.gov.ar/sici/ejecucion_presupuestaria.html | P9: 1 | Q9: http://www.mecon.gov.ar/peconomica/basehome/serie_gasto.html | R9: 1 | S9: 1 | T9: http://www.mecon.gov.ar/onp/html/ejectexto/bole_trim_dosuno.html?var1=boletrimdosnueve | U9: 2 | V9: 1 | W9: 1 | X9: http://sitiodelciudadano.mecon.gov.ar/sici/#4 | Y9: 1 | Z9: http://www.mecon.gov.ar/onp/html/presutexto/ley2012/leydosdoce.html | AA9: 1 | AB9: 1 | AC9: 2001 | AD9: 1 | AE9: 1 | AF9: 3 | AG9: 2003 | AH9: 1 | AI9: 1 | AJ9: 2004 | AK9: 1 | AL9: 3 | AM9: 1 | AN9: 1994 | AO9: 1 | AP9: 1 | AQ9: 1996 | AR9: 1 | AS9: 1 | AT9: 1 | AU9: 1 | AV9: 0 | AW9: 1 | AX9: 1 | AY9: 1 | AZ9: 1 | BA9: 1 | BB9: 1 | BC9: http://www.mecon.gov.ar/onp/html/# | BD9: 1 | BE9: http://www.argentina.gob.ar | BF9: 2 | BG9: http://administracionfinanciera.mecon.gov.ar./ | BH9: 1 | BI9: http://www.mecon.gov.ar/onp/html/manuales/clasificador03.pdf | BJ9: 3 | BK9: http://www.indec.mecon.ar | BL9: National Institute of Statistics and Censuses | BM9: http://www.bcra.gov.ar | BN9: Central Bank of Argentina | BO9: http://www.mecon.gov.ar/cfrf/ | BP9: 1 | BQ9: http://contenidos.mecon.gov.ar/direccion-de-informacion-ciudadana-y-seguimiento-parlamentario/ | BR9: 1 | BS9: http://contenidos.mecon.gov.ar/ministerio-de-economia-y-finanzas-publicas/ | BT9: 2 | BU9: - | BV9: 1 | BW9: 3 | BX9: - | BY9: spa | BZ9: - | CA9: - | CB9: - | CC9: - | CD9: SIDIF | CE9: Sistema Integrado de Información Financiera | CF9: C | CG9: F | CH9: 1 | CI9: 2006 | CJ9: C+L | CK9: 2 | CL9: 1 | CM9: LDSW > Oracle | CN9: CS | CO9: 2013 | CP9: - | CQ9: - | CR9: - | CS9: - | CT9: - | CU9: - | CV9: - | CW9: - | CX9: - | CY9: - | CZ9: - | DA9: - | DB9: - | DC9: 50 | DD9: 56 | DE9: 1 | DF9: 2 | DG9: 56 | DH9: 0.6228 | DI9: 0.5294 | DJ9: 0.4352 | DK9: 0.9038 | DL9: LCR | DQ9: Argentina | DR9: 6 | DS9: 1 | DT9: 1 | DV9: 4 | DW9: 10 | DX9: 1 | DZ9: 1 | EA9: 8 | EB9: 2013-04-29 | EC9: 25 | ED9: 96.15384615 | EE9: A | EG9: 7 | EH9: Argentina | EI9: ARG | EJ9: 2010 | EK9: <2 | EL9: 2011 | EM9: 6.5 | EN9: 375 | EO9: 2649.696465
A10: 8 | C10: Armenia | D10: LMIC | E10: 3100.236 | F10: 10408.62593 | G10: 3360 | H10: http://www.minfin.am | I10: Republic of Armenia Ministry of Finance and Economy | J10: 2 | K10: http://www.minfin.am/main.php?lang=1&mode=budget&iseng=1&isarm=1 | L10: 1 | M10: http://www.minfin.am/up/gbp/GFMIS_Inception%20Report_Final.pdf | N10: 1 | O10: - | P10: 1 | Q10: http://www.minfin.am/main.php?lang=1&mode=poakrep&iseng=1&isarm=1 | R10: 0 | S10: 0 | T10: - | U10: 1 | V10: 1 | W10: 2 | X10: https://www.e-gov.am/interactive-budget/ | Y10: 0 | Z10: - | AA10: 1 | AB10: 1 | AC10: 2003 | AD10: 1 | AE10: 1 | AF10: 3 | AG10: 2003 | AH10: 0 | AJ10: - | AK10: 1 | AL10: 4 | AM10: 1 | AN10: 2007 | AO10: 1 | AP10: 0 | AQ10: 2009 | AR10: 1 | AS10: 1 | AT10: 0 | AU10: 0 | AV10: 0 | AW10: 1 | AX10: 1 | AY10: 0 | AZ10: 1 | BA10: 0 | BB10: 0 | BC10: - | BD10: 1 | BE10: https://www.e-gov.am | BF10: 0 | BG10: - | BH10: 0 | BI10: - | BJ10: 3 | BK10: http://www.armstat.am | BL10: National Statistical Service | BM10: http://www.cba.am | BN10: Central Bank of Armenia | BO10: http://programmebudgeting.am/ | BP10: 0 | BQ10: - | BR10: 1 | BS10: http://www.minfin.am/main.php?lang=1&mode=charter&id=37&iseng=1&isarm=1 | BT10: 0 | BU10: Internal budget reporting rules and guidelines | BV10: 0 | BW10: 3 | BX10: - | BY10: arm | BZ10: eng | CA10: - | CB10: - | CC10: 0 | CD10: TS | CE10: Treasury System | CF10: C | CG10: T | CH10: 1 | CI10: 2006 | CJ10: C+L | CK10: 1 | CL10: 1 | CM10: LDSW | CN10: Web | CO10: Oct 2008 | CP10: Public | CQ10: A | CR10: A | CS10: A | CT10: B | CU10: A | CV10: C | CW10: C+ | CX10: D+ | CY10: D+ | CZ10: A | DA10: 3.05 | DB10: 3.032258065 | DC10: - | DD10: - | DE10: 1 | DF10: 3 | DG10: 94 | DH10: 0.4997 | DI10: 0.3268 | DJ10: 0.3217 | DK10: 0.8505 | DL10: ECA | DQ10: Armenia | DR10: 0 | DW10: 0 | EB10: 2013-05-07 | EC10: 16 | ED10: 61.53846154 | EE10: B | EG10: 8 | EH10: Armenia | EI10: ARM | EJ10: 2010 | EK10: 2.5 | EL10: 2010 | EM10: 35.8 | EN10: 77.5059 | EO10: 1109.884488 | ER10: DAD
A11: 9 | C11: Australia | D11: HIC | E11: 22620.6 | F11: 1111433.6 | G11: 49130 | H11: http://www.finance.gov.au | I11: Australia Department of Finance and Deregulation | J11: 2 | K11: http://www.budget.gov.au/ | L11: 2 | M11: http://www.finance.gov.au/cbms/CBMS_redevelopment.html | N11: 1 | O11: - | P11: 1 | Q11: http://www.comlaw.gov.au/Details/C2011B00068/Download | R11: 0 | S11: 0 | T11: - | U11: 2 | V11: 1 | W11: 0 | X11: - | Y11: 1 | Z11: http://www.abs.gov.au/AUSSTATS/abs@.nsf/DetailsPage/5514.02005?OpenDocument | AA11: 1 | AB11: 1 | AC11: 1996 | AD11: 1 | AE11: 1 | AF11: 4 | AG11: 1996 | AH11: 1 | AI11: 1 | AJ11: 1996 | AK11: 1 | AL11: 4 | AM11: 1 | AN11: 1998 | AO11: 1 | AP11: 1 | AQ11: 2001 | AR11: 1 | AS11: 1 | AT11: 1 | AU11: 1 | AV11: 1 | AW11: 1 | AX11: 1 | AY11: 1 | AZ11: 1 | BA11: 0 | BB11: 1 | BC11: https://www.tenders.gov.au/ | BD11: 1 | BE11: http://data.australia.gov.au | BF11: 0 | BG11: - | BH11: 1 | BI11: http://www.finance.gov.au/publications/finance-ministers-orders/docs/2011-12-PRIMA-Forms-FMA-and-CAC.pdf | BJ11: 1 | BK11: http://www.abs.gov.au | BL11: Australian Bureau of Statistics | BM11: http://www.rba.gov.au | BN11: Reserve Bank of Australia | BO11: - | BP11: 1 | BQ11: http://www.finance.gov.au/contact-us.html | BR11: 1 | BS11: http://www.finance.gov.au/policy-legislation.html | BT11: 2 | BU11: - | BV11: 0 | BW11: 3 | BX11: - | BY11: eng | BZ11: - | CA11: - | CB11: - | CC11: - | CD11: CBMS | CE11: Central Budget Management System | CF11: D | CG11: F | CH11: 3 | CI11: 2015 | CJ11: C+L | CK11: 1 | CL11: 2 | CM11: SAP | CN11: Web | CO11: - | CP11: - | CQ11: - | CR11: - | CS11: - | CT11: - | CU11: - | CV11: - | CW11: - | CX11: - | CY11: - | CZ11: - | DA11: - | DB11: - | DC11: - | DD11: - | DE11: 0 | DF11: 3 | DG11: 12 | DH11: 0.839 | DI11: 0.8627 | DJ11: 0.6543 | DK11: 1 | DM11: PAC | DN11: OECD | DO11: APEC | DQ11: Australia | DR11: 4 | DS11: 1 | DT11: 2 | DU11: 1 | DW11: 8 | DX11: 1 | DY11: 2 | DZ11: 5 | EC11: 20 | ED11: 76.92307692 | EE11: A | EG11: 9 | EH11: Australia | EI11: AUS
A12: 10 | C12: Austria | D12: HIC | E12: 8419 | F12: 405729.9867 | G12: 48190 | H12: http://www.bmf.gv.at | I12: Federal Ministry of Finance | J12: 2 | K12: https://www.bmf.gv.at/budget/_start.htm | L12: 1 | M12: http://english.bmf.gv.at/budget/theaustrianfederalb_523/_start.htm | N12: 1 | O12: - | P12: 1 | Q12: https://www.bmf.gv.at/Budget/Budgetsimberblick/Sonstiges/Budgetsimberblick/Budgetentwurf2013/berblick/TabellenDownload/_start.htm | R12: 0 | S12: 0 | T12: - | U12: 2 | V12: 1 | W12: 0 | X12: - | Y12: 1 | Z12: http://www.rechnungshof.gv.at/berichte/bundesrechnungsabschluss.html | AA12: 1 | AB12: 1 | AC12: 2003 | AD12: 1 | AE12: 1 | AF12: 5 | AG12: 2009 | AH12: 0 | AJ12: - | AK12: 1 | AL12: 4 | AM12: 1 | AN12: 2002 | AO12: 0 | AQ12: - | AR12: 1 | AS12: 1 | AT12: 0 | AU12: 1 | AV12: 0 | AW12: 1 | AX12: 0 | AY12: 1 | AZ12: 0 | BA12: 0 | BB12: 1 | BC12: http://www.peppol.eu/ | BD12: 1 | BE12: http://data.gv.at/ | BF12: 0 | BG12: - | BH12: 1 | BI12: https://www.bmf.gv.at/BUDGET/budgets/2012/Beilagen/_start_beilagen.htm | BJ12: 1 | BK12: http://www.statistik.at | BL12: Statistics Austria | BM12: http://www.oenb.at | BN12: Austrian National Bank | BO12: https://finanzonline.bmf.gv.at/fon/ | BP12: 1 | BQ12: http://english.bmf.gv.at/Allgemeines/Impressum/_start.htm | BR12: 1 | BS12: http://english.bmf.gv.at/Ministry/TheTasksoftheFedera_62/DGBudgetPublicFinances/_start.htm | BT12: 0 | BU12: - | BV12: 0 | BW12: 3 | BX12: - | BY12: ger | BZ12: eng | CA12: - | CB12: - | CC12: 0 | CD12: BAS | CE12: Budget and Accounting System | CF12: C | CG12: T | CH12: 3 | CI12: 2013 | CJ12: C+L | CK12: 1 | CL12: 2 | CM12: SAP | CN12: Web | CO12: - | CP12: - | CQ12: - | CR12: - | CS12: - | CT12: - | CU12: - | CV12: - | CW12: - | CX12: - | CY12: - | CZ12: - | DA12: - | DB12: - | DC12: - | DD12: - | DF12: 3 | DG12: 21 | DH12: 0.784 | DI12: 0.7451 | DJ12: 0.6977 | DK12: 0.9091 | DM12: EU | DN12: OECD | DQ12: Austria | DR12: 2 | DT12: 2 | DW12: 1 | DZ12: 1 | EC12: 15 | ED12: 57.69230769 | EE12: B | EG12: 10 | EH12: Austria | EI12: AUT
A13: 11 | C13: Azerbaijan | D13: UMIC | E13: 9168 | F13: 48519.70327 | G13: 5290 | H13: http://www.maliyye.gov.az | I13: Ministry of Finance of the Republic of Azerbaijan | J13: 1 | K13: http://www.maliyye.gov.az/node/954 | L13: 1 | M13: http://www.maliyye.gov.az/en/node/886 | N13: 1 | O13: - | P13: 0 | Q13: - | R13: 0 | S13: 0 | T13: - | U13: 1 | V13: 1 | W13: 0 | X13: - | Y13: 1 | Z13: http://www.maliyye.gov.az/en/node/931 | AA13: 1 | AB13: 1 | AC13: 2000 | AD13: 0 | AF13: - | AG13: - | AH13: 0 | AJ13: - | AK13: 1 | AL13: 4 | AM13: 0 | AN13: 2000 | AO13: 0 | AQ13: - | AR13: 1 | AS13: 1 | AT13: 0 | AU13: 0 | AV13: 0 | AW13: 1 | AX13: 0 | AY13: 0 | AZ13: 0 | BA13: 0 | BB13: 0 | BC13: - | BD13: 0 | BE13: - | BF13: 0 | BG13: - | BH13: 1 | BI13: http://www.maliyye.gov.az/en/node/931 | BJ13: 0 | BK13: http://www.azstat.org | BL13: Azerbaijan State Statistical Committee | BM13: http://www.cbar.az | BN13: Central Bank of Azerbaijan Republic | BO13: - | BP13: 1 | BQ13: http://opendata.az/?page_id=32&lang=en | BR13: 1 | BS13: http://www.maliyye.gov.az/en/node/18 | BT13: 0 | BU13: National accounting standards | BV13: 0 | BW13: 3 | BX13: - | BY13: aze | BZ13: eng | CA13: - | CB13: - | CC13: 0 | CD13: TMIS | CE13: Treasury Information Management System | CF13: C | CG13: T | CH13: 1 | CI13: 2012 | CJ13: C+L | CK13: 1 | CL13: 2 | CM13: SAP | CN13: Web | CO13: Jan 2008 | CP13: Final | CQ13: X | CR13: X | CS13: X | CT13: X | CU13: X | CV13: X | CW13: X | CX13: X | CY13: X | CZ13: X | DA13: 2.1 | DB13: 2.633333333 | DC13: 42 | DD13: 43 | DE13: 1 | DF13: 0 | DG13: 96 | DH13: 0.4984 | DI13: 0.366 | DJ13: 0.3033 | DK13: 0.8259 | DL13: ECA | DQ13: Azerbaijan | DR13: 0 | DW13: 0 | EB13: 2013-04-03 | EC13: 9 | ED13: 34.61538462 | EE13: C | EG13: 11 | EH13: Azerbaijan | EI13: AZE | EJ13: 2008 | EK13: <2 | EL13: 2008 | EM13: 15.8 | EN13: 39 | EO13: 1448.544
A14: 12 | C14: Bahamas | D14: HIC | E14: 347.176 | F14: 7778 | G14: 22403.62237 | H14: http://www.bahamas.gov.bs/finance | I14: Ministry of Finance of The Bahamas | J14: 2 | K14: http://www.bahamas.gov.bs/wps/portal/public/NB/Communication/!ut/p/b1/vZTLcpswFIafpQ_gIImbWYIFGGOEzc3AhsHGdsDcUgPCPH3JNDNtM9N000RaafQffTrfaMTETMjEdTrk17TLmzotX9exkLC6be1X3NJaCpwEDOgRA6s7VpfQHIjmAPjLkMHPeqBbsjzX67y9BIYvejuZR0BfAebAhOtoUnBjUFU-JO09qwKpfdm5xmZsCPfc9G17MtNM7cFyAKC2YxIWBqW2zG_ZSg97LAFPOI64pNot10LKl93x3Gv1M0kTnbtIUIs2JE8w4ctHNe5XeTn68BnjRXrG2c5InMBXmmz94j6EHMLWFx_xCcZ2Q1KdTXxY54ZUkgGVrgKv37699ftBQ__wdWDiP5UAAaLXE7ZKsJEgcNFb4AOlZN1UZyaaY-JvN9nK_IyyZy2mBpHPMx4TAi5xi0drTLfJKSbHJF40unhPIT4gSxU94qkP0mXkXqwgVAEgnjxaPkCWqFIvO-6ywPEVeYXvezd-D7SR99rbCgqmzwOXA58NfOfahF8NZL9UqY7BpwPfPZod-u_ADRPnx-qJnqon8MSLgOOWSOAlJHJLiWOCIuJEzBlUM4JkcljIdjfiYrnKq6600tAHpjuU8qBd0ALf-MHLRhHbbkEtb71WR2U_DWWj1JlP91o3DU1smhGVG-RujotCKbfKPUmtxOWQc9VAL152fHvH1Wl7y4J116a9PFVqx_YwC6gF6bHW9EcYK_JCTUbWOLdF0WqEV1WSp_s-pE4TxPGmHwverK-iPlDT_H47jndug4YgumgoS5E8_xFt5Q9bwVmSy69pzRs_ALZ5AFQ!/dl4/d5/L2dBISEvZ0FBIS9nQSEh/ | L14: 1 | M14: http://www.docstoc.com/docs/111076420/THE-BAHAMAS | N14: 1 | O14: - | P14: 0 | Q14: - | R14: 0 | S14: 0 | T14: - | U14: 2 | V14: 1 | W14: 0 | X14: - | Y14: 0 | Z14: - | AA14: 1 | AB14: 1 | AC14: 2001 | AD14: 0 | AF14: - | AG14: - | AH14: 0 | AJ14: - | AK14: 1 | AL14: 4 | AM14: 1 | AN14: 2001 | AO14: 0 | AQ14: - | AR14: 1 | AS14: 1 | AT14: 0 | AU14: 1 | AV14: 1 | AW14: 1 | AX14: 1 | AY14: 0 | AZ14: 1 | BA14: 0 | BB14: 0 | BC14: - | BD14: 0 | BE14: - | BF14: 0 | BG14: - | BH14: 0 | BI14: - | BJ14: 0 | BK14: http://statistics.bahamas.gov.bs | BL14: The Department of Statistics | BM14: http://centralbankbahamas.com | BN14: Central Bank of The Bahamas | BO14: - | BP14: 0 | BQ14: - | BR14: 1 | BS14: http://www.bahamas.gov.bs/wps/portal/public/ | BT14: 0 | BU14: - | BV14: 0 | BW14: 1 | BX14: - | BY14: eng | BZ14: - | CA14: - | CB14: - | CC14: - | CD14: TFMS | CE14: Treasury Financial Management System | CF14: C | CG14: T | CH14: 3 | CI14: 2014 | CJ14: C | CK14: 1 | CL14: 0 | CM14: ? | CN14: Web | CO14: Mar 2011 | CP14: Final | CQ14: X | CR14: X | CS14: X | CT14: X | CU14: X | CV14: X | CW14: X | CX14: X | CY14: X | CZ14: X | DA14: 1.9375 | DB14: 1.846153846 | DC14: - | DD14: - | DF14: - | DG14: 65 | DH14: 0.5793 | DI14: 0.4706 | DJ14: 0.4554 | DK14: 0.812 | DL14: LCR | DQ14: Bahamas | DR14: 0 | DW14: 0 | EC14: 11 | ED14: 42.30769231 | EE14: C | EG14: 12 | EH14: Bahamas | EI14: BHS | EL14: 2001 | EM14: 9.3 | EO14: 32.287368
A15: 13 | C15: Bahrain | D15: HIC | E15: 1323.535 | F15: 22950 | G15: 17339.92679 | H15: http://www.mof.gov.bh | I15: Ministry of Finance - Kingdom of Bahrain | J15: 2 | K15: http://www.mof.gov.bh/Categorylist.asp?cType=budget | L15: 2 | M15: http://www.mof.gov.bh/Categorylist.asp?cType=fmis | N15: 1 | O15: - | P15: 0 | Q15: - | R15: 0 | S15: 0 | T15: - | U15: 1 | V15: 1 | W15: 0 | X15: - | Y15: 1 | Z15: http://www.mof.gov.bh/Categorylist.asp?cType=fmanual | AA15: 1 | AB15: 1 | AC15: 2003 | AD15: 1 | AE15: 1 | AF15: 5 | AG15: 1990 | AH15: 0 | AJ15: - | AK15: 1 | AL15: 4 | AM15: 1 | AN15: 2003 | AO15: 0 | AQ15: - | AR15: 1 | AS15: 1 | AT15: 0 | AU15: 0 | AV15: 0 | AW15: 1 | AX15: 1 | AY15: 0 | AZ15: 1 | BA15: 0 | BB15: 1 | BC15: http://www.tenderboard.gov.bh/ | BD15: 1 | BE15: http://www.bahrain.bh/wps/portal/data | BF15: 0 | BG15: - | BH15: 0 | BI15: - | BJ15: 0 | BK15: http://www.cio.gov.bh | BL15: Central Informatics Organization | BM15: http://www.bma.gov.bh | BN15: Central Bank of Bahrain | BO15: - | BP15: 0 | BQ15: - | BR15: 1 | BS15: http://www.mof.gov.bh/CategoryListImage.asp?cType=organ | BT15: 0 | BU15: National accounting standards | BV15: 0 | BW15: 3 | BX15: - | BY15: ara | BZ15: eng | CA15: - | CB15: - | CC15: 0 | CD15: CFS | CE15: Central Financial System | CF15: C | CG15: T | CH15: 1 | CI15: 2006 | CJ15: C | CK15: 1 | CL15: 2 | CM15: Oracle | CN15: Web | CO15: - | CP15: - | CQ15: - | CR15: - | CS15: - | CT15: - | CU15: - | CV15: - | CW15: - | CX15: - | CY15: - | CZ15: - | DA15: - | DB15: - | DC15: - | DD15: - | DF15: 1 | DG15: 36 | DH15: 0.6946 | DI15: 0.8627 | DJ15: 0.4183 | DK15: 0.8028 | DL15: MNA | DQ15: Bahrain | DR15: 1 | DU15: 1 | DW15: 0 | EC15: 14 | ED15: 53.84615385 | EE15: B | EG15: 13 | EH15: Bahrain | EI15: BHR
A16: 14 | C16: Bangladesh | D16: LIC | E16: 150493.658 | F16: 117761.9537 | G16: 780 | H16: http://www.mof.gov.bd | I16: Bangladesh Ministry of Finance | J16: 2 | K16: http://www.mof.gov.bd/en/index.php?option=com_content&view=article&id=184&Itemid=1 | L16: 1 | M16: http://www.mof.gov.bd/en/budget/11_12/digital_bd/digital_bangladesh_en.pdf | N16: 1 | O16: http://www.mof.gov.bd/en/index.php?option=com_content&view=article&id=68&Itemid=1 | P16: 0 | Q16: - | R16: 0 | S16: 0 | T16: - | U16: 2 | V16: 1 | W16: 1 | X16: http://www.mof.gov.bd/en/budget/booklet/booklet_en.pdf | Y16: 1 | Z16: http://www.mof.gov.bd/en/index.php?option=com_content&view=article&id=80&Itemid=1&phpMyAdmin=XRGktGpDJ7v31TJLuZ5xtAQmRx9 | AA16: 1 | AB16: 1 | AC16: 2007 | AD16: 1 | AE16: 1 | AF16: 5 | AG16: 2011 | AH16: 1 | AI16: 1 | AJ16: 2011 | AK16: 1 | AL16: 4 | AM16: 1 | AN16: 2007 | AO16: 0 | AQ16: - | AR16: 1 | AS16: 1 | AT16: 0 | AU16: 1 | AV16: 1 | AW16: 1 | AX16: 1 | AY16: 1 | AZ16: 1 | BA16: 0 | BB16: 0 | BC16: - | BD16: 0 | BE16: - | BF16: 0 | BG16: - | BH16: 0 | BI16: - | BJ16: 0 | BK16: http://www.bbs.gov.bd | BL16: Bangladesh Bureau of Statistics | BM16: http://www.bangladesh-bank.org | BN16: Bangladesh Bank | BO16: - | BP16: 0 | BQ16: - | BR16: 1 | BS16: http://www.mof.gov.bd/en/index.php?option=com_content&view=article&id=48&Itemid=1 | BT16: 2 | BU16: GFS 1986 | BV16: 1 | BW16: 3 | BX16: - | BY16: ben | BZ16: eng | CA16: - | CB16: - | CC16: 1 | CD16: iBAS | CE16: Integrated Budget and Accounting System | CF16: C | CG16: T | CH16: 3 | CI16: 2014 | CJ16: C+L | CK16: 1 | CL16: 1 | CM16: LDSW | CN16: Web | CO16: Dec 2011 | CP16: Final | CQ16: X | CR16: X | CS16: X | CT16: X | CU16: X | CV16: X | CW16: X | CX16: X | CY16: X | CZ16: X | DA16: 2.45 | DB16: 2.116666667 | DC16: 58 | DD16: 48 | DF16: 1 | DG16: 150 | DH16: 0.2991 | DI16: 0.4444 | DJ16: 0.0641 | DK16: 0.3889 | DL16: SAR | DQ16: Bangladesh | DR16: 0 | DW16: 0 | EB16: 2013-05-05 | EC16: 17 | ED16: 65.38461538 | EE16: B | EG16: 14 | EH16: Bangladesh | EI16: BGD | EJ16: 2010 | EK16: 43.3 | EL16: 2010 | EM16: 31.5 | EN16: 65163.75391 | EO16: 47405.50227
A17: 15 | C17: Barbados | D17: HIC | E17: 273.925 | F17: 3685 | G17: 13452.58739 | H17: http://www.gov.bb/bigportal/gov/index.php?method=detail&cat=min&rnum=351&np=3 | I17: Barbados Ministry of Finance and Economic Affairs | J17: 0 | K17: http://www.economicaffairs.gov.bb | L17: 2 | M17: http://treasury.gov.bb/?q=content/about-us | N17: 0 | O17: - | P17: 0 | Q17: - | R17: 0 | S17: 0 | T17: - | U17: 0 | V17: 0 | W17: 0 | X17: - | Y17: 0 | Z17: - | AA17: 1 | AB17: 0 | AC17: 2009 | AD17: 0 | AF17: - | AG17: - | AH17: 0 | AJ17: - | AK17: 1 | AL17: 4 | AM17: 1 | AN17: 2009 | AO17: 0 | AQ17: - | AR17: 1 | AS17: 1 | AT17: 0 | AU17: 1 | AV17: 1 | AW17: 1 | AX17: 1 | AY17: 0 | AZ17: 1 | BA17: 0 | BB17: 0 | BC17: - | BD17: 0 | BE17: - | BF17: 0 | BG17: - | BH17: 0 | BI17: - | BJ17: 2 | BK17: http://www.barstats.gov.bb | BL17: Barbados Statistical Services | BM17: http://www.centralbank.org.bb | BN17: Central Bank of Barbados | BO17: http://www.barbadosparliament.com/ | BP17: 0 | BQ17: - | BR17: 0 | BS17: - | BT17: 0 | BU17: - | BV17: 0 | BW17: 1 | BX17: - | BY17: eng | BZ17: - | CA17: - | CB17: - | CC17: - | CD17: FMIS | CE17: Financial Management Information System | CF17: C | CG17: F | CH17: 1 | CI17: 1999 | CJ17: C | CK17: 1 | CL17: 2 | CM17: SmartStream | CN17: Web | CO17: Jul 2010 | CP17: Draft | CQ17: X | CR17: X | CS17: X | CT17: X | CU17: X | CV17: X | CW17: X | CX17: X | CY17: X | CZ17: X | DA17: 3.166666667 | DB17: 2.788461538 | DC17: - | DD17: - | DF17: 1 | DG17: 44 | DH17: 0.6566 | DI17: 0.3725 | DJ17: 0.674 | DK17: 0.9232 | DL17: LCR | DQ17: Barbados | DR17: 0 | DW17: 0 | EB17: 2013-05-03 | EC17: 5 | ED17: 19.23076923 | EE17: D | EG17: 15 | EH17: Barbados | EI17: BRB
A18: 16 | C18: Belarus | D18: UMIC | E18: 9473 | F18: 55236.12576 | G18: 5830 | H18: http://www.minfin.gov.by | I18: Ministry for Finance of Belarus | J18: 2 | K18: http://www.minfin.gov.by/rmenu/execution/month-info/ | L18: 1 | M18: http://siteresources.worldbank.org/BELARUSEXTN/Resources/PEFA_Belarus_april_2009_english.pdf | N18: 1 | O18: - | P18: 0 | Q18: - | R18: 0 | S18: 0 | T18: - | U18: 2 | V18: 1 | W18: 0 | X18: - | Y18: 0 | Z18: - | AA18: 0 | AC18: - | AD18: 0 | AF18: - | AG18: - | AH18: 0 | AJ18: - | AK18: 1 | AL18: 2 | AM18: 1 | AN18: 2005 | AO18: 0 | AQ18: - | AR18: 1 | AS18: 1 | AT18: 1 | AU18: 0 | AV18: 1 | AW18: 1 | AX18: 1 | AY18: 1 | AZ18: 1 | BA18: 0 | BB18: 0 | BC18: - | BD18: 0 | BE18: - | BF18: 0 | BG18: - | BH18: 1 | BI18: http://www.minfin.gov.by/rmenu/gfs/general/ | BJ18: 0 | BK18: http://www.belstat.gov.by | BL18: Belarus Ministry of Statistics and Analysis | BM18: http://www.nbrb.by | BN18: National Bank of the Republic of Belarus | BO18: - | BP18: 0 | BQ18: - | BR18: 1 | BS18: http://www.minfin.gov.by/ministerstvo/structure/ | BT18: 2 | BU18: - | BV18: 0 | BW18: 3 | BX18: - | BY18: rus | BZ18: - | CA18: - | CB18: - | CC18: - | CD18: TS | CE18: Treasury System | CF18: C | CG18: T | CH18: 1 | CI18: 2002 | CJ18: C+L | CK18: 1 | CL18: 1 | CM18: LDSW | CN18: Web | CO18: Apr 2009 | CP18: Public | CQ18: A | CR18: A | CS18: C | CT18: D+ | CU18: A | CV18: B | CW18: B+ | CX18: C+ | CY18: D+ | CZ18: NU | DA18: 2.888888889 | DB18: 3.089285714 | DC18: - | DD18: - | DF18: 0 | DG18: 61 | DH18: 0.609 | DI18: 0.4118 | DJ18: 0.5033 | DK18: 0.912 | DL18: ECA | DQ18: Belarus | DR18: 0 | DW18: 0 | EC18: 9 | ED18: 34.61538462 | EE18: C | EG18: 16 | EH18: Belarus | EI18: BLR | EJ18: 2010 | EK18: <2 | EL18: 2009 | EM18: 5.4 | EN18: 7 | EO18: 511.542
A19: 17 | C19: Belgium | D19: HIC | E19: 11008 | F19: 506234.9731 | G19: 45990 | H19: http://www.treasury.fgov.be | I19: Belgian Administration of the Treasury | J19: 2 | K19: http://www.begroting.be/portal/page/portal/INTERNET_pagegroup/INTERNET_home/TAB149685 | L19: 1 | M19: http://www.begroting.be/portal/page/portal/INTERNET_pagegroup/INTERNET_fedcom | N19: 1 | O19: http://www.begroting.be/portal/page/portal/INTERNET_pagegroup/INTERNET_ontvangst | P19: 0 | Q19: - | R19: 0 | S19: 0 | T19: - | U19: 2 | V19: 1 | W19: 0 | X19: - | Y19: 1 | Z19: http://www.begroting.be/portal/page/portal/INTERNET_pagegroup/INTERNET_hergroepering | AA19: 1 | AB19: 1 | AC19: 2007 | AD19: 1 | AE19: 1 | AF19: 4 | AG19: 2006 | AH19: 0 | AJ19: - | AK19: 1 | AL19: 4 | AM19: 1 | AN19: 2007 | AO19: 1 | AP19: 1 | AQ19: 2007 | AR19: 1 | AS19: 1 | AT19: 1 | AU19: 1 | AV19: 1 | AW19: 1 | AX19: 1 | AY19: 1 | AZ19: 1 | BA19: 1 | BB19: 0 | BC19: - | BD19: 1 | BE19: http://data.gov.be | BF19: 0 | BG19: - | BH19: 1 | BI19: http://www.begroting.be/portal/page/portal/INTERNET_pagegroup/INTERNET_algemenegegevensbank | BJ19: 2 | BK19: http://statbel.fgov.be | BL19: Belgium National Institute of Statistics | BM19: http://www.bnb.be | BN19: National Bank of Belgium | BO19: http://ccff02.minfin.fgov.be/KMWeb/ | BP19: 1 | BQ19: http://www.freedominfo.org/wp-content/uploads/documents/global_survey2006.pdf | BR19: 1 | BS19: http://www.begroting.be/portal/page/portal/INTERNET_pagegroup/INTERNET_voorschriften/TAB149685 | BT19: 2 | BU19: - | BV19: 0 | BW19: 3 | BX19: - | BY19: dut | BZ19: fre | CA19: eng | CB19: - | CC19: 0 | CD19: FEDCOM | CE19: Federal Public Budget and Management Control | CF19: C | CG19: T | CH19: 1 | CI19: 2009 | CJ19: C+L | CK19: 1 | CL19: 2 | CM19: SAP | CN19: Web | CO19: - | CP19: - | CQ19: - | CR19: - | CS19: - | CT19: - | CU19: - | CV19: - | CW19: - | CX19: - | CY19: - | CZ19: - | DA19: - | DB19: - | DC19: - | DD19: - | DF19: 1 | DG19: 24 | DH19: 0.7718 | DI19: 0.6471 | DJ19: 0.742 | DK19: 0.9264 | DM19: EU | DN19: OECD | DQ19: Belgium | DR19: 5 | DS19: 1 | DT19: 1 | DU19: 2 | DV19: 1 | DW19: 2 | EA19: 2 | EC19: 16 | ED19: 61.53846154 | EE19: B | EG19: 17 | EH19: Belgium | EI19: BEL
A20: 18 | C20: Belize | D20: LMIC | E20: 356.6 | F20: 1322.393931 | G20: 3710 | H20: http://www.mof.gov.bz | I20: Ministry of Finance of Belize | J20: 0 | K20: http://www.belize.gov.bz/public/Attachment/262911553071.pdf | L20: 1 | M20: http://sifbelize.org/LinkClick.aspx?fileticket=WJ4Ue5aFZSc%3D&tabid=74 | N20: 0 | O20: - | P20: 0 | Q20: - | R20: 0 | S20: 0 | T20: - | U20: 1 | V20: 1 | W20: 0 | X20: - | Y20: 0 | Z20: http://www.mof.gov.bz/dms20uc/dm_browse.asp?pid=84 | AA20: 1 | AB20: 1 | AC20: 2001 | AD20: 0 | AF20: - | AG20: - | AH20: 0 | AJ20: - | AK20: 1 | AL20: 4 | AM20: 0 | AN20: 2012 | AO20: 0 | AQ20: - | AR20: 1 | AS20: 0 | AT20: 0 | AU20: 0 | AV20: 0 | AW20: 1 | AX20: 1 | AY20: 0 | AZ20: 0 | BA20: 0 | BB20: 0 | BC20: - | BD20: 1 | BE20: http://www.belize.gov.bz | BF20: 0 | BG20: - | BH20: 0 | BI20: - | BJ20: 0 | BK20: http://statisticsbelize.org.bz | BL20: Statistical Institute of Belize | BM20: http://www.centralbank.org.bz | BN20: Central Bank of Belize | BO20: - | BP20: 0 | BQ20: - | BR20: 1 | BS20: http://www.mof.gov.bz/aboutus.asp | BT20: 0 | BU20: - | BV20: 0 | BW20: 3 | BX20: Option for subscription to Ministry of Finance Newsletter | BY20: eng | BZ20: - | CA20: - | CB20: - | CC20: - | CD20: FS | CE20: Financial System | CF20: C | CG20: F | CH20: 1 | CI20: 1999 | CJ20: C | CK20: 1 | CL20: 2 | CM20: SmartStream | CN20: Web | CO20: Jan 2009 | CP20: Final | CQ20: X | CR20: X | CS20: X | CT20: X | CU20: X | CV20: X | CW20: X | CX20: X | CY20: X | CZ20: X | DA20: 1.55 | DB20: 1.774193548 | DC20: - | DD20: - | DF20: 0 | DG20: 124 | DH20: 0.3923 | DI20: 0.3987 | DJ20: 0.1627 | DK20: 0.6155 | DL20: LCR | DQ20: Belize | DR20: 0 | DW20: 0 | EB20: 2013-05-06 | EC20: 6 | ED20: 23.07692308 | EE20: D | EG20: 18 | EH20: Belize | EI20: BLZ | EJ20: 1999 | EK20: 12.2 | EL20: 2002 | EM20: 33.5 | EN20: 43.5052 | EO20: 119.461
A21: 19 | C21: Benin | D21: LIC | E21: 9099.922 | F21: 7119.567797 | G21: 780 | H21: http://www.gouv.bj/gouvernement | I21: Benin Ministry of Economy and Finances | J21: 0 | K21: - | L21: 2 | M21: http://www.sndi.ci/component/content/article/78 | N21: 0 | O21: - | P21: 0 | Q21: - | R21: 0 | S21: 0 | T21: - | U21: 0 | V21: 0 | W21: 0 | X21: - | Y21: 0 | Z21: - | AA21: 0 | AC21: - | AD21: 0 | AF21: - | AG21: - | AH21: 0 | AJ21: - | AK21: 0 | AN21: - | AO21: 0 | AQ21: - | AR21: 0 | AS21: 0 | AT21: 0 | AU21: 0 | AV21: 0 | AW21: 0 | AX21: 0 | AY21: 0 | AZ21: 0 | BA21: 0 | BB21: 0 | BC21: - | BD21: 0 | BE21: - | BF21: 0 | BG21: - | BH21: 0 | BI21: - | BJ21: 0 | BK21: http://insae-bj.org | BL21: Institut national de la statistique et de l'analyse économique French (INSAE) | BM21: http://www.bceao.int | BN21: Central Bank of West African States (BCEAO) | BO21: - | BP21: 0 | BQ21: - | BR21: 0 | BS21: - | BT21: 0 | BU21: - | BV21: 0 | BW21: 1 | BX21: - | BY21: fre | BZ21: - | CA21: - | CB21: - | CC21: - | CD21: ASTER/SIGFIP | CE21: Application des Services du Trésor en Réseau / Système Intégré de Gestion des Finances Publiques | CF21: C | CG21: T | CH21: 1 | CI21: 2004 | CJ21: C | CK21: 1 | CL21: 1 | CM21: LDSW > Oracle | CN21: CS | CO21: Sep 2007 | CP21: Public | CQ21: C | CR21: C | CS21: C | CT21: B+ | CU21: C | CV21: D | CW21: C | CX21: D+ | CY21: D | CZ21: D+ | DA21: 1.85 | DB21: 1.967741935 | DC21: 1 | DD21: - | DF21: 2 | DG21: 179 | DH21: 0.2064 | DI21: 0.1961 | DJ21: 0.1118 | DK21: 0.3113 | DL21: AFR | DQ21: Benin | DR21: 1 | DT21: 1 | DW21: 0 | EC21: 2 | ED21: 7.692307692 | EE21: D | EG21: 19 | EH21: Benin | EI21: BEN | EJ21: 2003 | EK21: 47.3 | EL21: 2007 | EM21: 33.3 | EN21: 4304.263106 | EO21: 3030.274026
A22: 20 | C22: Bhutan | D22: LMIC | E22: 738.267 | F22: 1569.44954 | G22: 2130 | H22: http://www.mof.gov.bt | I22: Bhutan Ministry of Finance | J22: 2 | K22: http://www.mof.gov.bt/index.php?deptid=17&id=27 | L22: 1 | M22: http://pid.adb.org/pid/TaView.htm?projNo=41152&seqNo=01&typeCd=2 | N22: 1 | O22: - | P22: 0 | Q22: - | R22: 0 | S22: 0 | T22: - | U22: 2 | V22: 1 | W22: 0 | X22: - | Y22: 1 | Z22: http://www.mof.gov.bt/index.php?deptid=13&id=79 | AA22: 1 | AB22: 1 | AC22: 1993 | AD22: 1 | AE22: 1 | AF22: 3 | AG22: 2007 | AH22: 0 | AJ22: - | AK22: 1 | AL22: 4 | AM22: 1 | AN22: 1993 | AO22: 0 | AQ22: - | AR22: 1 | AS22: 1 | AT22: 1 | AU22: 0 | AV22: 0 | AW22: 1 | AX22: 1 | AY22: 1 | AZ22: 1 | BA22: 0 | BB22: 0 | BC22: - | BD22: 0 | BE22: - | BF22: 0 | BG22: - | BH22: 1 | BI22: http://www.mof.gov.bt/downloads/BudgetReportFY2008-09.pdf | BJ22: 0 | BK22: http://www.nsb.gov.bt | BL22: Bhutan National Statistics Bureau | BM22: http://www.rma.org.bt | BN22: Royal Monetary Authority of Bhutan | BO22: - | BP22: 0 | BQ22: - | BR22: 1 | BS22: http://www.mof.gov.bt/index.php?deptid=11&id=53 | BT22: 0 | BU22: - | BV22: 0 | BW22: 1 | BX22: - | BY22: eng | BZ22: - | CA22: - | CB22: - | CC22: - | CD22: PEMS | CE22: Public Expenditure Management System | CF22: C | CG22: F | CH22: 1 | CI22: 2008 | CJ22: C+L | CK22: 1 | CL22: 1 | CM22: LDSW | CN22: Web | CO22: Jun 2010 | CP22: Public | CQ22: B | CR22: A | CS22: B | CT22: B+ | CU22: B | CV22: A | CW22: D+ | CX22: C+ | CY22: B+ | CZ22: D+ | DA22: 2.95 | DB22: 2.966666667 | DC22: - | DD22: - | DF22: 1 | DG22: 152 | DH22: 0.2942 | DI22: 0.3529 | DJ22: 0.1143 | DK22: 0.4153 | DL22: SAR | DQ22: Bhutan | DR22: 0 | DW22: 0 | EC22: 14 | ED22: 53.84615385 | EE22: B | EG22: 20 | EH22: Bhutan | EI22: BTN | EJ22: 2007 | EK22: 10.2 | EL22: 2007 | EM22: 23.2 | EN22: 75.303234 | EO22: 171.277944
A23: 21 | C23: Bolivia | D23: LMIC | E23: 10088.108 | F23: 20421.5836 | G23: 2020 | H23: http://www.economiayfinanzas.gob.bo | I23: Ministerio de Economía y Finanzas Públicas | J23: 2 | K23: http://www.economiayfinanzas.gob.bo/index.php?opcion=com_indicadores&ver=indicadores&idc=585 | L23: 2 | M23: http://www.sigma.gob.bo/php/index.php | N23: 2 | O23: http://vmpc.economiayfinanzas.gob.bo/financiera0.asp | P23: 1 | Q23: http://www.economiayfinanzas.gob.bo/index.php?opcion=com_indicadores&ver=indicadores&idc=582 | R23: 1 | S23: 1 | T23: http://medios.economiayfinanzas.gob.bo/MH/documentos/ppto2011/index.htm | U23: 2 | V23: 1 | W23: 0 | X23: - | Y23: 1 | Z23: http://vmpc.economiayfinanzas.gob.bo/modelos_c.asp | AA23: 1 | AB23: 1 | AC23: 2001 | AD23: 0 | AF23: - | AG23: - | AH23: 0 | AJ23: - | AK23: 1 | AL23: 4 | AM23: 1 | AN23: 2001 | AO23: 1 | AP23: 1 | AQ23: 2001 | AR23: 1 | AS23: 1 | AT23: 1 | AU23: 0 | AV23: 0 | AW23: 1 | AX23: 1 | AY23: 1 | AZ23: 1 | BA23: 1 | BB23: 0 | BC23: - | BD23: 0 | BE23: - | BF23: 2 | BG23: http://www.sigma.gob.bo/pgn/sfpm2011/index.htm?&id_item=527 | BH23: 1 | BI23: http://www.economiayfinanzas.gob.bo/index.php?opcion=com_contenido&ver=contenido&id=2094&id_item=625&id_item=489 | BJ23: 1 | BK23: http://www.ine.gob.bo | BL23: National Institute of Statistics | BM23: http://www.bcb.gob.bo | BN23: Central Bank of Bolivia | BO23: - | BP23: 1 | BQ23: http://www.economiayfinanzas.gob.bo/index.php?opcion=com_contenido&ver=contenido&id=834&id_item=464 | BR23: 1 | BS23: http://www.economiayfinanzas.gob.bo/institucion/estorgpdf.php?sw=0 | BT23: 0 | BU23: National laws and regulations | BV23: 1 | BW23: 3 | BX23: - | BY23: spa | BZ23: eng | CA23: - | CB23: - | CC23: 0 | CD23: SIGMA | CE23: Sistema Integrado de Gestión y Modernización Administrativa | CF23: C | CG23: F | CH23: 2 | CI23: 2003 | CJ23: C+L | CK23: 1 | CL23: 1 | CM23: LDSW > Oracle | CN23: Web | CO23: Oct 2009 | CP23: Public | CQ23: A | CR23: C | CS23: B | CT23: C | CU23: B | CV23: D | CW23: C+ | CX23: D+ | CY23: D+ | CZ23: C | DA23: 2.25 | DB23: 2.517241379 | DC23: 12 | DD23: 13 | DF23: 0 | DG23: 106 | DH23: 0.4658 | DI23: 0.4118 | DJ23: 0.1786 | DK23: 0.8072 | DL23: LCR | DQ23: Bolivia | DR23: 1 | DU23: 1 | DW23: 0 | EC23: 19 | ED23: 73.07692308 | EE23: B | EG23: 21 | EH23: Bolivia | EI23: BOL | EJ23: 2008 | EK23: 15.6 | EL23: 2009 | EM23: 51.3 | EN23: 1573.744848 | EO23: 5175.199404
A24: 22 | C24: Bosnia and Herzegovina | D24: UMIC | E24: 3752.228 | F24: 17950.88176 | G24: 4780 | H24: http://www.fmf.gov.ba | I24: Bosnia and Herzegovina Ministry of Finance | J24: 2 | K24: http://www.fmf.gov.ba/ | L24: 1 | M24: http://www.fiscalreform.net/pdfs/bosnia_treasury_and_payment_bureaus.pdf | N24: 1 | O24: - | P24: 0 | Q24: - | R24: 0 | S24: 0 | T24: - | U24: 1 | V24: 1 | W24: 0 | X24: - | Y24: 1 | Z24: http://www.fmf.gov.ba/zakoni/2010/bosanski/pravilnici/Pravilnik%20o%20kontnom%20okviru,sadrzaju%20konta%20i%20primjeni%20kontnog%20okvira%20za%20banke%20i%20druge%20financijske%20organizacije.pdf | AA24: 1 | AB24: 1 | AC24: 2000 | AD24: 1 | AE24: 1 | AF24: 3 | AG24: 2008 | AH24: 0 | AJ24: - | AK24: 1 | AL24: 4 | AM24: 0 | AN24: 2006 | AO24: 1 | AP24: 0 | AQ24: 2011 | AR24: 1 | AS24: 1 | AT24: 0 | AU24: 0 | AV24: 0 | AW24: 1 | AX24: 1 | AY24: 1 | AZ24: 1 | BA24: 0 | BB24: 0 | BC24: - | BD24: 0 | BE24: - | BF24: 0 | BG24: - | BH24: 0 | BI24: - | BJ24: 0 | BK24: http://www.bhas.ba | BL24: Bosnia and Herzegovina Agency for Statistics | BM24: http://www.cbbh.ba | BN24: Central Bank of Bosnia and Herzegovina | BO24: - | BP24: 0 | BQ24: - | BR24: 1 | BS24: http://www.fmf.gov.ba/publikacije/Unutarnje_ustrojstvo.pdf | BT24: 0 | BU24: National laws and regulations | BV24: 0 | BW24: 2 | BX24: - | BY24: hrv | BZ24: bos | CA24: eng | CB24: - | CC24: 0 | CD24: FMIS | CE24: Financial Management Information System | CF24: D | CG24: F | CH24: 1 | CI24: 2004 | CJ24: C+L | CK24: 1 | CL24: 2 | CM24: Oracle | CN24: Web | CO24: - | CP24: - | CQ24: - | CR24: - | CS24: - | CT24: - | CU24: - | CV24: - | CW24: - | CX24: - | CY24: - | CZ24: - | DA24: - | DB24: - | DC24: 50 | DD24: 44 | DF24: 2 | DG24: 79 | DH24: 0.5328 | DI24: 0.3725 | DJ24: 0.3917 | DK24: 0.8341 | DL24: ECA | DP24: F | DQ24: Bosnia and Herzegovina | DR24: 0 | DW24: 0 | EC24: 13 | ED24: 50 | EE24: B | EG24: 22 | EH24: Bosnia and Herzegovina | EI24: BIH | EJ24: 2007 | EK24: <2 | EL24: 2007 | EM24: 14 | EN24: 2 | EO24: 525.31192
A25: 23 | C25: Botswana | D25: UMIC | E25: 2030.738 | F25: 15175.77745 | G25: 7470 | H25: http://www.finance.gov.bw | I25: Botswana - Ministry of Finance and Development Planning | J25: 2 | K25: http://www.finance.gov.bw/index.php?option=com_content1&parent_id=334&id=336 | L25: 1 | M25: http://www.oag.org.bw/wp-content/uploads/2008/11/GovernmentAccountingandBudgetingSystem%20_GABS_%202007.pdf | N25: 1 | O25: - | P25: 0 | Q25: - | R25: 0 | S25: 0 | T25: - | U25: 1 | V25: 1 | W25: 0 | Y25: 0 | Z25: - | AA25: 0 | AC25: - | AD25: 0 | AF25: - | AG25: - | AH25: 0 | AJ25: - | AK25: 1 | AL25: 4 | AM25: 0 | AN25: 2005 | AO25: 1 | AP25: 1 | AQ25: 2002 | AR25: 1 | AS25: 1 | AT25: 0 | AU25: 0 | AV25: 0 | AW25: 1 | AX25: 1 | AY25: 0 | AZ25: 0 | BA25: 0 | BB25: 0 | BC25: - | BD25: 0 | BE25: - | BF25: 0 | BG25: - | BH25: 0 | BI25: - | BJ25: 0 | BK25: http://www.cso.gov.bw | BL25: Botswana Central Statistics Office | BM25: http://www.bankofbotswana.bw | BN25: Bank of Botswana | BO25: - | BP25: 0 | BQ25: - | BR25: 0 | BS25: - | BT25: 0 | BU25: - | BV25: 0 | BW25: 3 | BX25: - | BY25: eng | BZ25: - | CA25: - | CB25: - | CC25: - | CD25: GABS | CE25: Government Accounting and Budgeting System | CF25: C | CG25: F | CH25: 3 | CI25: 2004 | CJ25: C+L | CK25: 1 | CL25: 2 | CM25: Oracle | CN25: Web | CO25: Feb 2009 | CP25: Public | CQ25: C | CR25: A | CS25: B | CT25: C+ | CU25: B | CV25: A | CW25: C+ | CX25: C+ | CY25: D+ | CZ25: D+ | DA25: 2.65 | DB25: 2.451612903 | DC25: 50 | DD25: 51 | DF25: 1 | DG25: 121 | DH25: 0.4186 | DI25: 0.3595 | DJ25: 0.1873 | DK25: 0.7091 | DL25: AFR | DQ25: Botswana | DR25: 0 | DW25: 0 | EB25: 2013-05-06 | EC25: 9 | ED25: 34.61538462 | EE25: C | EG25: 23 | EH25: Botswana | EI25: BWA | EJ25: 1994 | EK25: 31.2 | EL25: 2003 | EM25: 30.6 | EN25: 633.590256 | EO25: 621.405828
A26: 24 | C26: Brazil | D26: UMIC | E26: 196655.014 | F26: 2107744.967 | G26: 10720 | H26: http://www.fazenda.gov.br | I26: Ministry of Finance of Brazil | J26: 2 | K26: http://www.stn.fazenda.gov.br | L26: 2 | M26: https://www.tesouro.fazenda.gov.br/pt/siafi | N26: 3 | O26: https://www.tesouro.fazenda.gov.br/index.php?option=com_content&view=article&layout=subhome&id=234&Itemid=436&lang=pt | P26: 1 | Q26: https://www.tesouro.fazenda.gov.br/pt/servicos/series-historicas | R26: 1 | S26: 1 | T26: http://consulta.tesouro.fazenda.gov.br/cofin_novosite/dotacao_vs_desp_param.asp | U26: 2 | V26: 1 | W26: 2 | X26: http://www.portaldatransparencia.gov.br/ | Y26: 1 | Z26: http://www.stn.fazenda.gov.br/contabilidade_governamental/plano_contas.asp | AA26: 1 | AB26: 1 | AC26: 1980 | AD26: 1 | AE26: 1 | AF26: 3 | AG26: 2003 | AH26: 1 | AI26: 1 | AJ26: 2003 | AK26: 1 | AL26: 2 | AM26: 1 | AN26: 1980 | AO26: 1 | AP26: 1 | AQ26: 2004 | AR26: 1 | AS26: 1 | AT26: 1 | AU26: 0 | AV26: 1 | AW26: 1 | AX26: 1 | AY26: 1 | AZ26: 1 | BA26: 1 | BB26: 1 | BC26: http://www.portaldatransparencia.gov.br/ | BD26: 1 | BE26: http://dados.gov.br/ | BF26: 2 | BG26: http://manualsiafi.tesouro.fazenda.gov.br/150000 | BH26: 1 | BI26: http://www.fazenda.gov.br/ | BJ26: 3 | BK26: http://www.ibge.gov.br/english/default.php | BL26: Brazilian Institute of Geography and Statistics (IBGE) | BM26: http://www.bcb.gov.br | BN26: Central Bank of Brazil | BO26: http://www.bcb.gov.br/?INDECO; http://www.stn.fazenda.gov.br/hp/resultado.asp | BP26: 1 | BQ26: http://www.fazenda.gov.br/acessoainformacao/ | BR26: 1 | BS26: http://www.fazenda.gov.br/ | BT26: 2 | BU26: National laws and regulations | BV26: 1 | BW26: 3 | BX26: Youtube, Twitter | BY26: por | BZ26: eng | CA26: - | CB26: - | CC26: 0 | CD26: SIAFI + SIOP | CE26: Sistema Integrado de Administração Financeira do Governo Federal | CF26: C | CG26: F | CH26: 1 | CI26: 1987 | CJ26: C+L | CK26: 1 | CL26: 1 | CM26: LDSW + OSS | CN26: Web | CO26: Dec 2009 | CP26: Public | CQ26: A | CR26: A | CS26: A | CT26: B | CU26: A | CV26: A | CW26: A | CX26: C+ | CY26: C+ | CZ26: NU | DA26: 3.555555556 | DB26: 3.517857143 | DC26: 73 | DD26: 71 | DE26: 1 | DF26: 1 | DG26: 59 | DH26: 0.6167 | DI26: 0.6732 | DJ26: 0.3568 | DK26: 0.8203 | DL26: LCR | DQ26: Brazil | DR26: 9 | DS26: 4 | DT26: 1 | DU26: 2 | DV26: 2 | DW26: 11 | DX26: 2 | DZ26: 8 | EA26: 1 | EC26: 26 | ED26: 100 | EE26: A | EG26: 24 | EH26: Brazil | EI26: BRA | EJ26: 2009 | EK26: 6.1 | EL26: 2009 | EM26: 21.4 | EN26: 11995.95585 | EO26: 42084.173
A27: 25 | C27: Brunei Darussalam | D27: HIC | E27: 405.938 | F27: 16360 | G27: 40301.72095 | H27: http://www.mof.gov.bn | I27: Ministry of Finance | J27: 0 | K27: - | L27: 2 | M27: http://www.mof.gov.bn/English/Treasury/Background/Pages/default.aspx | N27: 0 | O27: - | P27: 0 | Q27: - | R27: 0 | S27: 0 | T27: - | U27: 0 | V27: 0 | W27: 0 | X27: - | Y27: 0 | Z27: - | AA27: 0 | AC27: - | AD27: 0 | AF27: - | AG27: - | AH27: 0 | AJ27: - | AK27: 0 | AN27: - | AO27: 0 | AQ27: - | AR27: 0 | AS27: 0 | AT27: 0 | AU27: 0 | AV27: 0 | AW27: 0 | AX27: 0 | AY27: 0 | AZ27: 0 | BA27: 0 | BB27: 0 | BC27: - | BD27: 0 | BE27: - | BF27: 0 | BG27: - | BH27: 0 | BI27: - | BJ27: 0 | BK27: http://www.depd.gov.bn/dept_dos.html | BL27: Dept of Econ Planning and Dev - Dept of Statistics | BM27: http://www.mof.gov.bn/English/BCMB/Pages/default.aspx | BN27: Brunei Currency and Monetary Board | BO27: - | BP27: 0 | BQ27: - | BR27: 1 | BS27: http://www.mof.gov.bn/English/Administration/AboutUs/OrganisationalStructure/Pages/default.aspx | BT27: 0 | BU27: - | BV27: 0 | BW27: 0 | BX27: - | BY27: eng | BZ27: - | CA27: - | CB27: - | CC27: - | CD27: TAFIS | CE27: Treasury Accounting and Financial Information System | CF27: C | CG27: T | CH27: 1 | CI27: 2002 | CJ27: C | CK27: 1 | CL27: 1 | CM27: LDSW > Oracle | CN27: Web | CO27: - | CP27: - | CQ27: - | CR27: - | CS27: - | CT27: - | CU27: - | CV27: - | CW27: - | CX27: - | CY27: - | CZ27: - | DA27: - | DB27: - | DC27: - | DD27: - | DF27: - | DG27: 54 | DH27: 0.625 | DI27: 0.5948 | DJ27: 0.455 | DK27: 0.8253 | DM27: PAC | DO27: APEC | DQ27: Brunei Darussalam | DR27: 0 | DW27: 0 | EC27: 2 | ED27: 7.692307692 | EE27: D | EG27: 25 | EH27: Brunei Darussalam | EI27: BRN
A28: 26 | C28: Bulgaria | D28: UMIC | E28: 7476 | F28: 48818.7426 | G28: 6530 | H28: http://www.minfin.bg | I28: Ministry of Finance of the Republic of Bulgaria | J28: 2 | K28: http://www.minfin.bg/bg/page/4 | L28: 2 | M28: http://www.minfin.bg/en/documents/?cat=1&vid=-1&dq=FMIS | N28: 1 | O28: - | P28: 1 | Q28: http://www.minfin.bg/bg/statistics/7 | R28: 0 | S28: 0 | T28: - | U28: 1 | V28: 1 | W28: 0 | X28: - | Y28: 0 | Z28: - | AA28: 1 | AB28: 1 | AC28: 1997 | AD28: 1 | AE28: 1 | AF28: 3 | AG28: 2007 | AH28: 0 | AJ28: - | AK28: 1 | AL28: 2 | AM28: 1 | AN28: 2002 | AO28: 0 | AQ28: - | AR28: 1 | AS28: 1 | AT28: 0 | AU28: 0 | AV28: 0 | AW28: 1 | AX28: 1 | AY28: 1 | AZ28: 0 | BA28: 0 | BB28: 0 | BC28: - | BD28: 1 | BE28: http://parliament.yurukov.net/index_en.html | BF28: 0 | BG28: - | BH28: 1 | BI28: http://www.minfin.bg/bg/statistics/11 | BJ28: 1 | BK28: http://www.nsi.bg | BL28: Bulgaria National Statistical Institute | BM28: http://www.bnb.bg | BN28: Bulgarian National Bank | BO28: - | BP28: 0 | BQ28: - | BR28: 0 | BS28: - | BT28: 2 | BU28: National laws and regulations | BV28: 0 | BW28: 3 | BX28: There is a provision for reporting corruption alerts | BY28: bul | BZ28: eng | CA28: - | CB28: - | CC28: 0 | CD28: FMIS | CE28: Financial Management Information System | CF28: C | CG28: T | CH28: 3 | CI28: 2009 | CJ28: C | CK28: 1 | CL28: 1 | CM28: LDSW | CN28: Web | CO28: - | CP28: - | CQ28: - | CR28: - | CS28: - | CT28: - | CU28: - | CV28: - | CW28: - | CX28: - | CY28: - | CZ28: - | DA28: - | DB28: - | DC28: 65 | DD28: 56 | DE28: 1 | DF28: 3 | DG28: 60 | DH28: 0.6132 | DI28: 0.4902 | DJ28: 0.5006 | DK28: 0.8486 | DL28: ECA | DM28: EU | DQ28: Bulgaria | DR28: 3 | DS28: 2 | DV28: 1 | DW28: 0 | EC28: 14 | ED28: 53.84615385 | EE28: B | EG28: 26 | EH28: Bulgaria | EI28: BGR | EJ28: 2007 | EK28: <2 | EL28: 2007 | EM28: 10.6 | EO28: 792.456
A29: 27 | C29: Burkina Faso | D29: LIC | E29: 16967.845 | F29: 9695.861999 | G29: 570 | H29: http://www.finances.gov.bf | I29: Burkina Faso - Ministère de l'économie et des finances | J29: 2 | K29: http://www.dgb.gov.bf/documents.php | L29: 2 | M29: http://www.tresor.bf/spip.php?page=articleS&id_article=29 | N29: 1 | O29: - | P29: 0 | Q29: - | R29: 0 | S29: 0 | T29: - | U29: 1 | V29: 1 | W29: 0 | X29: - | Y29: 1 | Z29: http://www.finances.gov.bf/IMG/pdf/Budget_Entier.pdf | AA29: 1 | AB29: 0 | AC29: 2009 | AD29: 1 | AE29: 0 | AF29: 3 | AG29: 2011 | AH29: 0 | AJ29: - | AK29: 1 | AL29: 4 | AM29: 0 | AN29: 2009 | AO29: 0 | AQ29: - | AR29: 1 | AS29: 1 | AT29: 0 | AU29: 0 | AV29: 0 | AW29: 1 | AX29: 1 | AY29: 0 | AZ29: 0 | BA29: 1 | BB29: 0 | BC29: - | BD29: 0 | BE29: - | BF29: 2 | BG29: http://www.tresor.bf/pages/infor_collectivites.htm | BH29: 1 | BI29: http://www.finances.gov.bf/IMG/pdf/Budget_Entier.pdf | BJ29: 2 | BK29: http://www.insd.bf | BL29: Institut national de la statistique et de la démographie (INSD) | BM29: http://www.bceao.int | BN29: Central Bank of West African States (BCEAO) | BO29: http://www.tresor.bf | BP29: 0 | BQ29: - | BR29: 1 | BS29: http://www.finances.gov.bf/spip.php?article7 | BT29: 2 | BU29: - | BV29: 1 | BW29: 3 | BX29: There is webmail access to the Ministry of Finance website | BY29: fre | BZ29: - | CA29: - | CB29: - | CC29: - | CD29: CID | CE29: Circuit Informatisé de la Dépense / Integrated Expenditure System | CF29: C | CG29: T | CH29: 1 | CI29: 2000 | CJ29: C | CK29: 1 | CL29: 2 | CM29: Oracle | CN29: CS | CO29: Jun 2010 | CP29: Public | CQ29: A | CR29: A | CS29: C | CT29: B+ | CU29: C+ | CV29: D | CW29: A | CX29: B+ | CY29: D+ | CZ29: C+ | DA29: 2.85 | DB29: 2.790322581 | DC29: 23 | DD29: 5 | DF29: 3 | DG29: 185 | DH29: 0.1578 | DI29: 0.2941 | DJ29: 0.0454 | DK29: 0.1338 | DL29: AFR | DQ29: Burkina Faso | DR29: 0 | DW29: 0 | EC29: 11 | ED29: 42.30769231 | EE29: C | EG29: 27 | EH29: Burkina Faso | EI29: BFA | EJ29: 2009 | EK29: 44.6 | EL29: 2009 | EM29: 46.7 | EN29: 7567.65887 | EO29: 7923.983615 | EQ29: 2008
A30: 28 | C30: Burundi | D30: LIC | E30: 8575.172 | F30: 2158.128195 | G30: 250 | H30: http://www.burundi-gov.bi/Composition-du-Gouvernement-de-la | I30: Ministry of Finance | J30: 0 | K30: - | L30: 2 | M30: http://www.page.bi/spip.php?article35 | N30: 0 | O30: - | P30: 0 | Q30: - | R30: 0 | S30: 0 | T30: - | U30: 0 | V30: 0 | W30: 0 | X30: - | Y30: 0 | Z30: - | AA30: 0 | AC30: - | AD30: 0 | AF30: - | AG30: - | AH30: 0 | AJ30: - | AK30: 0 | AN30: - | AO30: 0 | AQ30: - | AR30: 0 | AS30: 0 | AT30: 0 | AU30: 0 | AV30: 0 | AW30: 0 | AX30: 0 | AY30: 0 | AZ30: 0 | BA30: 0 | BB30: 0 | BC30: - | BD30: 0 | BE30: - | BF30: 0 | BG30: - | BH30: 0 | BI30: - | BJ30: 0 | BK30: http://burundistats.org | BL30: Institut de Statistiques et Des Etudes Economiques du Burundi | BM30: http://www.brb-bi.net | BN30: Bank of the Republic of Burundi | BO30: - | BP30: 0 | BQ30: - | BR30: 0 | BS30: - | BT30: 0 | BU30: - | BV30: 0 | BW30: 0 | BX30: - | BY30: fre | BZ30: - | CA30: - | CB30: - | CC30: - | CD30: SIGEFI | CE30: Système Intégré de Gestion des Finances / Integrated Public Financial Management System | CF30: C | CG30: T | CH30: 1 | CI30: 2004 | CJ30: C | CK30: 1 | CL30: 1 | CM30: LDSW > MS SQL | CN30: Web | CO30: Feb 2012 | CP30: Final | CQ30: X | CR30: X | CS30: X | CT30: X | CU30: X | CV30: X | CW30: X | CX30: X | CY30: X | CZ30: X | DA30: 2.75 | DB30: 2.413793103 | DC30: - | DD30: - | DF30: 1 | DG30: 173 | DH30: 0.2288 | DI30: 0.1503 | DJ30: 0.0173 | DK30: 0.5188 | DL30: AFR | DP30: F | DQ30: Burundi | DR30: 0 | DW30: 0 | EC30: 2 | ED30: 7.692307692 | EE30: D | EG30: 28 | EH30: Burundi | EI30: BDI | EJ30: 2006 | EK30: 81.3 | EL30: 2006 | EM30: 66.9 | EN30: 6971.614836 | EO30: 5736.790068
A31: 29 | C31: Cambodia | D31: LIC | E31: 14305.183 | F31: 11673.47778 | G31: 820 | H31: http://www.mef.gov.kh | I31: Ministry of Economy and Finance of Cambodia | J31: 1 | K31: http://www.mef.gov.kh/tofe.html | L31: 2 | M31: http://fmis.mef.gov.kh | N31: 1 | O31: - | P31: 0 | Q31: - | R31: 0 | S31: 0 | T31: - | U31: 0 | V31: 0 | W31: 0 | X31: - | Y31: 1 | Z31: http://www.mef.gov.kh/budget.html | AA31: 1 | AB31: 0 | AC31: 2010 | AD31: 1 | AE31: 0 | AF31: 4 | AG31: 2010 | AH31: 0 | AJ31: - | AK31: 1 | AL31: 2 | AM31: 1 | AN31: 2009 | AO31: 0 | AQ31: - | AR31: 0 | AS31: 0 | AT31: 0 | AU31: 0 | AV31: 0 | AW31: 0 | AX31: 0 | AY31: 0 | AZ31: 0 | BA31: 0 | BB31: 0 | BC31: - | BD31: 0 | BE31: - | BF31: 1 | BG31: http://fmis.mef.gov.kh/fmis-project/fmis-project-plan.html | BH31: 0 | BI31: - | BJ31: 2 | BK31: http://www.nis.gov.kh | BL31: Cambodia National Institute of Statistics | BM31: http://www.nbc.org.kh | BN31: National Bank of Cambodia | BO31: http://www.treasury.gov.kh | BP31: 0 | BQ31: - | BR31: 1 | BS31: http://www.mef.gov.kh/about-ministry.html | BT31: 2 | BU31: - | BV31: 0 | BW31: 2 | BX31: - | BY31: khm | BZ31: eng | CA31: - | CB31: - | CC31: 0 | CD31: FMIS | CE31: Financial Management Information System | CF31: C | CG31: T | CH31: 4 | CI31: 2016 | CJ31: C+L | CK31: 2 | CL31: 0 | CM31: ? | CN31: Web | CO31: Feb 2010 | CP31: Draft | CQ31: X | CR31: X | CS31: X | CT31: X | CU31: X | CV31: X | CW31: X | CX31: X | CY31: X | CZ31: X | DA31: 2.05 | DB31: 2.189655172 | DC31: 15 | DD31: 15 | DF31: 2 | DG31: 155 | DH31: 0.2902 | DI31: 0.1895 | DJ31: 0.0814 | DK31: 0.5997 | DL31: EAP | DQ31: Cambodia | DR31: 3 | DU31: 3 | DW31: 0 | EC31: 9 | ED31: 34.61538462 | EE31: C | EG31: 29 | EH31: Cambodia | EI31: KHM | EJ31: 2009 | EK31: 18.6 | EL31: 2007 | EM31: 30.1 | EN31: 2660.764038 | EO31: 4305.860083
A32: 30 | C32: Cameroon | D32: LMIC | E32: 20030.362 | F32: 24137.50519 | G32: 1210 | H32: http://www.prc.cm | I32: Cameroon Ministry of Finance and Economy | J32: 0 | K32: - | L32: 1 | M32: http://www-wds.worldbank.org/external/default/WDSContentServer/WDSP/IB/2008/09/04/000334955_20080904030253/Rendered/PDF/433690PAD0P0841LY10IDA1R20081019311.pdf | N32: 0 | O32: - | P32: 0 | Q32: - | R32: 0 | S32: 0 | T32: - | U32: 0 | V32: 0 | W32: 1 | X32: http://cameroon.openspending.org/en/index.html | Y32: 0 | Z32: - | AA32: 0 | AC32: - | AD32: 0 | AF32: - | AG32: - | AH32: 0 | AJ32: - | AK32: 0 | AN32: - | AO32: 0 | AQ32: - | AR32: 0 | AS32: 0 | AT32: 0 | AU32: 0 | AV32: 0 | AW32: 0 | AX32: 0 | AY32: 0 | AZ32: 0 | BA32: 0 | BB32: 0 | BC32: - | BD32: 0 | BE32: - | BF32: 0 | BG32: - | BH32: 0 | BI32: - | BJ32: 0 | BK32: http://www.statistics-cameroon.org | BL32: Cameron Institut National de la Statistique | BM32: http://www.beac.int | BN32: Bank of Central African States | BO32: - | BP32: 0 | BQ32: - | BR32: 0 | BS32: - | BT32: 0 | BU32: - | BV32: 0 | BW32: 0 | BX32: - | BY32: fre | BZ32: eng | CA32: - | CB32: - | CC32: 0 | CD32: SIGEFI | CE32: Système Intégré de Gestion des Finances / Integrated Public Financial Management System | CF32: C | CG32: T | CH32: 1 | CI32: 2004 | CJ32: C | CK32: 1 | CL32: 1 | CM32: LDSW > MS SQL | CN32: Web | CO32: Jan 2008 | CP32: Final | CQ32: X | CR32: X | CS32: X | CT32: X | CU32: X | CV32: X | CW32: X | CX32: X | CY32: X | CZ32: X | DA32: 1.9 | DB32: 2 | DC32: 10 | DD32: 2 | DF32: 1 | DG32: 147 | DH32: 0.307 | DI32: 0.3007 | DJ32: 0.0649 | DK32: 0.5554 | DL32: AFR | DQ32: Cameroon | DR32: 0 | DW32: 0 | EC32: 2 | ED32: 7.692307692 | EE32: D | EG32: 30 | EH32: Cameroon | EI32: CMR | EJ32: 2007 | EK32: 9.6 | EL32: 2007 | EM32: 39.9 | EN32: 1922.914752 | EO32: 7992.114438 | ER32: DAD
A33: 31 | C33: Canada | D33: HIC | E33: 34482.779 | F33: 1570886.128 | G33: 45560 | H33: http://www.fin.gc.ca | I33: Canada Department of Finance | J33: 2 | K33: http://www.fin.gc.ca/access/budinfo-eng.asp | L33: 2 | M33: http://www.freebalance.com/customers/north_america.asp | N33: 1 | O33: - | P33: 0 | Q33: - | R33: 0 | S33: 0 | T33: - | U33: 2 | V33: 1 | W33: 0 | X33: - | Y33: 0 | Z33: - | AA33: 1 | AB33: 1 | AC33: 1990 | AD33: 1 | AE33: 1 | AF33: 5 | AG33: 1995 | AH33: 0 | AJ33: - | AK33: 1 | AL33: 4 | AM33: 1 | AN33: 1995 | AO33: 1 | AP33: 1 | AQ33: 2004 | AR33: 1 | AS33: 1 | AT33: 0 | AU33: 0 | AV33: 1 | AW33: 1 | AX33: 1 | AY33: 1 | AZ33: 1 | BA33: 0 | BB33: 0 | BC33: - | BD33: 1 | BE33: http://www.data.gc.ca/default.asp?lang=En | BF33: 0 | BG33: - | BH33: 0 | BI33: - | BJ33: 1 | BK33: http://www.statcan.gc.ca | BL33: Statistics Canada | BM33: http://www.bankofcanada.ca | BN33: Bank of Canada - Banque du Canada | BO33: - | BP33: 1 | BQ33: http://www.fin.gc.ca/admin/notices-avis-eng.asp | BR33: 1 | BS33: http://www.fin.gc.ca/afc/index-eng.asp | BT33: 0 | BU33: - | BV33: 0 | BW33: 3 | BX33: Availability of FAQs (Frequently Asked Questions) | BY33: eng | BZ33: fre | CA33: - | CB33: - | CC33: 1 | CD33: GFMIS | CE33: Government Financial Management Information System | CF33: D | CG33: F | CH33: 1 | CI33: 1994 | CJ33: C+L | CK33: 1 | CL33: 2 | CM33: FreeBalance | CN33: Web | CO33: - | CP33: - | CQ33: - | CR33: - | CS33: - | CT33: - | CU33: - | CV33: - | CW33: - | CX33: - | CY33: - | CZ33: - | DA33: - | DB33: - | DC33: - | DD33: - | DE33: 1 | DF33: 3 | DG33: 11 | DH33: 0.843 | DI33: 0.8889 | DJ33: 0.7163 | DK33: 0.9238 | DM33: AME | DN33: OECD | DO33: APEC | DQ33: Canada | DR33: 1 | DT33: 1 | DW33: 1 | DY33: 1 | EC33: 16 | ED33: 61.53846154 | EE33: B | EG33: 31 | EH33: Canada | EI33: CAN
A34: 32 | C34: Cape Verde | D34: LMIC | E34: 500.585 | F34: 1772.946195 | G34: 3540 | H34: http://www.minfin.gov.cv | I34: Ministério das Finanças e do Planeamento | J34: 2 | K34: http://www.minfin.gov.cv/index.php?option=com_docman&Itemid=165 | L34: 2 | M34: http://www.nosi.cv/index.php?option=com_content&view=article&id=92&Itemid=125&lang=en | N34: 1 | O34: - | P34: 0 | Q34: - | R34: 0 | S34: 0 | T34: - | U34: 2 | V34: 1 | W34: 0 | X34: - | Y34: 1 | Z34: http://www.minfin.gov.cv/ | AA34: 1 | AB34: 0 | AC34: 2006 | AD34: 1 | AE34: 1 | AF34: 3 | AG34: 2006 | AH34: 1 | AI34: 0 | AJ34: 2010 | AK34: 1 | AL34: 3 | AM34: 1 | AN34: 2006 | AO34: 0 | AQ34: - | AR34: 1 | AS34: 1 | AT34: 1 | AU34: 0 | AV34: 0 | AW34: 1 | AX34: 0 | AY34: 1 | AZ34: 0 | BA34: 0 | BB34: 0 | BC34: - | BD34: 0 | BE34: - | BF34: 2 | BG34: http://www.nosi.cv/index.php?option=com_content&view=article&id=93&Itemid=124&lang=en | BH34: 1 | BI34: http://www.oge2011.gov.cv/index.php?option=com_docman&Itemid=58 | BJ34: 2 | BK34: http://www.ine.cv | BL34: National Statistical Institute | BM34: http://www.bcv.cv | BN34: Banco de Cabo Verde | BO34: http://www.bcv.cv/vPT/Paginas/Homepage.aspx | BP34: 0 | BQ34: - | BR34: 1 | BS34: http://www.minfin.gov.cv/ | BT34: 0 | BU34: - | BV34: 0 | BW34: 3 | BX34: - | BY34: por | BZ34: - | CA34: - | CB34: - | CC34: - | CD34: SIGOF | CE34: Sistema Integrado de Gestão Orçamental e Financeira | CF34: C | CG34: T | CH34: 1 | CI34: 2002 | CJ34: C | CK34: 1 | CL34: 1 | CM34: LDSW > Oracle | CN34: CS | CO34: Dec 2008 | CP34: Public | CQ34: B | CR34: A | CS34: C | CT34: C+ | CU34: B+ | CV34: D | CW34: C+ | CX34: C+ | CY34: D+ | CZ34: D | DA34: 2.35 | DB34: 2.661290323 | DC34: - | DD34: - | DF34: 2 | DG34: 118 | DH34: 0.4297 | DI34: 0.4379 | DJ34: 0.2268 | DK34: 0.6245 | DL34: AFR | DQ34: Cape Verde | DR34: 0 | DW34: 0 | EC34: 15 | ED34: 57.69230769 | EE34: B | EG34: 32 | EH34: Cape Verde | EI34: CPV | EJ34: 2002 | EK34: 21 | EL34: 2007 | EM34: 26.6 | EN34: 105.12285 | EO34: 133.15561 | ER34: DAD
A35: 33 | C35: Central African Republic | D35: LIC | E35: 4486.837 | F35: 2139.381664 | G35: 480 | H35: http://www.afdevinfo.com/htmlreports/org/org_38461.html | I35: Ministry of Finance | J35: 0 | K35: - | L35: 1 | M35: http://www-wds.worldbank.org/external/default/WDSContentServer/WDSP/IB/2010/12/08/000333037_20101208231702/Rendered/PDF/ICR16820ICR0P11OFFICIAL0USE0ONLY191.pdf | N35: 0 | O35: - | P35: 0 | Q35: - | R35: 0 | S35: 0 | T35: - | U35: 0 | V35: 0 | W35: 0 | X35: - | Y35: 0 | Z35: - | AA35: 0 | AC35: - | AD35: 0 | AF35: - | AG35: - | AH35: 0 | AJ35: - | AK35: 0 | AN35: - | AO35: 0 | AQ35: - | AR35: 0 | AS35: 0 | AT35: 0 | AU35: 0 | AV35: 0 | AW35: 0 | AX35: 0 | AY35: 0 | AZ35: 0 | BA35: 0 | BB35: 0 | BC35: - | BD35: 0 | BE35: - | BF35: 0 | BG35: - | BH35: 0 | BI35: - | BJ35: 1 | BK35: http://www.stat-centrafrique.com | BL35: Institut centrafricain des statistiques, des études économiques et sociales (ICASEES) | BM35: http://www.beac.int | BN35: Bank of Central African States | BO35: - | BP35: 0 | BQ35: - | BR35: 0 | BS35: - | BT35: 0 | BU35: - | BV35: 0 | BW35: 0 | BX35: - | BY35: fre | BZ35: eng | CA35: - | CB35: - | CC35: 0 | CD35: GFMIS | CE35: Government Financial Management Information System / GES'CO | CF35: C | CG35: T | CH35: 1 | CI35: 2010 | CJ35: C | CK35: 1 | CL35: 1 | CM35: LDSW | CN35: Web | CO35: Jul 2010 | CP35: Public | CQ35: B | CR35: C | CS35: C | CT35: D+ | CU35: D | CV35: D | CW35: D+ | CX35: D+ | CY35: D | CZ35: D | DA35: 1.55 | DB35: 1.677419355 | DC35: - | DD35: - | DF35: 0 | DG35: - | DH35: - | DI35: - | DJ35: - | DK35: - | DL35: AFR | DP35: F | DQ35: Central African Republic | DR35: 0 | DW35: 0 | EC35: =J35+L35+N35+P35+R35+S35+U35+V35+W35+Y35+AA35+AB35+AD35+AE35+AH35+AI35+AK35+AM35+AO35+AP35 -> 1 | ED35: 3.846153846 | EE35: D | EG35: 33 | EH35: Central African Republic | EI35: CAF | EJ35: 2008 | EK35: 62.8 | EL35: 2008 | EM35: 62 | EN35: 2817.733636 | EO35: 2781.83894 | ER35: DAD
A36: 34 | C36: Chad | D36: LIC | E36: 11525.496 | F36: 8005.914996 | G36: 690 | H36: http://www.presidencetchad.org | I36: Ministry of Finance | J36: 0 | K36: - | L36: 1 | M36: http://www-wds.worldbank.org/external/default/WDSContentServer/WDSP/IB/2007/09/19/000020439_20070919084700/Rendered/PDF/32710.pdf | N36: 0 | O36: - | P36: 0 | Q36: - | R36: 0 | S36: 0 | T36: - | U36: 0 | V36: 0 | W36: 0 | X36: - | Y36: 0 | Z36: - | AA36: 0 | AC36: - | AD36: 0 | AF36: - | AG36: - | AH36: 0 | AJ36: - | AK36: 0 | AN36: - | AO36: 0 | AQ36: - | AR36: 0 | AS36: 0 | AT36: 0 | AU36: 0 | AV36: 0 | AW36: 0 | AX36: 0 | AY36: 0 | AZ36: 0 | BA36: 0 | BB36: 0 | BC36: - | BD36: 0 | BE36: - | BF36: 0 | BG36: - | BH36: 0 | BI36: - | BJ36: 0 | BK36: http://www.inseed-tchad.org | BL36: Institut national de la statistique, des études économiques et démographiques (INSEED) | BM36: http://www.beac.int | BN36: Bank of Central African States | BO36: - | BP36: 0 | BQ36: - | BR36: 0 | BS36: - | BT36: 0 | BU36: - | BV36: 0 | BW36: 0 | BX36: - | BY36: fre | BZ36: ara | CA36: - | CB36: - | CC36: 0 | CD36: CID | CE36: Circuit Informatisé de la Dépense / Integrated Expenditure System | CF36: C | CG36: T | CH36: 1 | CI36: 2000 | CJ36: C | CK36: 1 | CL36: 2 | CM36: Oracle | CN36: CS | CO36: Jul 2009 | CP36: Final | CQ36: X | CR36: X | CS36: X | CT36: X | CU36: X | CV36: X | CW36: X | CX36: X | CY36: X | CZ36: X | DA36: 1.95 | DB36: 1.916666667 | DC36: 3 | DD36: 0 | DF36: 2 | DG36: 189 | DH36: 0.1092 | DI36: 0.098 | DJ36: 0.0291 | DK36: 0.2003 | DL36: AFR | DP36: F | DQ36: Chad | DR36: 0 | DW36: 0 | EC36: 1 | ED36: 3.846153846 | EE36: D | EG36: 34 | EH36: Chad | EI36: TCD | EJ36: 2003 | EK36: 61.9 | EL36: 2003 | EM36: 55 | EN36: 7134.282024 | EO36: 6339.0228
A37: 35 | C37: Chile | D37: UMIC | E37: 17269.525 | F37: 212003.2399 | G37: 12280 | H37: http://www.minhda.cl | I37: Chile Ministry of Finance | J37: 2 | K37: http://www.hacienda.cl/documentos.html | L37: 2 | M37: http://sigfe.sigfe.cl | N37: 2 | O37: http://sigfe.sigfe.cl/ | P37: 1 | Q37: http://www.dipres.gob.cl/574/multipropertyvalues-15459-21327.html | R37: 0 | S37: 0 | T37: - | U37: 2 | V37: 1 | W37: 0 | X37: - | Y37: 1 | Z37: http://www.dipres.gob.cl/572/propertyvalue-15494.html | AA37: 1 | AB37: 1 | AC37: 1989 | AD37: 0 | AF37: - | AG37: - | AH37: 0 | AJ37: - | AK37: 1 | AL37: 2 | AM37: 1 | AN37: 2003 | AO37: 1 | AP37: 1 | AQ37: 2003 | AR37: 1 | AS37: 1 | AT37: 0 | AU37: 0 | AV37: 0 | AW37: 1 | AX37: 1 | AY37: 1 | AZ37: 1 | BA37: 0 | BB37: 0 | BC37: - | BD37: 1 | BE37: http://datos.gob.cl | BF37: 0 | BG37: - | BH37: 1 | BI37: http://www.dipres.gob.cl/572/propertyvalue-15954.html | BJ37: 2 | BK37: http://www.ine.cl | BL37: Instituto Nacional de Estadísticas | BM37: http://www.bcentral.cl | BN37: Central Bank of Chile | BO37: http://www.dipres.gob.cl/572/channel.html | BP37: 1 | BQ37: http://creativecommons.org/licenses/by/3.0/cl/ | BR37: 1 | BS37: http://www.minhda.cl/documentos/leyes-y-normas.html | BT37: 2 | BU37: - | BV37: 0 | BW37: 3 | BX37: Availability of FAQs (Frequently Asked Questions), Twitter, Youtube | BY37: spa | BZ37: eng | CA37: - | CB37: - | CC37: 0 | CD37: SIGFE II | CE37: Sistema de Información para la Gestión Financiera del Estado | CF37: C | CG37: F | CH37: 1 | CI37: 2007 | CJ37: C | CK37: 1 | CL37: 1 | CM37: LDSW > Oracle | CN37: Web | CO37: - | CP37: - | CQ37: - | CR37: - | CS37: - | CT37: - | CU37: - | CV37: - | CW37: - | CX37: - | CY37: - | CZ37: - | DA37: - | DB37: - | DC37: 66 | DD37: 72 | DE37: 1 | DF37: 1 | DG37: 39 | DH37: 0.6769 | DI37: 0.7516 | DJ37: 0.4001 | DK37: 0.8788 | DL37: LCR | DN37: OECD | DO37: APEC | DQ37: Chile | DR37: 3 | DT37: 2 | DV37: 1 | DW37: 0 | EC37: 17 | ED37: 65.38461538 | EE37: B | EG37: 35 | EH37: Chile | EI37: CHL | EJ37: 2009 | EK37: <2 | EL37: 2009 | EM37: 15.1 | EN37: 233 | EO37: 2607.698275
A38: 36 | C38: China | D38: UMIC | E38: 1344130 | F38: 6643241.128 | G38: 4940 | H38: http://www.mof.gov.cn | I38: Ministry of Finance of the People's Republic of China | J38: 2 | K38: http://yss.mof.gov.cn/ | L38: 2 | M38: http://www.bjcz.gov.cn/english/Golden%20Finance%20Project.htm | N38: 2 | O38: http://www.mof.gov.cn/mofhome/gp/index.html | P38: 0 | Q38: - | R38: 0 | S38: 0 | T38: - | U38: 1 | V38: 1 | W38: 0 | X38: - | Y38: 1 | Z38: http://yss.mof.gov.cn/zhengwuxinxi/caizhengshuju/ | AA38: 1 | AB38: 1 | AC38: 2010 | AD38: 0 | AF38: - | AG38: - | AH38: 0 | AJ38: - | AK38: 1 | AL38: 4 | AM38: 1 | AN38: 2003 | AO38: 0 | AQ38: - | AR38: 1 | AS38: 1 | AT38: 0 | AU38: 0 | AV38: 0 | AW38: 1 | AX38: 1 | AY38: 1 | AZ38: 1 | BA38: 0 | BB38: 0 | BC38: - | BD38: 1 | BE38: http://govinfo.nlc.gov.cn/ | BF38: 0 | BG38: - | BH38: 1 | BI38: http://www.casc.gov.cn/kjfg/kjf/200607/t20060703_337029.htm | BJ38: 0 | BK38: http://www.stats.gov.cn | BL38: China National Bureau of Statistics | BM38: http://www.pbc.gov.cn | BN38: The People's Bank of China | BO38: - | BP38: 1 | BQ38: http://www.mof.gov.cn/zhengwuxinxi/gongkaimulu/zhengfuxinxigongkaiguiding/ | BR38: 1 | BS38: http://yss.mof.gov.cn/zhengwuxinxi/zhengceguizhang/ | BT38: 0 | BU38: Internal budget rules | BV38: 0 | BW38: 3 | BX38: Online surveys also provided | BY38: chi | BZ38: - | CA38: - | CB38: - | CC38: - | CD38: GFMIS | CE38: Government Financial Management Information System | CF38: C | CG38: F | CH38: 2 | CI38: 2002 | CJ38: C | CK38: 1 | CL38: 1 | CM38: LDSW > Sybase | CN38: CS | CO38: - | CP38: - | CQ38: - | CR38: - | CS38: - | CT38: - | CU38: - | CV38: - | CW38: - | CX38: - | CY38: - | CZ38: - | DA38: - | DB38: - | DC38: 11 | DD38: 13 | DF38: 0 | DG38: 78 | DH38: 0.5359 | DI38: 0.5294 | DJ38: 0.3039 | DK38: 0.7745 | DL38: EAP | DO38: APEC | DQ38: China | DR38: 5 | DS38: 2 | DT38: 3 | DW38: 0 | EC38: 13 | ED38: 50 | EE38: B | EG38: 36 | EH38: China | EI38: CHN | EJ38: 2009 | EK38: 11.8 | EL38: 2005 | EM38: 2.5 | EN38: 158607.34 | EO38: 33603.25
A39: 37 | C39: Colombia | D39: UMIC | E39: 46927.125 | F39: 284923.5144 | G39: 6070 | H39: http://www.minhacienda.gov.co | I39: Colombia Ministry of Finance and Public Credit | J39: 2 | K39: http://www.minhacienda.gov.co/HomeMinhacienda/elministerio/Presupuestal | L39: 2 | M39: http://www.minhacienda.gov.co/HomeMinhacienda/SIIF | N39: 3 | O39: http://www.pte.gov.co/ | P39: 1 | Q39: http://www.pte.gov.co/Informes# | R39: 1 | S39: 1 | T39: http://www.pte.gov.co/Compromisos? | U39: 1 | V39: 1 | W39: 1 | X39: http://www.pte.gov.co/ | Y39: 1 | Z39: http://www.minhacienda.gov.co/HomeMinhacienda/elministerio/InformacionContable | AA39: 1 | AB39: 1 | AC39: 2000 | AD39: 1 | AE39: 1 | AF39: 4 | AG39: 2007 | AH39: 1 | AI39: 1 | AJ39: 2007 | AK39: 1 | AL39: 1 | AM39: 1 | AN39: 2000 | AO39: 1 | AP39: 1 | AQ39: 1995 | AR39: 1 | AS39: 1 | AT39: 0 | AU39: 0 | AV39: 0 | AW39: 1 | AX39: 1 | AY39: 1 | AZ39: 1 | BA39: 1 | BB39: 0 | BC39: - | BD39: 1 | BE39: http://datos.gov.co | BF39: 1 | BG39: http://www.minhacienda.gov.co/HomeMinhacienda/asistenciaentidadesterritoriales | BH39: 1 | BI39: http://www.minhacienda.gov.co/HomeMinhacienda/elministerio/InformacionContable/Info.ContableTesoroNal/2012 | BJ39: 1 | BK39: http://www.dane.gov.co | BL39: Colombia National Administrative Department of Statistics (DANE) | BM39: http://www.banrep.gov.co | BN39: Bank of the Republic | BO39: - | BP39: 1 | BQ39: http://www.pte.gov.co | BR39: 1 | BS39: http://www.minhacienda.gov.co/HomeMinhacienda/elministerio/NormativaMinhacienda/2012 | BT39: 0 | BU39: National laws and regulations | BV39: 0 | BW39: 3 | BX39: Availability of FAQs (Frequently Asked Questions), online chat also provided, twitter | BY39: spa | BZ39: - | CA39: - | CB39: - | CC39: - | CD39: SIIF | CE39: Sistema Integrado de Información Financiera | CF39: C | CG39: F | CH39: 2 | CI39: 2009 | CJ39: C | CK39: 2 | CL39: 1 | CM39: LDSW > MS SQL | CN39: Web | CO39: Jun 2009 | CP39: Public | CQ39: C | CR39: A | CS39: B | CT39: B+ | CU39: NR | CV39: B | CW39: C+ | CX39: A | CY39: B | CZ39: NU | DA39: 3.125 | DB39: 2.962962963 | DC39: 58 | DD39: 61 | DE39: 1 | DF39: 2 | DG39: 43 | DH39: 0.6572 | DI39: 0.8431 | DJ39: 0.2894 | DK39: 0.8391 | DL39: LCR | DQ39: Colombia | DR39: 1 | DT39: 1 | DW39: 0 | EB39: 2013-04-30 | EC39: 24 | ED39: 92.30769231 | EE39: A | EG39: 37 | EH39: Colombia | EI39: COL | EJ39: 2010 | EK39: 8.2 | EL39: 2011 | EM39: 34.1 | EN39: 3848.02425 | EO39: 16002.14963
A40: 38 | C40: Comoros | D40: LIC | E40: 753.943 | F40: 580.9927056 | G40: 770 | H40: http://www.beit-salam.km | I40: Ministry of Finance, Budget, Economy and Planning | J40: 0 | K40: - | L40: 1 | M40: http://siteresources.worldbank.org/INTDEBTDEPT/PreliminaryDocuments/22539668/ComorosPD.pdf | N40: 0 | O40: - | P40: 0 | Q40: - | R40: 0 | S40: 0 | T40: - | U40: 0 | V40: 0 | W40: 0 | X40: - | Y40: 0 | Z40: - | AA40: 0 | AC40: - | AD40: 0 | AF40: - | AG40: - | AH40: 0 | AJ40: - | AK40: 0 | AN40: - | AO40: 0 | AQ40: - | AR40: 0 | AS40: 0 | AT40: 0 | AU40: 0 | AV40: 0 | AW40: 0 | AX40: 0 | AY40: 0 | AZ40: 0 | BA40: 0 | BB40: 0 | BC40: - | BD40: 0 | BE40: - | BF40: 0 | BG40: - | BH40: 0 | BI40: - | BJ40: 0 | BK40: - | BL40: Direction de la Statistique | BM40: http://www.banque-comores.km | BN40: Central Bank of Comoros | BO40: - | BP40: 0 | BQ40: - | BR40: 0 | BS40: - | BT40: 0 | BU40: - | BV40: 0 | BW40: 0 | BX40: - | BY40: fre | BZ40: ara | CA40: - | CB40: - | CC40: 0 | CD40: SIGFIP | CE40: Système Intégré de Gestion des Finances Publiques | CF40: C | CG40: F | CH40: 3 | CI40: 2015 | CJ40: C | CK40: 1 | CL40: 0 | CM40: ? | CN40: Web | CO40: Jan 2008 | CP40: Final | CQ40: X | CR40: X | CS40: X | CT40: X | CU40: X | CV40: X | CW40: X | CX40: X | CY40: X | CZ40: X | DA40: 1.4 | DB40: 1.451612903 | DC40: - | DD40: - | DF40: 1 | DG40: 171 | DH40: 0.2358 | DI40: 0.0784 | DJ40: 0.0436 | DK40: 0.5853 | DL40: AFR | DP40: F | DQ40: Comoros | DR40: 0 | DW40: 0 | EC40: 1 | ED40: 3.846153846 | EE40: D | EG40: 38 | EH40: Comoros | EI40: COM | EJ40: 2004 | EK40: 46.1 | EL40: 2004 | EM40: 44.8 | EN40: 347.567723 | EO40: 337.766464
A41: 39 | C41: Congo | D41: LMIC | E41: 4139.748 | F41: 9315.549749 | G41: 2250 | H41: http://www.mefb-cg.org | I41: Ministry of Economy, Finance, and Budget | J41: 1 | K41: http://www.mefb-cg.org/loi_de_finances/lois_2010.html | L41: 1 | M41: http://www.worldbank.org/ifa/rosc_aa_cgo_eng_0310.pdf | N41: 1 | O41: - | P41: 0 | Q41: - | R41: 0 | S41: 0 | T41: - | U41: 1 | V41: 1 | W41: 0 | X41: - | Y41: 0 | Z41: - | AA41: 0 | AC41: - | AD41: 0 | AF41: - | AG41: - | AH41: 0 | AJ41: - | AK41: 1 | AL41: 4 | AM41: 0 | AN41: 2005 | AO41: 0 | AQ41: - | AR41: 0 | AS41: 0 | AT41: 0 | AU41: 0 | AV41: 0 | AW41: 1 | AX41: 1 | AY41: 0 | AZ41: 0 | BA41: 0 | BB41: 0 | BC41: - | BD41: 0 | BE41: - | BF41: 0 | BG41: - | BH41: 0 | BI41: - | BJ41: 1 | BK41: http://www.cnsee.org | BL41: National Institute of Statistics | BM41: http://www.beac.int | BN41: Congo: Bank of Central African States | BO41: - | BP41: 0 | BQ41: - | BR41: 0 | BS41: - | BT41: 0 | BU41: - | BV41: 0 | BW41: 0 | BX41: - | BY41: fre | BZ41: - | CA41: - | CB41: - | CC41: - | CD41: SYSCOHADA | CE41: OHADA Accounting System | CF41: C | CG41: T | CH41: 1 | CI41: 2000 | CJ41: C | CK41: 1 | CL41: 1 | CM41: LDSW + OSS | CN41: Web | CO41: Mar 2006 | CP41: Public | CQ41: C | CR41: B | CS41: D | CT41: D+ | CU41: D+ | CV41: D | CW41: C+ | CX41: D+ | CY41: D | CZ41: A | DA41: 1.9 | DB41: 2 | DC41: - | DD41: - | DF41: 1 | DG41: 157 | DH41: 0.2809 | DI41: 0.0784 | DJ41: 0.1275 | DK41: 0.6369 | DL41: AFR | DP41: F | DQ41: Congo | DR41: 0 | DW41: 0 | EC41: 6 | ED41: 23.07692308 | EE41: D | EG41: 39 | EH41: Congo | EI41: COG | EJ41: 2005 | EK41: 54.1 | EL41: 2011 | EM41: 46.5 | EN41: 2239.603668 | EO41: 1924.98282
A42: 40 | C42: Congo, Dem. Rep. | D42: LIC | E42: 67757.577 | F42: 13103.73345 | G42: 190 | H42: http://www.presidentrdc.cd | I42: Ministry of Finance | J42: 0 | K42: - | L42: 1 | M42: http://ddp-ext.worldbank.org/EdStats/ZARper08a.pdf | N42: 0 | O42: - | P42: 0 | Q42: - | R42: 0 | S42: 0 | T42: - | U42: 0 | V42: 0 | W42: 0 | X42: - | Y42: 0 | Z42: - | AA42: 0 | AC42: - | AD42: 0 | AF42: - | AG42: - | AH42: 0 | AJ42: - | AK42: 0 | AN42: - | AO42: 0 | AQ42: - | AR42: 0 | AS42: 0 | AT42: 0 | AU42: 0 | AV42: 0 | AW42: 0 | AX42: 0 | AY42: 0 | AZ42: 0 | BA42: 0 | BB42: 0 | BC42: - | BD42: 0 | BE42: - | BF42: 0 | BG42: - | BH42: 0 | BI42: - | BJ42: 2 | BK42: - | BM42: http://www.beac.int | BN42: Congo: Bank of Central African States | BO42: - | BP42: 0 | BQ42: - | BR42: 0 | BS42: - | BT42: 0 | BU42: - | BV42: 0 | BW42: 0 | BX42: - | BY42: fre | BZ42: - | CA42: - | CB42: - | CC42: - | CD42: MIS | CE42: Management Information System | CF42: C | CG42: T | CH42: 3 | CI42: 2012 | CJ42: C+L | CK42: 1 | CL42: 0 | CM42: ? | CN42: Web | CO42: Mar 2008 | CP42: Public | CQ42: A | CR42: B | CS42: D | CT42: D | CU42: C | CV42: D | CW42: C+ | CX42: C+ | CY42: D+ | CZ42: D+ | DA42: 2 | DB42: 1.6 | DC42: 18 | DD42: 6 | DF42: 1 | DG42: 174 | DH42: 0.228 | DI42: 0.1765 | DJ42: 0.0183 | DK42: 0.4893 | DL42: AFR | DP42: F | DQ42: Congo, Dem. Rep. | DR42: 0 | DW42: 0 | EC42: 1 | ED42: 3.846153846 | EE42: D | EG42: 40 | EH42: Congo, Dem. Rep. | EI42: COD | EJ42: 2006 | EK42: 87.7 | EL42: 2005 | EM42: 71.3 | EN42: 59423.39503 | EO42: 48311.1524 | EQ42: 2008
A43: 41 | C43: Costa Rica | D43: UMIC | E43: 4726.575 | F43: 36114.0303 | G43: 7640 | H43: http://www.hacienda.go.cr | I43: Costa Rica Ministry of Finance | J43: 1 | K43: https://www.hacienda.go.cr/msib21/espanol/Miscelaneos/Indices/ge_informacionespecializada.htm?vnode=16 | L43: 2 | M43: https://www.hacienda.go.cr/Msib21/Espanol/Direccion+General+de+Informatica/SIGAF.htm | N43: 1 | O43: - | P43: 1 | Q43: https://www.hacienda.go.cr/Msib21/Espanol/Secretaria+Tecnica+de+la+Autoridad+Presupuestaria/Ingresos+y+Gastos+Gobierno.htm | R43: 0 | S43: 0 | T43: - | U43: 1 | V43: 1 | W43: 0 | X43: - | Y43: 1 | Z43: https://www.hacienda.go.cr/Msib21/Espanol/Contabilidad+Nacional/Estructuraestadosfinancieros.htm | AA43: 1 | AB43: 0 | AC43: 2003 | AD43: 1 | AE43: 0 | AF43: 5 | AG43: 2009 | AH43: 0 | AJ43: - | AK43: 1 | AL43: 4 | AM43: 1 | AN43: 2004 | AO43: 0 | AQ43: - | AR43: 1 | AS43: 1 | AT43: 0 | AU43: 0 | AV43: 0 | AW43: 1 | AX43: 1 | AY43: 0 | AZ43: 1 | BA43: 0 | BB43: 0 | BC43: - | BD43: 1 | BE43: http://www.gobiernofacil.go.cr/e-gob/weblinks/index.aspx | BF43: 0 | BG43: - | BH43: 0 | BI43: - | BJ43: 2 | BK43: http://www.inec.go.cr | BL43: Costa Rica Instituto Nacional de Estadística y Censos | BM43: http://www.bccr.fi.cr | BN43: Central Bank of Costa Rica | BO43: https://www.hacienda.go.cr/msib21/espanol/Miscelaneos/Indices/ge_informacionespecializada.htm?vnode=16 | BP43: 0 | BQ43: - | BR43: 1 | BS43: https://www.hacienda.go.cr/msib21/espanol/Acerca%20del%20Ministerio/InformaciondelMinisterio.htm | BT43: 2 | BU43: National laws and regulations | BV43: 0 | BW43: 1 | BX43: - | BY43: spa | BZ43: - | CA43: - | CB43: - | CC43: - | CD43: SFP + SIGAF | CE43: Sistema de Formulación / Sistema Integrado de Gestión para la Administración Financiera | CF43: C | CG43: F | CH43: 1 | CI43: 2007 | CJ43: C+L | CK43: 1 | CL43: 2 | CM43: MS SQL + SAP | CN43: Web | CO43: Oct 2010 | CP43: Public | CQ43: A | CR43: A | CS43: B | CT43: C+ | CU43: A | CV43: B | CW43: B+ | CX43: C+ | CY43: B+ | CZ43: C | DA43: 3.2 | DB43: 3.177419355 | DC43: 50 | DD43: 47 | DE43: 1 | DF43: 0 | DG43: 77 | DH43: 0.5397 | DI43: 0.4967 | DJ43: 0.3135 | DK43: 0.8089 | DL43: LCR | DQ43: Costa Rica | DR43: 2 | DU43: 2 | DW43: 0 | EC43: 12 | ED43: 46.15384615 | EE43: C | EG43: 41 | EH43: Costa Rica | EI43: CRI | EJ43: 2009 | EK43: 3.1 | EL43: 2011 | EM43: 24.8 | EN43: 146.523825 | EO43: 1172.1906
A44: 42 | C44: Côte d'Ivoire | D44: LMIC | E44: 20152.894 | F44: 22064.56605 | G44: 1090 | H44: http://www.finances.gouv.ci | I44: Côte d'Ivoire Ministry of Economy & Finance | J44: 1 | K44: http://www.finances.gouv.ci/index.php/fr/elements-de-gouvernance/execution-budgetaire.html | L44: 2 | M44: http://www.sndi.ci/index.php/component/content/article/78.html | N44: 1 | O44: - | P44: 0 | Q44: - | R44: 0 | S44: 0 | T44: - | U44: 1 | V44: 1 | W44: 0 | X44: - | Y44: 1 | Z44: http://www.tresor.gov.ci/reformes/instructions-comptables/instructions-comptables-2011.html | AA44: 0 | AC44: - | AD44: 1 | AE44: 0 | AF44: 3 | AG44: 2011 | AH44: 0 | AJ44: - | AK44: 1 | AL44: 3 | AM44: 1 | AN44: 2008 | AO44: 1 | AP44: 1 | AQ44: 1999 | AR44: 0 | AS44: 1 | AT44: 0 | AU44: 0 | AV44: 0 | AW44: 1 | AX44: 1 | AY44: 0 | AZ44: 0 | BA44: 0 | BB44: 1 | BC44: http://www.dmp.finances.gouv.ci/ | BD44: 0 | BE44: - | BF44: 0 | BG44: - | BH44: 0 | BI44: - | BJ44: 0 | BK44: http://www.ins.ci | BL44: Côte d'Ivoire Institut national de la statistique (INS) | BM44: http://www.bceao.int | BN44: Central Bank of West African States (BCEAO) | BO44: - | BP44: 0 | BQ44: - | BR44: 1 | BS44: http://www.finances.gouv.ci/index.php/fr/ministere/grandes-directions.html | BT44: 0 | BU44: - | BV44: 0 | BW44: 3 | BX44: - | BY44: fre | BZ44: - | CA44: - | CB44: - | CC44: - | CD44: ASTER/SIGFIP | CE44: Application des Services du Trésor en Réseau / Système Intégré de Gestion des Finances Publiques | CF44: C | CG44: T | CH44: 1 | CI44: 1999 | CJ44: C | CK44: 1 | CL44: 1 | CM44: LDSW | CN44: CS | CO44: Nov 2008 | CP44: Public | CQ44: B | CR44: C | CS44: C | CT44: D | CU44: C+ | CV44: D | CW44: D+ | CX44: C+ | CY44: D | CZ44: D+ | DA44: 1.8 | DB44: 1.777777778 | DC44: - | DD44: - | DF44: 0 | DG44: 166 | DH44: 0.258 | DI44: 0.3333 | DJ44: 0.1019 | DK44: 0.3388 | DL44: AFR | DP44: F | DQ44: Côte d'Ivoire | DR44: 0 | DW44: 0 | EC44: 12 | ED44: 46.15384615 | EE44: C | EG44: 42 | EH44: Côte d'Ivoire | EI44: CIV | EJ44: 2008 | EK44: 23.8 | EL44: 2008 | EM44: 42.7 | EN44: 4796.388772 | EO44: 8605.285738 | EQ44: 2014
A45: 43 | C45: Croatia | D45: HIC | E45: 4407 | F45: 59617.66721 | G45: 13530 | H45: http://www.mfin.hr | I45: Croatia Ministry of Finance | J45: 2 | K45: http://www.mfin.hr/hr/proracun | L45: 1 | M45: http://www.mfin.hr/adminmax/docs/strategija2007_eng.pdf | N45: 1 | O45: - | P45: 1 | Q45: http://www.mfin.hr/hr/drzavni-proracun-2013-godina | R45: 0 | S45: 0 | T45: - | U45: 1 | V45: 1 | W45: 0 | X45: - | Y45: 1 | Z45: http://www.mfin.hr/hr/drzavni-proracun-arhiva | AA45: 1 | AB45: 1 | AC45: 1998 | AD45: 1 | AE45: 1 | AF45: 3 | AG45: 2010 | AH45: 0 | AJ45: - | AK45: 1 | AL45: 4 | AM45: 1 | AN45: 1998 | AO45: 0 | AQ45: - | AR45: 1 | AS45: 1 | AT45: 0 | AU45: 0 | AV45: 0 | AW45: 1 | AX45: 1 | AY45: 0 | AZ45: 1 | BA45: 1 | BB45: 0 | BC45: - | BD45: 1 | BE45: http://www.mojauprava.hr | BF45: 0 | BG45: - | BH45: 1 | BI45: http://www.mfin.hr/hr/proracunsko-racunovodstvo | BJ45: 0 | BK45: http://www.dzs.hr | BL45: Croatia Central Bureau of Statistics | BM45: http://www.hnb.hr | BN45: Croatian National Bank | BO45: - | BP45: 1 | BQ45: http://www.mfin.hr/hr/odnosi-s-javnoscu | BR45: 1 | BS45: http://www.mfin.hr/hr/zakonodavstvo?id=16&type=zakon | BT45: 2 | BU45: National laws and regulations | BV45: 0 | BW45: 3 | BX45: There is a provision for newsletter subscriptions | BY45: hrv | BZ45: eng | CA45: - | CB45: - | CC45: 0 | CD45: IFMIS | CE45: Integrated Financial Management Information System | CF45: D | CG45: F | CH45: 1 | CI45: 2011 | CJ45: C+L | CK45: 1 | CL45: 2 | CM45: SAP | CN45: Web | CO45: - | CP45: - | CQ45: - | CR45: - | CS45: - | CT45: - | CU45: - | CV45: - | CW45: - | CX45: - | CY45: - | CZ45: - | DA45: - | DB45: - | DC45: 61 | DD45: 57 | DE45: 1 | DF45: 2 | DG45: 30 | DH45: 0.7328 | DI45: 0.6405 | DJ45: 0.6965 | DK45: 0.8615 | DL45: ECA | DQ45: Croatia | DR45: 1 | DU45: 1 | DW45: 0 | EB45: 2013-04-19 | EC45: 14 | ED45: 53.84615385 | EE45: B | EG45: 43 | EH45: Croatia | EI45: HRV | EJ45: 2008 | EK45: <2 | EL45: 2004 | EM45: 11.1 | EN45: 3 | EO45: 489.177
A46: 44 | C46: Cuba | D46: UMIC | E46: 11253.665 | F46: 60810 | G46: 5403.572969 | H46: http://www.mfp.cu | I46: Cuba Ministry of Finance | J46: 1 | K46: http://www.mfp.cu/docs/Ley%20Presupuesto%20Anual%202011.pdf | L46: 0 | M46: - | N46: 1 | O46: - | P46: 0 | Q46: - | R46: 0 | S46: 0 | T46: - | U46: 1 | V46: 0 | W46: 0 | X46: - | Y46: 0 | Z46: - | AA46: 0 | AC46: - | AD46: 0 | AF46: - | AG46: - | AH46: 0 | AJ46: - | AK46: 0 | AN46: - | AO46: 0 | AQ46: - | AR46: 0 | AS46: 0 | AT46: 0 | AU46: 0 | AV46: 0 | AW46: 0 | AX46: 0 | AY46: 0 | AZ46: 0 | BA46: 0 | BB46: 0 | BC46: - | BD46: 0 | BE46: - | BF46: 0 | BG46: - | BH46: 0 | BI46: - | BJ46: 0 | BK46: http://www.one.cu | BL46: Cuba Office of National Statistics | BM46: http://www.bc.gov.cu | BN46: Central Bank of Cuba | BO46: - | BP46: 0 | BQ46: - | BR46: 0 | BS46: - | BT46: 0 | BU46: - | BV46: 0 | BW46: 1 | BX46: - | BY46: spa | BZ46: - | CA46: - | CB46: - | CC46: - | CD46: - | CE46: - | CF46: C | CG46: - | CH46: - | CI46: - | CJ46: - | CK46: - | CL46: - | CM46: - | CN46: - | CO46: - | CP46: - | CQ46: - | CR46: - | CS46: - | CT46: - | CU46: - | CV46: - | CW46: - | CX46: - | CY46: - | CZ46: - | DA46: - | DB46: - | DC46: - | DD46: - | DF46: - | DG46: 110 | DH46: 0.4488 | DI46: 0.3072 | DJ46: 0.0709 | DK46: 0.9684 | DM46: OTH | DQ46: Cuba | DR46: 2 | DS46: 1 | DU46: 1 | DW46: 0 | EC46: 3 | ED46: 11.53846154 | EE46: D | EG46: 44 | EH46: Cuba | EI46: CUB
A47: 45 | C47: Cyprus | D47: HIC | E47: 1116.564 | F47: 24690 | G47: 22112.48079 | H47: http://www.mof.gov.cy | I47: Cyprus Ministry of Finance | J47: 2 | K47: http://www.mof.gov.cy/mof/mof.nsf/page16_gr/page16_gr?OpenDocument | L47: 1 | M47: http://www.treasury.gov.cy/treasury/treasury.nsf/financial_en/financial_en?OpenDocument | N47: 1 | O47: - | P47: 0 | Q47: - | R47: 0 | S47: 0 | T47: - | U47: 1 | V47: 1 | W47: 0 | X47: - | Y47: 0 | Z47: - | AA47: 1 | AB47: 1 | AC47: 2010 | AD47: 0 | AF47: - | AG47: - | AH47: 0 | AJ47: - | AK47: 1 | AL47: 3 | AM47: 1 | AN47: 2004 | AO47: 1 | AP47: 1 | AQ47: 2001 | AR47: 1 | AS47: 1 | AT47: 1 | AU47: 0 | AV47: 0 | AW47: 1 | AX47: 1 | AY47: 1 | AZ47: 1 | BA47: 1 | BB47: 0 | BC47: - | BD47: 1 | BE47: http://www.cyprus.gov.cy/portal/portal.nsf/citizen_en?OpenForm&access=0&SectionId=citizen&CategoryId=none&SelectionId=home&print=0&lang=en | BF47: 0 | BG47: - | BH47: 0 | BI47: - | BJ47: 1 | BK47: http://www.cystat.gov.cy/mof/cystat/statistics.nsf/index_en/index_en?OpenDocument | BL47: Cyprus Statistical Service of the Republic of Cyprus | BM47: http://www.centralbank.gov.cy | BN47: Central Bank of Cyprus | BO47: - | BP47: 1 | BQ47: http://www.mof.gov.cy/mof/mof.nsf/disclaimer_gr/disclaimer_gr?OpenDocument | BR47: 1 | BS47: http://www.mof.gov.cy/mof/mof.nsf/page07_gr/page07_gr?OpenDocument | BT47: 0 | BU47: - | BV47: 1 | BW47: 3 | BX47: - | BY47: gre | BZ47: eng | CA47: - | CB47: - | CC47: 0 | CD47: FIMAS | CE47: Financial Information and Management Accounting System | CF47: C | CG47: F | CH47: 1 | CI47: 2003 | CJ47: C | CK47: 1 | CL47: 2 | CM47: SAP | CN47: Web | CO47: - | CP47: - | CQ47: - | CR47: - | CS47: - | CT47: - | CU47: - | CV47: - | CW47: - | CX47: - | CY47: - | CZ47: - | DA47: - | DB47: - | DC47: - | DD47: - | DF47: 0 | DG47: 45 | DH47: 0.6508 | DI47: 0.5621 | DJ47: 0.5153 | DK47: 0.8751 | DM47: EU | DQ47: Cyprus | DR47: 0 | DW47: 0 | EB47: 2013-06-19 | EC47: 12 | ED47: 46.15384615 | EE47: C | EG47: 45 | EH47: Cyprus | EI47: CYP
A48: 46 | C48: Czech Republic | D48: HIC | E48: 10546 | F48: 196323.5053 | G48: 18620 | H48: http://www.mfcr.cz | I48: Ministry of Finance of the Czech Republic | J48: 2 | K48: http://www.mfcr.cz/cps/rde/xchg/mfcr/xsl/fin_stat.html | L48: 2 | M48: http://www.statnipokladna.cz/cs/KC-Zakladni-popis.html | N48: 1 | O48: - | P48: 0 | Q48: - | R48: 0 | S48: 0 | T48: - | U48: 1 | V48: 1 | W48: 0 | X48: - | Y48: 1 | Z48: http://www.mfcr.cz/cps/rde/xchg/mfcr/xsl/plneni_stat_rozp.html | AA48: 1 | AB48: 0 | AC48: 2003 | AD48: 1 | AE48: 1 | AF48: 3 | AG48: 2012 | AH48: 0 | AJ48: - | AK48: 1 | AL48: 2 | AM48: 0 | AN48: 2003 | AO48: 1 | AP48: 0 | AQ48: 2010 | AR48: 1 | AS48: 1 | AT48: 0 | AU48: 0 | AV48: 0 | AW48: 1 | AX48: 1 | AY48: 1 | AZ48: 1 | BA48: 0 | BB48: 0 | BC48: - | BD48: 1 | BE48: http://www.opendata.cz | BF48: 2 | BG48: http://www.statnipokladna.cz/cs/Podpora-Kompetencni-centrum-KC.html | BH48: 1 | BI48: http://www.statnipokladna.cz/cs/Podpora-Kompetencni-centrum-KC.html | BJ48: 2 | BK48: http://www.czso.cz | BL48: Czech Statistical Office | BM48: http://www.cnb.cz | BN48: Czech National Bank | BO48: http://www.statnipokladna.cz/cs/ | BP48: 1 | BQ48: http://www.mfcr.cz/cps/rde/xchg/mfcr/xsl/index_7661.html | BR48: 1 | BS48: http://www.mfcr.cz/cps/rde/xchg/mfcr/xsl/zakon_o_sr.html | BT48: 2 | BU48: Eurostat methodology. National laws and regulations. | BV48: 0 | BW48: 3 | BX48: There is a provision for newsletter subscriptions | BY48: cze | BZ48: eng | CA48: - | CB48: - | CC48: 0 | CD48: IISSP | CE48: Integrovaného informačního systému Státní pokladny / State Treasury Integrated Information System | CF48: D | CG48: F | CH48: 1 | CI48: 2011 | CJ48: C+L | CK48: 1 | CL48: 2 | CM48: SAP | CN48: Web | CO48: - | CP48: - | CQ48: - | CR48: - | CS48: - | CT48: - | CU48: - | CV48: - | CW48: - | CX48: - | CY48: - | CZ48: - | DA48: - | DB48: - | DC48: 75 | DD48: 62 | DE48: 1 | DF48: 2 | DG48: 46 | DH48: 0.6491 | DI48: 0.5425 | DJ48: 0.5151 | DK48: 0.8898 | DL48: ECA | DM48: EU | DN48: OECD | DQ48: Czech Republic | DR48: 1 | DT48: 1 | DW48: 0 | EC48: 13 | ED48: 50 | EE48: B | EG48: 46 | EH48: Czech Republic | EI48: CZE | EJ48: 1996 | EK48: <2
A49: 47 | C49: Denmark | D49: HIC | E49: 5574 | F49: 335102.5089 | G49: 60120 | H49: http://uk.fm.dk | I49: Denmark Ministry of Finance | J49: 2 | K49: http://uk.fm.dk/publications/ | L49: 2 | M49: http://www.oes.dk/Systemer/Navision-Stat | N49: 2 | O49: http://www.oes-cs.dk/olapdatabase/regnskab/index.cgi | P49: 1 | Q49: http://www.oes-cs.dk/olapdatabase/regnskab/index.cgi | R49: 0 | S49: 0 | T49: - | U49: 2 | V49: 1 | W49: 0 | X49: - | Y49: 1 | Z49: http://fm.dk/publikationer/2010/budgetvejledning-2011/ | AA49: 1 | AB49: 1 | AC49: 1996 | AD49: 1 | AE49: 1 | AF49: 2 | AG49: 1998 | AH49: 0 | AJ49: - | AK49: 1 | AL49: 3 | AM49: 1 | AN49: 1996 | AO49: 0 | AQ49: - | AR49: 1 | AS49: 1 | AT49: 0 | AU49: 0 | AV49: 0 | AW49: 1 | AX49: 1 | AY49: 1 | AZ49: 0 | BA49: 0 | BB49: 1 | BC49: http://www.peppol.eu/ | BD49: 1 | BE49: http://digitaliser.dk/resource/432461 | BF49: 0 | BG49: - | BH49: 0 | BI49: - | BJ49: 1 | BK49: http://www.dst.dk | BL49: Statistics Denmark | BM49: http://www.nationalbanken.dk | BN49: National Bank of Denmark | BO49: http://www.digst.dk/ | BP49: 1 | BQ49: http://fm.dk/om-os/privatlivspolitik/ | BR49: 1 | BS49: http://fm.dk/om-os/lov_-og-folketingsstof/ | BT49: 0 | BU49: National laws and regulations | BV49: 1 | BW49: 3 | BX49: There is a provision for newsletter subscriptions | BY49: dan | BZ49: eng | CA49: - | CB49: - | CC49: 0 | CD49: FMIS | CE49: Financial Management Information System | CF49: D | CG49: F | CH49: 1 | CI49: 1998 | CJ49: C+L | CK49: 1 | CL49: 2 | CM49: MS Navision | CN49: Web | CO49: - | CP49: - | CQ49: - | CR49: - | CS49: - | CT49: - | CU49: - | CV49: - | CW49: - | CX49: - | CY49: - | CZ49: - | DA49: - | DB49: - | DC49: - | DD49: - | DE49: 1 | DF49: 3 | DG49: 4 | DH49: 0.8889 | DI49: 0.8562 | DJ49: 0.8615 | DK49: 0.9489 | DM49: EU | DN49: OECD | DQ49: Denmark | DR49: 5 | DS49: 1 | DT49: 3 | DV49: 1 | DW49: 1 | DX49: 1 | EC49: 17 | ED49: 65.38461538 | EE49: B | EG49: 47 | EH49: Denmark | EI49: DNK
A50: 48 | C50: Djibouti | D50: LMIC | E50: 905.564 | F50: 1049 | G50: 1158.394106 | H50: http://www.ministere-finances.dj | I50: Djibouti Ministry of Finance | J50: 2 | K50: http://www.ministere-finances.dj/TOFE.html | L50: 0 | M50: - | N50: 1 | O50: - | P50: 0 | Q50: - | R50: 0 | S50: 0 | T50: - | U50: 1 | V50: 1 | W50: 0 | X50: - | Y50: 1 | Z50: http://www.ministere-finances.dj/Publications/decr0224pr01.htm | AA50: 1 | AB50: 1 | AC50: 1996 | AD50: 0 | AF50: - | AG50: - | AH50: 1 | AI50: 1 | AJ50: 2004 | AK50: 1 | AL50: 4 | AM50: 1 | AN50: 2006 | AO50: 0 | AQ50: - | AR50: 0 | AS50: 1 | AT50: 0 | AU50: 0 | AV50: 0 | AW50: 1 | AX50: 1 | AY50: 0 | AZ50: 0 | BA50: 0 | BB50: 0 | BC50: - | BD50: 0 | BE50: - | BF50: 0 | BG50: - | BH50: 1 | BI50: http://www.ministere-finances.dj/Publications/decr0224pr01.htm | BJ50: 1 | BK50: http://www.ministere-finances.dj | BL50: Djibouti Direction des statistiques et des études démographiques | BM50: http://www.banque-centrale.dj | BN50: Central Bank of Djibouti | BO50: - | BP50: 0 | BQ50: - | BR50: 1 | BS50: http://www.ministere-finances.dj/ORGANISATION.html | BT50: 0 | BU50: - | BV50: 0 | BW50: 3 | BX50: - | BY50: fre | BZ50: eng | CA50: - | CB50: - | CC50: 0 | CD50: - | CE50: - | CF50: C | CG50: - | CH50: - | CI50: - | CJ50: - | CK50: - | CL50: - | CM50: - | CN50: - | CO50: - | CP50: - | CQ50: - | CR50: - | CS50: - | CT50: - | CU50: - | CV50: - | CW50: - | CX50: - | CY50: - | CZ50: - | DA50: - | DB50: - | DC50: - | DD50: - | DF50: 0 | DG50: 176 | DH50: 0.2228 | DI50: 0.1961 | DJ50: 0.0488 | DK50: 0.4236 | DL50: MNA | DQ50: Djibouti | DR50: 0 | DW50: 0 | EC50: 12 | ED50: 46.15384615 | EE50: C | EG50: 48 | EH50: Djibouti | EI50: DJI | EJ50: 2002 | EK50: 18.8 | EN50: 170.246032
A51: 49 | C51: Dominica | D51: UMIC | E51: 67.675 | F51: 475.4586644 | G51: 7030 | H51: http://www.dominica.gov.dm/cms/index.php?q=node/28 | I51: Ministry of Finance | J51: 1 | K51: http://www.dominica.gov.dm/cms/?q=node/7 | L51: 1 | M51: http://ddp-ext.worldbank.org/EdStats/DMAper05.pdf | N51: 1 | O51: - | P51: 0 | Q51: - | R51: 0 | S51: 0 | T51: - | U51: 1 | V51: 1 | W51: 0 | X51: - | Y51: 1 | Z51: http://www.dominica.gov.dm/cms/?q=node/1402 | AA51: 1 | AB51: 1 | AC51: 2011 | AD51: 1 | AE51: 0 | AF51: 2 | AG51: 2010 | AH51: 0 | AJ51: - | AK51: 1 | AL51: 4 | AM51: 0 | AN51: 2009 | AO51: 1 | AP51: 1 | AQ51: 2008 | AR51: 1 | AS51: 1 | AT51: 0 | AU51: 1 | AV51: 0 | AW51: 1 | AX51: 1 | AY51: 0 | AZ51: 0 | BA51: 0 | BB51: 0 | BC51: - | BD51: 0 | BE51: - | BF51: 0 | BG51: - | BH51: 0 | BI51: - | BJ51: 1 | BK51: http://www.dominica.gov.dm/cms/?q=node/7 | BL51: Ministry of Finance - Central Statistical Office | BM51: http://www.eccb-centralbank.org | BN51: East Caribbean Central Bank | BO51: - | BP51: 0 | BQ51: - | BR51: 1 | BS51: http://www.dominica.gov.dm/cms/index.php?q=node/411 | BT51: 0 | BU51: - | BV51: 0 | BW51: 2 | BX51: - | BY51: eng | BZ51: - | CA51: - | CB51: - | CC51: - | CD51: SIGFIS | CE51: Standardized Integrated Government Financial Information System | CF51: C | CG51: F | CH51: 3 | CI51: 2012 | CJ51: C+L | CK51: 2 | CL51: 2 | CM51: SmartStream | CN51: Web | CO51: Jun 2010 | CP51: Final | CQ51: X | CR51: X | CS51: X | CT51: X | CU51: X | CV51: X | CW51: X | CX51: X | CY51: X | CZ51: X | DA51: 2.55 | DB51: 2.516129032 | DC51: - | DD51: - | DF51: 1 | DG51: 73 | DH51: 0.5561 | DI51: 0.2941 | DJ51: 0.6221 | DK51: 0.752 | DL51: LCR | DQ51: Dominica | DR51: 0 | DW51: 0 | EC51: 12 | ED51: 46.15384615 | EE51: C | EG51: 49 | EH51: Dominica | EI51: DMA
A52: 50 | C52: Dominican Republic | D52: UMIC | E52: 10056.181 | F52: 52646.78869 | G52: 5240 | H52: http://www.hacienda.gov.do | I52: Dominican Republic Ministry of Finance | J52: 2 | K52: http://www.digepres.gob.do/ | L52: 2 | M52: http://www.hacienda.gov.do/sigef/sigef.htm | N52: 1 | O52: - | P52: 0 | Q52: - | R52: 1 | S52: 1 | T52: http://www.digepres.gob.do/LinkClick.aspx?fileticket=VkzSW7GtziU%3d&tabid=133&mid=576 | U52: 1 | V52: 1 | W52: 2 | X52: http://www.portaldelciudadano.gov.do/ | Y52: 1 | Z52: http://www.digepres.gob.do/Estad%c3%adsticasPresup/SeriesHist%c3%b3ricas199010/tabid/135/Default.aspx | AA52: 1 | AB52: 1 | AC52: 1990 | AD52: 0 | AF52: - | AG52: - | AH52: 1 | AI52: 0 | AJ52: 2004 | AK52: 1 | AL52: 2 | AM52: 1 | AN52: 1990 | AO52: 0 | AQ52: - | AR52: 1 | AS52: 1 | AT52: 0 | AU52: 0 | AV52: 0 | AW52: 1 | AX52: 0 | AY52: 0 | AZ52: 1 | BA52: 0 | BB52: 0 | BC52: - | BD52: 1 | BE52: http://www.one.gob.do | BF52: 0 | BG52: - | BH52: 0 | BI52: - | BJ52: 0 | BK52: http://www.one.gob.do | BL52: Dominican Republic Oficina Nacional de Estadistica | BM52: http://www.bancentral.gov.do | BN52: Central Bank of the Dominican Republic | BO52: - | BP52: 1 | BQ52: http://www.digepres.gob.do/Inicio/tabid/36/ctl/Terms/Default.aspx | BR52: 1 | BS52: http://www.hacienda.gov.do/transparencia/leyes_decretos.htm | BT52: 0 | BU52: National laws and regulations | BV52: 1 | BW52: 3 | BX52: - | BY52: spa | BZ52: - | CA52: - | CB52: - | CC52: - | CD52: SIGEF | CE52: Sistema Integrado de Gestion Financiera | CF52: C | CG52: F | CH52: 1 | CI52: 2004 | CJ52: C+L | CK52: 1 | CL52: 1 | CM52: LDSW > Oracle | CN52: Web | CO52: Nov 2012 | CP52: Public | CQ52: B | CR52: B | CS52: B | CT52: C+ | CU52: B+ | CV52: B | CW52: C+ | CX52: C+ | CY52: C+ | CZ52: C+ | DA52: 2.8 | DB52: 2.45 | DC52: 29 | DD52: 14 | DE52: 1 | DF52: 0 | DG52: 89 | DH52: 0.513 | DI52: 0.5359 | DJ52: 0.2632 | DK52: 0.7398 | DL52: LCR | DQ52: Dominican Republic | DR52: 0 | DW52: 0 | EC52: 17 | ED52: 65.38461538 | EE52: B | EG52: 50 | EH52: Dominican Republic | EI52: DOM | EJ52: 2010 | EK52: 2.2 | EL52: 2011 | EM52: 40.4 | EN52: 221.235982 | EO52: 4062.697124
A53: 51 | C53: Ecuador | D53: UMIC | E53: 14666.055 | F53: 61651.76392 | G53: 4200 | H53: http://finanzas.gob.ec | I53: Ecuador Ministry of Economy and Finance | J53: 2 | K53: http://www.finanzas.gob.ec/estados-financieros/ | L53: 2 | M53: http://integrador.finanzas.gob.ec/sigefWebConsulta2011/Jsp/LoginPage.jsp;jsessionid=1FFD43DE0BF758EB3ADD163C29CE3C52 | N53: 2 | O53: http://gpr.informatica.gob.ec/gpr_ecuador/n1 | P53: 0 | Q53: - | R53: 1 | S53: 1 | T53: http://www.finanzas.gob.ec/wp-content/uploads/downloads/2012/09/Reporte+de+Ingresos.pdf | U53: 2 | V53: 1 | W53: 1 | X53: http://www.secretariatransparencia.gob.ec/ | Y53: 0 | Z53: - | AA53: 1 | AB53: 1 | AC53: 2004 | AD53: 1 | AE53: 0 | AF53: 4 | AG53: 2012 | AH53: 1 | AI53: 1 | AJ53: 2006 | AK53: 1 | AL53: 2 | AM53: 1 | AN53: 2004 | AO53: 1 | AP53: 1 | AQ53: 2006 | AR53: 1 | AS53: 1 | AT53: 0 | AU53: 0 | AV53: 0 | AW53: 1 | AX53: 1 | AY53: 0 | AZ53: 1 | BA53: 0 | BB53: 1 | BC53: http://www.compraspublicas.gob.ec/compraspublicas/ | BD53: 1 | BE53: http://www.gobiernoelectronico.gov.ec | BF53: 0 | BG53: - | BH53: 0 | BI53: - | BJ53: 2 | BK53: http://www.inec.gov.ec | BL53: Ecuador Instituto Nacional de Estadística y Censos | BM53: http://www.bce.fin.ec | BN53: Central Bank of Ecuador | BO53: http://www.bce.fin.ec/contenido.php?CNT=ARB0000003 | BP53: 1 | BQ53: http://www.finanzas.gob.ec/transparencia/ | BR53: 0 | BS53: - | BT53: 0 | BU53: - | BV53: 0 | BW53: 0 | BX53: - | BY53: spa | BZ53: eng | CA53: - | CB53: - | CC53: 0 | CD53: SIGEF | CE53: Sistema Integrado de Gestion Financiera | CF53: C | CG53: F | CH53: 1 | CI53: 2008 | CJ53: C+L | CK53: 2 | CL53: 1 | CM53: LDSW > Oracle | CN53: Web | CO53: Mar 2010 | CP53: Draft | CQ53: X | CR53: X | CS53: X | CT53: X | CU53: X | CV53: X | CW53: X | CX53: X | CY53: X | CZ53: X | DA53: 1.9 | DB53: 2.370967742 | DC53: 31 | DD53: 31 | DF53: 0 | DG53: 102 | DH53: 0.4869 | DI53: 0.4575 | DJ53: 0.2482 | DK53: 0.7549 | DL53: LCR | DQ53: Ecuador | DR53: 1 | DV53: 1 | DW53: 0 | EC53: 21 | ED53: 80.76923077 | EE53: A | EG53: 51 | EH53: Ecuador | EI53: ECU | EJ53: 2010 | EK53: 4.6 | EL53: 2011 | EM53: 28.6 | EN53: 674.63853 | EO53: 4194.49173
A54: 52 | C54: Egypt | D54: LMIC | E54: 82536.77 | F54: 214683.5596 | G54: 2600 | H54: http://www.mof.gov.eg | I54: Egypt Ministry of Finance | J54: 2 | K54: http://www.mof.gov.eg/English/Papers_and_Studies/Pages/The-State-Budget.aspx | L54: 1 | M54: http://www.mof.gov.eg/MOFGallerySource/English/Reports/December2004.pdf | N54: 1 | O54: - | P54: 0 | Q54: - | R54: 0 | S54: 0 | T54: - | U54: 2 | V54: 1 | W54: 0 | X54: - | Y54: 1 | Z54: http://www.mof.gov.eg/English/Papers_and_Studies/Pages/budget11-12.aspx | AA54: 0 | AC54: - | AD54: 0 | AF54: - | AG54: - | AH54: 0 | AJ54: - | AK54: 1 | AL54: 4 | AM54: 1 | AN54: 2006 | AO54: 0 | AQ54: - | AR54: 0 | AS54: 1 | AT54: 1 | AU54: 1 | AV54: 0 | AW54: 1 | AX54: 1 | AY54: 1 | AZ54: 0 | BA54: 0 | BB54: 0 | BC54: - | BD54: 0 | BE54: - | BF54: 0 | BG54: - | BH54: 1 | BI54: http://www.mof.gov.eg/English/Papers_and_Studies/Pages/The-State-Budget.aspx | BJ54: 0 | BK54: http://www.capmas.gov.eg | BL54: Egypt Central Agency for Public Mobilization and Statistics | BM54: http://www.cbe.org.eg | BN54: Central Bank of Egypt | BO54: - | BP54: 0 | BQ54: - | BR54: 1 | BS54: http://www.mof.gov.eg/English/About%20MOF/Pages/MinistryGoals.aspx | BT54: 0 | BU54: - | BV54: 0 | BW54: 3 | BX54: - | BY54: ara | BZ54: eng | CA54: - | CB54: - | CC54: 0 | CD54: AGES / GFMIS | CE54: Automated Government Expenditure System | CF54: C | CG54: F | CH54: 3 | CI54: 2012 | CJ54: C | CK54: 1 | CL54: 2 | CM54: Oracle | CN54: Web | CO54: Oct 2009 | CP54: Final | CQ54: X | CR54: X | CS54: X | CT54: X | CU54: X | CV54: X | CW54: X | CX54: X | CY54: X | CZ54: X | DA54: 2.5 | DB54: 2.446428571 | DC54: 13 | DD54: 49 | DF54: 0 | DG54: 107 | DH54: 0.4611 | DI54: 0.6013 | DJ54: 0.2232 | DK54: 0.5588 | DL54: MNA | DP54: F | DQ54: Egypt | DR54: 0 | DW54: 0 | EC54: 10 | ED54: 38.46153846 | EE54: C | EG54: 52 | EH54: Egypt | EI54: EGY | EJ54: 2008 | EK54: <2 | EL54: 2008 | EM54: 22 | EN54: 1395 | EO54: 18158.0894
A55: 53 | C55: El Salvador | D55: LMIC | E55: 6227.491 | F55: 21670.42333 | G55: 3480 | H55: http://www.mh.gob.sv | I55: El Salvador Ministry of Finance | J55: 2 | K55: http://www.mh.gob.sv/portal/page/portal/PTF/Presupuestos_Publicos | L55: 1 | M55: http://www.mh.gob.sv/portal/page/portal/PMH/Novedades/Calendario/Capacitaciones:Capacitaciones_2012:safi2012 | N55: 2 | O55: http://www.transparenciafiscal.gob.sv/portal/page/portal/PTF/Consulte_nuestra_Base_de_Datos/ConsulteNuestraBaseDeDatosEjecucionPresupuesto | P55: 1 | Q55: http://www.transparenciafiscal.gob.sv/portal/page/portal/PTF/Consulte_nuestra_Base_de_Datos/ConsulteNuestraBaseDeDatosEjecucionPresupuesto | R55: 1 | S55: 1 | T55: http://www.transparenciafiscal.gob.sv/CT_proyectos/htdocs/tabla/ejecucion.jsp | U55: 2 | V55: 1 | W55: 2 | X55: http://www.transparenciafiscal.gob.sv/portal/page/portal/PTF/Presupuestos_Publicos | Y55: 1 | Z55: http://www.transparenciafiscal.gob.sv/portal/page/portal/PTF/Marco_Normativo/Administracion_Financiera?_piref496_2086330_496_2086268_2086268.tabstring=catalogo | AA55: 1 | AB55: 1 | AC55: 2002 | AD55: 1 | AE55: 1 | AF55: 5 | AG55: 2010 | AH55: 1 | AI55: 1 | AJ55: 2004 | AK55: 1 | AL55: 2 | AM55: 1 | AN55: 2002 | AO55: 0 | AQ55: - | AR55: 1 | AS55: 1 | AT55: 0 | AU55: 0 | AV55: 0 | AW55: 1 | AX55: 1 | AY55: 1 | AZ55: 1 | BA55: 1 | BB55: 1 | BC55: http://www.comprasal.gob.sv/moddiv/HTML/ | BD55: 1 | BE55: http://www.gobiernoabierto.gob.sv/ | BF55: 0 | BG55: - | BH55: 1 | BI55: http://www.transparenciafiscal.gob.sv/portal/page/portal/PTF/Marco_Normativo/Administracion_Financiera?_piref496_2086330_496_2086268_2086268.tabstring=catalogo | BJ55: 1 | BK55: http://www.minec.gob.sv | BL55: El Salvador General Directorate of Statistics and Censuses | BM55: http://www.bcr.gob.sv | BN55: Central Reserve Bank of El Salvador | BO55: - | BP55: 1 | BQ55: http://www.mh.gob.sv/portal/page/portal/PMH/LAIP | BR55: 1 | BS55: http://www.mh.gob.sv/portal/page/portal/PMH/Institucion/Estructura_Organizativa/Organigrama_del_Ministerio_de_Hacienda | BT55: 0 | BU55: - | BV55: 0 | BW55: 3 | BX55: - | BY55: spa | BZ55: eng | CA55: - | CB55: - | CC55: 0 | CD55: SAFI II | CE55: Sistema de Administración Financiera Integrado | CF55: C | CG55: F | CH55: 3 | CI55: 2001 | CJ55: C+L | CK55: 2 | CL55: 1 | CM55: LDSW > Informix | CN55: CS | CO55: May 2009 | CP55: Public | CQ55: C | CR55: A | CS55: B | CT55: C+ | CU55: B+ | CV55: B | CW55: B+ | CX55: A | CY55: C+ | CZ55: D | DA55: 2.9 | DB55: 2.967741935 | DC55: 43 | DD55: 37 | DE55: 1 | DF55: 0 | DG55: 74 | DH55: 0.5513 | DI55: 0.6732 | DJ55: 0.2638 | DK55: 0.7169 | DL55: LCR | DQ55: El Salvador | DR55: 0 | DW55: 0 | EB55: 2013-05-02 | EC55: 22 | ED55: 84.61538462 | EE55: A | EG55: 53 | EH55: El Salvador | EI55: SLV | EJ55: 2009 | EK55: 9 | EL55: 2010 | EM55: 42.5 | EN55: 560.47419 | EO55: 2646.683675
A56: 54 | C56: Equatorial Guinea | D56: HIC | E56: 720.213 | F56: 11287.65487 | G56: 15670 | H56: http://www.guineaecuatorialpress.com/noticia.php?id=126&lang=en | I56: Equatorial Guinea Ministry of Finance & Budget | J56: 0 | K56: - | L56: 0 | M56: - | N56: 0 | O56: - | P56: 0 | Q56: - | R56: 0 | S56: 0 | T56: - | U56: 0 | V56: 0 | W56: 0 | X56: - | Y56: 0 | Z56: - | AA56: 0 | AC56: - | AD56: 0 | AF56: - | AG56: - | AH56: 0 | AJ56: - | AK56: 0 | AN56: - | AO56: 0 | AQ56: - | AR56: 0 | AS56: 0 | AT56: 0 | AU56: 0 | AV56: 0 | AW56: 0 | AX56: 0 | AY56: 0 | AZ56: 0 | BA56: 0 | BB56: 0 | BC56: - | BD56: 0 | BE56: - | BF56: 0 | BG56: - | BH56: 0 | BI56: - | BJ56: 0 | BK56: http://www.dgecnstat-ge.org | BL56: Equatorial Guinea Direction Générale des Statistiques | BM56: http://www.beac.int | BN56: Bank of Central African States | BO56: - | BP56: 0 | BQ56: - | BR56: 0 | BS56: - | BT56: 0 | BU56: - | BV56: 0 | BW56: 1 | BX56: - | BY56: spa | BZ56: eng | CA56: - | CB56: - | CC56: 0 | CD56: - | CE56: - | CF56: C | CG56: - | CH56: - | CI56: - | CJ56: - | CK56: - | CL56: - | CM56: - | CN56: - | CO56: - | CP56: - | CQ56: - | CR56: - | CS56: - | CT56: - | CU56: - | CV56: - | CW56: - | CX56: - | CY56: - | CZ56: - | DA56: - | DB56: - | DC56: 0 | DD56: 0 | DF56: 1 | DG56: 151 | DH56: 0.2955 | DI56: 0.098 | DJ56: 0.0883 | DK56: 0.7001 | DL56: AFR | DQ56: Equatorial Guinea | DR56: 0 | DW56: 0 | EC56: 0 | ED56: 0 | EE56: D | EG56: 54 | EH56: Equatorial Guinea | EI56: GNQ | EL56: 2006 | EM56: 76.8 | EO56: 553.123584
A57: 55 | C57: Eritrea | D57: LIC | E57: 5415.28 | F57: 2313.060452 | G57: 430 | H57: http://www.shabait.com | I57: Ministry of Finance | J57: 0 | K57: - | L57: 0 | M57: - | N57: 0 | O57: - | P57: 0 | Q57: - | R57: 0 | S57: 0 | T57: - | U57: 0 | V57: 0 | W57: 0 | X57: - | Y57: 0 | Z57: - | AA57: 0 | AC57: - | AD57: 0 | AF57: - | AG57: - | AH57: 0 | AJ57: - | AK57: 0 | AN57: - | AO57: 0 | AQ57: - | AR57: 0 | AS57: 0 | AT57: 0 | AU57: 0 | AV57: 0 | AW57: 0 | AX57: 0 | AY57: 0 | AZ57: 0 | BA57: 0 | BB57: 0 | BC57: - | BD57: 0 | BE57: - | BF57: 0 | BG57: - | BH57: 0 | BI57: - | BJ57: 0 | BK57: - | BL57: Ministry of Natl Dev - Statistics Dept | BM57: http://www.boe.gov.er | BN57: Bank of Eritrea | BO57: - | BP57: 0 | BQ57: - | BR57: 0 | BS57: - | BT57: 0 | BU57: - | BV57: 0 | BW57: 1 | BX57: - | BY57: ara | BZ57: - | CA57: - | CB57: - | CC57: - | CD57: - | CE57: - | CF57: C | CG57: - | CH57: - | CI57: - | CJ57: - | CK57: - | CL57: - | CM57: - | CN57: - | CO57: - | CP57: - | CQ57: - | CR57: - | CS57: - | CT57: - | CU57: - | CV57: - | CW57: - | CX57: - | CY57: - | CZ57: - | DA57: - | DB57: - | DC57: - | DD57: - | DF57: 0 | DG57: 180 | DH57: 0.2043 | DI57: 0.2092 | DJ57: 0.0132 | DK57: 0.3907 | DL57: AFR | DP57: F | DQ57: Eritrea | DR57: 0 | DW57: 0 | EC57: 0 | ED57: 0 | EE57: D | EG57: 55 | EH57: Eritrea | EI57: ERI
A58: 56 | C58: Estonia | D58: HIC | E58: 1340 | F58: 20447.94786 | G58: 15260 | H58: http://www.fin.ee | I58: Eesti Vabarigiigi Rahandusministeerium - Ministry of Finance, Estonia | J58: 2 | K58: http://www.fin.ee/riigieelarve | L58: 1 | M58: http://www.mindware.ee/en/Portfolio/Finance-and-Insurance | N58: 2 | O58: http://pub.stat.ee/px-web.2001/Database/Majandus/14Rahandus/08Valitsemissektori_rahandus/08Valitsemissektori_tulud_kulud/08Valitsemissektori_tulud_kulud.asp | P58: 1 | Q58: http://www.fin.ee/riigieelarve-2011 | R58: 0 | S58: 0 | T58: - | U58: 2 | V58: 1 | W58: 0 | X58: - | Y58: 1 | Z58: http://www.fin.ee/index.php?id=7544 | AA58: 1 | AB58: 1 | AC58: 2008 | AD58: 1 | AE58: 1 | AF58: 4 | AG58: 2003 | AH58: 0 | AJ58: - | AK58: 1 | AL58: 2 | AM58: 1 | AN58: 1995 | AO58: 1 | AP58: 0 | AQ58: 2005 | AR58: 1 | AS58: 1 | AT58: 1 | AU58: 0 | AV58: 0 | AW58: 1 | AX58: 1 | AY58: 1 | AZ58: 1 | BA58: 1 | BB58: 1 | BC58: https://riigihanked.riik.ee/lr1/web/guest/index | BD58: 1 | BE58: http://pub.stat.ee/px-web.2001/Dialog/statfile1.asp | BF58: 0 | BG58: - | BH58: 1 | BI58: http://www.fin.ee/index.php?id=79938 | BJ58: 0 | BK58: http://www.stat.ee | BL58: Statistical Office of Estonia | BM58: http://www.bankofestonia.info | BN58: Bank of Estonia | BO58: - | BP58: 0 | BQ58: - | BR58: 1 | BS58: http://www.fin.ee/index.php?id=243 | BT58: 2 | BU58: - | BV58: 0 | BW58: 3 | BX58: - | BY58: est | BZ58: eng | CA58: rus | CB58: - | CC58: 0 | CD58: FMIS | CE58: Financial Management Information System | CF58: C | CG58: F | CH58: 1 | CI58: 2001 | CJ58: C+L | CK58: 1 | CL58: 2 | CM58: SAP | CN58: Web | CO58: - | CP58: - | CQ58: - | CR58: - | CS58: - | CT58: - | CU58: - | CV58: - | CW58: - | CX58: - | CY58: - | CZ58: - | DA58: - | DB58: - | DC58: - | DD58: - | DE58: 1 | DF58: 2 | DG58: 20 | DH58: 0.7987 | DI58: 0.8235 | DJ58: 0.6642 | DK58: 0.9085 | DL58: ECA | DM58: EU | DN58: OECD | DQ58: Estonia | DR58: 0 | DW58: 0 | EC58: 17 | ED58: 65.38461538 | EE58: B | EG58: 56 | EH58: Estonia | EI58: EST | EJ58: 2004 | EK58: <2
A59: 57 | C59: Ethiopia | D59: LIC | E59: 84734.262 | F59: 30963.63453 | G59: 370 | H59: http://www.mofed.gov.et | I59: Ethiopia Ministry of Finance and Economic Development | J59: 2 | K59: http://www.mofed.gov.et/English/Resources/Pages/ResourcesByTopic.aspx | L59: 1 | M59: http://www.hks.harvard.edu/m-rcbg/ethiopia/Publications/ARD%20Final%20Draft.pdf | N59: 1 | O59: - | P59: 0 | Q59: - | R59: 0 | S59: 0 | T59: - | U59: 1 | V59: 1 | W59: 0 | X59: - | Y59: 0 | Z59: - | AA59: 0 | AC59: - | AD59: 1 | AE59: 0 | AF59: 5 | AG59: 2010 | AH59: 0 | AJ59: - | AK59: 1 | AL59: 4 | AM59: 0 | AN59: 2001 | AO59: 0 | AQ59: - | AR59: 0 | AS59: 1 | AT59: 1 | AU59: 1 | AV59: 1 | AW59: 1 | AX59: 1 | AY59: 1 | AZ59: 0 | BA59: 0 | BB59: 1 | BC59: http://www.ppa.gov.et/ | BD59: 0 | BE59: - | BF59: 0 | BG59: - | BH59: 0 | BI59: - | BJ59: 1 | BK59: http://www.csa.gov.et | BL59: Central Statistics Agency of Ethiopia | BM59: http://www.nbe.gov.et | BN59: National Bank of Ethiopia | BO59: - | BP59: 1 | BQ59: http://www.mofed.gov.et/English/Pages/Accessibility.aspx | BR59: 1 | BS59: http://www.mofed.gov.et/English/Information/Pages/OrganizationalStructure.aspx | BT59: 0 | BU59: - | BV59: 0 | BW59: 3 | BX59: - | BY59: eng | BZ59: amh | CA59: tig | CB59: afo | CC59: 0 | CD59: IBEX | CE59: Integrated Budget and Expenditure System | CF59: C | CG59: F | CH59: 1 | CI59: 2007 | CJ59: C | CK59: 1 | CL59: 1 | CM59: LDSW > MS Access | CN59: CS | CO59: Sep 2010 | CP59: Public | CQ59: B | CR59: A | CS59: C | CT59: C | CU59: B+ | CV59: NU | CW59: B+ | CX59: C+ | CY59: C+ | CZ59: C | DA59: 2.777777778 | DB59: 2.857142857 | DC59: - | DD59: - | DF59: 1 | DG59: 172 | DH59: 0.2306 | DI59: 0.4706 | DJ59: 0.0093 | DK59: 0.2119 | DL59: AFR | DQ59: Ethiopia | DR59: 0 | DW59: 0 | EC59: 8 | ED59: 30.76923077 | EE59: C | EG59: 57 | EH59: Ethiopia | EI59: ETH | EJ59: 2011 | EK59: 30.7 | EL59: 2011 | EM59: 29.6 | EN59: 26013.41843 | EO59: 25081.34155 | EQ59: 2006
A60: 58 | C60: Fiji | D60: LMIC | E60: 868.406 | F60: 3231.419955 | G60: 3720 | H60: http://www.finance.gov.fj | I60: Fiji Ministry of Finance | J60: 2 | K60: http://www.finance.gov.fj/s.html | L60: 1 | M60: http://www.finance.gov.fj/index.php?option=com_content&view=article&id=17&Itemid=37 | N60: 1 | O60: - | P60: 0 | Q60: - | R60: 0 | S60: 0 | T60: - | U60: 2 | V60: 1 | W60: 0 | X60: - | Y60: 0 | Z60: - | AA60: 0 | AC60: - | AD60: 1 | AE60: 1 | AF60: 3 | AG60: 2004 | AH60: 0 | AJ60: - | AK60: 1 | AL60: 4 | AM60: 1 | AN60: 2009 | AO60: 0 | AQ60: - | AR60: 0 | AS60: 1 | AT60: 0 | AU60: 0 | AV60: 0 | AW60: 1 | AX60: 1 | AY60: 0 | AZ60: 1 | BA60: 0 | BB60: 0 | BC60: - | BD60: 0 | BE60: - | BF60: 0 | BG60: - | BH60: 0 | BI60: - | BJ60: 1 | BK60: http://www.statsfiji.gov.fj | BL60: Fiji Statistics Bureau | BM60: http://www.reservebank.gov.fj | BN60: Reserve Bank of Fiji | BO60: - | BP60: 1 | BQ60: http://www.fiji.gov.fj/index.php?option=com_content&view=article&id=583:accessiblity&catid=80 | BR60: 0 | BS60: - | BT60: 0 | BU60: - | BV60: 0 | BW60: 3 | BX60: - | BY60: eng | BZ60: - | CA60: - | CB60: - | CC60: - | CD60: FMIS | CE60: Financial Management Information System | CF60: C | CG60: F | CH60: 1 | CI60: 2008 | CJ60: C+L | CK60: 1 | CL60: 2 | CM60: Infor FMS | CN60: Web | CO60: Jun 2005 | CP60: Final | CQ60: X | CR60: X | CS60: X | CT60: X | CU60: X | CV60: X | CW60: X | CX60: X | CY60: X | CZ60: X | DA60: 1.85 | DB60: 1.919354839 | DC60: 6 | DD60: 0 | DF60: 1 | DG60: 105 | DH60: 0.4672 | DI60: 0.3595 | DJ60: 0.2434 | DK60: 0.7986 | DL60: EAP | DQ60: Fiji | DR60: 0 | DW60: 0 | EC60: 11 | ED60: 42.30769231 | EE60: C | EG60: 58 | EH60: Fiji | EI60: FJI | EJ60: 2009 | EK60: 5.9 | EL60: 2009 | EM60: 31 | EN60: 51.235954 | EO60: 269.20586
A61: 59 | C61: Finland | D61: HIC | E61: 5387 | F61: 257342.8031 | G61: 47770 | H61: http://www.vm.fi/vm/fi/01_etusivu | I61: Valtioneuvosto - Ministry of Finance, Finland | J61: 2 | K61: http://www.vm.fi/vm/fi/04_julkaisut_ja_asiakirjat/01_julkaisut/01_budjetit/index.jsp | L61: 2 | M61: http://www.valtiokonttori.fi/fi-FI/Virastoille_ja_laitoksille/Kiekun_kayttoonotto_valtionhallinnossa | N61: 3 | O61: http://www.netra.fi | P61: 1 | Q61: http://www.netra.fi | R61: 0 | S61: 0 | T61: - | U61: 1 | V61: 1 | W61: 0 | X61: - | Y61: 1 | Z61: http://www.vm.fi/vm/fi/04_julkaisut_ja_asiakirjat/03_muut_asiakirjat/24229/24230_fi.pdf | AA61: 1 | AB61: 1 | AC61: 2002 | AD61: 1 | AE61: 1 | AF61: 4 | AG61: 2004 | AH61: 0 | AJ61: - | AK61: 1 | AL61: 4 | AM61: 1 | AN61: 2001 | AO61: 1 | AP61: 1 | AQ61: 2001 | AR61: 1 | AS61: 1 | AT61: 0 | AU61: 1 | AV61: 0 | AW61: 1 | AX61: 1 | AY61: 1 | AZ61: 1 | BA61: 0 | BB61: 1 | BC61: http://www.peppol.eu/ | BD61: 1 | BE61: http://www.suomi.fi/suomifi/tyohuone/yhteiset_palvelut/avoin_data | BF61: 0 | BG61: - | BH61: 0 | BI61: http://www.vm.fi/vm/en/15_municipal_affairs/01_legislation/07_act/index.jsp | BJ61: 2 | BK61: http://www.stat.fi | BL61: Statistics Finland | BM61: http://www.bof.fi | BN61: Bank of Finland | BO61: http://www.valtiokonttori.fi | BP61: 0 | BQ61: - | BR61: 1 | BS61: http://www.vm.fi/vm/en/02_ministry/index.jsp | BT61: 2 | BU61: GFS 2001 + National laws and regulations | BV61: 0 | BW61: 1 | BX61: - | BY61: fin | BZ61: swe | CA61: eng | CB61: - | CC61: 0 | CD61: KIEKU | CE61: Government Financial and HR Administration System | CF61: D | CG61: F | CH61: 1 | CI61: 2011 | CJ61: C | CK61: 1 | CL61: 2 | CM61: SAP + Logica | CN61: Web | CO61: - | CP61: - | CQ61: - | CR61: - | CS61: - | CT61: - | CU61: - | CV61: - | CW61: - | CX61: - | CY61: - | CZ61: - | DA61: - | DB61: - | DC61: - | DD61: - | DE61: 1 | DF61: 3 | DG61: 9 | DH61: 0.8505 | DI61: 0.8824 | DJ61: 0.7225 | DK61: 0.9467 | DM61: EU | DN61: OECD | DQ61: Finland | DR61: 4 | DS61: 1 | DT61: 2 | DU61: 1 | DW61: 1 | DX61: 1 | EB61: 2013-04-04 | EC61: 19 | ED61: 73.07692308 | EE61: B | EG61: 59 | EH61: Finland | EI61: FIN
A62: 60 | C62: France | D62: HIC | E62: 65436.552 | F62: 2775664.208 | G62: 42420 | H62: http://www.economie.gouv.fr | I62: France Ministre du Budget, des Comptes publics, de la Fonction publique et de la Réforme de l'État | J62: 2 | K62: http://www.performance-publique.budget.gouv.fr/ | L62: 2 | M62: http://www.performance-publique.budget.gouv.fr/la-gestion-publique/la-gestion-budgetaire/approfondir/les-systemes-dinformation-financiere-de-letat/chorus-loutil-de-gestion-financiere-budgetaire-et-comptable-en-mode-lolf-deploiement-acheve-au-1er-janvier-2011.html | N62: 1 | O62: - | P62: 0 | Q62: - | R62: 0 | S62: 0 | T62: - | U62: 2 | V62: 1 | W62: 1 | X62: http://www.cyber-budget.fr | Y62: 1 | Z62: http://www.performance-publique.budget.gouv.fr/la-gestion-publique/la-gestion-budgetaire/lessentiel/les-nomenclatures-du-budget-de-letat-une-meilleure-identification-des-engagements-et-des-depenses.html | AA62: 1 | AB62: 1 | AC62: 2004 | AD62: 1 | AE62: 1 | AF62: 3 | AG62: 2008 | AH62: 0 | AJ62: - | AK62: 1 | AL62: 4 | AM62: 1 | AN62: 2006 | AO62: 1 | AP62: 1 | AQ62: 2004 | AR62: 1 | AS62: 1 | AT62: 0 | AU62: 0 | AV62: 0 | AW62: 1 | AX62: 1 | AY62: 0 | AZ62: 1 | BA62: 0 | BB62: 1 | BC62: http://www.peppol.eu/ | BD62: 1 | BE62: http://data.gouv.fr | BF62: 0 | BG62: - | BH62: 0 | BI62: - | BJ62: 3 | BK62: http://www.insee.fr | BL62: National Institute of Statistics and Economic Studies (INSEE) | BM62: http://www.banque-france.fr | BN62: Bank of France | BO62: http://www.aft.gouv.fr/articles/2005-draft-budget-bill_872.html | BP62: 1 | BQ62: http://www.budget.gouv.fr/budget/accessibilite | BR62: 1 | BS62: http://www.economie.gouv.fr/le-ministere/services-ministere-leconomie-et-des-finances | BT62: 0 | BU62: - | BV62: 0 | BW62: 1 | BX62: - | BY62: fre | BZ62: - | CA62: - | CB62: - | CC62: - | CD62: CHORUS | CE62: Government Financial Information System | CF62: C | CG62: F | CH62: 1 | CI62: 2011 | CJ62: C+L | CK62: 1 | CL62: 2 | CM62: SAP | CN62: Web | CO62: - | CP62: - | CQ62: - | CR62: - | CS62: - | CT62: - | CU62: - | CV62: - | CW62: - | CX62: - | CY62: - | CZ62: - | DA62: - | DB62: - | DC62: 83 | DD62: 87 | DF62: 3 | DG62: 6 | DH62: 0.8635 | DI62: 0.8758 | DJ62: 0.7902 | DK62: 0.9244 | DM62: EU | DN62: OECD | DQ62: France | DR62: 12 | DS62: 6 | DT62: 2 | DU62: 3 | DV62: 1 | DW62: 5 | DX62: 1 | DY62: 1 | DZ62: 2 | EA62: 1 | EC62: 18 | ED62: 69.23076923 | EE62: B | EG62: 60 | EH62: France | EI62: FRA
A63: 61 | C63: Gabon | D63: UMIC | E63: 1534.262 | F63: 12397.29963 | G63: 8080 | H63: http://www.finances.gouv.ga | I63: Gabon Ministère du Budget, des Comptes Publics, de la Fonction Publique, Charge de la Réforme de l'État | J63: 2 | K63: http://www.finances.gouv.ga/budget/rubrique.php3?id_rubrique=110 | L63: 1 | M63: http://ddp-ext.worldbank.org/EdStats/GABpemfar06.pdf | N63: 1 | O63: - | P63: 0 | Q63: - | R63: 0 | S63: 0 | T63: - | U63: 2 | V63: 1 | W63: 0 | X63: - | Y63: 1 | Z63: http://www.finances.gouv.ga/budget/IMG/pdf/DGB_Nom_Guide_2007.pdf | AA63: 1 | AB63: 0 | AC63: 2001 | AD63: 0 | AF63: - | AG63: - | AH63: 1 | AI63: 1 | AJ63: 2000 | AK63: 1 | AL63: 4 | AM63: 1 | AN63: 2000 | AO63: 0 | AQ63: - | AR63: 0 | AS63: 1 | AT63: 1 | AU63: 1 | AV63: 1 | AW63: 1 | AX63: 0 | AY63: 1 | AZ63: 0 | BA63: 0 | BB63: 0 | BC63: - | BD63: 0 | BE63: - | BF63: 0 | BG63: - | BH63: 1 | BI63: http://www.finances.gouv.ga/budget/IMG/pdf/DGB_Nom_Guide_2007.pdf | BJ63: 1 | BK63: http://www.stat-gabon.org | BL63: Gabon Direction générale de la statistique et des études économiques (DGSEE) | BM63: http://www.beac.int | BN63: Bank of Central African States | BO63: - | BP63: 0 | BQ63: - | BR63: 1 | BS63: http://www.finances.gouv.ga/budget/rubrique.php3?id_rubrique=187 | BT63: 2 | BU63: - | BV63: 0 | BW63: 0 | BX63: - | BY63: fre | BZ63: - | CA63: - | CB63: - | CC63: - | CD63: ASTER/SIGFIP | CE63: Application des Services du Trésor en Réseau / Système Intégré de Gestion des Finances Publiques | CF63: C | CG63: T | CH63: 1 | CI63: 1999 | CJ63: C | CK63: 1 | CL63: 1 | CM63: LDSW > Oracle | CN63: CS | CO63: Sep 2006 | CP63: Public | CQ63: C | CR63: C | CS63: C | CT63: D | CU63: D | CV63: NU | CW63: C | CX63: C | CY63: B | CZ63: NU | DA63: 1.875 | DB63: 1.956521739 | DC63: - | DD63: - | DF63: 0 | DG63: 129 | DH63: 0.3687 | DI63: 0.1895 | DJ63: 0.1595 | DK63: 0.7572 | DL63: AFR | DQ63: Gabon | DR63: 0 | DW63: 0 | EC63: 13 | ED63: 50 | EE63: B | EG63: 61 | EH63: Gabon | EI63: GAB | EJ63: 2005 | EK63: 4.8 | EL63: 2005 | EM63: 32.7 | EN63: 73.644576 | EO63: 501.703674
A64: 62 | C64: Gambia | D64: LIC | E64: 1776.103 | F64: 889.2791725 | G64: 500 | H64: http://www.mofea.gov.gm | I64: The Gambia Ministry of Finance and Economic Affairs | J64: 2 | K64: http://www.mofea.gov.gm/index.php?option=com_content&view=article&id=16&Itemid=24 | L64: 2 | M64: http://www.mofea.gov.gm/index.php?option=com_content&view=article&id=10&Itemid=13 | N64: 1 | O64: - | P64: 0 | Q64: - | R64: 1 | S64: 1 | T64: http://www.mofea.gov.gm/index.php?option=com_content&view=article&id=16&Itemid=24 | U64: 1 | V64: 1 | W64: 0 | X64: - | Y64: 0 | Z64: - | AA64: 0 | AC64: - | AD64: 0 | AF64: - | AG64: - | AH64: 0 | AJ64: - | AK64: 1 | AL64: 2 | AM64: 1 | AN64: 2011 | AO64: 0 | AQ64: - | AR64: 0 | AS64: 1 | AT64: 0 | AU64: 0 | AV64: 0 | AW64: 1 | AX64: 1 | AY64: 0 | AZ64: 0 | BA64: 0 | BB64: 0 | BC64: - | BD64: 0 | BE64: - | BF64: 0 | BG64: - | BH64: 0 | BI64: - | BJ64: 0 | BK64: http://www.gbos.gm | BL64: The Gambia Central Statistics Department | BM64: http://www.cbg.gm | BN64: Central Bank of The Gambia | BO64: - | BP64: 0 | BQ64: - | BR64: 1 | BS64: http://www.mofea.gov.gm/index.php?option=com_content&view=article&id=17&Itemid=20 | BT64: 0 | BU64: - | BV64: 0 | BW64: 3 | BX64: - | BY64: eng | BZ64: - | CA64: - | CB64: - | CC64: - | CD64: IFMIS | CE64: Integrated Financial Management Information System | CF64: C | CG64: F | CH64: 3 | CI64: 2007 | CJ64: C | CK64: 1 | CL64: 2 | CM64: Epicor | CN64: CS | CO64: Mar 2009 | CP64: Draft | CQ64: X | CR64: X | CS64: X | CT64: X | CU64: X | CV64: X | CW64: X | CX64: X | CY64: X | CZ64: X | DA64: 1.888888889 | DB64: 2.06 | DC64: - | DD64: - | DF64: 0 | DG64: 161 | DH64: 0.2688 | DI64: 0.3203 | DJ64: 0.1344 | DK64: 0.3519 | DL64: AFR | DQ64: Gambia | DR64: 0 | DW64: 0 | EC64: 11 | ED64: 42.30769231 | EE64: C | EG64: 62 | EH64: Gambia | EI64: GMB | EJ64: 2003 | EK64: 29.8 | EL64: 2010 | EM64: 48.4 | EN64: 529.278694 | EO64: 859.633852
A65: 63 | C65: Georgia | D65: LMIC | E65: 4486 | F65: 12848.99721 | G65: 2860 | H65: http://www.mof.ge | I65: Ministry of Finance of Georgia | J65: 2 | K65: http://www.mof.ge/4905 | L65: 2 | M65: http://fas.ge/en/Completed | N65: 2 | O65: http://treasury.gov.ge/4960 | P65: 0 | Q65: - | R65: 0 | S65: 0 | T65: - | U65: 2 | V65: 1 | W65: 1 | X65: http://www.mof.ge/common/get_doc.aspx?doc_id=8983 | Y65: 1 | Z65: http://www.mof.ge/show_law.aspx?id=647 | AA65: 1 | AB65: 1 | AC65: 2004 | AD65: 1 | AE65: 1 | AF65: 4 | AG65: 2006 | AH65: 1 | AI65: 1 | AJ65: 2012 | AK65: 1 | AL65: 2 | AM65: 1 | AN65: 2004 | AO65: 0 | AQ65: - | AR65: 1 | AS65: 1 | AT65: 1 | AU65: 0 | AV65: 0 | AW65: 1 | AX65: 1 | AY65: 1 | AZ65: 0 | BA65: 1 | BB65: 0 | BC65: - | BD65: 0 | BE65: - | BF65: 0 | BG65: - | BH65: 0 | BI65: - | BJ65: 3 | BK65: http://www.geostat.ge/index.php?action=0&lang=geo | BL65: Georgia State Department for Statistics | BM65: http://www.nbg.gov.ge | BN65: National Bank of Georgia | BO65: http://treasury.gov.ge/en/40 | BP65: 0 | BQ65: - | BR65: 0 | BS65: - | BT65: 2 | BU65: GFS 2001 | BV65: 0 | BW65: 0 | BX65: - | BY65: geo | BZ65: eng | CA65: - | CB65: - | CC65: 0 | CD65: PFMIS | CE65: Public Financial Management Information System | CF65: C | CG65: F | CH65: 3 | CI65: 2013 | CJ65: C+L | CK65: 1 | CL65: 1 | CM65: LDSW > Oracle | CN65: Web | CO65: Nov 2008 | CP65: Public | CQ65: B | CR65: A | CS65: B | CT65: C+ | CU65: A | CV65: D | CW65: B+ | CX65: D+ | CY65: D+ | CZ65: C | DA65: 2.6 | DB65: 2.633333333 | DC65: 55 | DD65: 55 | DE65: 1 | DF65: 2 | DG65: 72 | DH65: 0.5563 | DI65: 0.6013 | DJ65: 0.2328 | DK65: 0.8348 | DL65: ECA | DP65: F | DQ65: Georgia | DR65: 0 | DW65: 0 | EC65: 19 | ED65: 73.07692308 | EE65: B | EG65: 63 | EH65: Georgia | EI65: GEO | EJ65: 2010 | EK65: 18 | EL65: 2009 | EM65: 24.7 | EN65: 807.48 | EO65: 1108.042 | ER65: DAD
A66: 64 | C66: Germany | D66: HIC | E66: 81726 | F66: 3617712.863 | G66: 44270 | H66: http://www.bundesfinanzministerium.de | I66: Bundesministerium der Finanzen | J66: 2 | K66: http://www.bundesfinanzministerium.de | L66: 2 | M66: http://www.zivit.de/DE/ITLoesungen/Haushaltsverfahren/Haushaltsverfahren_node.html | N66: 3 | O66: www.bundeshaushalt-info.de | P66: 1 | Q66: http://www.bundeshaushalt-info.de/download.html | R66: 0 | S66: 0 | T66: - | U66: 2 | V66: 1 | W66: 1 | X66: http://www.finanzforscher.de/ | Y66: 1 | Z66: http://www.bundesfinanzministerium.de/Content/DE/Standardartikel/Themen/Oeffentliche_Finanzen/Bundeshaushalt/Haushaltsrecht_und_Haushaltssystematik/das-system-der-oeffentlichen-haushalte-anl.pdf?__blob=publicationFile&v=2 | AA66: 1 | AB66: 1 | AC66: 2006 | AD66: 1 | AE66: 1 | AF66: 5 | AG66: 2006 | AH66: 0 | AJ66: - | AK66: 1 | AL66: 2 | AM66: 1 | AN66: 2004 | AO66: 1 | AP66: 1 | AQ66: 2000 | AR66: 1 | AS66: 1 | AT66: 1 | AU66: 1 | AV66: 1 | AW66: 1 | AX66: 1 | AY66: 0 | AZ66: 1 | BA66: 0 | BB66: 1 | BC66: http://www.peppol.eu/ | BD66: 1 | BE66: https://www.govdata.de/ | BF66: 0 | BG66: - | BH66: 0 | BI66: - | BJ66: 1 | BK66: http://www.destatis.de | BL66: Germany Federal Statistical Office | BM66: http://www.bundesbank.de | BN66: Deutsche Bundesbank | BO66: - | BP66: 1 | BQ66: http://www.bfdi.bund.de/cae/servlet/contentblob/412040/publicationFile/24681/TextIFG_EN.pdf | BR66: 1 | BS66: http://www.bundesfinanzministerium.de/Web/DE/Service/Gesetze/gesetze.html | BT66: 0 | BU66: European System of National Accounts - ESA 95 | BV66: 0 | BW66: 2 | BX66: BMF Application, Twitter, Facebook | BY66: ger | BZ66: fre | CA66: eng | CB66: - | CC66: 0 | CD66: HKR | CE66: Haushalts, Kassen und Rechnungswesen | CF66: D | CG66: F | CH66: 1 | CI66: 1999 | CJ66: C+L | CK66: 1 | CL66: 2 | CM66: SAP | CN66: Web | CO66: - | CP66: - | CQ66: - | CR66: - | CS66: - | CT66: - | CU66: - | CV66: - | CW66: - | CX66: - | CY66: - | CZ66: - | DA66: - | DB66: - | DC66: 71 | DD66: 68 | DF66: 1 | DG66: 17 | DH66: 0.8079 | DI66: 0.7516 | DJ66: 0.775 | DK66: 0.8971 | DM66: EU | DN66: OECD | DQ66: Germany | DR66: 7 | DS66: 1 | DT66: 3 | DU66: 3 | DW66: 6 | DZ66: 5 | EA66: 1 | EC66: 21 | ED66: 80.76923077 | EE66: A | EG66: 64 | EH66: Germany | EI66: DEU
A67: 65 | C67: Ghana | D67: LMIC | E67: 24965.816 | F67: 35109.95 | G67: 1410 | H67: http://www.mofep.gov.gh | I67: Ghana Ministry of Finance and Economic Planning | J67: 2 | K67: http://www.mofep.gov.gh/?q=budget-statements | L67: 2 | M67: http://www.cagd.gov.gh/gifmis/index.php?option=com_content&view=article&id=28&Itemid=2&showall=1 | N67: 1 | O67: - | P67: 0 | Q67: - | R67: 0 | S67: 0 | T67: - | U67: 2 | V67: 1 | W67: 1 | X67: http://www.mofep.gov.gh/?q=publications/150708 | Y67: 1 | Z67: http://cagd.gov.gh/portal/index.php?option=com_content&view=article&id=47&Itemid=48 | AA67: 1 | AB67: 1 | AC67: 1998 | AD67: 1 | AE67: 1 | AF67: 3 | AG67: 1999 | AH67: 0 | AJ67: - | AK67: 1 | AL67: 2 | AM67: 0 | AN67: 2008 | AO67: 1 | AP67: 0 | AQ67: 2009 | AR67: 1 | AS67: 1 | AT67: 0 | AU67: 0 | AV67: 0 | AW67: 1 | AX67: 1 | AY67: 1 | AZ67: 1 | BA67: 0 | BB67: 0 | BC67: - | BD67: 1 | BE67: http://data.gov.gh | BF67: 0 | BG67: - | BH67: 1 | BI67: http://cagd.gov.gh/portal/index.php?option=com_content&view=article&id=47&Itemid=48&limitstart=1 | BJ67: 0 | BK67: http://www.statsghana.gov.gh | BL67: Ghana Statistical Service | BM67: http://www.bog.gov.gh | BN67: Bank of Ghana | BO67: - | BP67: 0 | BQ67: - | BR67: 0 | BS67: - | BT67: 2 | BU67: - | BV67: 0 | BW67: 1 | BX67: - | BY67: eng | BZ67: - | CA67: - | CB67: - | CC67: - | CD67: GIFMIS | CE67: Government Integrated Financial Management Information System | CF67: C | CG67: F | CH67: 3 | CI67: 2013 | CJ67: C | CK67: 1 | CL67: 2 | CM67: Oracle | CN67: CS | CO67: Jan 2010 | CP67: Public | CQ67: C | CR67: B | CS67: A | CT67: C+ | CU67: C | CV67: B | CW67: C+ | CX67: C+ | CY67: C+ | CZ67: C+ | DA67: 2.65 | DB67: 2.416666667 | DC67: 50 | DD67: 54 | DE67: 1 | DF67: 2 | DG67: 145 | DH67: 0.3159 | DI67: 0.3007 | DJ67: 0.1111 | DK67: 0.536 | DL67: AFR | DQ67: Ghana | DR67: 1 | DT67: 1 | DW67: 0 | EB67: 2013-05-03 | EC67: =J67+L67+N67+P67+R67+S67+U67+V67+W67+Y67+AA67+AB67+AD67+AE67+AH67+AI67+AK67+AM67+AO67+AP67 -> 16 | ED67: 61.53846154 | EE67: B | EG67: 65 | EH67: Ghana | EI67: GHA | EJ67: 2006 | EK67: 28.6 | EL67: 2006 | EM67: 28.5 | EN67: 7140.223376 | EO67: 7115.25756
A68: 66 | C68: Greece | D68: HIC | E68: 11304 | F68: 276747.9951 | G68: 24480 | H68: http://www.minfin.gr | I68: Ministry of Finance | J68: 2 | K68: http://www.minfin.gr/portal/el/resource/contentObject/contentTypes/genericContentResourceObject,fileResourceObject,arrayOfFileResourceTypeObject/topicNames/budget/resourceRepresentationTemplate/contentObjectListAlternativeTemplate | L68: 0 | M68: - | N68: 1 | O68: - | P68: 0 | Q68: - | R68: 0 | S68: 0 | T68: - | U68: 2 | V68: 1 | W68: 0 | X68: - | Y68: 1 | Z68: http://www.minfin.gr/portal/el/resource/contentObject/contentTypes/genericContentResourceObject,fileResourceObject,arrayOfFileResourceTypeObject/topicNames/budget/pageNumber/2/resourceRepresentationTemplate/contentObjectListAlternativeTemplate | AA68: 1 | AB68: 1 | AC68: 2000 | AD68: 1 | AE68: 0 | AF68: 4 | AG68: 2012 | AH68: 0 | AJ68: - | AK68: 1 | AL68: 2 | AM68: 0 | AN68: 2010 | AO68: 0 | AQ68: - | AR68: 1 | AS68: 1 | AT68: 0 | AU68: 0 | AV68: 0 | AW68: 1 | AX68: 0 | AY68: 1 | AZ68: 1 | BA68: 1 | BB68: 1 | BC68: http://www.peppol.eu/ | BD68: 1 | BE68: http://geodata.gov.gr/geodata | BF68: 0 | BG68: - | BH68: 0 | BI68: - | BJ68: 0 | BK68: http://www.statistics.gr | BL68: Greece National Statistical Service | BM68: http://www.bankofgreece.gr | BN68: Bank of Greece | BO68: - | BP68: 0 | BQ68: - | BR68: 1 | BS68: http://www.minfin.gr/portal/en/resource/contentObject/contentTypes/genericContentResourceObject,fileResourceObject,arrayOfFileResourceTypeObject/topicNames/actOfLaw/resourceRepresentationTemplate/contentObjectListAlternativeTemplate#fragment-2 | BT68: 2 | BU68: National laws and regulations | BV68: 0 | BW68: 3 | BX68: - | BY68: gre | BZ68: eng | CA68: - | CB68: - | CC68: 0 | CD68: - | CE68: - | CF68: C | CG68: - | CH68: - | CI68: - | CJ68: - | CK68: - | CL68: - | CM68: - | CN68: - | CO68: - | CP68: - | CQ68: - | CR68: - | CS68: - | CT68: - | CU68: - | CV68: - | CW68: - | CX68: - | CY68: - | CZ68: - | DA68: - | DB68: - | DC68: - | DD68: - | DE68: 1 | DF68: 1 | DG68: 37 | DH68: 0.6872 | DI68: 0.5752 | DJ68: 0.5531 | DK68: 0.9332 | DM68: EU | DN68: OECD | DQ68: =C68 -> Greece | DR68: =SUM(DS68:DV68) -> 0 | DW68: =SUM(DX68:EA68) -> 0 | EC68: 11 | ED68: =EC68/26*100 -> 42.30769231 | EE68: =IF(ED68<25,"D",IF(ED68<50,"C",IF(ED68<75,"B","A"))) -> C | EG68: 66 | EH68: Greece | EI68: GRC
A69: 67 | C69: Grenada | D69: UMIC | E69: 104.89 | F69: 770.8963634 | G69: 7350 | H69: http://www.gov.gd/ministries/finance.html | I69: Ministry of Finance, Planning, Economy, Energy & Cooperatives | J69: 2 | K69: http://www.gov.gd/documents.html | L69: 1 | M69: http://ec.europa.eu/europeaid/what/economic-support/public-finance/documents/grenada_pefa_report_en.pdf | N69: 1 | O69: - | P69: 0 | Q69: - | R69: 0 | S69: 0 | T69: - | U69: 1 | V69: 1 | W69: 0 | X69: - | Y69: 0 | Z69: - | AA69: 1 | AB69: 1 | AC69: 2003 | AD69: 0 | AF69: - | AG69: - | AH69: 0 | AJ69: - | AK69: 0 | AN69: - | AO69: 1 | AP69: 0 | AQ69: 2006 | AR69: 1 | AS69: 1 | AT69: 0 | AU69: 0 | AV69: 0 | AW69: 1 | AX69: 1 | AY69: 0 | AZ69: 0 | BA69: 0 | BB69: 0 | BC69: - | BD69: 0 | BE69: - | BF69: 0 | BG69: - | BH69: 0 | BI69: - | BJ69: 0 | BK69: - | BL69: MoF, Central Statistics Office | BM69: http://www.eccb-centralbank.org | BN69: East Caribbean Central Bank | BO69: - | BP69: 0 | BQ69: - | BR69: 1 | BS69: http://www.gov.gd/ministries/finance.html | BT69: 0 | BU69: - | BV69: 0 | BW69: 3 | BX69: Facebook, Twitter, Youtube, VIMEO | BY69: eng | BZ69: - | CA69: - | CB69: - | CC69: - | CD69: SIGFIS | CE69: Standard Integrated Government Financial Information System | CF69: C | CG69: F | CH69: 3 | CI69: 2012 | CJ69: C+L | CK69: 2 | CL69: 2 | CM69: SmartStream | CN69: Web | CO69: Mar 2010 | CP69: Public | CQ69: C | CR69: A | CS69: B | CT69: C | CU69: B | CV69: D | CW69: C+ | CX69: C+ | CY69: B+ | CZ69: D | DA69: 2.45 | DB69: 2.216666667 | DC69: - | DD69: - | DF69: 0 | DG69: 75 | DH69: 0.5479 | DI69: 0.3529 | DJ69: 0.4014 | DK69: 0.8895 | DL69: LCR | DQ69: Grenada | DR69: 0 | DW69: 0 | EC69: 9 | ED69: 34.61538462 | EE69: C | EG69: 67 | EH69: Grenada | EI69: GRD
A70: 68 | C70: Guatemala | D70: LMIC | E70: 14757.316 | F70: 42358.50799 | G70: 2870 | H70: http://www.minfin.gob.gt | I70: Guatemala Ministry of Public Finance | J70: 2 | K70: http://www.minfin.gob.gt/ | L70: 2 | M70: http://www.minfin.gob.gt/frame.php?url=https://sicoin.minfin.gob.gt/sicoinweb/login/frmlogin.htm | N70: 1 | O70: - | P70: 1 | Q70: http://www.minfin.gob.gt/ | R70: 0 | S70: 0 | U70: 2 | V70: 1 | W70: 2 | X70: http://www.minfin.gob.gt/index.php/?option=com_content&view=article&id=38&Itemid=327 | Y70: 1 | Z70: http://www.minfin.gob.gt/manuales/files.html?folder=manuales_presupuestarios | AA70: 1 | AB70: 1 | AC70: 2003 | AD70: 1 | AE70: 1 | AF70: 3 | AG70: 2012 | AH70: 1 | AI70: 1 | AJ70: 2007 | AK70: 1 | AL70: 2 | AM70: 1 | AN70: 2003 | AO70: 0 | AQ70: - | AR70: 1 | AS70: 1 | AT70: 0 | AU70: 0 | AV70: 0 | AW70: 1 | AX70: 1 | AY70: 1 | AZ70: 0 | BA70: 1 | BB70: 0 | BC70: - | BD70: 0 | BE70: - | BF70: 2 | BG70: http://www.minfin.gob.gt/archivos/prensa/notas_informativas/notinfo30_070809.pdf | BH70: 1 | BI70: http://www.minfin.gob.gt/presupaprobado/presupaprobados/files.html?folder=2012\Segunda%20Parte%20Detalle%20Cuantitativo\presupuesto_de_egresos_por_institucion&start=15 | BJ70: 0 | BK70: http://www.ine.gob.gt | BL70: Guatemala Instituto Nacional de Estadistica | BM70: http://www.banguat.gob.gt | BN70: Bank of Guatemala | BO70: - | BP70: 1 | BQ70: http://www.minfin.gob.gt/laip_mfp/4.html | BR70: 1 | BS70: http://www.minfin.gob.gt/leyespresupuesto.html | BT70: 2 | BU70: National laws and regulations | BV70: 1 | BW70: 3 | BX70: Facebook, Twitter, Youtube | BY70: spa | BZ70: - | CA70: - | CB70: - | CC70: - | CD70: SIAF | CE70: Sistema Integrado de Administración Financiera | CF70: C | CG70: F | CH70: 1 | CI70: 2011 | CJ70: C+L | CK70: 2 | CL70: 1 | CM70: LDSW > Oracle | CN70: Web | CO70: Jul 2010 | CP70: Public | CQ70: C | CR70: A | CS70: A | CT70: B | CU70: B+ | CV70: C | CW70: D+ | CX70: D+ | CY70: C+ | CZ70: D+ | DA70: 2.55 | DB70: 2.465517241 | DC70: 51 | DD70: 50 | DE70: 1 | DF70: 0 | DG70: 112 | DH70: 0.439 | DI70: 0.4641 | DJ70: 0.2247 | DK70: 0.6284 | DL70: LCR | DQ70: Guatemala | DR70: 0 | DW70: 0 | EC70: 20 | ED70: 76.92307692 | EE70: A | EG70: 68 | EH70: Guatemala | EI70: GTM | EJ70: 2006 | EK70: 13.5 | EL70: 2011 | EM70: 53.7 | EN70: 1992.23766 | EO70: 7924.678692 | ER70: DAD
A71: 69 | C71: Guinea | D71: LIC | E71: 10221.808 | F71: 4417.781925 | G71: 430 | H71: http://www.guinee.gov.gn | I71: Ministry of Economy and Finance | J71: 0 | K71: - | L71: 1 | M71: http://www.imf.org/external/np/otm/2009/110109a.pdf | N71: 0 | O71: - | P71: 0 | Q71: - | R71: 0 | S71: 0 | T71: - | U71: 0 | V71: 0 | W71: 0 | X71: - | Y71: 0 | Z71: - | AA71: 0 | AC71: - | AD71: 0 | AF71: - | AG71: - | AH71: 0 | AJ71: - | AK71: 0 | AN71: - | AO71: 0 | AQ71: - | AR71: 0 | AS71: 0 | AT71: 0 | AU71: 0 | AV71: 0 | AW71: 0 | AX71: 0 | AY71: 0 | AZ71: 0 | BA71: 0 | BB71: 0 | BC71: - | BD71: 0 | BE71: - | BF71: 0 | BG71: - | BH71: 0 | BI71: - | BJ71: 0 | BK71: http://www.stat-guinee.org | BL71: Guinea National Statistics Directorate | BM71: http://www.bcrg.gov.gn | BN71: Central Bank of the Republic of Guinea | BO71: - | BP71: 0 | BQ71: - | BR71: 0 | BS71: - | BT71: 0 | BU71: - | BV71: 0 | BW71: 0 | BX71: - | BY71: fre | BZ71: - | CA71: - | CB71: - | CC71: - | CD71: CBMS | CE71: Computerized Budget Management System | CF71: C | CG71: F | CH71: 3 | CI71: 2012 | CJ71: C | CK71: 1 | CL71: 0 | CM71: ? | CN71: Web | CO71: Jul 2007 | CP71: Final | CQ71: X | CR71: X | CS71: X | CT71: X | CU71: X | CV71: X | CW71: X | CX71: X | CY71: X | CZ71: X | DA71: 1.85 | DB71: 1.612903226 | DC71: - | DD71: - | DF71: 2 | DG71: - | DH71: - | DI71: - | DJ71: - | DK71: - | DL71: AFR | DP71: F | DQ71: Guinea | DR71: 0 | DW71: 0 | EC71: 1 | ED71: 3.846153846 | EE71: D | EG71: 69 | EH71: Guinea | EI71: GIN | EJ71: 2007 | EK71: 43.3 | EL71: 2012 | EM71: 55.2 | EN71: 4426.042864 | EO71: 5642.438016
A72: 70 | C72: Guinea-Bissau | D72: LIC | E72: 1547.061 | F72: 930.9829659 | G72: 600 | H72: http://minfin-gov.bissau.net | I72: Ministerio das Financas da Guine Bissau | J72: 2 | K72: http://minfin-gov.bissau.net/index.php?option=com_content&view=article&id=78&Itemid=93 | L72: 2 | M72: http://www.sndi.ci/component/content/article/78 | N72: 1 | O72: - | P72: 0 | Q72: - | R72: 0 | S72: 0 | T72: - | U72: 1 | V72: 1 | W72: 0 | X72: - | Y72: 0 | Z72: - | AA72: 1 | AB72: 1 | AC72: 2007 | AD72: 0 | AF72: - | AG72: - | AH72: 0 | AJ72: - | AK72: 1 | AL72: 4 | AM72: 1 | AN72: 2007 | AO72: 0 | AQ72: - | AR72: 0 | AS72: 1 | AT72: 1 | AU72: 1 | AV72: 1 | AW72: 1 | AX72: 1 | AY72: 0 | AZ72: 0 | BA72: 0 | BB72: 0 | BC72: - | BD72: 0 | BE72: - | BF72: 0 | BG72: - | BH72: 0 | BI72: - | BJ72: 0 | BK72: http://www.stat-guinebissau.com | BL72: Guinea-Bissau National Institute of Statistics and Censuses | BM72: http://www.bceao.int | BN72: Central Bank of West African States (BCEAO) | BO72: - | BP72: 0 | BQ72: - | BR72: 1 | BS72: http://minfin-gov.bissau.net/index.php?option=com_content&view=article&id=62&Itemid=69 | BT72: 0 | BU72: - | BV72: 1 | BW72: 1 | BX72: - | BY72: por | BZ72: - | CA72: - | CB72: - | CC72: - | CD72: SIGFIP | CE72: Système Intégré de Gestion des Finances Publiques | CF72: C | CG72: F | CH72: 1 | CI72: 2010 | CJ72: C+L | CK72: 2 | CL72: 1 | CM72: LDSW > Oracle | CN72: Web | CO72: May 2009 | CP72: Public | CQ72: D | CR72: B | CS72: D | CT72: D+ | CU72: NA | CV72: D | CW72: D | CX72: D+ | CY72: D | CZ72: D | DA72: 1.333333333 | DB72: 1.277777778 | DC72: - | DD72: - | DF72: 0 | DG72: 182 | DH72: 0.1945 | DI72: 0.1046 | DJ72: 0.0511 | DK72: 0.4278 | DL72: AFR | DP72: F | DQ72: Guinea-Bissau | DR72: 0 | DW72: 0 | EC72: 11 | ED72: 42.30769231 | EE72: C | EG72: 70 | EH72: Guinea-Bissau | EI72: GNB | EJ72: 2002 | EK72: 48.9 | EL72: 2010 | EM72: 69.3 | EN72: 756.512829 | EO72: 1072.113273 | EQ72: 2010
A73: 71 | C73: Guyana | D73: LMIC | E73: 756.04 | F73: 2577 | G73: 3408.549812 | H73: http://www.finance.gov.gy | I73: Guyana Ministry of Finance | J73: 2 | K73: http://www.finance.gov.gy/publications/budget-speeches | L73: 2 | M73: http://www.finance.gov.gy/about-us/organisation/ag | N73: 1 | O73: - | P73: 0 | Q73: - | R73: 0 | S73: 0 | T73: - | U73: 1 | V73: 1 | W73: 0 | X73: - | Y73: 0 | Z73: - | AA73: 1 | AB73: 0 | AC73: 2008 | AD73: 0 | AF73: - | AG73: - | AH73: 0 | AJ73: - | AK73: 1 | AL73: 4 | AM73: 0 | AN73: 2008 | AO73: 0 | AQ73: - | AR73: 1 | AS73: 1 | AT73: 1 | AU73: 0 | AV73: 0 | AW73: 1 | AX73: 1 | AY73: 0 | AZ73: 1 | BA73: 1 | BB73: 1 | BC73: http://eprocure.gov.gy/index.php?option=com_content&view=category&layout=blog&id=81&Itemid=111 | BD73: 0 | BE73: - | BF73: 0 | BG73: - | BH73: 0 | BI73: - | BJ73: 0 | BK73: http://www.statisticsguyana.gov.gy | BL73: Guyana Bureau of Statistics | BM73: http://www.bankofguyana.org.gy | BN73: Bank of Guyana | BO73: - | BP73: 0 | BQ73: - | BR73: 1 | BS73: http://www.finance.gov.gy/about-us/organisation/ob | BT73: 0 | BU73: National laws and regulations | BV73: 0 | BW73: 2 | BX73: - | BY73: eng | BZ73: - | CA73: - | CB73: - | CC73: - | CD73: IFMAS | CE73: Integrated Financial Management and Accounting System | CF73: C | CG73: T | CH73: 1 | CI73: 2004 | CJ73: C | CK73: 1 | CL73: 2 | CM73: FreeBalance | CN73: CS | CO73: Dec 2007 | CP73: Draft | CQ73: X | CR73: X | CS73: X | CT73: X | CU73: X | CV73: X | CW73: X | CX73: X | CY73: X | CZ73: X | DA73: 2.4 | DB73: 2.25 | DC73: - | DD73: - | DF73: 0 | DG73: 109 | DH73: 0.4549 | DI73: 0.2549 | DJ73: 0.2536 | DK73: 0.8562 | DL73: LCR | DQ73: Guyana | DR73: 0 | DW73: 0 | EC73: 9 | ED73: 34.61538462 | EE73: C | EG73: 71 | EH73: Guyana | EI73: GUY | EJ73: 1998 | EK73: 8.7 | EN73: 65.77548
A74: 72 | C74: Haiti | D74: LIC | E74: 10123.787 | F74: 7050.223311 | G74: 700 | H74: http://www.mefhaiti.gouv.ht | I74: Ministère de l'Economie et des Finances | J74: 1 | K74: http://www.mefhaiti.gouv.ht/budget.htm | L74: 1 | M74: http://www-wds.worldbank.org/external/default/WDSContentServer/WDSP/IB/2008/07/10/000333037_20080710023439/Rendered/PDF/446510PUB0HT0P101Official0Use0Only1.pdf | N74: 1 | O74: - | P74: 1 | Q74: http://www.mefhaiti.gouv.ht/index.htm | R74: 0 | S74: 0 | T74: - | U74: 1 | V74: 1 | W74: 0 | X74: - | Y74: 1 | Z74: http://www.mefhaiti.gouv.ht/ | AA74: 1 | AB74: 1 | AC74: 2001 | AD74: 0 | AF74: - | AG74: - | AH74: 1 | AI74: 0 | AJ74: 2009 | AK74: 1 | AL74: 4 | AM74: 1 | AN74: 2001 | AO74: 0 | AQ74: - | AR74: 1 | AS74: 1 | AT74: 0 | AU74: 0 | AV74: 0 | AW74: 1 | AX74: 1 | AY74: 0 | AZ74: 1 | BA74: 1 | BB74: 1 | BC74: http://www.mefhaiti.gouv.ht/marche_public.htm | BD74: 0 | BE74: - | BF74: 0 | BG74: - | BH74: 0 | BI74: - | BJ74: 0 | BK74: http://www.ihsi.ht | BL74: Institut Haïtien de Statistique et d’Informatique | BM74: http://www.brh.net | BN74: Central Bank of Haiti | BO74: - | BP74: 0 | BQ74: - | BR74: 0 | BS74: - | BT74: 0 | BU74: National laws and regulations | BV74: 1 | BW74: 1 | BX74: - | BY74: fre | BZ74: - | CA74: - | CB74: - | CC74: - | CD74: SYSDEP | CE74: Système d’Informatisation des Dépenses / Expenditure Management System | CF74: C | CG74: F | CH74: 1 | CI74: 2005 | CJ74: C | CK74: 1 | CL74: 1 | CM74: LDSW > Oracle | CN74: CS | CO74: Nov 2011 | CP74: Draft | CQ74: X | CR74: X | CS74: X | CT74: X | CU74: X | CV74: X | CW74: X | CX74: X | CY74: X | CZ74: X | DA74: 1.333333333 | DB74: 1.5 | DC74: - | DD74: - | DF74: 0 | DG74: 187 | DH74: 0.1512 | DI74: 0.0915 | DJ74: 0.0698 | DK74: 0.2922 | DL74: LCR | DP74: F | DQ74: Haiti | DR74: 0 | DW74: 0 | EC74: 12 | ED74: 46.15384615 | EE74: C | EG74: 72 | EH74: Haiti | EI74: HTI | EJ74: 2001 | EK74: 61.7 | EL74: 2001 | EM74: 77 | EN74: 6246.376579 | EO74: 7795.31599 | EQ74: 2009 | ER74: DAD
A75: 73 | C75: Honduras | D75: LMIC | E75: 7754.687 | F75: 15381.73202 | G75: 1980 | H75: http://www.sefin.gob.hn | I75: Honduras Secretaría de Finanzas | J75: 2 | K75: http://www.sefin.gob.hn/?page_id=196 | L75: 2 | M75: http://www.sefin.gob.hn/?page_id=17 | N75: 1 | O75: - | P75: 0 | Q75: - | R75: 0 | S75: 0 | T75: - | U75: 1 | V75: 1 | W75: 1 | X75: http://www.sefin.gob.hn | Y75: 1 | Z75: http://www.sefin.gob.hn/bisefin | AA75: 1 | AB75: 1 | AC75: 2007 | AD75: 1 | AE75: 0 | AF75: 3 | AG75: 2012 | AH75: 1 | AI75: 1 | AJ75: 2008 | AK75: 1 | AL75: 3 | AM75: 1 | AN75: 2007 | AO75: 1 | AP75: 1 | AQ75: 2007 | AR75: 1 | AS75: 1 | AT75: 1 | AU75: 1 | AV75: 0 | AW75: 1 | AX75: 1 | AY75: 1 | AZ75: 1 | BA75: 0 | BB75: 1 | BC75: http://www.sefin.gob.hn/?page_id=8248 | BD75: 0 | BE75: - | BF75: 2 | BG75: http://www.sefin.gob.hn/wp-content/uploads/SAMI/index.html | BH75: 1 | BI75: http://www.sefin.gob.hn/?page_id=2398 | BJ75: 0 | BK75: http://www.ine-hn.org | BL75: Honduras Instituto Nacional de Estadistica | BM75: http://www.bch.hn | BN75: Central Bank of Honduras | BO75: - | BP75: 0 | BQ75: - | BR75: 1 | BS75: http://www.sefin.gob.hn/?page_id=5395 | BT75: 0 | BU75: National laws and regulations | BV75: 0 | BW75: 2 | BX75: - | BY75: spa | BZ75: - | CA75: - | CB75: - | CC75: - | CD75: SIAFI | CE75: Sistema de Administración Financiera Integrada | CF75: C | CG75: F | CH75: 3 | CI75: 2006 | CJ75: C+L | CK75: 2 | CL75: 1 | CM75: LDSW > Oracle | CN75: Web | CO75: Oct 2011 | CP75: Final | CQ75: X | CR75: X | CS75: X | CT75: X | CU75: X | CV75: X | CW75: X | CX75: X | CY75: X | CZ75: X | DA75: 3.05 | DB75: 2.612903226 | DC75: 53 | DD75: 11 | DE75: 1 | DF75: 1 | DG75: 117 | DH75: 0.4341 | DI75: 0.3791 | DJ75: 0.2173 | DK75: 0.706 | DL75: LCR | DQ75: Honduras | DR75: 0 | DW75: 0 | EC75: 18 | ED75: 69.23076923 | EE75: B | EG75: 73 | EH75: Honduras | EI75: HND | EJ75: 2009 | EK75: 17.9 | EL75: 2010 | EM75: 66.2 | EN75: 1388.088973 | EO75: 5133.602794 | EQ75: 2011 | ER75: DAD
A76: 74 | C76: Hong Kong SAR, China | D76: HIC | E76: 7071.6 | F76: 254625.2823 | G76: 36010 | H76: http://www.fstb.gov.hk | I76: Hong Kong Financial Services and the Treasury Bureau | J76: 2 | K76: http://www.budget.gov.hk/2013/index.html | L76: 2 | M76: http://www.try.gov.hk/internet/ehabou_serv_pledge3.html | N76: 1 | O76: - | P76: 0 | Q76: - | R76: 0 | S76: 0 | T76: - | U76: 2 | V76: 1 | W76: 0 | X76: - | Y76: 1 | Z76: http://www.budget.gov.hk/2013/eng/estimates.html | AA76: 1 | AB76: 1 | AC76: 1997 | AD76: 1 | AE76: 1 | AF76: 5 | AG76: 1997 | AH76: 1 | AI76: 1 | AJ76: 2000 | AK76: 1 | AL76: 2 | AM76: 1 | AN76: 2002 | AO76: 0 | AQ76: - | AR76: 1 | AS76: 1 | AT76: n/a | AU76: 0 | AV76: 0 | AW76: 1 | AX76: 1 | AY76: n/a | AZ76: 1 | BA76: 1 | BB76: 1 | BC76: http://www.fstb.gov.hk/tb/eng/procurement/tender02.html | BD76: 1 | BE76: http://www.gov.hk/en/theme/psi/datasets/ | BF76: n/a | BG76: - | BH76: n/a | BI76: - | BJ76: 1 | BK76: http://www.info.gov.hk/censtatd | BL76: Hong Kong Special Administrative Region Census and Statistics Department | BM76: http://www.hkma.gov.hk | BN76: Hong Kong Monetary Authority | BO76: - | BP76: 1 | BQ76: http://www.fstb.gov.hk/tb/eng/access/content.html | BR76: 0 | BS76: - | BT76: 1 | BU76: - | BV76: 0 | BW76: 3 | BX76: - | BY76: chi | BZ76: eng | CA76: - | CB76: - | CC76: 1 | CD76: GFMIS | CE76: Government Financial Management Information System | CF76: D | CG76: F | CH76: 1 | CI76: 2009 | CJ76: C | CK76: 1 | CL76: 2 | CM76: Oracle | CN76: Web | CO76: - | CP76: - | CQ76: - | CR76: - | CS76: - | CT76: - | CU76: - | CV76: - | CW76: - | CX76: - | CY76: - | CZ76: - | DA76: - | DB76: - | DC76: - | DD76: - | DF76: 1 | DG76: - | DH76: - | DI76: - | DJ76: - | DK76: - | DL76: EAP | DO76: APEC | DQ76: Hong Kong SAR, China | DR76: 3 | DS76: 1 | DT76: 2 | DW76: 0 | EB76: 2013-05-06 | EC76: 17 | ED76: 65.38461538 | EE76: B | EG76: 74 | EH76: Hong Kong SAR, China | EI76: HKG
A77: 75 | C77: Hungary | D77: HIC | E77: 9971 | F77: 126920.9804 | G77: 12730 | H77: http://www.kormany.hu/hu/nemzetgazdasagi-miniszterium | I77: Ministry for National Economy | J77: 2 | K77: http://www.kormany.hu/hu/nemzetgazdasagi-miniszterium/allamhaztartasert-felelos-allamtitkarsag/hirek/koltsegvetesi-beszamolo | L77: 1 | M77: http://www-wds.worldbank.org/external/default/WDSContentServer/WDSP/IB/2003/03/07/000094946_0301180408511/Rendered/PDF/multi0page.pdf | N77: 1 | O77: - | P77: 0 | Q77: - | R77: 0 | S77: 0 | T77: - | U77: 1 | V77: 1 | W77: 0 | X77: - | Y77: 0 | Z77: - | AA77: 1 | AB77: 1 | AC77: 2003 | AD77: 0 | AF77: - | AG77: - | AH77: 0 | AJ77: - | AK77: 1 | AL77: 4 | AM77: 1 | AN77: 2003 | AO77: 1 | AP77: 1 | AQ77: 2001 | AR77: 1 | AS77: 1 | AT77: 1 | AU77: 0 | AV77: 0 | AW77: 1 | AX77: 1 | AY77: 1 | AZ77: 1 | BA77: 1 | BB77: 0 | BC77: - | BD77: 0 | BE77: - | BF77: 0 | BG77: - | BH77: 0 | BI77: - | BJ77: 1 | BK77: http://portal.ksh.hu | BL77: Hungarian Central Statistical Office | BM77: http://www.mnb.hu | BN77: Magyar Nemzeti Bank | BO77: - | BP77: 0 | BQ77: - | BR77: 1 | BS77: http://www.kormany.hu/hu/kulugyminiszterium/szervezet | BT77: 0 | BU77: - | BV77: 0 | BW77: 3 | BX77: - | BY77: hun | BZ77: eng | CA77: - | CB77: - | CC77: 0 | CD77: GFMIS | CE77: Government Financial Management Information System | CF77: C | CG77: F | CH77: 1 | CI77: 2002 | CJ77: C+L | CK77: 1 | CL77: 1 | CM77: LDSW > Oracle | CN77: Web | CO77: - | CP77: - | CQ77: - | CR77: - | CS77: - | CT77: - | CU77: - | CV77: - | CW77: - | CX77: - | CY77: - | CZ77: - | DA77: - | DB77: - | DC77: - | DD77: - | DE77: 1 | DF77: 1 | DG77: 31 | DH77: 0.7201 | DI77: 0.6863 | DJ77: 0.5677 | DK77: 0.9065 | DL77: ECA | DM77: EU | DN77: OECD | DQ77: Hungary | DR77: 0 | DW77: 0 | EC77: 12 | ED77: 46.15384615 | EE77: C | EG77: 75 | EH77: Hungary | EI77: HUN | EJ77: 2007 | EK77: <2 | EN77: 17
A78: 76 | C78: Iceland | D78: HIC | E78: 319 | F78: 11108.21632 | G78: 34820 | H78: http://www.ministryoffinance.is | I78: Fjármálaráðuneytið - Ministry of Finance, Iceland | J78: 2 | K78: http://www.ministryoffinance.is/government-finance/fiscal-budget/ | L78: 2 | M78: http://hamar.stjr.is | N78: 1 | O78: - | P78: 0 | Q78: - | R78: 0 | S78: 0 | T78: - | U78: 1 | V78: 1 | W78: 0 | X78: - | Y78: 0 | Z78: - | AA78: 1 | AB78: 1 | AC78: 2002 | AD78: 1 | AE78: 1 | AF78: 4 | AG78: 2004 | AH78: 0 | AJ78: - | AK78: 0 | AN78: - | AO78: 1 | AP78: 1 | AQ78: 2002 | AR78: 1 | AS78: 1 | AT78: 1 | AU78: 1 | AV78: 0 | AW78: 1 | AX78: 1 | AY78: 0 | AZ78: 1 | BA78: 0 | BB78: 0 | BC78: - | BD78: 0 | BE78: - | BF78: 0 | BG78: - | BH78: 0 | BI78: - | BJ78: 1 | BK78: http://www.statice.is | BL78: Statistics Iceland | BM78: http://www.sedlabanki.is | BN78: Central Bank of Iceland | BO78: - | BP78: 0 | BQ78: - | BR78: 1 | BS78: http://www.fjarmalaraduneyti.is/log_og_reglugerdir/ | BT78: 1 | BU78: - | BV78: 0 | BW78: 2 | BX78: - | BY78: ice | BZ78: eng | CA78: - | CB78: - | CC78: 0 | CD78: HAMAR | CE78: Government Accounting and Planning System | CF78: C | CG78: F | CH78: 1 | CI78: 2003 | CJ78: C+L | CK78: 1 | CL78: 2 | CM78: Oracle | CN78: Web | CO78: - | CP78: - | CQ78: - | CR78: - | CS78: - | CT78: - | CU78: - | CV78: - | CW78: - | CX78: - | CY78: - | CZ78: - | DA78: - | DB78: - | DC78: - | DD78: - | DF78: 1 | DG78: 22 | DH78: 0.7835 | DI78: 0.5425 | DJ78: 0.8772 | DK78: 0.931 | DM78: EUR | DN78: OECD | DQ78: Iceland | DR78: 1 | DU78: 1 | DW78: 0 | EC78: 13 | ED78: 50 | EE78: B | EG78: 76 | EH78: Iceland | EI78: ISL
A79: 77 | C79: India | D79: LMIC | E79: 1241491.96 | F79: 1746476.297 | G79: 1410 | H79: http://www.finmin.nic.in | I79: India Ministry of Finance | J79: 2 | K79: http://www.finmin.nic.in/reports/annualreport.asp | L79: 2 | M79: http://www.nic.in/hqpage?hqid=1 | N79: 2 | O79: http://cga.nic.in/default.aspx | P79: 0 | Q79: - | R79: 1 | S79: 1 | T79: http://www.finmin.nic.in/the_ministry/dept_expenditure/cca/cca_exp_stat.asp | U79: 2 | V79: 1 | W79: 1 | X79: http://cga.nic.in/Forms/contentpage.aspx?Lid=2531 | Y79: 1 | Z79: http://indiabudget.nic.in/afs.asp | AA79: 1 | AB79: 1 | AC79: 1996 | AD79: 1 | AE79: 1 | AF79: 3 | AG79: 2004 | AH79: 0 | AJ79: - | AK79: 1 | AL79: 3 | AM79: 1 | AN79: 2004 | AO79: 1 | AP79: 1 | AQ79: 1999 | AR79: 1 | AS79: 1 | AT79: 0 | AU79: 0 | AV79: 0 | AW79: 1 | AX79: 1 | AY79: 0 | AZ79: 1 | BA79: 1 | BB79: 1 | BC79: http://eprocure.gov.in/cppp/ | BD79: 1 | BE79: https://www.data.gov.in | BF79: 0 | BG79: - | BH79: 1 | BI79: http://www.cga.nic.in/ | BJ79: 3 | BK79: http://mospi.nic.in | BL79: India Ministry of Statistics and Programme Implementation | BM79: http://www.rbi.org.in | BN79: Reserve Bank of India | BO79: http://indiabudget.nic.in/index.asp | BP79: 0 | BQ79: - | BR79: 1 | BS79: http://finmin.nic.in/law/index.asp | BT79: 0 | BU79: - | BV79: 0 | BW79: 2 | BX79: Facebook | BY79: hin | BZ79: eng | CA79: - | CB79: - | CC79: 0 | CD79: IFMIS | CE79: Integrated Financial Management Information System | CF79: D | CG79: T | CH79: 1 | CI79: 2007 | CJ79: C+L | CK79: 1 | CL79: 1 | CM79: LDSW > MS SQL | CN79: Web | CO79: Mar 2010 | CP79: Public | CQ79: A | CR79: A | CS79: A | CT79: D | CU79: B | CV79: A | CW79: C+ | CX79: C+ | CY79: D+ | CZ79: NU | DA79: 2.944444444 | DB79: 2.75 | DC79: 68 | DD79: 67 | DF79: 1 | DG79: 125 | DH79: 0.3829 | DI79: 0.5359 | DJ79: 0.1102 | DK79: 0.5025 | DL79: SAR | DQ79: India | DR79: 6 | DS79: 2 | DT79: 2 | DU79: 2 | DW79: 6 | DX79: 2 | DY79: 1 | DZ79: 3 | EC79: 21 | ED79: 80.76923077 | EE79: A | EG79: 77 | EH79: India | EI79: IND | EJ79: 2010 | EK79: 32.7 | EL79: 2010 | EM79: 29.8 | EN79: 405967.8709 | EO79: 369964.6041 | ER79: DAD
A80: 78 | C80: Indonesia | D80: LMIC | E80: 242325.638 | F80: 712737.2119 | G80: 2940 | H80: http://www.depkeu.go.id | I80: Ministry of Finance of Republic of Indonesia | J80: 2 | K80: http://www.depkeu.go.id/Ind/others/InformasiPublik/default.asp | L80: 2 | M80: http://www.span.depkeu.go.id | N80: 1 | O80: - | P80: 0 | Q80: - | R80: 0 | S80: 0 | T80: - | U80: 1 | V80: 1 | W80: 0 | X80: - | Y80: 0 | Z80: - | AA80: 1 | AB80: 0 | AC80: 2012 | AD80: 1 | AE80: 1 | AF80: 5 | AG80: 2010 | AH80: 0 | AJ80: - | AK80: 1 | AL80: 4 | AM80: 1 | AN80: 2010 | AO80: 1 | AP80: 1 | AQ80: 2005 | AR80: 0 | AS80: 0 | AT80: 1 | AU80: 0 | AV80: 0 | AW80: 1 | AX80: 1 | AY80: 1 | AZ80: 1 | BA80: 1 | BB80: 1 | BC80: http://www.lkpp.go.id/v3/ | BD80: 1 | BE80: http://satupemerintah.net | BF80: 0 | BG80: - | BH80: 1 | BI80: http://www.sjdih.depkeu.go.id/fullText/2011/238~PMK.05~2011Per.HTM | BJ80: 0 | BK80: http://www.bps.go.id | BL80: Statistics Indonesia | BM80: http://www.bi.go.id | BN80: Bank Indonesia | BO80: - | BP80: 0 | BQ80: - | BR80: 1 | BS80: http://www.depkeu.go.id/Ind/Organization/?prof=tupoksi | BT80: 0 | BU80: - | BV80: 1 | BW80: 3 | BX80: - | BY80: ind | BZ80: eng | CA80: - | CB80: - | CC80: 0 | CD80: SPAN | CE80: Sistem Perbendaharaan dan Anggaran Negara / State Treasury and Budgetary System | CF80: C | CG80: F | CH80: 3 | CI80: 2013 | CJ80: C+L | CK80: 1 | CL80: 2 | CM80: Oracle | CN80: Web | CO80: Sep 2011 | CP80: Draft | CQ80: X | CR80: X | CS80: X | CT80: X | CU80: X | CV80: X | CW80: X | CX80: X | CY80: X | CZ80: X | DA80: 2.75 | DB80: 2.64516129 | DC80: 62 | DD80: 51 | DE80: 1 | DF80: 1 | DG80: 97 | DH80: 0.4949 | DI80: 0.4967 | DJ80: 0.1897 | DK80: 0.7982 | DL80: EAP | DO80: APEC | DQ80: Indonesia | DR80: 4 | DS80: 2 | DU80: 2 | DW80: 0 | EB80: 2013-05-02 | EC80: 14 | ED80: 53.84615385 | EE80: B | EG80: 78 | EH80: Indonesia | EI80: IDN | EJ80: 2010 | EK80: 18.1 | EL80: 2012 | EM80: 12 | EN80: 43860.94048 | EO80: 29079.07656 | ER80: DAD
A81: 79 | C81: Iran | D81: UMIC | E81: 74798.599 | F81: 331000 | G81: 4425.216574 | H81: http://www.mefa.gov.ir | I81: Iran Ministry of Economy and Finance Affairs | J81: 1 | K81: http://www.mefa.gov.ir/Portal/Home/ShowPage.aspx?Object=EVENT&CategoryID=105f2ea5-2e88-47bd-acfa-8bfe5731d984&WebPartID=066c8d89-97db-4f84-8440-1141e6724fea | L81: 0 | M81: - | N81: 1 | O81: - | P81: 0 | Q81: - | R81: 0 | S81: 0 | T81: - | U81: 0 | V81: 0 | W81: 0 | X81: - | Y81: 0 | Z81: - | AA81: 0 | AC81: - | AD81: 0 | AF81: - | AG81: - | AH81: 0 | AJ81: - | AK81: 0 | AN81: - | AO81: 0 | AQ81: - | AR81: 0 | AS81: 0 | AT81: 0 | AU81: 0 | AV81: 0 | AW81: 0 | AX81: 0 | AY81: 0 | AZ81: 0 | BA81: 0 | BB81: 0 | BC81: - | BD81: 0 | BE81: - | BF81: 0 | BG81: - | BH81: 0 | BI81: - | BJ81: 0 | BK81: http://www.sci.org.ir | BL81: Statistics Center of Iran | BM81: http://www.cbi.ir | BN81: The Central Bank of the Islamic Republic of Iran | BO81: - | BP81: 0 | BQ81: - | BR81: 1 | BS81: http://www.mefa.gov.ir/Portal/Home/Default.aspx?CategoryID=89dbf90c-b08e-4dc8-80b6-aef25da59441 | BT81: 0 | BU81: - | BV81: 0 | BW81: 1 | BX81: - | BY81: per | BZ81: eng | CA81: - | CB81: - | CC81: 0 | CD81: - | CE81: - | CF81: C | CG81: - | CH81: - | CI81: - | CJ81: - | CK81: - | CL81: - | CM81: - | CN81: - | CO81: - | CP81: - | CQ81: - | CR81: - | CS81: - | CT81: - | CU81: - | CV81: - | CW81: - | CX81: - | CY81: - | CZ81: - | DA81: - | DB81: - | DC81: - | DD81: - | DF81: 0 | DG81: 100 | DH81: 0.4876 | DI81: 0.4902 | DJ81: 0.2638 | DK81: 0.7089 | DL81: MNA | DQ81: Iran | DR81: 0 | DW81: 0 | EC81: 2 | ED81: 7.692307692 | EE81: D | EG81: 79 | EH81: Iran | EI81: IRN | EJ81: 2005 | EK81: <2 | EN81: 1085
A82: 80 | C82: Iraq | D82: LMIC | E82: 32961.959 | F82: 86976.46199 | G82: 2640 | H82: http://www.mof.gov.iq | I82: Iraq Ministry of Finance | J82: 2 | K82: http://www.mof.gov.iq/default.aspx | L82: 1 | M82: http://imagebank.worldbank.org/servlet/WDSContentServer/IW3P/IB/2012/05/03/000356161_20120503031547/Rendered/PDF/684930PUB0EPI007926B009780821395295.pdf | N82: 1 | O82: - | P82: 0 | Q82: - | R82: 0 | S82: 0 | T82: - | U82: 1 | V82: 0 | W82: 0 | X82: - | Y82: 0 | Z82: - | AA82: 1 | AB82: 1 | AC82: 2007 | AD82: 0 | AF82: - | AG82: - | AH82: 0 | AJ82: - | AK82: 0 | AN82: - | AO82: 0 | AQ82: - | AR82: 0 | AS82: 0 | AT82: 0 | AU82: 0 | AV82: 0 | AW82: 0 | AX82: 0 | AY82: 0 | AZ82: 0 | BA82: 0 | BB82: 0 | BC82: - | BD82: 0 | BE82: - | BF82: 0 | BG82: - | BH82: 0 | BI82: - | BJ82: 0 | BK82: http://cosit.gov.iq | BL82: Central Organization for Statistics | BM82: http://www.cbi.iq | BN82: Central Bank of Iraq | BO82: - | BP82: 0 | BQ82: - | BR82: 0 | BS82: - | BT82: 0 | BU82: - | BV82: 1 | BW82: 1 | BX82: - | BY82: ara | BZ82: - | CA82: - | CB82: - | CC82: - | CD82: IFMIS | CE82: Iraq Financial Management Information System | CF82: C | CG82: F | CH82: 3 | CI82: 2014 | CJ82: C | CK82: 1 | CL82: 2 | CM82: FreeBalance | CN82: Web | CO82: Jun 2008 | CP82: Final | CQ82: X | CR82: X | CS82: X | CT82: X | CU82: X | CV82: X | CW82: X | CX82: X | CY82: X | CZ82: X | DA82: 1.35 | DB82: 1.6 | DC82: 4 | DD82: 0 | DF82: 1 | DG82: 137 | DH82: 0.3409 | DI82: 0.2876 | DJ82: 0.1201 | DK82: 0.6151 | DL82: MNA | DP82: F | DQ82: Iraq | DR82: 0 | DW82: 0 | EC82: 7 | ED82: 26.92307692 | EE82: C | EG82: 80 | EH82: Iraq | EI82: IRQ | EJ82: 2007 | EK82: 2.8 | EL82: 2007 | EM82: 22.9 | EN82: 922.934852 | EO82: 7548.288611 | ER82: DAD
A83: 81 | C83: Ireland | D83: HIC | E83: 4487 | F83: 179152.6146 | G83: 39930 | H83: http://www.finance.gov.ie | I83: Ireland Department of Finance | J83: 2 | K83: http://budget.gov.ie/budgets/2013/2013.aspx | L83: 1 | M83: http://www.finance.gov.ie/documents/publications/other/mifpireport.pdf | N83: 1 | O83: - | P83: 1 | Q83: http://www.irelandstat.gov.ie | R83: 0 | S83: 0 | T83: - | U83: 2 | V83: 1 | W83: 1 | X83: http://budget.gov.ie/budgets/2013/Documents/Budget%202013%20Leaflet.pdf | Y83: 1 | Z83: http://govacc.per.gov.ie/accounting/ | AA83: 1 | AB83: 1 | AC83: 1996 | AD83: 1 | AE83: 1 | AF83: 5 | AG83: 2000 | AH83: 1 | AI83: 1 | AJ83: 2004 | AK83: 1 | AL83: 2 | AM83: 1 | AN83: 1996 | AO83: 1 | AP83: 1 | AQ83: 1996 | AR83: 1 | AS83: 1 | AT83: 0 | AU83: 0 | AV83: 1 | AW83: 1 | AX83: 1 | AY83: 0 | AZ83: 1 | BA83: 1 | BB83: 1 | BC83: http://www.procurement.ie/ | BD83: 1 | BE83: http://www.statcentral.ie | BF83: 0 | BG83: - | BH83: 0 | BI83: - | BJ83: 2 | BK83: http://www.cso.ie | BL83: Ireland Central Statistics Office | BM83: http://www.centralbank.ie | BN83: Central Bank and Financial Services Authority of Ireland | BO83: http://databank.per.gov.ie/# | BP83: 0 | BQ83: - | BR83: 1 | BS83: http://per.gov.ie/organisation-chart/ | BT83: 2 | BU83: GFS + ESA 95 | BV83: 0 | BW83: 2 | BX83: - | BY83: eng | BZ83: irs | CA83: - | CB83: - | CC83: 0 | CD83: FMIS | CE83: Financial Management Information System | CF83: D | CG83: F | CH83: 1 | CI83: 2005 | CJ83: C+L | CK83: 1 | CL83: 2 | CM83: UNIT4 > Agresso | CN83: Web | CO83: - | CP83: - | CQ83: - | CR83: - | CS83: - | CT83: - | CU83: - | CV83: - | CW83: - | CX83: - | CY83: - | CZ83: - | DA83: - | DB83: - | DC83: - | DD83: - | DE83: 0 | DF83: 1 | DG83: 34 | DH83: 0.7149 | DI83: 0.5359 | DJ83: 0.6553 | DK83: 0.9535 | DM83: EU | DN83: OECD | DQ83: Ireland | DR83: 1 | DS83: 1 | DW83: 0 | EB83: 2013-05-03 | EC83: 20 | ED83: 76.92307692 | EE83: A | EG83: 81 | EH83: Ireland | EI83: IRL
A84: 82 | C84: Israel | D84: HIC | E84: 7765.7 | F84: 224684.2182 | G84: 28930 | H84: http://www.mof.gov.il | I84: Israel Ministry of Finance | J84: 2 | K84: http://www.mof.gov.il/BudgetSite/Pages/BudgetSiteHP.aspx | L84: 1 | M84: http://www.ctg.albany.edu/publications/reports/proi_case_merkava?chapter=4&section=2 | N84: 1 | O84: - | P84: 0 | Q84: - | R84: 0 | S84: 0 | T84: - | U84: 1 | V84: 1 | W84: 0 | X84: - | Y84: 1 | Z84: http://www.ag.mof.gov.il/AccountantGeneral/AccountantGeneral/AccountantGeneralTopNav/AGSubjects/moneyinformation/Report2011 | AA84: 1 | AB84: 1 | AC84: 1996 | AD84: 1 | AE84: 0 | AF84: 3 | AG84: 2009 | AH84: 0 | AJ84: - | AK84: 1 | AL84: 2 | AM84: 1 | AN84: 1996 | AO84: 0 | AQ84: - | AR84: 1 | AS84: 1 | AT84: 0 | AU84: 0 | AV84: 0 | AW84: 1 | AX84: 1 | AY84: 0 | AZ84: 1 | BA84: 1 | BB84: 1 | BC84: http://vehicle.mof.gov.il/Mof/Rechev/MofRechevTopNav/MofRechevBuy/MofRechevLastBuy | BD84: 1 | BE84: http://www.data.gov.il | BF84: 0 | BG84: - | BH84: 0 | BI84: - | BJ84: 1 | BK84: http://www.cbs.gov.il | BL84: Israel Central Bureau of Statistics | BM84: http://www.bankisrael.gov.il | BN84: Bank of Israel | BO84: - | BP84: 0 | BQ84: - | BR84: 1 | BS84: http://www.mof.gov.il/ABOUT/Pages/AboutPage.aspx | BT84: 0 | BU84: National laws and regulations | BV84: 0 | BW84: 1 | BX84: Facebook, Linkedin, Twitter, Youtube | BY84: heb | BZ84: eng | CA84: - | CB84: - | CC84: 0 | CD84: MERKAVA | CE84: Financial Management Information System | CF84: D | CG84: F | CH84: 1 | CI84: 2010 | CJ84: C+L | CK84: 1 | CL84: 2 | CM84: SAP | CN84: Web | CO84: - | CP84: - | CQ84: - | CR84: - | CS84: - | CT84: - | CU84: - | CV84: - | CW84: - | CX84: - | CY84: - | CZ84: - | DA84: - | DB84: - | DC84: - | DD84: - | DE84: 1 | DF84: 1 | DG84: 16 | DH84: 0.81 | DI84: 0.8497 | DJ84: 0.6859 | DK84: 0.8945 | DL84: MNA | DN84: OECD | DQ84: Israel | DR84: 4 | DS84: 1 | DT84: 1 | DU84: 1 | DV84: 1 | DW84: 0 | EC84: 12 | ED84: 46.15384615 | EE84: C | EG84: 82 | EH84: Israel | EI84: ISR
A85: 83 | C85: Italy | D85: HIC | E85: 60770 | F85: 2144710.811 | G85: 35290 | H85: http://www.mef.gov.it | I85: Ministry of Economy and Finance | J85: 2 | K85: http://www.tesoro.it/doc-finanza-pubblica/ | L85: 2 | M85: http://www.rgs.mef.gov.it/ENGLISH-VE/SIOPE1 | N85: 1 | O85: - | P85: 0 | Q85: - | R85: 0 | S85: 0 | T85: - | U85: 2 | V85: 1 | W85: 0 | X85: - | Y85: 0 | Z85: - | AA85: 1 | AB85: 1 | AC85: 1998 | AD85: 1 | AE85: 1 | AF85: 3 | AG85: 1998 | AH85: 0 | AJ85: - | AK85: 1 | AL85: 4 | AM85: 1 | AN85: 2007 | AO85: 0 | AQ85: - | AR85: 1 | AS85: 1 | AT85: 0 | AU85: 0 | AV85: 0 | AW85: 1 | AX85: 0 | AY85: 1 | AZ85: 1 | BA85: 1 | BB85: 1 | BC85: http://www.peppol.eu/ | BD85: 1 | BE85: http://www.dati.gov.it/ | BF85: 0 | BG85: - | BH85: 1 | BI85: http://www.rgs.mef.gov.it/VERSIONE-I/RGS-sul-te/ | BJ85: 0 | BK85: http://www.istat.it | BL85: Italy National Statistical Institute | BM85: http://www.bancaditalia.it | BN85: Bank of Italy | BO85: - | BP85: 1 | BQ85: http://legislationline.org/topics/topic/3 | BR85: 1 | BS85: http://www.mef.gov.it/ministero/di-piu-mef/funzioni-organizzazione.asp | BT85: 0 | BU85: - | BV85: 0 | BW85: 3 | BX85: - | BY85: ita | BZ85: eng | CA85: - | CB85: - | CC85: 0 | CD85: SIOPE | CE85: Sistema Informativo sulle Operazioni degli enti Pubblici / Information System on the Operations of Government Bodies | CF85: D | CG85: T | CH85: 1 | CI85: 2006 | CJ85: C | CK85: 1 | CL85: 2 | CM85: SAP | CN85: Web | CO85: - | CP85: - | CQ85: - | CR85: - | CS85: - | CT85: - | CU85: - | CV85: - | CW85: - | CX85: - | CY85: - | CZ85: - | DA85: - | DB85: - | DC85: 60 | DD85: 58 | DE85: 1 | DF85: 2 | DG85: 32 | DH85: 0.719 | DI85: 0.5752 | DJ85: 0.6697 | DK85: 0.912 | DM85: EU | DN85: OECD | DQ85: Italy | DR85: 9 | DS85: 2 | DT85: 3 | DU85: 3 | DV85: 1 | DW85: 8 | DX85: 3 | DZ85: 5 | EC85: 14 | ED85: 53.84615385 | EE85: B | EG85: 83 | EH85: Italy | EI85: ITA
A86: 84 | C86: Jamaica | D86: UMIC | E86: 2709.3 | F86: 14440 | G86: 5329.789983 | H86: http://www.mof.gov.jm | I86: Jamaica Ministry of Finance and Planning | J86: 2 | K86: http://www.mof.gov.jm/budget | L86: 2 | M86: http://www.fsl.org.jm/systems/financial-management-information-system | N86: 1 | O86: - | P86: 0 | Q86: - | R86: 0 | S86: 0 | T86: - | U86: 1 | V86: 1 | W86: 0 | X86: - | Y86: 0 | Z86: - | AA86: 1 | AB86: 1 | AC86: 2004 | AD86: 0 | AF86: - | AG86: - | AH86: 0 | AJ86: - | AK86: 0 | AN86: - | AO86: 0 | AQ86: - | AR86: 1 | AS86: 1 | AT86: 0 | AU86: 0 | AV86: 0 | AW86: 1 | AX86: 1 | AY86: 0 | AZ86: 1 | BA86: 0 | BB86: 0 | BC86: - | BD86: 0 | BE86: - | BF86: 0 | BG86: - | BH86: 0 | BI86: - | BJ86: 0 | BK86: http://www.statinja.com | BL86: Statistical Institute of Jamaica | BM86: http://www.boj.org.jm | BN86: Bank of Jamaica | BO86: - | BP86: 0 | BQ86: - | BR86: 0 | BS86: - | BT86: 0 | BU86: - | BV86: 0 | BW86: 1 | BX86: - | BY86: eng | BZ86: - | CA86: - | CB86: - | CC86: - | CD86: FMIS | CE86: Financial Management Information System | CF86: C | CG86: T | CH86: 1 | CI86: 2002 | CJ86: C+L | CK86: 2 | CL86: 1 | CM86: LDSW > Informix | CN86: CS | CO86: May 2007 | CP86: Public | CQ86: A | CR86: C | CS86: B | CT86: C+ | CU86: D+ | CV86: C | CW86: C+ | CX86: D+ | CY86: C+ | CZ86: C | DA86: 2.35 | DB86: 2.433333333 | DC86: - | DD86: - | DF86: 0 | DG86: 108 | DH86: 0.4552 | DI86: 0.3072 | DJ86: 0.2668 | DK86: 0.7916 | DL86: LCR | DQ86: Jamaica | DR86: 0 | DW86: 0 | EC86: 9 | ED86: 34.61538462 | EE86: C | EG86: 84 | EH86: Jamaica | EI86: JAM | EJ86: 2004 | EK86: <2 | EL86: 2010 | EM86: 17.6 | EO86: 476.8368
A87: 85 | C87: Japan | D87: HIC | E87: 127817.277 | F87: 5739473.834 | G87: 44900 | H87: http://www.mof.go.jp | I87: Ministry of Finance of Japan | J87: 2 | K87: http://www.mof.go.jp/budget/index.html | L87: 1 | M87: http://www.cao.go.jp/sasshin/koukyo-service/publication/110428/puroguramu_english.pdf | N87: 2 | O87: http://www.bb.mof.go.jp/YDS/search/YDSG010;jsessionid=JNCPISKP937B9E84FCULEPTFD60EI1QVF8V6KLEKFCE851LQOK8HBNAU44S020001C000000.yds_001 | P87: 1 | Q87: http://www.bb.mof.go.jp/hdocs/bxss010bh24.html | R87: 0 | S87: 0 | T87: - | U87: 2 | V87: 1 | W87: 0 | X87: - | Y87: 0 | Z87: - | AA87: 1 | AB87: 1 | AC87: 1998 | AD87: 1 | AE87: 0 | AF87: 5 | AG87: 2001 | AH87: 1 | AI87: 1 | AJ87: 2005 | AK87: 0 | AN87: - | AO87: 0 | AQ87: - | AR87: 1 | AS87: 1 | AT87: 1 | AU87: 0 | AV87: 0 | AW87: 1 | AX87: 1 | AY87: 0 | AZ87: 1 | BA87: 0 | BB87: 0 | BC87: - | BD87: 0 | BE87: - | BF87: 1 | BG87: http://www.hca.org.vn/su_kien/sk_HCA/toan_canh_CNTT/nam2011/hoithao_vio11/tranvannam.pdf | BH87: 0 | BI87: - | BJ87: 0 | BK87: http://www.stat.go.jp | BL87: Japan Statistics Bureau | BM87: http://www.boj.or.jp | BN87: Bank of Japan | BO87: - | BP87: 0 | BQ87: - | BR87: 1 | BS87: http://www.mof.go.jp/english/about_mof/index.html | BT87: 0 | BU87: - | BV87: 0 | BW87: 1 | BX87: Facebook, Google+, Twitter, Youtube | BY87: jpn | BZ87: eng | CA87: - | CB87: - | CC87: 0 | CD87: ADAMS | CE87: Governmental Accounting Affairs Data Communication Management Systems | CF87: C | CG87: T | CH87: 1 | CI87: 2009 | CJ87: C+L | CK87: 1 | CL87: 2 | CM87: SAP | CN87: Web | CO87: - | CP87: - | CQ87: - | CR87: - | CS87: - | CT87: - | CU87: - | CV87: - | CW87: - | CX87: - | CY87: - | CZ87: - | DA87: - | DB87: - | DC87: - | DD87: - | DF87: 1 | DG87: 18 | DH87: 0.8019 | DI87: 0.8627 | DJ87: 0.646 | DK87: 0.8969 | DL87: EAP | DN87: OECD | DO87: APEC | DQ87: Japan | DR87: 3 | DS87: 3 | DW87: 2 | DZ87: 2 | EC87: 14 | ED87: 53.84615385 | EE87: B | EG87: 85 | EH87: Japan | EI87: JPN
A88: 86 | C88: Jordan | D88: UMIC | E88: 6181 | F88: 27082.32506 | G88: 4380 | H88: http://www.mof.gov.jo | I88: Jordan Ministry of Finance | J88: 2 | K88: http://www.gbd.gov.jo | L88: 2 | M88: http://www.gfmis.gov.jo/ar | N88: 1 | O88: - | P88: 0 | Q88: - | R88: 0 | S88: 0 | T88: - | U88: 1 | V88: 1 | W88: 0 | X88: - | Y88: 0 | Z88: - | AA88: 1 | AB88: 1 | AC88: 2002 | AD88: 1 | AE88: 1 | AF88: 3 | AG88: 2008 | AH88: 0 | AJ88: - | AK88: 1 | AL88: 2 | AM88: 1 | AN88: 2002 | AO88: 0 | AQ88: - | AR88: 1 | AS88: 1 | AT88: 0 | AU88: 0 | AV88: 0 | AW88: 1 | AX88: 1 | AY88: 0 | AZ88: 1 | BA88: 0 | BB88: 0 | BC88: - | BD88: 1 | BE88: http://www.jordan.gov.jo/wps/portal | BF88: 0 | BG88: - | BH88: 0 | BI88: - | BJ88: 0 | BK88: http://www.dos.gov.jo | BL88: Jordan Department of Statistics | BM88: http://www.cbj.gov.jo | BN88: Central Bank of Jordan | BO88: - | BP88: 0 | BQ88: - | BR88: 1 | BS88: http://www.mof.gov.jo/ar/Pages.php?page=OpPage&id=32 | BT88: 0 | BU88: IMF Observance of Standards and Codes (ROSC) | BV88: 0 | BW88: 1 | BX88: - | BY88: ara | BZ88: eng | CA88: - | CB88: - | CC88: 0 | CD88: GFMIS | CE88: Government Financial Management Information System | CF88: C | CG88: F | CH88: 3 | CI88: 2013 | CJ88: C+L | CK88: 1 | CL88: 2 | CM88: Oracle | CN88: Web | CO88: Nov 2011 | CP88: Draft | CQ88: X | CR88: X | CS88: X | CT88: X | CU88: X | CV88: X | CW88: X | CX88: X | CY88: X | CZ88: X | DA88: 2.65 | DB88: 2.6 | DC88: 57 | DD88: 50 | DE88: 1 | DF88: 2 | DG88: 98 | DH88: 0.4884 | DI88: 0.3922 | DJ88: 0.2717 | DK88: 0.8013 | DL88: MNA | DQ88: Jordan | DR88: 1 | DT88: 1 | DW88: 0 | EC88: 13 | ED88: 50 | EE88: B | EG88: 86 | EH88: Jordan | EI88: JOR | EJ88: 2010 | EK88: <2 | EL88: 2008 | EM88: 13.3 | EN88: 7 | EO88: 822.073
A89: 87 | C89: Kazakhstan | D89: UMIC | E89: 16558.459 | F89: 136727.2116 | G89: 8260 | H89: http://www.minfin.kz | I89: Kazakhstan Ministry of Finance | J89: 2 | K89: http://www.minfin.gov.kz/irj/portal/anonymous?NavigationTarget=ROLES://portal_content/prototype_mf/roles/com.saprun.mf_anonymous_roles/com.saprun.mf_anonymous_en/Information_about_budget_performance/State-budget-of-the-Republic-of-Kazakhstan/Consolidated-budget | L89: 1 | M89: http://www-wds.worldbank.org/external/default/WDSContentServer/WDSP/IB/2003/06/27/000112742_20030627113447/Rendered/PDF/257110ICR0.pdf | N89: 1 | O89: - | P89: 1 | Q89: http://www.minfin.gov.kz/irj/portal/anonymous?NavigationTarget=ROLES://portal_content/prototype_mf/roles/com.saprun.mf_anonymous_roles/com.saprun.mf_anonymous_kk/info_for_grajdan/for_abkzmasa/for_bakzmasa | R89: 0 | S89: 0 | T89: - | U89: 1 | V89: 1 | W89: 0 | X89: - | Y89: 0 | Z89: - | AA89: 1 | AB89: 1 | AC89: 2006 | AD89: 1 | AE89: 0 | AF89: 3 | AG89: 2010 | AH89: 0 | AJ89: - | AK89: 1 | AL89: 2 | AM89: 1 | AN89: 2006 | AO89: 0 | AQ89: - | AR89: 1 | AS89: 1 | AT89: 1 | AU89: 0 | AV89: 0 | AW89: 1 | AX89: 1 | AY89: 1 | AZ89: 1 | BA89: 0 | BB89: 0 | BC89: - | BD89: 0 | BE89: - | BF89: 0 | BG89: - | BH89: 1 | BI89: http://www.minfin.gov.kz/irj/portal/anonymous?NavigationTarget=ROLES://portal_content/prototype_mf/roles/com.saprun.mf_anonymous_roles/com.saprun.mf_anonymous_en/Information_about_budget_performance/State-budget-of-the-Republic-of-Kazakhstan/Local-budgets | BJ89: 0 | BK89: http://www.stat.kz | BL89: Kazakhstan Agency of Statistics | BM89: http://www.nationalbank.kz | BN89: National Bank of Kazakhstan | BO89: - | BP89: 0 | BQ89: - | BR89: 1 | BS89: http://www.minfin.gov.kz/irj/portal/anonymous?NavigationTarget=ROLES://portal_content/prototype_mf/roles/com.saprun.mf_anonymous_roles/com.saprun.mf_anonymous_en/about_ministr/reg_min | BT89: 0 | BU89: IFRSPS International Public Sector Financial Reporting | BV89: 0 | BW89: 1 | BX89: Blog of the Minister | BY89: kaz | BZ89: rus | CA89: eng | CB89: - | CC89: 0 | CD89: Treasury | CE89: Treasury System | CF89: C | CG89: T | CH89: 1 | CI89: 2002 | CJ89: C+L | CK89: 1 | CL89: 2 | CM89: Oracle | CN89: Web | CO89: Jun 2009 | CP89: Final | CQ89: X | CR89: X | CS89: X | CT89: X | CU89: X | CV89: X | CW89: X | CX89: X | CY89: X | CZ89: X | DA89: 2.777777778 | DB89: 3.053571429 | DC89: 48 | DD89: 38 | DF89: 1 | DG89: 38 | DH89: 0.6844 | DI89: 0.7843 | DJ89: 0.3555 | DK89: 0.9134 | DL89: ECA | DQ89: Kazakhstan | DR89: 0 | DW89: 0 | EC89: 12 | ED89: 46.15384615 | EE89: C | EG89: 87 | EH89: Kazakhstan | EI89: KAZ | EJ89: 2009 | EK89: <2 | EL89: 2011 | EM89: 5.3 | EN89: 18 | EO89: 877.598327 | ER89: DAD
A90: 88 | C90: Kenya | D90: LIC | E90: 41609.728 | F90: 34103.59397 | G90: 820 | H90: http://www.treasury.go.ke | I90: Kenya Ministry of Finance and Planning | J90: 2 | K90: http://www.treasury.go.ke/index.php?option=com_docman&Itemid=86 | L90: 2 | M90: http://www.ifmis.go.ke | N90: 1 | O90: - | P90: 0 | Q90: - | R90: 0 | S90: 0 | T90: - | U90: 1 | V90: 1 | W90: 0 | X90: - | Y90: 1 | Z90: http://budget.treasury.go.ke/ | AA90: 1 | AB90: 1 | AC90: 2008 | AD90: 1 | AE90: 0 | AF90: 3 | AG90: 2009 | AH90: 0 | AJ90: - | AK90: 0 | AN90: - | AO90: 1 | AP90: 1 | AQ90: 2008 | AR90: 1 | AS90: 1 | AT90: 0 | AU90: 0 | AV90: 0 | AW90: 1 | AX90: 1 | AY90: 0 | AZ90: 1 | BA90: 0 | BB90: 0 | BC90: - | BD90: 1 | BE90: http://opendata.go.ke | BF90: 0 | BG90: - | BH90: 1 | BI90: http://www.treasury.go.ke/index.php?option=com_docman&task=cat_view&gid=110&Itemid=86 | BJ90: 0 | BK90: http://www.cbs.go.ke | BL90: Kenya National Bureau of Statistics | BM90: http://www.centralbank.go.ke | BN90: Central Bank of Kenya | BO90: - | BP90: 0 | BQ90: - | BR90: 0 | BS90: - | BT90: 1 | BU90: - | BV90: 0 | BW90: 3 | BX90: - | BY90: eng | BZ90: - | CA90: - | CB90: - | CC90: - | CD90: IFMIS | CE90: Integrated Financial Management Information System | CF90: C | CG90: F | CH90: 2 | CI90: 2011 | CJ90: C | CK90: 5 | CL90: 2 | CM90: Oracle | CN90: Web | CO90: Mar 2009 | CP90: Public | CQ90: C | CR90: B | CS90: B | CT90: C+ | CU90: C+ | CV90: D | CW90: C+ | CX90: D+ | CY90: C+ | CZ90: D+ | DA90: 2.2 | DB90: 2.35483871 | DC90: 49 | DD90: 49 | DE90: 1 | DF90: 2 | DG90: 119 | DH90: 0.4212 | DI90: 0.4314 | DJ90: 0.1212 | DK90: 0.7109 | DL90: AFR | DQ90: Kenya | DR90: 0 | DW90: 0 | EC90: 13 | ED90: 50 | EE90: B | EG90: 88 | EH90: Kenya | EI90: KEN | EJ90: 2005 | EK90: 43.4 | EL90: 2005 | EM90: 45.9 | EN90: 18058.62195 | EO90: 19098.86515 | ER90: DAD
A91: 89 | C91: Kiribati | D91: LMIC | E91: 101.093 | F91: 204.8496856 | G91: 2030 | H91: http://www.mfed.gov.ki | I91: Ministry of Finance and Economic Development | J91: 2 | K91: http://www.mfed.gov.ki/?page_id=61 | L91: 1 | M91: http://www2.adb.org/Documents/TARs/KIR/43418-012-kir-tar.pdf | N91: 1 | O91: - | P91: 0 | Q91: - | R91: 0 | S91: 0 | T91: - | U91: 0 | V91: 0 | W91: 0 | X91: - | Y91: 0 | Z91: - | AA91: 1 | AB91: 0 | AC91: 2010 | AD91: 0 | AF91: - | AG91: - | AH91: 0 | AJ91: - | AK91: 0 | AN91: - | AO91: 0 | AQ91: - | AR91: 1 | AS91: 1 | AT91: 0 | AU91: 0 | AV91: 0 | AW91: 0 | AX91: 0 | AY91: 0 | AZ91: 0 | BA91: 0 | BB91: 0 | BC91: - | BD91: 0 | BE91: - | BF91: 0 | BG91: - | BH91: 0 | BI91: - | BJ91: 1 | BK91: http://www.spc.int/prism/Country/KI/Stats | BL91: Kiribati Statistics Office | BM91: http://www.anz.com/kiribati | BN91: Bank of Kiribati | BO91: - | BP91: 0 | BQ91: - | BR91: 0 | BS91: - | BT91: 0 | BU91: - | BV91: 0 | BW91: 1 | BX91: - | BY91: eng | BZ91: - | CA91: - | CB91: - | CC91: - | CD91: FMIS | CE91: Financial Management Information System | CF91: C | CG91: T | CH91: 1 | CI91: 2001 | CJ91: C | CK91: 1 | CL91: 2 | CM91: Attaché | CN91: Web | CO91: Dec 2009 | CP91: Draft | CQ91: X | CR91: X | CS91: X | CT91: X | CU91: X | CV91: X | CW91: X | CX91: X | CY91: X | CZ91: X | DA91: 1.5 | DB91: 1.827586207 | DC91: - | DD91: - | DF91: - | DG91: 149 | DH91: 0.2998 | DI91: 0.0654 | DJ91: 0.0469 | DK91: 0.7871 | DL91: EAP | DP91: F | DQ91: Kiribati | DR91: 0 | DW91: 0 | EC91: 5 | ED91: 19.23076923 | EE91: D | EG91: 89 | EH91: Kiribati | EI91: KIR
A92: 90 | C92: Korea, Dem. Rep. | D92: LIC | E92: 24451.285 | F92: - | G92: - | H92: http://www.korea-dpr.com | I92: Ministry of Finance | J92: 0 | K92: - | L92: 0 | M92: - | N92: 0 | O92: - | P92: 0 | Q92: - | R92: 0 | S92: 0 | T92: - | U92: 0 | V92: 0 | W92: 0 | X92: - | Y92: 0 | Z92: - | AA92: 0 | AC92: - | AD92: 0 | AF92: - | AG92: - | AH92: 0 | AJ92: - | AK92: 0 | AN92: - | AO92: 0 | AQ92: - | AR92: 0 | AS92: 0 | AT92: 0 | AU92: 0 | AV92: 0 | AW92: 0 | AX92: 0 | AY92: 0 | AZ92: 0 | BA92: 0 | BB92: 0 | BC92: - | BD92: 0 | BE92: - | BF92: 0 | BG92: - | BH92: 0 | BI92: - | BJ92: 0 | BK92: - | BL92: Central Bureau of Statistics | BM92: - | BN92: Central Bank of the Democratic People's Republic of Korea | BO92: - | BP92: 0 | BQ92: - | BR92: 0 | BS92: - | BT92: 0 | BU92: - | BV92: 0 | BW92: 0 | BX92: - | BY92: kor | BZ92: eng | CA92: - | CB92: - | CC92: 0 | CD92: - | CE92: - | CF92: C | CG92: - | CH92: - | CI92: - | CJ92: - | CK92: - | CL92: - | CM92: - | CN92: - | CO92: - | CP92: - | CQ92: - | CR92: - | CS92: - | CT92: - | CU92: - | CV92: - | CW92: - | CX92: - | CY92: - | CZ92: - | DA92: - | DB92: - | DC92: - | DD92: - | DF92: - | DG92: 131 | DH92: 0.3616 | DI92: 0.1176 | DJ92: 0.0112 | DK92: 0.956 | DM92: OTH | DQ92: Korea, Dem. Rep. | DR92: 0 | DW92: 0 | EC92: 0 | ED92: 0 | EE92: D | EG92: 90 | EH92: Korea, Dem. Rep. | EI92: PRK
A93: 91 | C93: Korea, Rep. | D93: HIC | E93: 49779 | F93: 1038981.429 | G93: 20870 | H93: http://www.mosf.go.kr | I93: Ministry of Strategy and Finance of the Republic of Korea | J93: 2 | K93: http://www.mosf.go.kr/lib/lib02.jsp | L93: 2 | M93: https://www.digitalbrain.go.kr | N93: 3 | O93: http://www.mosf.go.kr/lib/lib01a.jsp | P93: 1 | Q93: https://www.digitalbrain.go.kr/kor/view/statis/statis03_01_01.jsp?code=DB0103 | R93: 1 | S93: 1 | T93: https://www.digitalbrain.go.kr/kor/view/statis/statis01_01_01.jsp?code=DB0101 | U93: 2 | V93: 1 | W93: 2 | X93: http://www.mosf.go.kr/policy/policy01_total.jsp?boardType=general&hdnBulletRunno=&cvbnPath=&sub_category=&hdnFlag=&cat=&hdnDiv=&hdnSubject=%EB%82%98%EB%9D%BC%EC%82%B4%EB%A6%BC&&skey=policy&actionType=list&hdnPage=4 | Y93: 1 | Z93: http://www.mosf.go.kr/_upload/bbs/79/attach/2010_statistics.pdf | AA93: 1 | AB93: 1 | AC93: 1991 | AD93: 1 | AE93: 1 | AF93: 5 | AG93: 2005 | AH93: 1 | AI93: 1 | AJ93: 1991 | AK93: 1 | AL93: 4 | AM93: 1 | AN93: 1991 | AO93: 1 | AP93: 1 | AQ93: 2003 | AR93: 1 | AS93: 1 | AT93: 1 | AU93: 1 | AV93: 1 | AW93: 1 | AX93: 1 | AY93: 1 | AZ93: 1 | BA93: 1 | BB93: 0 | BC93: - | BD93: 1 | BE93: http://www.data.go.kr | BF93: 2 | BG93: http://lofin.mopas.go.kr/lofin_intro/HojoIntro.jsp | BH93: 1 | BI93: https://www.digitalbrain.go.kr/kor/view/statis/statis03_03_01.jsp?code=DB010303 | BJ93: 0 | BK93: http://kostat.go.kr/portal/korea/index.action | BL93: Korea National Statistical Office | BM93: http://eng.bok.or.kr | BN93: Bank of Korea | BO93: - | BP93: 1 | BQ93: http://www.mosf.go.kr/open/open02a.jsp | BR93: 1 | BS93: http://www.mosf.go.kr/info/info03a.jsp | BT93: 2 | BU93: - | BV93: 1 | BW93: 3 | BX93: - | BY93: kor | BZ93: eng | CA93: - | CB93: - | CC93: 0 | CD93: DBAS | CE93: Digital Budget and Accounting System | CF93: C | CG93: F | CH93: 1 | CI93: 2007 | CJ93: C+L | CK93: 1 | CL93: 1 | CM93: LDSW > Oracle | CN93: Web | CO93: - | CP93: - | CQ93: - | CR93: - | CS93: - | CT93: - | CU93: - | CV93: - | CW93: - | CX93: - | CY93: - | CZ93: - | DA93: - | DB93: - | DC93: 75 | DD93: 71 | DE93: 1 | DF93: 3 | DG93: 1 | DH93: 0.9283 | DI93: 1 | DJ93: 0.8356 | DK93: 0.9494 | DL93: EAP | DN93: OECD | DO93: APEC | DQ93: Korea, Rep. | DR93: 7 | DS93: 1 | DU93: 6 | DW93: 0 | EB93: 2013-05-05 | EC93: 26 | ED93: 100 | EE93: A | EG93: 91 | EH93: Korea, Rep. | EI93: KOR
A94: 92 | C94: Kosovo | D94: LMIC | E94: 1794.303 | F94: 6321.68241 | G94: 3520 | H94: http://mf.rks-gov.net/fillimi.aspx | I94: Ministry of Finance | J94: 2 | K94: http://mf.rks-gov.net/fillimi.aspx | L94: 1 | M94: http://www.mfe-ks.org/old/Shqip/English/mefwww/departamentet/pmakroekonomike/PEFA/pefaangmakro.pdf | N94: 1 | O94: - | P94: 0 | Q94: - | R94: 0 | S94: 0 | T94: - | U94: 1 | V94: 1 | W94: 0 | X94: - | Y94: 1 | Z94: http://mf.rks-gov.net/en-us/ministriaefinancave/buxhetiirepublikessekosoves/buxhetiqendrore.aspx | AA94: 1 | AB94: 0 | AC94: 2009 | AD94: 1 | AE94: 0 | AF94: 3 | AG94: 2011 | AH94: 0 | AJ94: - | AK94: 1 | AL94: 2 | AM94: 0 | AN94: 2011 | AO94: 0 | AQ94: - | AR94: 1 | AS94: 1 | AT94: 0 | AU94: 0 | AV94: 0 | AW94: 1 | AX94: 1 | AY94: 1 | AZ94: 0 | BA94: 0 | BB94: 0 | BC94: - | BD94: 0 | BE94: - | BF94: 0 | BG94: - | BH94: 0 | BI94: - | BJ94: 0 | BK94: http://esk.rks-gov.net | BL94: Kosovo Agency of Statistics | BM94: http://www.bqk-kos.org | BN94: Central Bank of the Republic of Kosovo | BO94: - | BP94: 0 | BQ94: - | BR94: 0 | BS94: - | BT94: 0 | BU94: IFRS, http://mf.rks-gov.net/Zyrat/SekretariatiiKKRFse/StandardetNderkombetareteRaportimitFinanciar.aspx | BV94: 0 | BW94: 3 | BX94: - | BY94: alb | BZ94: ser | CA94: eng | CB94: - | CC94: 0 | CD94: FMIS | CE94: Financial Management Information System | CF94: C | CG94: T | CH94: 1 | CI94: 2006 | CJ94: C | CK94: 1 | CL94: 2 | CM94: FreeBalance | CN94: CS | CO94: May 2009 | CP94: Public | CQ94: A | CR94: B | CS94: B | CT94: C | CU94: B+ | CV94: D | CW94: B+ | CX94: A | CY94: B | CZ94: D | DA94: 2.8 | DB94: 2.774193548 | DC94: - | DD94: - | DF94: 2 | DG94: - | DH94: - | DI94: - | DJ94: - | DK94: - | DL94: ECA | DP94: F | DQ94: Kosovo | DR94: 0 | DW94: 0 | EC94: 10 | ED94: 38.46153846 | EE94: C | EG94: 92 | EH94: Kosovo | EI94: KSV | EL94: 2009 | EM94: 34.5 | EO94: 619.034535 | EQ94: 2009
A95: 93 | C95: Kuwait | D95: HIC | E95: 2818.042 | F95: 176600 | G95: 62667.62525 | H95: http://www.mof.gov.kw | I95: Kuwait Ministry of Finance | J95: 2 | K95: http://www.mof.gov.kw/Budget/ministryinfo.aspx | L95: 0 | M95: - | N95: 1 | O95: - | P95: 0 | Q95: - | R95: 0 | S95: 0 | T95: - | U95: 1 | V95: 1 | W95: 1 | X95: http://www.mof.gov.kw/MOFServices/MOFCitizenServDetail.aspx#CitizenServ6 | Y95: 0 | Z95: - | AA95: 1 | AB95: 0 | AC95: 2008 | AD95: 0 | AF95: - | AG95: - | AH95: 0 | AJ95: - | AK95: 0 | AN95: - | AO95: 0 | AQ95: - | AR95: 1 | AS95: 1 | AT95: 0 | AU95: 0 | AV95: 0 | AW95: 1 | AX95: 0 | AY95: 0 | AZ95: 0 | BA95: 0 | BB95: 1 | BC95: http://www.ctc.gov.kw | BD95: 0 | BE95: - | BF95: 0 | BG95: - | BH95: 0 | BI95: - | BJ95: 0 | BK95: http://www.csb.gov.kw | BL95: Central Statistical Bureau | BM95: http://www.cbk.gov.kw | BN95: Central Bank of Kuwait | BO95: http://www.e.gov.kw/sites/KGOArabic/portal/Pages/PortalMain.aspx | BP95: 0 | BQ95: - | BR95: 1 | BS95: http://en.mof.gov.kw/MOFInfo/MOFStrcture/Default.aspx | BT95: 2 | BU95: GFS published by CSB; National laws and regulations | BV95: 0 | BW95: 3 | BX95: Facebook, Twitter | BY95: ara | BZ95: eng | CA95: - | CB95: - | CC95: 0 | CD95: IFS | CE95: Integrated Financial System | CF95: C | CG95: F | CH95: 1 | CI95: 1997 | CJ95: C | CK95: 1 | CL95: 1 | CM95: LDSW > Oracle | CN95: Web | CO95: Aug 2010 | CP95: Final | CQ95: X | CR95: X | CS95: X | CT95: X | CU95: X | CV95: X | CW95: X | CX95: X | CY95: X | CZ95: X | DA95: 2.722222222 | DB95: 2.946428571 | DC95: - | DD95: - | DF95: 1 | DG95: 63 | DH95: 0.596 | DI95: 0.5817 | DJ95: 0.4179 | DK95: 0.7885 | DL95: MNA | DQ95: Kuwait | DR95: 0 | DW95: 0 | EC95: 7 | ED95: 26.92307692 | EE95: C | EG95: 93 | EH95: Kuwait | EI95: KWT
A96: 94 | C96: Kyrgyz Republic | D96: LIC | E96: 5507 | F96: 4865.627273 | G96: 880 | H96: http://www.minfin.kg | I96: Ministry of Finance of the Kyrgyz Republic | J96: 2 | K96: http://www.minfin.kg/index.php?option=com_content&view=section&id=7&Itemid=12 | L96: 2 | M96: http://www.kazna.gov.kg/index.php/modernizatsiya/isuk | N96: 2 | O96: http://budget.okmot.kg | P96: 1 | Q96: http://www.kazna.gov.kg | R96: 0 | S96: 0 | T96: - | U96: 1 | V96: 1 | W96: 2 | X96: http://map.okmot.kg | Y96: 1 | Z96: http://www.minfin.kg/index.php?option=com_content&view=article&id=1307:2012-05-21-03-06-19&catid=49:2010-10-05-10-26-01&Itemid=119 | AA96: 1 | AB96: 0 | AC96: 2010 | AD96: 1 | AE96: 0 | AF96: 3 | AG96: 2009 | AH96: 0 | AJ96: - | AK96: 1 | AL96: 2 | AM96: 0 | AN96: 2011 | AO96: 1 | AP96: 0 | AQ96: 2011 | AR96: 1 | AS96: 1 | AT96: 1 | AU96: 0 | AV96: 0 | AW96: 1 | AX96: 1 | AY96: 1 | AZ96: 0 | BA96: 1 | BB96: 1 | BC96: http://map.okmot.kg | BD96: 1 | BE96: http://budget.okmot.kg/en | BF96: 0 | BG96: - | BH96: 0 | BI96: - | BJ96: 3 | BK96: http://www.stat.kg | BL96: National Statistical Committee of the Kyrgyz Republic | BM96: http://www.nbkr.kg | BN96: National Bank of the Kyrgyz Republic | BO96: http://budget.okmot.kg | BP96: 1 | BQ96: http://budget.okmot.kg/en/instructions/index.html | BR96: 1 | BS96: http://www.minfin.kg/index.php?option=com_content&view=section&id=4&Itemid=11 | BT96: 2 | BU96: GFS 2001 (since 2007) + National laws and regulations | BV96: 1 | BW96: 3 | BX96: InfoSystem; MoF web site | BY96: kir | BZ96: rus | CA96: eng | CB96: - | CC96: 0 | CD96: TMIS | CE96: Treasury Management Information System | CF96: C | CG96: T | CH96: 3 | CI96: 2008 | CJ96: C+L | CK96: 1 | CL96: 1 | CM96: LDSW | CN96: Web | CO96: Dec 2009 | CP96: Public | CQ96: B | CR96: B | CS96: C | CT96: C+ | CU96: A | CV96: D | CW96: C+ | CX96: D+ | CY96: D+ | CZ96: D+ | DA96: 2.25 | DB96: 2.05 | DC96: 20 | DD96: 15 | DF96: 1 | DG96: 99 | DH96: 0.4879 | DI96: 0.4248 | DJ96: 0.1903 | DK96: 0.8485 | DL96: ECA | DQ96: Kyrgyz Republic | DR96: 0 | DW96: 0 | EB96: 2013-04-23 | EC96: 16 | ED96: 61.53846154 | EE96: B | EG96: 94 | EH96: Kyrgyz Republic | EI96: KGZ | EJ96: 2010 | EK96: 6.7 | EL96: 2010 | EM96: 33.7 | EN96: 368.969 | EO96: 1855.859 | EQ96: 2012 | ER96: DAD
A97: 95 | C97: Lao PDR | D97: LMIC | E97: 6288.037 | F97: 7104.790209 | G97: 1130 | H97: http://www.mof.gov.la | I97: Ministry of Finance | J97: 0 | K97: - | L97: 1 | M97: http://www-wds.worldbank.org/external/default/WDSContentServer/WDSP/IB/2012/03/22/000333038_20120322225943/Rendered/PDF/673470PJPR0v100edbyTACT0CTRNL0LEGES.pdf | N97: 0 | O97: - | P97: 0 | Q97: - | R97: 0 | S97: 0 | T97: - | U97: 1 | V97: 1 | W97: 0 | X97: - | Y97: 0 | Z97: - | AA97: 1 | AB97: 1 | AC97: 2006 | AD97: 0 | AF97: - | AG97: - | AH97: 0 | AJ97: - | AK97: 1 | AL97: 4 | AM97: 0 | AN97: 2000 | AO97: 1 | AP97: 0 | AQ97: 2010 | AR97: 0 | AS97: 0 | AT97: 0 | AU97: 0 | AV97: 0 | AW97: 0 | AX97: 1 | AY97: 1 | AZ97: 0 | BA97: 0 | BB97: 0 | BC97: - | BD97: 0 | BE97: - | BF97: 0 | BG97: - | BH97: 0 | BI97: - | BJ97: 0 | BK97: http://www.nsc.gov.la | BL97: Lao Statistics Agency | BM97: http://www.bol.gov.la | BN97: Bank of Lao PDR | BO97: - | BP97: 0 | BQ97: - | BR97: 1 | BS97: http://www.na.gov.la/docs/eng/laws/econ/State%20Budget%20%282006%29%20Eng.pdf | BT97: 0 | BU97: - | BV97: 0 | BW97: 3 | BX97: - | BY97: lao | BZ97: eng | CA97: - | CB97: - | CC97: 0 | CD97: GFIS | CE97: Government Financial Information System | CF97: C | CG97: T | CH97: 1 | CI97: 2011 | CJ97: C+L | CK97: 2 | CL97: 1 | CM97: LDSW > Oracle | CN97: Web | CO97: Jun 2010 | CP97: Public | CQ97: C | CR97: B | CS97: C | CT97: D+ | CU97: C | CV97: D | CW97: C+ | CX97: D+ | CY97: D+ | CZ97: C+ | DA97: 1.95 | DB97: 2 | DC97: - | DD97: - | DF97: 0 | DG97: 153 | DH97: 0.2935 | DI97: 0.2157 | DJ97: 0.0998 | DK97: 0.5651 | DL97: EAP | DQ97: Lao PDR | DR97: 1 | DT97: 1 | DW97: 0 | EB97: 2013-04-29 | EC97: 7 | ED97: 26.92307692 | EE97: C | EG97: 95 | EH97: Lao PDR | EI97: LAO | EJ97: 2008 | EK97: 33.9 | EL97: 2008 | EM97: 27.6 | EN97: 2131.644543 | EO97: 1735.498212 | EQ97: 2010
A98: 96 | C98: Latvia | D98: UMIC | E98: 2220 | F98: 27418.27866 | G98: 12350 | H98: http://www.fm.gov.lv | I98: Finansu Ministrija - Ministry of Finance, Latvia | J98: 2 | K98: http://www.fm.gov.lv/lv/sadalas/valsts_budzets/valsts_budzeta_analize_un_izpilde/ | L98: 2 | M98: http://www.kase.gov.lv/?object_id=449 | N98: 1 | O98: - | P98: 1 | Q98: http://www.fm.gov.lv/lv/sadalas/valsts_budzets/budzeta_paskaidrojumi/2012_gads/ | R98: 0 | S98: 0 | T98: - | U98: 1 | V98: 1 | W98: 0 | X98: - | Y98: 0 | Z98: - | AA98: 1 | AB98: 1 | AC98: 2003 | AD98: 1 | AE98: 0 | AF98: 5 | AG98: 2008 | AH98: 0 | AJ98: - | AK98: 1 | AL98: 2 | AM98: 1 | AN98: 1998 | AO98: 0 | AQ98: - | AR98: 1 | AS98: 1 | AT98: 0 | AU98: 0 | AV98: 0 | AW98: 1 | AX98: 1 | AY98: 1 | AZ98: 1 | BA98: 0 | BB98: 0 | BC98: - | BD98: 0 | BE98: - | BF98: 0 | BG98: - | BH98: 0 | BI98: - | BJ98: 2 | BK98: http://www.csb.lv | BL98: Latvia Central Statistical Bureau | BM98: http://www.bank.lv | BN98: Bank of Latvia | BO98: http://www.kase.gov.lv/?object_id=143 | BP98: 0 | BQ98: - | BR98: 1 | BS98: http://www.fm.gov.lv/en | BT98: 0 | BU98: National laws and EU accounting (financial reporting) standards | BV98: 0 | BW98: 3 | BX98: Facebook, Youtube, Twitter | BY98: lav | BZ98: eng | CA98: - | CB98: - | CC98: 0 | CD98: FMIS / eKASE | CE98: Government Electronic Payment System | CF98: D | CG98: F | CH98: 1 | CI98: 2009 | CJ98: C | CK98: 1 | CL98: 2 | CM98: SAP | CN98: Web | CO98: - | CP98: - | CQ98: - | CR98: - | CS98: - | CT98: - | CU98: - | CV98: - | CW98: - | CX98: - | CY98: - | CZ98: - | DA98: - | DB98: - | DC98: - | DD98: - | DE98: 1 | DF98: 2 | DG98: 42 | DH98: 0.6604 | DI98: 0.5882 | DJ98: 0.5051 | DK98: 0.8879 | DL98: ECA | DM98: EU | DQ98: Latvia | DR98: 0 | DW98: 0 | EB98: 2013-04-19 | EC98: 13 | ED98: 50 | EE98: B | EG98: 96 | EH98: Latvia | EI98: LVA | EJ98: 2009 | EK98: <2 | EL98: 2004 | EM98: 5.9 | EN98: 4 | EO98: 130.98
A99: 97 | C99: Lebanon | D99: UMIC | E99: 4259.405 | F99: 38947.6192 | G99: 9140 | H99: http://www.finance.gov.lb | I99: Lebanon Ministry of Finance | J99: 2 | K99: http://www.finance.gov.lb/en-US/finance/BudgetInformation/Pages/default.aspx | L99: 1 | M99: http://imagebank.worldbank.org/servlet/WDSContentServer/IW3P/IB/2012/05/03/000356161_20120503031547/Rendered/PDF/684930PUB0EPI007926B009780821395295.pdf | N99: 1 | O99: - | P99: 1 | Q99: http://www.finance.gov.lb/en-US/finance/EconomicDataStatistics/Pages/PublicFinanceStatistic.aspx | R99: 0 | S99: 0 | T99: - | U99: 1 | V99: 1 | W99: 1 | X99: http://www.finance.gov.lb/en-US/finance/BudgetInformation/AnnualBudgetDocuments/Documents/Annual%20Budget%20Documentation/2010/Budget%20Law/Citizen%20Budget%20FINAL%2011Feb2011.pdf | Y99: 1 | Z99: http://www.finance.gov.lb/en-US/finance/BudgetInformation/Pages/AnnualBudgetDocumentsandProcess.aspx | AA99: 1 | AB99: 1 | AC99: 1997 | AD99: 0 | AF99: - | AG99: - | AH99: 0 | AJ99: - | AK99: 1 | AL99: 2 | AM99: 1 | AN99: 2000 | AO99: 0 | AQ99: - | AR99: 0 | AS99: 0 | AT99: 0 | AU99: 0 | AV99: 0 | AW99: 0 | AX99: 0 | AY99: 0 | AZ99: 0 | BA99: 0 | BB99: 0 | BC99: - | BD99: 0 | BE99: - | BF99: 0 | BG99: - | BH99: 0 | BI99: - | BJ99: 0 | BK99: http://www.cas.gov.lb | BL99: Lebanon Central Administration for Statistics | BM99: http://www.bdl.gov.lb | BN99: Central Bank of Lebanon | BO99: - | BP99: 1 | BQ99: http://www.finance.gov.lb/en-US/finance/Documents/Disclosures/MOFTransparency_Oct252007Final.pdf | BR99: 0 | BS99: - | BT99: 2 | BU99: - | BV99: 0 | BW99: 3 | BX99: Ministry Blog | BY99: ara | BZ99: eng | CA99: - | CB99: - | CC99: 0 | CD99: FMIS | CE99: Financial Management Information System | CF99: C | CG99: F | CH99: 3 | CI99: 2014 | CJ99: C+L | CK99: 1 | CL99: 1 | CM99: LDSW > Oracle | CN99: Web | CO99: Jul 2011 | CP99: Final | CQ99: X | CR99: X | CS99: X | CT99: X | CU99: X | CV99: X | CW99: X | CX99: X | CY99: X | CZ99: X | DA99: 1.833333333 | DB99: 1.695652174 | DC99: 33 | DD99: 32 | DF99: 1 | DG99: 87 | DH99: 0.5139 | DI99: 0.4771 | DJ99: 0.2728 | DK99: 0.7917 | DL99: MNA | DQ99: Lebanon | DR99: 0 | DW99: 0 | EC99: =J99+L99+N99+P99+R99+S99+U99+V99+W99+Y99+AA99+AB99+AD99+AE99+AH99+AI99+AK99+AM99+AO99+AP99 -> 13 | ED99: 50 | EE99: B | EG99: 97 | EH99: Lebanon | EI99: LBN | ER99: DAD
A100: 98 | C100: Lesotho | D100: LMIC | E100: 2193.843 | F100: 2679.279201 | G100: 1220 | H100: http://www.finance.gov.ls | I100: Lesotho Ministry of Finance And Development Planning | J100: 2 | K100: http://www.finance.gov.ls/home/ | L100: 2 | M100: http://www.finance.gov.ls/reforms/ifmis.php | N100: 1 | O100: - | P100: 0 | Q100: - | R100: 0 | S100: 0 | T100: - | U100: 1 | V100: 1 | W100: 0 | X100: - | Y100: 1 | Z100: http://www.finance.gov.ls/documents/budget_book.php | AA100: 1 | AB100: 1 | AC100: 2001 | AD100: 1 | AE100: 0 | AF100: 3 | AG100: 2010 | AH100: 0 | AJ100: - | AK100: 1 | AL100: 2 | AM100: 0 | AN100: 2004 | AO100: 0 | AQ100: - | AR100: 1 | AS100: 1 | AT100: 0 | AU100: 1 | AV100: 0 | AW100: 0 | AX100: 0 | AY100: 0 | AZ100: 0 | BA100: 0 | BB100: 0 | BC100: - | BD100: 0 | BE100: - | BF100: 0 | BG100: - | BH100: 0 | BI100: - | BJ100: 0 | BK100: http://www.bos.gov.ls | BL100: Lesotho Bureau of Statistics | BM100: http://www.centralbank.org.ls | BN100: Central Bank of Lesotho | BO100: - | BP100: 0 | BQ100: - | BR100: 1 | BS100: http://www.finance.gov.ls/economic/default.php | BT100: 0 | BU100: - | BV100: 0 | BW100: 2 | BX100: - | BY100: eng | BZ100: - | CA100: - | CB100: - | CC100: - | CD100: IFMIS | CE100: Integrated Financial Management Information System | CF100: C | CG100: F | CH100: 1 | CI100: 2009 | CJ100: C+L | CK100: 1 | CL100: 2 | CM100: Epicor | CN100: Web | CO100: Jul 2009 | CP100: Draft | CQ100: X | CR100: X | CS100: X | CT100: X | CU100: X | CV100: X | CW100: X | CX100: X | CY100: X | CZ100: X | DA100: 1.95 | DB100: 2.017241379 | DC100: - | DD100: - | DF100: 1 | DG100: 136 | DH100: 0.3501 | DI100: 0.3007 | DJ100: 0.0499 | DK100: 0.6997 | DL100: AFR | DQ100: Lesotho | DR100: 0 | DW100: 0 | EC100: 12 | ED100: 46.15384615 | EE100: C | EG100: 98 | EH100: Lesotho | EI100: LSO | EJ100: 2003 | EK100: 43.4 | EL100: 2003 | EM100: 56.6 | EN100: 952.127862 | EO100: 1241.715138 | ER100: DAD
A101: 99 | C101: Liberia | D101: LIC | E101: 4128.572 | F101: 1359.318606 | G101: 330 | H101: http://www.mof.gov.lr | I101: Liberia Ministry of Finance | J101: 2 | K101: http://www.mof.gov.lr/ | L101: 2 | M101: http://www.mof.gov.lr/content.php?sub=98&related=33&res=98&third=98 | N101: 1 | O101: - | P101: 0 | Q101: - | R101: 0 | S101: 0 | T101: - | U101: 1 | V101: 1 | W101: 1 | X101: https://docs.google.com/viewer?a=v&pid=sites&srcid=bW9wZWEuZ292LmxyfG10ZWYtYnVkZ2V0fGd4OjcwOGJjYzg1OGFmZWJjMzU | Y101: 1 | Z101: https://docs.google.com/viewer?a=v&pid=sites&srcid=bW9wZWEuZ292LmxyfG10ZWYtYnVkZ2V0fGd4OmQyOGY4ZGYyMDI2OTMwMA | AA101: 1 | AB101: 1 | AC101: 2007 | AD101: 1 | AE101: 0 | AF101: 3 | AG101: 2012 | AH101: 0 | AJ101: - | AK101: 0 | AN101: - | AO101: 0 | AQ101: - | AR101: 1 | AS101: 1 | AT101: 0 | AU101: 1 | AV101: 0 | AW101: 1 | AX101: 1 | AY101: 1 | AZ101: 1 | BA101: 1 | BB101: 0 | BC101: - | BD101: 0 | BE101: - | BF101: 0 | BG101: - | BH101: 0 | BI101: - | BJ101: 2 | BK101: http://www.lisgis.org | BL101: Liberia Institute of Statistics and Geo-Information Services | BM101: http://www.cbl.org.lr | BN101: Central Bank of Liberia | BO101: https://sites.google.com/a/mopea.gov.lr/mtef-budget/home | BP101: 0 | BQ101: - | BR101: 1 | BS101: http://www.mof.gov.lr/content.php?sub=75&related=24&res=75&third=75 | BT101: 1 | BU101: National laws and regulations | BV101: 0 | BW101: 1 | BX101: - | BY101: eng | BZ101: - | CA101: - | CB101: - | CC101: - | CD101: IFMIS | CE101: Integrated Financial Management Information System | CF101: C | CG101: F | CH101: 3 | CI101: 2012 | CJ101: C | CK101: 3 | CL101: 2 | CM101: FreeBalance | CN101: Web | CO101: Jun 2009 | CP101: Public | CQ101: C | CR101: C | CS101: C | CT101: D+ | CU101: D | CV101: D | CW101: C | CX101: C | CY101: D | CZ101: D | DA101: 1.55 | DB101: 1.839285714 | DC101: 43 | DD101: 40 | DE101: 1 | DF101: 1 | DG101: 169 | DH101: 0.2407 | DI101: 0.1895 | DJ101: 0.0477 | DK101: 0.4849 | DL101: AFR | DP101: F | DQ101: Liberia | DR101: 0 | DW101: 0 | EC101: 12 | ED101: 46.15384615 | EE101: C | EG101: 99 | EH101: Liberia | EI101: LBR | EJ101: 2007 | EK101: 83.8 | EL101: 2007 | EM101: 63.8 | EN101: 3459.743336 | EO101: 2634.028936 | EQ101: 2008
A102: 100 | C102: Libya | D102: UMIC | E102: 6422.772 | F102: 62360 | G102: 9709.203441 | H102: http://www.mof.gov.ly | I102: Ministry of Finance | J102: 0 | K102: - | L102: 0 | M102: - | N102: 0 | O102: - | P102: 0 | Q102: - | R102: 0 | S102: 0 | T102: - | U102: 0 | V102: 0 | W102: 0 | X102: - | Y102: 0 | Z102: - | AA102: 0 | AC102: - | AD102: 0 | AF102: - | AG102: - | AH102: 0 | AJ102: - | AK102: 0 | AN102: - | AO102: 0 | AQ102: - | AR102: 0 | AS102: 0 | AT102: 0 | AU102: 0 | AV102: 0 | AW102: 0 | AX102: 0 | AY102: 0 | AZ102: 0 | BA102: 0 | BB102: 0 | BC102: - | BD102: 0 | BE102: - | BF102: 0 | BG102: - | BH102: 0 | BI102: - | BJ102: 0 | BK102: http://www.lisgis.org | BL102: Liberia Institute of Statistics and Geo-Information Services | BM102: http://www.cbl.gov.ly | BN102: Central Bank of Libya | BO102: - | BP102: 0 | BQ102: - | BR102: 0 | BS102: - | BT102: 0 | BU102: - | BV102: 0 | BW102: 0 | BX102: - | BY102: ara | BZ102: - | CA102: - | CB102: - | CC102: - | CD102: - | CE102: - | CF102: C | CG102: - | CH102: - | CI102: - | CJ102: - | CK102: - | CL102: - | CM102: - | CN102: - | CO102: - | CP102: - | CQ102: - | CR102: - | CS102: - | CT102: - | CU102: - | CV102: - | CW102: - | CX102: - | CY102: - | CZ102: - | DA102: - | DB102: - | DC102: - | DD102: - | DF102: - | DG102: - | DH102: - | DI102: - | DJ102: - | DK102: - | DL102: MNA | DP102: F | DQ102: Libya | DR102: 0 | DW102: 0 | EC102: 0 | ED102: 0 | EE102: D | EG102: 100 | EH102: Libya | EI102: LBY
A103: 101 | C103: Liechtenstein | D103: HIC | E103: 36.304 | F103: 4826 | G103: 132933.0101 | H103: http://www.regierung.li | I103: Ministry of Finance | J103: 1 | K103: http://www.llv.li/amtsstellen/llv-as-staatsfinanzen.htm | L103: 0 | M103: - | N103: 1 | O103: - | P103: 0 | Q103: - | R103: 0 | S103: 0 | T103: - | U103: 0 | V103: 0 | W103: 0 | X103: - | Y103: 0 | Z103: - | AA103: 0 | AC103: - | AD103: 0 | AF103: - | AG103: - | AH103: 0 | AJ103: - | AK103: 0 | AN103: - | AO103: 0 | AQ103: - | AR103: 0 | AS103: 0 | AT103: 0 | AU103: 0 | AV103: 0 | AW103: 0 | AX103: 0 | AY103: 0 | AZ103: 0 | BA103: 0 | BB103: 0 | BC103: - | BD103: 0 | BE103: - | BF103: 0 | BG103: - | BH103: 0 | BI103: - | BJ103: 3 | BK103: http://www.as.llv.li | BL103: Office of Statistics | BM103: http://www.fma-li.li | BN103: Financial Marker Authority | BO103: http://www.llv.li/amtsstellen/llv-rk-amtsgeschaefte-rechenschaftsbericht.htm | BP103: 0 | BQ103: - | BR103: 0 | BS103: - | BT103: 0 | BU103: - | BV103: 0 | BW103: 2 | BX103: Facebook, Twitter, Youtube | BY103: ger | BZ103: eng | CA103: - | CB103: - | CC103: 0 | CD103: - | CE103: - | CF103: C | CG103: - | CH103: - | CI103: - | CJ103: - | CK103: - | CL103: - | CM103: - | CN103: - | CO103: - | CP103: - | CQ103: - | CR103: - | CS103: - | CT103: - | CU103: - | CV103: - | CW103: - | CX103: - | CY103: - | CZ103: - | DA103: - | DB103: - | DC103: - | DD103: - | DF103: - | DG103: 14 | DH103: 0.8264 | DI103: 0.5882 | DJ103: 1 | DK103: 0.891 | DM103: EUR | DQ103: Liechtenstein | DR103: 0 | DW103: 0 | EC103: 2 | ED103: 7.692307692 | EE103: D | EG103: 101 | EH103: Liechtenstein | EI103: LIE
A104: 102 | C104: Lithuania | D104: UMIC | E104: 3203 | F104: 39322.32028 | G104: 12280 | H104: http://www.finmin.lt | I104: Ministry of Finance of the Republic of Lithuania | J104: 2 | K104: http://www.finmin.lt/web/finmin/aktualus_duomenys | L104: 1 | M104: http://www.finmin.lt/web/finmin/vsakis | N104: 1 | O104: - | P104: 0 | Q104: - | R104: 1 | S104: 0 | T104: http://www.finmin.lt/finmin.lt/failai/Biudzeto_vykdymas/VBI_2012_12_31_pdf.pdf | U104: 1 | V104: 1 | W104: 1 | X104: http://www.finmin.lt/web/finmin/2013_biudzetas | Y104: 1 | Z104: http://www3.lrs.lt/pls/inter3/dokpaieska.showdoc_l?p_id=346930 | AA104: 1 | AB104: 1 | AC104: 1991 | AD104: 1 | AE104: 1 | AF104: 3 | AG104: 1998 | AH104: 1 | AI104: 1 | AJ104: 2001 | AK104: 1 | AL104: 2 | AM104: 1 | AN104: 2001 | AO104: 1 | AP104: 1 | AQ104: 1995 | AR104: 1 | AS104: 1 | AT104: 0 | AU104: 0 | AV104: 0 | AW104: 1 | AX104: 1 | AY104: 1 | AZ104: 1 | BA104: 1 | BB104: 1 | BC104: http://www.finmin.lt/web/finmin//auktualus_duomenys/biudzeto_pajamos/valstybes_biudzetas | BD104: 0 | BE104: - | BF104: 1 | BG104: http://www.finmin.lt/web/finmin/vsakis | BH104: 1 | BI104: http://vsamidb.finmin.lt/CAisd/pdmweb.exe | BJ104: 1 | BK104: http://www.stat.gov.lt | BL104: Lithuania Statistics Department | BM104: http://www.lbank.lt | BN104: Bank of Lithuania | BO104: www.viesai.lt | BP104: 1 | BQ104: http://www.finmin.lt/web/finmin/aktualus_duomenys | BR104: 1 | BS104: http://www.finmin.lt/c/portal/layout?p_l_id=PUB.1.37 | BT104: 1 | BU104: Lithuianian law and International Accounting Standards, European Union Law and International Public Sector Accounting Standards. | BV104: 1 | BW104: 3 | BX104: - | BY104: lit | BZ104: eng | CA104: - | CB104: - | CC104: 0 | CD104: VSAKIS | CE104: Viešojo sektoriaus apskaitos ir ataskaitų konsolidavimo informacinė sistem / Public Sector Accounting and Consolidation Reporting Information System | CF104: C | CG104: F | CH104: 1 | CI104: 2012 | CJ104: C | CK104: 1 | CL104: 2 | CM104: SAP | CN104: Web | CO104: - | CP104: - | CQ104: - | CR104: - | CS104: - | CT104: - | CU104: - | CV104: - | CW104: - | CX104: - | CY104: - | CZ104: - | DA104: - | DB104: - | DC104: - | DD104: - | DE104: 1 | DF104: 1 | DG104: 29 | DH104: 0.7333 | DI104: 0.6993 | DJ104: 0.5765 | DK104: 0.924 | DL104: ECA | DM104: EU | DQ104: Lithuania | DR104: 0 | DW104: 0 | EB104: 2013-05-10 | EC104: 19 | ED104: 73.07692308 | EE104: B | EG104: 102 | EH104: Lithuania | EI104: LTU | EJ104: 2008 | EK104: <2 | EN104: 5
A105: 103 | C105: Luxembourg | D105: HIC | E105: 517 | F105: 40108.93152 | G105: 77580 | H105: http://www.mf.public.lu | I105: Ministère des Finances | J105: 2 | K105: http://www.mf.public.lu/finances_publiques/budget/index.html | L105: 2 | M105: http://www.sifin.etat.lu | N105: 1 | O105: - | P105: 0 | Q105: - | R105: 0 | S105: 0 | T105: - | U105: 1 | V105: 1 | W105: 0 | X105: - | Y105: 1 | Z105: http://www.legilux.public.lu/leg/a/archives/2011/0266/a266.pdf | AA105: 1 | AB105: 0 | AC105: 2002 | AD105: 0 | AF105: - | AG105: - | AH105: 0 | AJ105: - | AK105: 0 | AN105: - | AO105: 0 | AQ105: - | AR105: 1 | AS105: 1 | AT105: 0 | AU105: 0 | AV105: 0 | AW105: 1 | AX105: 0 | AY105: 0 | AZ105: 0 | BA105: 0 | BB105: 0 | BC105: - | BD105: 0 | BE105: - | BF105: 0 | BG105: - | BH105: 0 | BI105: - | BJ105: 3 | BK105: http://www.statec.public.lu | BL105: Luxembourg National Institute of Statistics and Economic Studies | BM105: http://www.bcl.lu | BN105: Central Bank of Luxembourg | BO105: http://www.te.public.lu/dette_publique/index.html | BP105: 0 | BQ105: - | BR105: 1 | BS105: http://www.mf.public.lu/ministere/index.html | BT105: 0 | BU105: - | BV105: 0 | BW105: 1 | BX105: - | BY105: fre | BZ105: - | CA105: - | CB105: - | CC105: - | CD105: SIFIN | CE105: Integrated Financial Management Information System | CF105: D | CG105: F | CH105: 1 | CI105: 2006 | CJ105: C+L | CK105: 1 | CL105: 2 | CM105: SAP | CN105: Web | CO105: - | CP105: - | CQ105: - | CR105: - | CS105: - | CT105: - | CU105: - | CV105: - | CW105: - | CX105: - | CY105: - | CZ105: - | DA105: - | DB105: - | DC105: - | DD105: - | DF105: 1 | DG105: 19 | DH105: 0.8014 | DI105: 0.6993 | DJ105: 0.8644 | DK105: 0.8404 | DM105: EU | DN105: OECD | DQ105: Luxembourg | DR105: 0 | DW105: 0 | EC105: 9 | ED105: 34.61538462 | EE105: C | EG105: 103 | EH105: Luxembourg | EI105: LUX
A106: 104 | C106: Macao SAR, China | D106: HIC | E106: 555.731 | F106: 36430 | G106: 65553.29827 | H106: http://www.dsf.gov.mo | I106: Macao Department of Finance | J106: 2 | K106: http://www.dsf.gov.mo/finance/public_finance_info.aspx?FormType=4&#budget | L106: 0 | M106: - | N106: 1 | O106: - | P106: 0 | Q106: - | R106: 0 | S106: 0 | T106: - | U106: 1 | V106: 1 | W106: 0 | X106: - | Y106: 0 | Z106: - | AA106: 0 | AC106: - | AD106: 0 | AF106: - | AG106: - | AH106: 0 | AJ106: - | AK106: 1 | AL106: 4 | AM106: 1 | AN106: 2010 | AO106: 0 | AQ106: - | AR106: 1 | AS106: 0 | AT106: 0 | AU106: 0 | AV106: 0 | AW106: 0 | AX106: 0 | AY106: 0 | AZ106: 0 | BA106: 0 | BB106: 0 | BC106: - | BD106: 0 | BE106: - | BF106: 0 | BG106: - | BH106: 0 | BI106: - | BJ106: 0 | BK106: http://www.dsec.gov.mo | BL106: Macau Special Administrative Region Statistics and Census Service | BM106: http://www.amcm.gov.mo | BN106: Monetary Authority of Macao | BO106: - | BP106: 0 | BQ106: - | BR106: 1 | BS106: http://www.dsf.gov.mo/about/about_org.aspx | BT106: 0 | BU106: - | BV106: 0 | BW106: 2 | BX106: - | BY106: chi | BZ106: eng | CA106: por | CB106: - | CC106: 0 | CD106: - | CE106: - | CF106: C | CG106: - | CH106: - | CI106: - | CJ106: - | CK106: - | CL106: - | CM106: - | CN106: - | CO106: - | CP106: - | CQ106: - | CR106: - | CS106: - | CT106: - | CU106: - | CV106: - | CW106: - | CX106: - | CY106: - | CZ106: - | DA106: - | DB106: - | DC106: - | DD106: - | DF106: - | DG106: - | DH106: - | DI106: - | DJ106: - | DK106: - | DL106: EAP | DQ106: Macao SAR, China | DR106: 1 | DS106: 1 | DW106: 0 | EC106: 7 | ED106: 26.92307692 | EE106: C | EG106: 104 | EH106: Macao SAR, China | EI106: MAC
A107: 105 | C107: Macedonia | D107: UMIC | E107: 2063.893 | F107: 9752.345714 | G107: 4730 | H107: http://www.finance.gov.mk | I107: Ministry of Finance of the Republic of Macedonia | J107: 2 | K107: http://www.finance.gov.mk/node/575 | L107: 2 | M107: http://www.ultra.com.mk/newweb/public_admin2.html | N107: 1 | O107: - | P107: 0 | Q107: - | R107: 0 | S107: 0 | T107: - | U107: 2 | V107: 1 | W107: 0 | X107: - | Y107: 1 | Z107: http://www.finance.gov.mk/files/u11/tkovniot_plan_i_sodrzinata_na_oddelni_smetki.pdf | AA107: 1 | AB107: 1 | AC107: 2008 | AD107: 1 | AE107: 0 | AF107: 3 | AG107: 2008 | AH107: 1 | AI107: 1 | AJ107: 2009 | AK107: 1 | AL107: 2 | AM107: 1 | AN107: 2008 | AO107: 0 | AQ107: - | AR107: 0 | AS107: 1 | AT107: 0 | AU107: 0 | AV107: 0 | AW107: 0 | AX107: 1 | AY107: 1 | AZ107: 1 | BA107: 0 | BB107: 0 | BC107: - | BD107: 0 | BE107: - | BF107: 0 | BG107: - | BH107: 0 | BI107: - | BJ107: 0 | BK107: http://www.stat.gov.mk | BL107: Macedonia State Statistical Office | BM107: http://www.nbrm.gov.mk | BN107: National Bank of the Republic of Macedonia | BO107: - | BP107: 0 | BQ107: - | BR107: 1 | BS107: http://www.finance.gov.mk/node/13 | BT107: 0 | BU107: - | BV107: 0 | BW107: 1 | BX107: - | BY107: mac | BZ107: eng | CA107: - | CB107: - | CC107: 0 | CD107: TRIS | CE107: Macedonian Treasury Information System | CF107: C | CG107: T | CH107: 1 | CI107: 2001 | CJ107: C+L | CK107: 1 | CL107: 1 | CM107: LDSW | CN107: CS | CO107: Aug 2007 | CP107: Public | CQ107: A | CR107: NU | CS107: C | CT107: NU | CU107: A | CV107: C | CW107: C+ | CX107: C+ | CY107: B | CZ107: C | DA107: 2.75 | DB107: 2.826086957 | DC107: 35 | DD107: 49 | DE107: 1 | DF107: 1 | DG107: 70 | DH107: 0.5587 | DI107: 0.451 | DJ107: 0.4135 | DK107: 0.8115 | DL107: ECA | DQ107: Macedonia | DR107: 1 | DV107: 1 | DW107: 0 | EC107: 16 | ED107: 61.53846154 | EE107: B | EG107: 105 | EH107: Macedonia | EI107: MKD | EJ107: 2010 | EK107: <2 | EL107: 2006 | EM107: 19 | EN107: 12 | EO107: 392.13967 | ER107: DAD
A108: 106 | C108: Madagascar | D108: LIC | E108: 21315.135 | F108: 9100.267251 | G108: 430 | H108: http://www.mefb.gov.mg | I108: Madagascar Ministry of the Economy, Finance and Budget | J108: 2 | K108: http://www.dgbudget.mg/ | L108: 2 | M108: http://www.mefb.gov.mg/index.php?option=com_content&view=article&id=329&Itemid=332 | N108: 1 | O108: - | P108: 0 | Q108: - | R108: 0 | S108: 0 | T108: - | U108: 1 | V108: 1 | W108: 0 | X108: - | Y108: 1 | Z108: http://www.mefb.gov.mg/textes_lois/compta_publique/decret_05210_pcop.pdf | AA108: 1 | AB108: 1 | AC108: 2010 | AD108: 1 | AE108: 1 | AF108: 3 | AG108: 2010 | AH108: 1 | AI108: 1 | AJ108: 2010 | AK108: 1 | AL108: 3 | AM108: 1 | AN108: 2010 | AO108: 0 | AQ108: - | AR108: 1 | AS108: 0 | AT108: 0 | AU108: 0 | AV108: 0 | AW108: 0 | AX108: 0 | AY108: 0 | AZ108: 0 | BA108: 1 | BB108: 1 | BC108: http://www.armp.mg/ | BD108: 0 | BE108: - | BF108: 0 | BG108: - | BH108: 0 | BI108: - | BJ108: 0 | BK108: http://www.instat.mg | BL108: Madagascar National Institute of Statistics | BM108: http://www.banque-centrale.mg | BN108: Central Bank of Madagascar | BO108: - | BP108: 0 | BQ108: - | BR108: 1 | BS108: http://www.mefb.gov.mg/index.php?option=com_wrapper&view=wrapper&Itemid=34 | BT108: 0 | BU108: - | BV108: 1 | BW108: 2 | BX108: - | BY108: mlg | BZ108: fre | CA108: eng | CB108: - | CC108: 0 | CD108: SIGFIP | CE108: Système Intégré de Gestion des Finances Publiques | CF108: C | CG108: F | CH108: 3 | CI108: 2011 | CJ108: C+L | CK108: 2 | CL108: 1 | CM108: LDSW > Oracle | CN108: Web | CO108: May 2008 | CP108: Final | CQ108: X | CR108: X | CS108: X | CT108: X | CU108: X | CV108: X | CW108: X | CX108: X | CY108: X | CZ108: X | DA108: 2.15 | DB108: 2.403225806 | DC108: - | DD108: - | DF108: 2 | DG108: 148 | DH108: 0.3054 | DI108: 0.3203 | DJ108: 0.052 | DK108: 0.5438 | DL108: AFR | DQ108: Madagascar | DR108: 0 | DW108: 0 | EB108: 2013-05-05 | EC108: 16 | ED108: 61.53846154 | EE108: B | EG108: 106 | EH108: Madagascar | EI108: MDG | EJ108: 2010 | EK108: 81.3 | EL108: 2005 | EM108: 68.7 | EN108: 17329.20475 | EO108: 14643.49775 | EQ108: 2009
A109: 107 | C109: Malawi | D109: LIC | E109: 15380.888 | F109: 5558.565721 | G109: 360 | H109: http://www.finance.gov.mw | I109: Ministry of Finance of Malawi | J109: 2 | K109: http://www.finance.gov.mw/index.php?option=com_docman&Itemid=114 | L109: 1 | M109: http://www.eastafritac.org/images/uploads/documents_storage/Theme_A-IFMIS_managing_risks.pdf | N109: 1 | O109: - | P109: 0 | Q109: - | R109: 0 | S109: 0 | T109: - | U109: 1 | V109: 1 | W109: 0 | X109: - | Y109: 0 | Z109: - | AA109: 1 | AB109: 1 | AC109: 2011 | AD109: 1 | AE109: 0 | AF109: 3 | AG109: 2011 | AH109: 0 | AJ109: - | AK109: 1 | AL109: 3 | AM109: 0 | AN109: 2005 | AO109: 1 | AP109: 1 | AQ109: 2007 | AR109: 0 | AS109: 1 | AT109: 0 | AU109: 0 | AV109: 1 | AW109: 1 | AX109: 1 | AY109: 0 | AZ109: 1 | BA109: 0 | BB109: 0 | BC109: - | BD109: 0 | BE109: - | BF109: 0 | BG109: - | BH109: 0 | BI109: - | BJ109: 0 | BK109: http://www.nso.malawi.net | BL109: Malawi National Statistical Office | BM109: http://www.rbm.mw | BN109: Reserve Bank of Malawi | BO109: - | BP109: 0 | BQ109: - | BR109: 1 | BS109: http://www.finance.gov.mw/index.php?option=com_content&view=category&layout=blog&id=47&Itemid=85 | BT109: 0 | BU109: - | BV109: 1 | BW109: 3 | BX109: - | BY109: eng | BZ109: - | CA109: - | CB109: - | CC109: - | CD109: IFMIS | CE109: Integrated Financial Management Information System | CF109: C | CG109: F | CH109: 2 | CI109: 2008 | CJ109: C | CK109: 2 | CL109: 2 | CM109: CODA > Epicor | CN109: CS | CO109: Mar 2011 | CP109: Draft | CQ109: X | CR109: X | CS109: X | CT109: X | CU109: X | CV109: X | CW109: X | CX109: X | CY109: X | CZ109: X | DA109: 2.3 | DB109: 2.37037037 | DC109: 52 | DD109: 47 | DE109: 0 | DF109: 2 | DG109: 159 | DH109: 0.274 | DI109: 0.2157 | DJ109: 0.0321 | DK109: 0.5741 | DL109: AFR | DQ109: Malawi | DR109: 0 | DW109: 0 | EC109: 12 | ED109: 46.15384615 | EE109: C | EG109: 107 | EH109: Malawi | EI109: MWI | EJ109: 2004 | EK109: 73.9 | EL109: 2010 | EM109: 50.7 | EN109: 11366.47623 | EO109: 7798.110216 | EQ109: 2008
A110: 108 | C110: Malaysia | D110: UMIC | E110: 28859.154 | F110: 253043.6155 | G110: 8770 | H110: http://www.treasury.gov.my | I110: Ministry of Finance/Treasury | J110: 2 | K110: http://www.treasury.gov.my/index.php?option=com_content&view=category&id=73&Itemid=174&lang=my | L110: 2 | M110: http://km.anm.gov.my | N110: 1 | O110: - | P110: 0 | Q110: - | R110: 0 | S110: 0 | T110: - | U110: 1 | V110: 1 | W110: 0 | X110: - | Y110: 1 | Z110: http://www.treasury.gov.my/pekeliling/pp/pp032012.pdf | AA110: 1 | AB110: 1 | AC110: 2004 | AD110: 0 | AF110: - | AG110: - | AH110: 0 | AJ110: - | AK110: 1 | AL110: 4 | AM110: 1 | AN110: 2006 | AO110: 1 | AP110: 0 | AQ110: 2011 | AR110: 0 | AS110: 1 | AT110: 1 | AU110: 1 | AV110: 1 | AW110: 0 | AX110: 0 | AY110: 0 | AZ110: 0 | BA110: 0 | BB110: 1 | BC110: http://myprocurement.treasury.gov.my/ | BD110: 0 | BE110: - | BF110: 0 | BG110: - | BH110: 0 | BI110: - | BJ110: 0 | BK110: http://www.statistics.gov.my | BL110: Malaysia Department of Statistics | BM110: http://www.bnm.gov.my | BN110: Central Bank of Malaysia | BO110: - | BP110: 0 | BQ110: - | BR110: 1 | BS110: http://www.treasury.gov.my/index.php?option=com_content&view=article&id=315%3Acarta-kementerian&catid=119%3Aprofil-kementerian&Itemid=154&lang=en | BT110: 0 | BU110: - | BV110: 1 | BW110: 3 | BX110: - | BY110: may | BZ110: eng | CA110: - | CB110: - | CC110: 0 | CD110: GFMAS | CE110: Government Financial and Management Accounting System | CF110: D | CG110: F | CH110: 1 | CI110: 2006 | CJ110: C+L | CK110: 1 | CL110: 2 | CM110: SAP | CN110: Web | CO110: - | CP110: - | CQ110: - | CR110: - | CS110: - | CT110: - | CU110: - | CV110: - | CW110: - | CX110: - | CY110: - | CZ110: - | DA110: - | DB110: - | DC110: 39 | DD110: 39 | DF110: 1 | DG110: 40 | DH110: 0.6703 | DI110: 0.7908 | DJ110: 0.451 | DK110: 0.7691 | DL110: EAP | DO110: APEC | DQ110: Malaysia | DR110: 7 | DS110: 2 | DT110: 2 | DU110: 3 | DW110: 1 | DZ110: 1 | EC110: 13 | ED110: 50 | EE110: B | EG110: 108 | EH110: Malaysia | EI110: MYS | EJ110: 2009 | EK110: <2 | EL110: 2009 | EM110: 3.8 | EO110: 1096.647852
A111: 109 | C111: Maldives | D111: UMIC | E111: 320.081 | F111: 1831.062446 | G111: 5720 | H111: http://www.finance.gov.mv | I111: Ministry of Finance | J111: 2 | K111: http://www.budget.gov.mv | L111: 2 | M111: http://www.finance.gov.mv/v1/orgview?unit=Information%20Communication%20Technology%20Section | N111: 1 | O111: - | P111: 1 | Q111: http://www.budget.gov.mv/ | R111: 0 | S111: 0 | T111: - | U111: 1 | V111: 1 | W111: 0 | X111: - | Y111: 0 | Z111: - | AA111: 1 | AB111: 0 | AC111: 2012 | AD111: 0 | AF111: - | AG111: - | AH111: 0 | AJ111: - | AK111: 0 | AN111: - | AO111: 0 | AQ111: - | AR111: 0 | AS111: 0 | AT111: 0 | AU111: 0 | AV111: 0 | AW111: 0 | AX111: 0 | AY111: 0 | AZ111: 0 | BA111: 0 | BB111: 0 | BC111: - | BD111: 0 | BE111: - | BF111: 0 | BG111: - | BH111: 0 | BI111: - | BJ111: 2 | BK111: http://www.planning.gov.mv | BL111: Department of National Planning | BM111: http://www.mma.gov.mv | BN111: Maldives Monetary Authority | BO111: http://www.finance.gov.mv/v1/datanstat?id=27 | BP111: 0 | BQ111: - | BR111: 0 | BS111: - | BT111: 0 | BU111: - | BV111: 0 | BW111: 1 | BX111: - | BY111: div | BZ111: eng | CA111: - | CB111: - | CC111: 0 | CD111: PAS | CE111: Public Accounting System | CF111: C | CG111: T | CH111: 1 | CI111: 2010 | CJ111: C+L | CK111: 3 | CL111: 2 | CM111: SAP | CN111: Web | CO111: Nov 2009 | CP111: Public | CQ111: B | CR111: C | CS111: B | CT111: D | CU111: C | CV111: A | CW111: C+ | CX111: D | CY111: D+ | CZ111: D | DA111: 2.1 | DB111: 1.948275862 | DC111: - | DD111: - | DF111: 0 | DG111: 95 | DH111: 0.4994 | DI111: 0.3268 | DJ111: 0.3599 | DK111: 0.8114 | DL111: SAR | DQ111: Maldives | DR111: 0 | DW111: 0 | EC111: 9 | ED111: 34.61538462 | EE111: C | EG111: 109 | EH111: Maldives | EI111: MDV | EJ111: 2004 | EK111: <2 | ER111: DAD
A112: 110 | C112: Mali | D112: LIC | E112: 15839.538 | F112: 9632.758767 | G112: 610 | H112: http://www.finances.gov.ml | I112: Mali Ministry of Economy and Finance | J112: 0 | K112: - | L112: 0 | M112: - | N112: 0 | O112: - | P112: 0 | Q112: - | R112: 0 | S112: 0 | T112: - | U112: 1 | V112: 1 | W112: 1 | X112: http://www.finances.gouv.ml/documentation/BUDGETCITOYEN%202012%20FINAL.pdf | Y112: 0 | Z112: - | AA112: 1 | AB112: 0 | AC112: 2009 | AD112: 0 | AF112: - | AG112: - | AH112: 0 | AJ112: - | AK112: 1 | AL112: 3 | AM112: 0 | AN112: 2010 | AO112: 0 | AQ112: - | AR112: 1 | AS112: 0 | AT112: 1 | AU112: 0 | AV112: 0 | AW112: 1 | AX112: 1 | AY112: 0 | AZ112: 1 | BA112: 0 | BB112: 0 | BC112: - | BD112: 0 | BE112: - | BF112: 0 | BG112: - | BH112: 0 | BI112: - | BJ112: 0 | BK112: http://www.dnsi.gov.ml | BL112: Mali National Directorate of Statistics and Informatics | BM112: http://www.bceao.int | BN112: Central Bank of West African States (BCEAO) | BO112: - | BP112: 0 | BQ112: - | BR112: 1 | BS112: http://www.finances.gouv.ml/contenu_page.aspx?pa=23 | BT112: 2 | BU112: GFS 1986 (not 2001) | BV112: 0 | BW112: 0 | BX112: - | BY112: fre | BZ112: - | CA112: - | CB112: - | CC112: - | CD112: - | CE112: - | CF112: C | CG112: - | CH112: - | CI112: - | CJ112: - | CK112: - | CL112: - | CM112: - | CN112: - | CO112: Jun 2011 | CP112: Public | CQ112: B | CR112: A | CS112: C | CT112: B+ | CU112: C+ | CV112: B | CW112: D+ | CX112: D+ | CY112: D | CZ112: D+ | DA112: 2.35 | DB112: 2.774193548 | DC112: 43 | DD112: 35 | DF112: 1 | DG112: 183 | DH112: 0.1857 | DI112: 0.3203 | DJ112: 0.0645 | DK112: 0.1723 | DL112: AFR | DQ112: Mali | DR112: 0 | DW112: 0 | EC112: 5 | ED112: 19.23076923 | EE112: D | EG112: 110 | EH112: Mali | EI112: MLI | EJ112: 2010 | EK112: 50.4 | EL112: 2010 | EM112: 43.6 | EN112: 7983.127152 | EO112: 6906.038568
A113: 111 | C113: Malta | D113: HIC | E113: 419 | F113: 8887 | G113: 21210.02387 | H113: http://www.mfin.gov.mt | I113: Malta Ministry of Finance | J113: 2 | K113: http://finance.gov.mt/page.aspx?site=MFIN&page=thebudget | L113: 2 | M113: http://finance.gov.mt/page.aspx?site=MFIN&page=fdrs | N113: 2 | O113: http://finance.gov.mt/page.aspx?site=TRS&page=publications | P113: 0 | Q113: - | R113: 0 | S113: 1 | T113: http://finance.gov.mt/image.aspx?site=TRS&ref=651&type=publication | U113: 2 | V113: 1 | W113: 0 | X113: - | Y113: 1 | Z113: http://finance.gov.mt/image.aspx?site=TRS&ref=391&type=publication | AA113: 1 | AB113: 0 | AC113: 2000 | AD113: 0 | AF113: - | AG113: - | AH113: 1 | AI113: 0 | AJ113: 2012 | AK113: 0 | AN113: - | AO113: 1 | AP113: 1 | AQ113: 2007 | AR113: 1 | AS113: 1 | AT113: 0 | AU113: 0 | AV113: 0 | AW113: 1 | AX113: 1 | AY113: 1 | AZ113: 1 | BA113: 0 | BB113: 0 | BC113: - | BD113: 1 | BE113: http://www.gov.mt | BF113: 0 | BG113: - | BH113: 1 | BI113: http://finance.gov.mt/image.aspx?site=TRS&ref=391&type=publication | BJ113: 2 | BK113: http://www.nso.gov.mt | BL113: Malta National Statistics Office | BM113: http://www.centralbankmalta.org | BN113: Central Bank of Malta | BO113: http://sdw.ecb.europa.eu/browse.do?node=19111 | BP113: 1 | BQ113: http://finance.gov.mt/page.aspx?site=TRS&page=foi | BR113: 1 | BS113: http://finance.gov.mt/page.aspx?site=TRS&page=legislation | BT113: 0 | BU113: National laws and regulations | BV113: 0 | BW113: 3 | BX113: https://www.mita.gov.mt/page.aspx?pageid=221 | BY113: mlt | BZ113: eng | CA113: - | CB113: - | CC113: 1 | CD113: DAS + FDRS | CE113: Electronic Departmental Accounting System / | CF113: D | CG113: T | CH113: 1 | CI113: 2005 | CJ113: C | CK113: 1 | CL113: 2 | CM113: SAGE 100 | CN113: Web | CO113: - | CP113: - | CQ113: - | CR113: - | CS113: - | CT113: - | CU113: - | CV113: - | CW113: - | CX113: - | CY113: - | CZ113: - | DA113: - | DB113: - | DC113: - | DD113: - | DE113: 1 | DF113: 2 | DG113: 35 | DH113: 0.7131 | DI113: 0.6144 | DJ113: 0.7192 | DK113: 0.8057 | DL113: MNA | DM113: EU | DQ113: Malta | DR113: 0 | DW113: 0 | EC113: 15 | ED113: 57.69230769 | EE113: B | EG113: 111 | EH113: Malta | EI113: MLT
A114: 112 | C114: Marshall Islands | D114: LMIC | E114: 54.816 | F114: 214.3372644 | G114: 3910 | H114: http://www.rmigovernment.org/cabinet.jsp | I114: Ministry of Finance | J114: 0 | K114: - | L114: 1 | M114: http://www.pftac.org/filemanager/files/PFM/IFMIS_PICspdf1.pdf | N114: 0 | O114: - | P114: 0 | Q114: - | R114: 0 | S114: 0 | T114: - | U114: 0 | V114: 0 | W114: 0 | X114: - | Y114: 0 | Z114: - | AA114: 0 | AC114: - | AD114: 0 | AF114: - | AG114: - | AH114: 0 | AJ114: - | AK114: 1 | AL114: 4 | AM114: 1 | AN114: 1997 | AO114: 0 | AQ114: - | AR114: 0 | AS114: 0 | AT114: 0 | AU114: 0 | AV114: 0 | AW114: 1 | AX114: 1 | AY114: 0 | AZ114: 0 | BA114: 0 | BB114: 0 | BC114: - | BD114: 0 | BE114: - | BF114: 0 | BG114: - | BH114: 0 | BI114: - | BJ114: 1 | BK114: http://www.spc.int/prism/country/mh/stats | BL114: Economic Policy, Planning and Statistics Office | BM114: - | BN114: Banking Commission of Marshall Islands | BO114: - | BP114: 0 | BQ114: - | BR114: 0 | BS114: - | BT114: 0 | BU114: - | BV114: 0 | BW114: 1 | BX114: - | BY114: eng | BZ114: - | CA114: - | CB114: - | CC114: - | CD114: FMIS | CE114: Financial Management Information System | CF114: C | CG114: T | CH114: 1 | CI114: 2004 | CJ114: C | CK114: 1 | CL114: 2 | CM114: 4gov | CN114: Web | CO114: Dec 2011 | CP114: Draft | CQ114: X | CR114: X | CS114: X | CT114: X | CU114: X | CV114: X | CW114: X | CX114: X | CY114: X | CZ114: X | DA114: 1.166666667 | DB114: 1.648148148 | DC114: - | DD114: - | DF114: 1 | DG114: 146 | DH114: 0.3129 | DI114: 0.1373 | DJ114: 0.0425 | DK114: 0.759 | DL114: EAP | DP114: F | DQ114: Marshall Islands | DR114: 0 | DW114: 0 | EC114: 3 | ED114: 11.53846154 | EE114: D | EG114: 112 | EH114: Marshall Islands | EI114: MHL
A115: 113 | C115: Mauritania | D115: LIC | E115: 3541.54 | F115: 3527.542714 | G115: 1000 | H115: http://www.economie.gov.mr | I115: Ministry of Economic Affair and Development | J115: 1 | K115: http://www.economie.gov.mr/economiques/mright/Statistiques/agregat.htm | L115: 1 | M115: http://documents.worldbank.org/curated/en/2011/05/16215662/mauritania-public-expenditure-review-update | N115: 1 | O115: - | P115: 0 | Q115: - | R115: 0 | S115: 0 | T115: - | U115: 1 | V115: 1 | W115: 0 | X115: - | Y115: 0 | Z115: - | AA115: 0 | AC115: - | AD115: 0 | AF115: - | AG115: - | AH115: 1 | AI115: 1 | AJ115: 1995 | AK115: 1 | AL115: 4 | AM115: 1 | AN115: 1995 | AO115: 0 | AQ115: - | AR115: 1 | AS115: 1 | AT115: 0 | AU115: 0 | AV115: 0 | AW115: 1 | AX115: 1 | AY115: 0 | AZ115: 0 | BA115: 0 | BB115: 0 | BC115: - | BD115: 0 | BE115: - | BF115: 0 | BG115: - | BH115: 0 | BI115: - | BJ115: 1 | BK115: http://www.ons.mr | BL115: Mauritania National Statistics Office | BM115: http://www.bcm.mr | BN115: Banque Centrale de Mauritanie | BO115: - | BP115: 0 | BQ115: - | BR115: 0 | BS115: - | BT115: 0 | BU115: - | BV115: 0 | BW115: 0 | BX115: - | BY115: fre | BZ115: - | CA115: - | CB115: - | CC115: - | CD115: IFMIS | CE115: Integrated Financial Management Information System | CF115: C | CG115: T | CH115: 1 | CI115: 2006 | CJ115: C | CK115: 1 | CL115: 1 | CM115: LDSW | CN115: CS | CO115: Jun 2008 | CP115: Public | CQ115: C | CR115: C | CS115: B | CT115: B | CU115: C+ | CV115: D | CW115: C+ | CX115: D+ | CY115: D+ | CZ115: D+ | DA115: 2.05 | DB115: 2.233333333 | DC115: - | DD115: - | DF115: 2 | DG115: 181 | DH115: 0.1996 | DI115: 0.0784 | DJ115: 0.1123 | DK115: 0.4079 | DL115: AFR | DQ115: Mauritania | DR115: 0 | DW115: 0 | EC115: 9 | ED115: 34.61538462 | EE115: C | EG115: 113 | EH115: Mauritania | EI115: MRT | EJ115: 2008 | EK115: 23.4 | EL115: 2008 | EM115: 42 | EN115: 828.72036 | EO115: 1487.4468 | ER115: DAD
A116: 114 | C116: Mauritius | D116: UMIC | E116: 1286.051 | F116: 10341.74894 | G116: 8040 | H116: http://mof.gov.mu/English/Pages/default.aspx | I116: Mauritius Ministry of Finance and Economic Empowerment | J116: 2 | K116: http://mof.gov.mu/English/National%20Budget/Pages/default.aspx | L116: 1 | M116: http://www.gov.mu/portal/goc/mof/files/pbb22aug.pdf | N116: 1 | O116: - | P116: 1 | Q116: http://mof.gov.mu/English/Pages/National%20Budget/national-budget-budgetary-central-government.aspx | R116: 0 | S116: 0 | T116: - | U116: 2 | V116: 1 | W116: 0 | X116: - | Y116: 1 | Z116: http://www.gov.mu/portal/site/MOFSite/menuitem.c84a125a4c8427861eb9d510a0208a0c/ | AA116: 1 | AB116: 1 | AC116: 2002 | AD116: 1 | AE116: 1 | AF116: 3 | AG116: 2004 | AH116: 1 | AI116: 1 | AJ116: 2002 | AK116: 1 | AL116: 2 | AM116: 0 | AN116: 2008 | AO116: 1 | AP116: 1 | AQ116: 1998 | AR116: 1 | AS116: 1 | AT116: 0 | AU116: 1 | AV116: 1 | AW116: 1 | AX116: 1 | AY116: 1 | AZ116: 1 | BA116: 0 | BB116: 1 | BC116: http://www.gov.mu/portal/site/MOFSite/menuitem.5b1d751c6156d7f4e0aad110a7b521ca/?content_id=cb0569975e172310VgnVCM1000000a04a8c0RCRD | BD116: 0 | BE116: - | BF116: 0 | BG116: - | BH116: 0 | BI116: - | BJ116: 1 | BK116: http://www.gov.mu/portal/site/cso | BL116: Mauritius Central Statistical Office | BM116: http://bom.intnet.mu | BN116: Bank of Mauritius | BO116: - | BP116: 0 | BQ116: - | BR116: 1 | BS116: http://www.gov.mu/portal/site/MOFSite/menuitem.c84a125a4c8427861eb9d510a0208a0c/ | BT116: 2 | BU116: IMF's General Data Dissemination System (GDDS), http://www.gov.mu/portal/site/MOFSite/menuitem.27c9a75baa1319f4e0aad110a7b521ca/ | BV116: 0 | BW116: 2 | BX116: - | BY116: eng | BZ116: - | CA116: - | CB116: - | CC116: - | CD116: FMIS | CE116: Financial Management Information System | CF116: C | CG116: F | CH116: 1 | CI116: 2009 | CJ116: C+L | CK116: 1 | CL116: 2 | CM116: Oracle | CN116: Web | CO116: Aug 2011 | CP116: Public | CQ116: A | CR116: A | CS116: B | CT116: C+ | CU116: A | CV116: A | CW116: A | CX116: A | CY116: B+ | CZ116: A | DA116: 3.7 | DB116: 3.177419355 | DC116: - | DD116: - | DF116: 3 | DG116: 93 | DH116: 0.5066 | DI116: 0.4314 | DJ116: 0.3296 | DK116: 0.7588 | DL116: AFR | DQ116: Mauritius | DR116: 0 | DW116: 0 | EB116: 2013-05-03 | EC116: 18 | ED116: 69.23076923 | EE116: B | EG116: 114 | EH116: Mauritius | EI116: MUS
A117: 115 | C117: Mexico | D117: UMIC | E117: 114793.341 | F117: 1081767.76 | G117: 9420 | H117: http://www.shcp.gob.mx | I117: Secretaría de Hacienda y Crédito Público - Ministry of Finance, Mexico | J117: 2 | K117: http://www.shcp.gob.mx/EGRESOS/PEF/Paginas/DocumentosRecientes.aspx | L117: 2 | M117: http://www.hacienda.gob.mx/EGRESOS/contabilidad_gubernamental/manual_contabilidad/index.html | N117: 3 | O117: http://www.shcp.gob.mx/POLITICAFINANCIERA/FINANZASPUBLICAS/Estadisticas_Oportunas_Finanzas_Publicas/Informacion_mensual/Paginas/finanzas_publicas.aspx | P117: 1 | Q117: http://www.transparenciapresupuestaria.gob.mx/ptp/contenidos/?id=17&group=Preguntas&page=%C2%BFD%C3%B3nde%20gasta? | R117: 0 | S117: 1 | T117: http://www.shcp.gob.mx/EGRESOS/PEF/pef/pef_2010/temas/tomos/40/r40_ppcer.pdf | U117: 2 | V117: 1 | W117: 2 | X117: http://www.transparenciapresupuestaria.gob.mx/ptp/index.jsp | Y117: 1 | Z117: http://www.shcp.gob.mx/EGRESOS/PEF/programacion/Paginas/pyp2012.aspx | AA117: 1 | AB117: 1 | AC117: 2000 | AD117: 1 | AE117: 1 | AF117: 5 | AG117: 2003 | AH117: 1 | AI117: 1 | AJ117: 2006 | AK117: 1 | AL117: 3 | AM117: 1 | AN117: 2000 | AO117: 1 | AP117: 0 | AQ117: 2004 | AR117: 1 | AS117: 1 | AT117: 0 | AU117: 0 | AV117: 0 | AW117: 1 | AX117: 1 | AY117: 0 | AZ117: 1 | BA117: 0 | BB117: 0 | BC117: - | BD117: 1 | BE117: http://mapas.gob.mx | BF117: 2 | BG117: http://www.dgi.sedesol.gob.mx/index/index.php?sec=64&pagina=3 | BH117: 0 | BI117: - | BJ117: 0 | BK117: http://www.inegi.gob.mx | BL117: Mexico National Institute of Statistics, Geography, and Informatics | BM117: http://www.banxico.org.mx | BN117: Bank of Mexico | BO117: - | BP117: 1 | BQ117: http://www.transparenciapresupuestaria.gob.mx/ptp/index.jsp | BR117: 1 | BS117: http://www.shcp.gob.mx/LASHCP/Paginas/visionMision.aspx | BT117: 2 | BU117: - | BV117: 0 | BW117: 1 | BX117: - | BY117: spa | BZ117: eng | CA117: - | CB117: - | CC117: 0 | CD117: SIDAFF | CE117: Sistema Integrado de Administración Financiera Federal | CF117: C | CG117: F | CH117: 3 | CI117: 2012 | CJ117: C | CK117: 1 | CL117: 2 | CM117: Oracle | CN117: Web | CO117: - | CP117: - | CQ117: - | CR117: - | CS117: - | CT117: - | CU117: - | CV117: - | CW117: - | CX117: - | CY117: - | CZ117: - | DA117: - | DB117: - | DC117: 61 | DD117: 52 | DE117: 1 | DF117: 1 | DG117: 55 | DH117: 0.624 | DI117: 0.732 | DJ117: 0.3104 | DK117: 0.8295 | DL117: LCR | DN117: OECD | DO117: APEC | DQ117: Mexico | DR117: 3 | DS117: 1 | DT117: 1 | DV117: 1 | DW117: 0 | EC117: 24 | ED117: 92.30769231 | EE117: A | EG117: 115 | EH117: Mexico | EI117: MEX | EJ117: 2010 | EK117: <2 | EL117: 2010 | EM117: 51.3 | EO117: 58888.98393
A118: 116 | C118: Micronesia, Fed. Sts. | D118: LMIC | E118: 111.542 | F118: 318.6458144 | G118: 2860 | H118: http://www.fsmgov.org/ngovt.html | I118: Dept of Finance and Administration | J118: 1 | K118: http://www.sboc.fm/index.php?id1=Vm0xMGFtVkhVWGhhU0U1U1lrVndVbFpyVWtKUFVUMDk | L118: 1 | M118: http://www.mra.fm/pdfs/news_StrategicPlan.pdf | N118: 1 | O118: - | P118: 0 | Q118: - | R118: 0 | S118: 0 | T118: - | U118: 1 | V118: 1 | W118: 0 | X118: - | Y118: 0 | Z118: - | AA118: 1 | AB118: 0 | AC118: 2006 | AD118: 0 | AF118: - | AG118: - | AH118: 0 | AJ118: - | AK118: 1 | AL118: 4 | AM118: 1 | AN118: 1995 | AO118: 1 | AP118: 1 | AQ118: 2006 | AR118: 0 | AS118: 0 | AT118: 0 | AU118: 0 | AV118: 0 | AW118: 1 | AX118: 1 | AY118: 0 | AZ118: 0 | BA118: 0 | BB118: 0 | BC118: - | BD118: 0 | BE118: - | BF118: 0 | BG118: - | BH118: 0 | BI118: - | BJ118: 1 | BK118: http://www.sboc.fm | BL118: Office of SBOC (Statistics, Budget and Economic Management, Overseas Dev Assistance and Compact Mgmt) | BM118: - | BN118: National Bank of the Federated States of Micronesia | BO118: - | BP118: 0 | BQ118: - | BR118: 0 | BS118: - | BT118: 2 | BU118: - | BV118: 0 | BW118: 1 | BX118: - | BY118: eng | BZ118: - | CA118: - | CB118: - | CC118: - | CD118: FMIS | CE118: Financial Management Information System | CF118: C | CG118: F | CH118: 4 | CI118: 2014 | CJ118: C | CK118: 1 | CL118: 0 | CM118: ? | CN118: Web | CO118: Jan 2012 | CP118: Draft | CQ118: X | CR118: X | CS118: X | CT118: X | CU118: X | CV118: X | CW118: X | CX118: X | CY118: X | CZ118: X | DA118: 1.722222222 | DB118: 1.865384615 | DC118: - | DD118: - | DF118: - | DG118: 127 | DH118: 0.3812 | DI118: 0.2092 | DJ118: 0.1013 | DK118: 0.8332 | DL118: EAP | DP118: F | DQ118: Micronesia, Fed. Sts. | DR118: 0 | DW118: 0 | EC118: 10 | ED118: 38.46153846 | EE118: C | EG118: 116 | EH118: Micronesia, Fed. Sts. | EI118: FSM | EJ118: 2000 | EK118: 31.2 | EN118: 34.801104
A119: 117 | C119: Moldova | D119: LMIC | E119: 3559 | F119: 7055.85866 | G119: 1980 | H119: http://www.mf.gov.md | I119: Moldova Ministry of Finance | J119: 2 | K119: http://www.mf.gov.md/ro/raportinfo/budget/ | L119: 2 | M119: http://www.mf.gov.md/ro/delurproject/proiect1 | N119: 1 | O119: - | P119: 0 | Q119: - | R119: 0 | S119: 1 | T119: http://www.mf.gov.md/common/raportinfo/budget/national/lun/Anul2010/decembrie_2010/1Informatia_operativa_privind_executarea_bugetului_public_national.pdf | U119: 2 | V119: 1 | W119: 0 | X119: - | Y119: 1 | Z119: http://www.mf.gov.md/ro/raportinfo/GFS/ | AA119: 1 | AB119: 1 | AC119: 2004 | AD119: 1 | AE119: 1 | AF119: 3 | AG119: 2007 | AH119: 0 | AJ119: - | AK119: 1 | AL119: 4 | AM119: 1 | AN119: 2006 | AO119: 1 | AP119: 1 | AQ119: 2008 | AR119: 1 | AS119: 1 | AT119: 0 | AU119: 0 | AV119: 0 | AW119: 1 | AX119: 1 | AY119: 0 | AZ119: 1 | BA119: 0 | BB119: 0 | BC119: - | BD119: 1 | BE119: http://data.gov.md | BF119: 0 | BG119: - | BH119: 1 | BI119: http://www.mf.gov.md/ro/raportinfo/GFS/ | BJ119: 3 | BK119: http://www.statistica.md | BL119: Moldova National Bureau of Statistics | BM119: http://www.bnm.org | BN119: National Bank of Moldova | BO119: http://www.mf.gov.md/ro/BOOST/ | BP119: 0 | BQ119: - | BR119: 1 | BS119: http://www.mf.gov.md/ro/about/organigrama/ | BT119: 2 | BU119: - | BV119: 0 | BW119: 3 | BX119: - | BY119: rom | BZ119: eng | CA119: - | CB119: - | CC119: 0 | CD119: FMIS | CE119: Financial Management Information System | CF119: C | CG119: F | CH119: 3 | CI119: 2012 | CJ119: C+L | CK119: 1 | CL119: 2 | CM119: SAP + LDSW | CN119: Web | CO119: Oct 2011 | CP119: Final | CQ119: X | CR119: X | CS119: X | CT119: X | CU119: X | CV119: X | CW119: X | CX119: X | CY119: X | CZ119: X | DA119: 3.35 | DB119: 3.193548387 | DC119: - | DD119: - | DE119: 1 | DF119: 2 | DG119: 69 | DH119: 0.5626 | DI119: 0.5163 | DJ119: 0.3586 | DK119: 0.8129 | DL119: ECA | DQ119: Moldova | DR119: 0 | DW119: 0 | EC119: 18 | ED119: 69.23076923 | EE119: B | EG119: 117 | EH119: Moldova | EI119: MDA | EJ119: 2010 | EK119: <2 | EL119: 2010 | EM119: 21.9 | EN119: 14 | EO119: 779.421 | EQ119: 2014
A120: 118 | C120: Monaco | D120: HIC | E120: 35.427 | F120: 6109 | G120: 172439.1001 | H120: http://www.gouv.mc/Gouvernement-et-Institutions/Le-Gouvernement/Departement-des-Finances-et-de-l-Economie | I120: Dept of Finance and Economy | J120: 0 | K120: http://www.gouv.mc/Action-Gouvernementale/L-Economie/Analyses-et-Statistiques/Economie-et-Finance | L120: 0 | M120: - | N120: 0 | O120: - | P120: 0 | Q120: - | R120: 0 | S120: 0 | T120: - | U120: 1 | V120: 0 | W120: 0 | X120: - | Y120: 0 | Z120: - | AA120: 0 | AC120: - | AD120: 0 | AF120: - | AG120: - | AH120: 0 | AJ120: - | AK120: 1 | AL120: 3 | AM120: 1 | AN120: 2009 | AO120: 0 | AQ120: - | AR120: 0 | AS120: 1 | AT120: 0 | AU120: 0 | AV120: 0 | AW120: 0 | AX120: 0 | AY120: 0 | AZ120: 0 | BA120: 0 | BB120: 0 | BC120: - | BD120: 0 | BE120: - | BF120: 0 | BG120: - | BH120: 0 | BI120: - | BJ120: 1 | BK120: http://www.gouv.mc/Action-Gouvernementale/L-Economie/Analyses-et-Statistiques | BL120: Monegasque Institute of Statistics and Economic Studies | BM120: http://www.ecb.int | BN120: European Central Bank | BO120: - | BP120: 0 | BQ120: - | BR120: 1 | BS120: http://www.gouv.mc/Gouvernement-et-Institutions/Le-Gouvernement | BT120: 0 | BU120: - | BV120: 0 | BW120: 3 | BX120: - | BY120: fre | BZ120: eng | CA120: - | CB120: - | CC120: 0 | CD120: - | CE120: - | CF120: D | CG120: - | CH120: - | CI120: - | CJ120: - | CK120: - | CL120: - | CM120: - | CN120: - | CO120: - | CP120: - | CQ120: - | CR120: - | CS120: - | CT120: - | CU120: - | CV120: - | CW120: - | CX120: - | CY120: - | CZ120: - | DA120: - | DB120: - | DC120: - | DD120: - | DF120: - | DG120: 26 | DH120: 0.7468 | DI120: 0.3595 | DJ120: 0.937 | DK120: 0.9439 | DM120: EUR | DQ120: Monaco | DR120: 0 | DW120: 0 | EC120: 3 | ED120: 11.53846154 | EE120: D | EG120: 118 | EH120: Monaco | EI120: MCO
A121: 119 | C121: Mongolia | D121: LMIC | E121: 2800.114 | F121: 6457.918304 | G121: 2310 | H121: http://www.mof.gov.mn | I121: Mongolia Ministry of Finance | J121: 2 | K121: http://www.mof.gov.mn/page/?lan=en&c=292450 | L121: 2 | M121: http://www.mof.gov.mn/page/?lan=mn | N121: 1 | O121: - | P121: 0 | Q121: - | R121: 0 | S121: 0 | T121: - | U121: 1 | V121: 1 | W121: 0 | X121: - | Y121: 0 | Z121: - | AA121: 1 | AB121: 1 | AC121: 2007 | AD121: 0 | AF121: - | AG121: - | AH121: 0 | AJ121: - | AK121: 1 | AL121: 4 | AM121: 1 | AN121: 2007 | AO121: 0 | AQ121: - | AR121: 0 | AS121: 0 | AT121: 0 | AU121: 0 | AV121: 0 | AW121: 0 | AX121: 0 | AY121: 0 | AZ121: 0 | BA121: 0 | BB121: 1 | BC121: http://www.e-procurement.mn/ | BD121: 0 | BE121: - | BF121: 0 | BG121: - | BH121: 0 | BI121: - | BJ121: 0 | BK121: http://www.nso.mn | BL121: Mongolia National Statistical Office | BM121: http://www.mongolbank.mn | BN121: Bank of Mongolia | BO121: - | BP121: 0 | BQ121: - | BR121: 1 | BS121: http://www.mof.gov.mn/page/?lan=en&c=45053 | BT121: 0 | BU121: - | BV121: 0 | BW121: 3 | BX121: - | BY121: rus | BZ121: eng | CA121: - | CB121: - | CC121: 0 | CD121: GFMIS | CE121: Government Financial Management Information System | CF121: C | CG121: T | CH121: 3 | CI121: 2005 | CJ121: C+L | CK121: 1 | CL121: 2 | CM121: FreeBalance | CN121: Web | CO121: - | CP121: - | CQ121: - | CR121: - | CS121: - | CT121: - | CU121: - | CV121: - | CW121: - | CX121: - | CY121: - | CZ121: - | DA121: - | DB121: - | DC121: 51 | DD121: 60 | DE121: 0 | DF121: 1 | DG121: 76 | DH121: 0.5443 | DI121: 0.5882 | DJ121: 0.1758 | DK121: 0.8688 | DL121: EAP | DQ121: Mongolia | DR121: 0 | DW121: 0 | EC121: 11 | ED121: 42.30769231 | EE121: C | EG121: 119 | EH121: Mongolia | EI121: MNG | EL121: 2010 | EM121: 39.2 | EO121: 1097.644688
A122: 120 | C122: Montenegro | D122: UMIC | E122: 632.261 | F122: 4516.746337 | G122: 7140 | H122: http://www.mf.gov.me | I122: Montenegro Ministry of Finance | J122: 1 | K122: http://www.mf.gov.me/organizacija/bud%C5%BEet-i-trezor- | L122: 1 | M122: http://www.questionnaire.gov.me/O/Pdf/C32.pdf | N122: 1 | O122: - | P122: 0 | Q122: - | R122: 0 | S122: 0 | T122: - | U122: 1 | V122: 0 | W122: 0 | X122: - | Y122: 0 | Z122: - | AA122: 0 | AC122: - | AD122: 0 | AF122: - | AG122: - | AH122: 0 | AJ122: - | AK122: 1 | AL122: 4 | AM122: 1 | AN122: 2005 | AO122: 0 | AQ122: - | AR122: 0 | AS122: 0 | AT122: 0 | AU122: 0 | AV122: 0 | AW122: 1 | AX122: 1 | AY122: 0 | AZ122: 0 | BA122: 0 | BB122: 0 | BC122: - | BD122: 0 | BE122: - | BF122: 0 | BG122: - | BH122: 1 | BI122: http://www.undp.org.me/files/reports/ijr/Annex%201%20Report%20on%20Budgeting%20in%20Montenegro.pdf | BJ122: 2 | BK122: http://www.monstat.org | BL122: Statistical Office of the Republic of Montenegro | BM122: http://www.cb-mn.org | BN122: Central Bank of Montenegro | BO122: http://www.gov.me/WebResources/budget2012/predlog.html | BP122: 1 | BQ122: http://www.gov.me/info_vodici | BR122: 1 | BS122: http://www.mf.gov.me/organizacija | BT122: 2 | BU122: - | BV122: 0 | BW122: 3 | BX122: - | BY122: mnt | BZ122: rus | CA122: eng | CB122: - | CC122: 0 | CD122: TS | CE122: Treasury System | CF122: C | CG122: T | CH122: 1 | CI122: 2003 | CJ122: C+L | CK122: 1 | CL122: 2 | CM122: SAP | CN122: Web | CO122: Jul 2009 | CP122: Public | CQ122: B | CR122: B | CS122: A | CT122: C+ | CU122: A | CV122: A | CW122: C+ | CX122: C+ | CY122: C+ | CZ122: C | DA122: 3 | DB122: 2.716666667 | DC122: - | DD122: - | DE122: 1 | DF122: 0 | DG122: 57 | DH122: 0.6218 | DI122: 0.5098 | DJ122: 0.5375 | DK122: 0.8182 | DL122: ECA | DQ122: Montenegro | DR122: 0 | DW122: 0 | EC122: 6 | ED122: 23.07692308 | EE122: D | EG122: 120 | EH122: Montenegro | EI122: MNE | EJ122: 2010 | EK122: <2 | EL122: 2011 | EM122: 9.3 | EN122: 1 | EO122: 58.800273
A123: 121 | C123: Morocco | D123: LMIC | E123: 32272.974 | F123: 97618.96768 | G123: 2970 | H123: http://www.finances.gov.ma | I123: Morocco Ministry of Finance and Privatization | J123: 2 | K123: http://www.finances.gov.ma/portal/page?_pageid=53,17812975&_dad=portal&_schema=PORTAL | L123: 2 | M123: https://www.tgr.gov.ma/wps/portal | N123: 1 | O123: - | P123: 1 | Q123: http://www.finances.gov.ma/portal/page?_pageid=53,17812975&_dad=portal&_schema=PORTAL | R123: 0 | S123: 0 | T123: - | U123: 1 | V123: 1 | W123: 1 | X123: http://www.finances.gov.ma/portal/page?_pageid=53,17814589&_dad=portal&_schema=PORTAL&id=1041&lang=Fr | Y123: 1 | Z123: http://www.finances.gov.ma/esp_doc/util/file.jsp?iddoc=2404 | AA123: 1 | AB123: 0 | AC123: 2009 | AD123: 0 | AF123: - | AG123: - | AH123: 0 | AJ123: - | AK123: 1 | AL123: 2 | AM123: 1 | AN123: 2005 | AO123: 0 | AQ123: - | AR123: 1 | AS123: 1 | AT123: 0 | AU123: 1 | AV123: 0 | AW123: 1 | AX123: 1 | AY123: 0 | AZ123: 1 | BA123: 0 | BB123: 1 | BC123: http://www.finances.gov.ma/portal/page?_pageid=53,18106174&_dad=portal&_schema=PORTAL | BD123: 1 | BE123: http://data.gov.ma | BF123: 0 | BG123: - | BH123: 0 | BI123: - | BJ123: 0 | BK123: http://www.insea.ac.ma | BL123: Direction de la Statistique | BM123: http://www.bkam.ma | BN123: Bank of Morocco | BO123: - | BP123: 0 | BQ123: - | BR123: 1 | BS123: http://www.finances.gov.ma/portal/page?_pageid=53,17813153&_dad=portal&_schema=PORTAL | BT123: 0 | BU123: - | BV123: 0 | BW123: 2 | BX123: Twitter | BY123: ara | BZ123: fre | CA123: eng | CB123: - | CC123: 0 | CD123: GID | CE123: Gestion Intégrée de la Dépense / Integrated Expenditure Control System | CF123: C | CG123: T | CH123: 1 | CI123: 2010 | CJ123: C | CK123: 1 | CL123: 1 | CM123: LDSW > Oracle | CN123: Web | CO123: May 2009 | CP123: Public | CQ123: A | CR123: B | CS123: A | CT123: C+ | CU123: A | CV123: B | CW123: B+ | CX123: D+ | CY123: D+ | CZ123: D+ | DA123: 2.85 | DB123: 2.983333333 | DC123: 38 | DD123: 28 | DF123: 1 | DG123: 120 | DH123: 0.4209 | DI123: 0.5425 | DJ123: 0.2772 | DK123: 0.443 | DL123: MNA | DQ123: Morocco | DR123: 0 | DW123: 0 | EC123: 13 | ED123: 50 | EE123: B | EG123: 121 | EH123: Morocco | EI123: MAR | EJ123: 2007 | EK123: 2.5 | EL123: 2007 | EM123: 9 | EN123: 806.82435 | EO123: 2904.56766
A124: 122 | C124: Mozambique | D124: LIC | E124: 23929.708 | F124: 11239.56502 | G124: 470 | H124: http://www.mf.gov.mz | I124: Mozambique National Treasury Directorate Ministry of Planning and Financ | J124: 2 | K124: http://www.mf.gov.mz/web/guest/documentos | L124: 1 | M124: http://www.sida.se/Documents/Import/pdf/0429-Mozambique-State-Financial-Management-Project-SFMP.pdf | N124: 1 | O124: - | P124: 0 | Q124: - | R124: 0 | S124: 0 | T124: - | U124: 1 | V124: 1 | W124: 0 | X124: - | Y124: 1 | Z124: http://www.mf.gov.mz/web/guest/documentos?p_p_id=20&p_p_lifecycle=0&p_p_state=maximized&p_p_mode=view&_20_struts_action=%2Fdocument_library%2Fview&_20_folderId=19175 | AA124: 1 | AB124: 0 | AC124: 2007 | AD124: 0 | AF124: - | AG124: - | AH124: 0 | AJ124: - | AK124: 1 | AL124: 2 | AM124: 1 | AN124: 2008 | AO124: 0 | AQ124: - | AR124: 1 | AS124: 1 | AT124: 0 | AU124: 0 | AV124: 0 | AW124: 1 | AX124: 1 | AY124: 1 | AZ124: 1 | BA124: 0 | BB124: 0 | BC124: - | BD124: 0 | BE124: - | BF124: 2 | BG124: http://www.sida.se/Documents/Import/pdf/0429-Mozambique-State-Financial-Management-Project-SFMP.pdf | BH124: 0 | BI124: - | BJ124: 2 | BK124: http://www.ine.gov.mz | BL124: Mozambique National Institute of Statistics | BM124: http://www.bancomoc.mz | BN124: Bank of Mozambique | BO124: http://www.mf.gov.mz/web/guest/documentos;jsessionid=93FA765FDFD0FECE652D2E2B3151A7F2 | BP124: 0 | BQ124: - | BR124: 1 | BS124: http://www.mf.gov.mz/web/guest/missao | BT124: 0 | BU124: National laws and regulations | BV124: 0 | BW124: 2 | BX124: - | BY124: por | BZ124: - | CA124: - | CB124: - | CC124: - | CD124: e-SISTAFE | CE124: State Financial Administration System | CF124: C | CG124: F | CH124: 1 | CI124: 2010 | CJ124: C | CK124: 1 | CL124: 2 | CM124: Oracle | CN124: Web | CO124: Mar 2011 | CP124: Final | CQ124: X | CR124: X | CS124: X | CT124: X | CU124: X | CV124: X | CW124: X | CX124: X | CY124: X | CZ124: X | DA124: 2.55 | DB124: 2.838709677 | DC124: 47 | DD124: 28 | DF124: 2 | DG124: 158 | DH124: 0.2786 | DI124: 0.366 | DJ124: 0.0443 | DK124: 0.4255 | DL124: AFR | DQ124: Mozambique | DR124: 0 | DW124: 0 | EC124: 10 | ED124: 38.46153846 | EE124: C | EG124: 122 | EH124: Mozambique | EI124: MOZ | EJ124: 2008 | EK124: 59.6 | EL124: 2009 | EM124: 54.7 | EN124: 14262.10597 | EO124: 13089.55028 | EQ124: 2009 | ER124: DAD
A125: 123 | C125: Myanmar | D125: LIC | E125: 48336.763 | F125: 872.336763 | G125: 824 | H125: http://www.mofr.gov.mm | I125: Ministry of Finance and Revenue | J125: 0 | K125: - | L125: 0 | M125: - | N125: 0 | O125: - | P125: 0 | Q125: - | R125: 0 | S125: 0 | T125: - | U125: 0 | V125: 0 | W125: 0 | X125: - | Y125: 0 | Z125: - | AA125: 0 | AC125: - | AD125: 0 | AF125: - | AG125: - | AH125: 0 | AJ125: - | AK125: 0 | AN125: - | AO125: 0 | AQ125: - | AR125: 0 | AS125: 0 | AT125: 0 | AU125: 0 | AV125: 0 | AW125: 0 | AX125: 0 | AY125: 0 | AZ125: 0 | BA125: 0 | BB125: 0 | BC125: - | BD125: 0 | BE125: - | BF125: 0 | BG125: - | BH125: 0 | BI125: - | BJ125: 0 | BK125: http://www.csostat.gov.mm | BL125: Central Statistical Organization | BM125: http://www.mofr.gov.mm/dept_cbm.html | BN125: Central Bank of Myanmar | BO125: - | BP125: 0 | BQ125: - | BR125: 1 | BS125: http://www.mofr.gov.mm/dept_bud_02.html | BT125: 0 | BU125: - | BV125: 0 | BW125: 0 | BX125: - | BY125: bur | BZ125: eng | CA125: - | CB125: - | CC125: 0 | CD125: - | CE125: - | CF125: C | CG125: - | CH125: - | CI125: - | CJ125: - | CK125: - | CL125: - | CM125: - | CN125: - | CO125: 2013 | CP125: - | CQ125: - | CR125: - | CS125: - | CT125: - | CU125: - | CV125: - | CW125: - | CX125: - | CY125: - | CZ125: - | DA125: - | DB125: - | DC125: 0 | DD125: - | DF125: 0 | DG125: 160 | DH125: 0.2703 | DI125: 0.1046 | DJ125: 0 | DK125: 0.7064 | DL125: EAP | DP125: F | DQ125: Myanmar | DR125: 0 | DW125: 0 | EB125: 2013-04-15 | EC125: 0 | ED125: 0 | EE125: D | EG125: 123 | EH125: Myanmar | EI125: MMR
A126: 124 | C126: Namibia | D126: UMIC | E126: 2324.004 | F126: 10934.07646 | G126: 4700 | H126: http://www.mof.gov.na | I126: Namibia Ministry of Finance | J126: 2 | K126: http://www.mof.gov.na/budget.htm | L126: 1 | M126: http://www.mof.gov.na/ifms.htm | N126: 1 | O126: - | P126: 0 | Q126: - | R126: 0 | S126: 0 | T126: - | U126: 1 | V126: 1 | W126: 1 | X126: http://www.mof.gov.na | Y126: 1 | Z126: http://www.mof.gov.na/Budget%20Documents/Budget%202012/Budget%20new/Estimate%20of%20Revenue%20%20and%20expenditure%201%20April%202012%20to%2031%20March%202015.pdf | AA126: 1 | AB126: 1 | AC126: 2004 | AD126: 1 | AE126: 1 | AF126: 4 | AG126: 2005 | AH126: 1 | AI126: 1 | AJ126: 2004 | AK126: 1 | AL126: 4 | AM126: 1 | AN126: 2004 | AO126: 1 | AP126: 1 | AQ126: 2008 | AR126: 0 | AS126: 1 | AT126: 0 | AU126: 0 | AV126: 0 | AW126: 1 | AX126: 1 | AY126: 0 | AZ126: 1 | BA126: 0 | BB126: 0 | BC126: - | BD126: 0 | BE126: - | BF126: 0 | BG126: - | BH126: 0 | BI126: - | BJ126: 0 | BK126: http://www.npc.gov.na/cbs | BL126: Nepal Central Bureau of Statistics | BM126: http://www.bon.com.na | BN126: Bank of Namibia | BO126: - | BP126: 0 | BQ126: - | BR126: 1 | BS126: http://www.mof.gov.na/Organo_new1.pdf | BT126: 0 | BU126: - | BV126: 0 | BW126: 2 | BX126: - | BY126: eng | BZ126: osh | CA126: afr | CB126: ger | CC126: 0 | CD126: IFMS | CE126: Integrated Financial Management System | CF126: C | CG126: T | CH126: 1 | CI126: 2006 | CJ126: C | CK126: 1 | CL126: 2 | CM126: Oracle | CN126: Web | CO126: Nov 2008 | CP126: Final | CQ126: X | CR126: X | CS126: X | CT126: X | CU126: X | CV126: X | CW126: X | CX126: X | CY126: X | CZ126: X | DA126: 2.8 | DB126: 2.7 | DC126: 55 | DD126: 53 | DF126: 3 | DG126: 123 | DH126: 0.3937 | DI126: 0.3007 | DJ126: 0.1385 | DK126: 0.7419 | DL126: AFR | DQ126: Namibia | DR126: 0 | DW126: 0 | EC126: 18 | ED126: 69.23076923 | EE126: B | EG126: 124 | EH126: Namibia | EI126: NAM | EJ126: 2004 | EK126: 31.9 | EL126: 2009 | EM126: 28.7 | EN126: 741.357276 | EO126: 666.989148
A127: 125 | C127: Nauru | D127: LMIC | E127: 9.322 | F127: 36.9 | G127: 3958.37803 | H127: http://www.gov.nr | I127: Ministry of Finance | J127: 0 | K127: - | L127: 0 | M127: - | N127: 0 | O127: - | P127: 0 | Q127: - | R127: 0 | S127: 0 | T127: - | U127: 0 | V127: 0 | W127: 0 | X127: - | Y127: 0 | Z127: - | AA127: 0 | AC127: - | AD127: 0 | AF127: - | AG127: - | AH127: 0 | AJ127: - | AK127: 0 | AN127: - | AO127: 0 | AQ127: - | AR127: 0 | AS127: 0 | AT127: 0 | AU127: 0 | AV127: 0 | AW127: 0 | AX127: 0 | AY127: 0 | AZ127: 0 | BA127: 0 | BB127: 0 | BC127: - | BD127: 0 | BE127: - | BF127: 0 | BG127: - | BH127: 0 | BI127: - | BJ127: 1 | BK127: http://www.spc.int/prism/country/nr/stats | BL127: Nauru Bureau of Statistics | BM127: www.cbm.gov.mm | BN127: Central Bank of Myanmar | BO127: - | BP127: 0 | BQ127: - | BR127: 0 | BS127: - | BT127: 0 | BU127: - | BV127: 0 | BW127: 0 | BX127: - | BY127: eng | BZ127: - | CA127: - | CB127: - | CC127: - | CD127: - | CE127: - | CF127: C | CG127: - | CH127: - | CI127: - | CJ127: - | CK127: - | CL127: - | CM127: - | CN127: - | CO127: Dec 2010 | CP127: Draft | CQ127: X | CR127: X | CS127: X | CT127: X | CU127: X | CV127: X | CW127: X | CX127: X | CY127: X | CZ127: X | DA127: 1.625 | DB127: 1.717391304 | DC127: - | DD127: - | DF127: - | DG127: 141 | DH127: 0.3242 | DI127: 0.098 | DJ127: 0.17 | DK127: 0.7047 | DL127: EAP | DQ127: Nauru | DR127: 0 | DW127: 0 | EC127: 0 | ED127: 0 | EE127: D | EG127: 125 | EH127: Nauru | EI127: NRU
A128: 126 | C128: Nepal | D128: LIC | E128: 30485.798 | F128: 16600.96353 | G128: 540 | H128: http://www.mof.gov.np | I128: Nepal Ministry of Finance | J128: 1 | K128: http://www.mof.gov.np/publication/index.php | L128: 1 | M128: http://www-wds.worldbank.org/external/default/WDSContentServer/WDSP/IB/2012/02/06/000386194_20120206020352/Rendered/PDF/666480PJPR0P120200201100for0public.pdf | N128: 1 | O128: - | P128: 0 | Q128: - | R128: 0 | S128: 0 | T128: - | U128: 2 | V128: 1 | W128: 0 | X128: - | Y128: 0 | Z128: - | AA128: 1 | AB128: 1 | AC128: 2002 | AD128: 1 | AE128: 0 | AF128: 3 | AG128: 2011 | AH128: 0 | AJ128: - | AK128: 1 | AL128: 4 | AM128: 1 | AN128: 2002 | AO128: 1 | AP128: 1 | AQ128: 2007 | AR128: 1 | AS128: 1 | AT128: 0 | AU128: 1 | AV128: 1 | AW128: 1 | AX128: 1 | AY128: 0 | AZ128: 1 | BA128: 0 | BB128: 0 | BC128: - | BD128: 0 | BE128: - | BF128: 0 | BG128: - | BH128: 0 | BI128: - | BJ128: 0 | BK128: http://www.cbs.gov.np | BL128: Nepal Central Bureau of Statistics | BM128: http://www.nrb.org.np | BN128: Central Bank of Nepal | BO128: - | BP128: 0 | BQ128: - | BR128: 1 | BS128: http://www.mof.gov.np/contentArticle-Content-cWo=# | BT128: 0 | BU128: - | BV128: 0 | BW128: 3 | BX128: - | BY128: nep | BZ128: eng | CA128: - | CB128: - | CC128: 0 | CD128: CTS | CE128: Core Treasury System | CF128: C | CG128: T | CH128: 3 | CI128: 2015 | CJ128: C+L | CK128: 1 | CL128: 0 | CM128: LDSW > Oracle | CN128: Web | CO128: Feb 2008 | CP128: Public | CQ128: C | CR128: B | CS128: B | CT128: C+ | CU128: C+ | CV128: C | CW128: C+ | CX128: C+ | CY128: D+ | CZ128: D | DA128: 2.25 | DB128: 2.096774194 | DC128: 44 | DD128: 45 | DF128: 2 | DG128: 164 | DH128: 0.2664 | DI128: 0.2876 | DJ128: 0.0597 | DK128: 0.4521 | DL128: SAR | DP128: F | DQ128: Nepal | DR128: 0 | DW128: 0 | EC128: 13 | ED128: 50 | EE128: B | EG128: 126 | EH128: Nepal | EI128: NPL | EJ128: 2010 | EK128: 24.8 | EL128: 2011 | EM128: 25.2 | EN128: 7560.477904 | EO128: 7682.421096 | EQ128: 2010
A129: 127 | C129: Netherlands | D129: HIC | E129: 16696 | F129: 829013.1871 | G129: 49650 | H129: http://www.government.nl/ministries/fin | I129: Ministerie van Financiën - Finance Ministry, Netherlands | J129: 2 | K129: http://www.rijksbegroting.nl/ | L129: 1 | M129: http://www.oecd.org/netherlands/43411548.pdf | N129: 2 | O129: http://www.prinsjesdag2011.nl/miljoenennota/effect_op_u | P129: 1 | Q129: http://opendata.rijksbegroting.nl/ | R129: 0 | S129: 1 | T129: - | U129: 2 | V129: 1 | W129: 1 | X129: http://www.begrotingsspel.nl/# | Y129: 1 | Z129: http://www.rbv.minfin.nl | AA129: 1 | AB129: 1 | AC129: 1911 | AD129: 1 | AE129: 1 | AF129: 5 | AG129: 2007 | AH129: 0 | AJ129: - | AK129: 1 | AL129: 4 | AM129: 1 | AN129: 2007 | AO129: 1 | AP129: 1 | AQ129: 2005 | AR129: 0 | AS129: 1 | AT129: 0 | AU129: 0 | AV129: 0 | AW129: 1 | AX129: 0 | AY129: 0 | AZ129: 0 | BA129: 0 | BB129: 0 | BC129: - | BD129: 1 | BE129: http://data.overheid.nl | BF129: 0 | BG129: - | BH129: 0 | BI129: - | BJ129: 3 | BK129: http://www.cbs.nl | BL129: Statistics Netherlands | BM129: http://www.dnb.nl | BN129: Netherlands Bank | BO129: http://www.prinsjesdag2011.nl/miljoenennota | BP129: 1 | BQ129: http://www.government.nl/accessibility | BR129: 1 | BS129: http://www.rijksoverheid.nl/ministeries/fin/organisatie/organogram | BT129: 0 | BU129: - | BV129: 1 | BW129: 3 | BX129: - | BY129: dut | BZ129: eng | CA129: - | CB129: - | CC129: 0 | CD129: IBOS | CE129: National Budget Information System | CF129: D | CG129: F | CH129: 1 | CI129: 2003 | CJ129: C+L | CK129: 1 | CL129: 1 | CM129: LDSW | CN129: Web | CO129: - | CP129: - | CQ129: - | CR129: - | CS129: - | CT129: - | CU129: - | CV129: - | CW129: - | CX129: - | CY129: - | CZ129: - | DA129: - | DB129: - | DC129: - | DD129: - | DE129: 1 | DF129: 3 | DG129: 2 | DH129: 0.9125 | DI129: 0.9608 | DJ129: 0.8342 | DK129: 0.9425 | DM129: EU | DN129: OECD | DQ129: Netherlands | DR129: 6 | DS129: 2 | DU129: 3 | DV129: 1 | DW129: 4 | DX129: 1 | DZ129: 3 | EB129: 2013-04-04 | EC129: 20 | ED129: 76.92307692 | EE129: A | EG129: 127 | EH129: Netherlands | EI129: NLD
A130: 128 | C130: New Zealand | D130: HIC | E130: 4405.2 | F130: 159700 | G130: 36252.61055 | H130: http://www.treasury.govt.nz | I130: New Zealand Treasury | J130: 2 | K130: http://www.treasury.govt.nz/government/financialstatements | L130: 2 | M130: http://www.treasury.govt.nz/publications/guidance/reporting/cfisnet | N130: 1 | O130: - | P130: 1 | Q130: http://www.treasury.govt.nz/budget/2012/data | R130: 1 | S130: 1 | T130: http://www.treasury.govt.nz/budget/2012/data | U130: 2 | V130: 1 | W130: 2 | X130: http://www.treasury.govt.nz/budget/app | Y130: 1 | Z130: http://www.treasury.govt.nz/government/financialstatements/yearend/archive | AA130: 1 | AB130: 1 | AC130: 1997 | AD130: 1 | AE130: 1 | AF130: 4 | AG130: 1992 | AH130: 1 | AI130: 1 | AJ130: 2000 | AK130: 1 | AL130: 2 | AM130: 1 | AN130: 2000 | AO130: 1 | AP130: 1 | AQ130: 1994 | AR130: 1 | AS130: 1 | AT130: 0 | AU130: 0 | AV130: 0 | AW130: 1 | AX130: n/a | AY130: 1 | AZ130: 1 | BA130: 1 | BB130: 1 | BC130: http://www.treasury.govt.nz/government/data | BD130: 1 | BE130: http://www.data.govt.nz | BF130: 0 | BG130: - | BH130: 0 | BI130: - | BJ130: 3 | BK130: http://www.stats.govt.nz | BL130: Statistics New Zealand | BM130: http://www.rbnz.govt.nz | BN130: Reserve Bank of New Zealand | BO130: http://www.treasury.govt.nz/government/data | BP130: 1 | BQ130: http://www.treasury.govt.nz/publications/guidance/reportingcalendar | BR130: 1 | BS130: http://www.treasury.govt.nz/abouttreasury | BT130: 2 | BU130: GFS 2001 + International Financial Reporting Standards. | BV130: 1 | BW130: 3 | BX130: - | BY130: eng | BZ130: - | CA130: - | CB130: - | CC130: - | CD130: CFISnet | CE130: Financial Management Information System | CF130: D | CG130: F | CH130: 1 | CI130: 1999 | CJ130: C+L | CK130: 1 | CL130: 2 | CM130: Various | CN130: Web | CO130: - | CP130: - | CQ130: - | CR130: - | CS130: - | CT130: - | CU130: - | CV130: - | CW130: - | CX130: - | CY130: - | CZ130: - | DA130: - | DB130: - | DC130: 93 | DD130: 90 | DF130: 3 | DG130: 13 | DH130: 0.8381 | DI130: 0.7843 | DJ130: 0.7318 | DK130: 0.9982 | DM130: PAC | DN130: OECD | DO130: APEC | DQ130: New Zealand | DR130: 0 | DW130: 0 | EB130: 2013-04-17 | EC130: 24 | ED130: 92.30769231 | EE130: A | EG130: 128 | EH130: New Zealand | EI130: NZL
A131: 129 | C131: Nicaragua | D131: LMIC | E131: 5869.859 | F131: 8873.965077 | G131: 1510 | H131: http://www.hacienda.gob.ni | I131: Nicaragua Ministry of Finance and Public Credit | J131: 2 | K131: http://www.hacienda.gob.ni/documentos/presupuesto/presupuesto-gral.-de-la-republica | L131: 2 | M131: http://www.hacienda.gob.ni/Direcciones/tecnologia/hacienda/Direcciones/tecnologia/aplicaciones | N131: 2 | O131: http://www.transmuni.gob.ni | P131: 0 | Q131: - | R131: 1 | S131: 1 | T131: http://www.transmuni.gob.ni/cgi-bin/tm_CPTKtal.cgi?ejercicio=2013 | U131: 2 | V131: 1 | W131: 2 | X131: http://www.consultaciudadana.gob.ni/cciudadana/index.jsp | Y131: 1 | Z131: http://www.hacienda.gob.ni/documentos/presupuesto/informes/2012/Informe%20de%20Liquidacion%20del%20Presupuesto%20General%20de%20la%20Republica%202012.pdf/view | AA131: 1 | AB131: 1 | AC131: 2005 | AD131: 1 | AE131: 1 | AF131: 4 | AG131: 2006 | AH131: 1 | AI131: 1 | AJ131: 1997 | AK131: 1 | AL131: 2 | AM131: 1 | AN131: 1998 | AO131: 1 | AP131: 1 | AQ131: 2005 | AR131: 1 | AS131: 0 | AT131: 0 | AU131: 0 | AV131: 0 | AW131: 1 | AX131: 1 | AY131: 1 | AZ131: 0 | BA131: 0 | BB131: 1 | BC131: http://www.transmuni.gob.ni | BD131: 0 | BE131: - | BF131: 2 | BG131: http://www.hacienda.gob.ni/Direcciones/tecnologia/hacienda/Direcciones/tecnologia/aplicaciones | BH131: 1 | BI131: http://www.hacienda.gob.ni/Direcciones/tecnologia/hacienda/Direcciones/tecnologia/aplicaciones | BJ131: 1 | BK131: http://www.inide.gob.ni | BL131: Instituto Nacional de Información de Desarrollo / National Institute of Development Information | BM131: http://www.bcn.gob.ni | BN131: Central Bank of Nicaragua | BO131: - | BP131: 0 | BQ131: - | BR131: 1 | BS131: http://www.hacienda.gob.ni/Ministerio | BT131: 0 | BU131: - | BV131: 1 | BW131: 1 | BX131: - | BY131: spa | BZ131: eng | CA131: - | CB131: - | CC131: 0 | CD131: SIGFA | CE131: Sistema Integrado de Gestión Financiera | CF131: C | CG131: F | CH131: 1 | CI131: 2009 | CJ131: C+L | CK131: 2 | CL131: 1 | CM131: LDSW > Oracle | CN131: CS | CO131: Dec 2006 | CP131: Draft | CQ131: X | CR131: X | CS131: X | CT131: X | CU131: X | CV131: X | CW131: X | CX131: X | CY131: X | CZ131: X | DA131: 2.166666667 | DB131: 2.462962963 | DC131: 42 | DD131: 37 | DF131: 2 | DG131: 130 | DH131: 0.3621 | DI131: 0.3137 | DJ131: 0.1194 | DK131: 0.6533 | DL131: LCR | DQ131: Nicaragua | DR131: 0 | DW131: 0 | EB131: 2013-04-22 | EC131: =J131+L131+N131+P131+R131+S131+U131+V131+W131+Y131+AA131+AB131+AD131+AE131+AH131+AI131+AK131+AM131+AO131+AP131 -> 24 | ED131: 92.30769231 | EE131: A | EG131: 129 | EH131: Nicaragua | EI131: NIC | EJ131: 2005 | EK131: 11.9 | EL131: 2009 | EM131: 42.5 | EN131: 698.513221 | EO131: 2494.690075
A132: 130 | C132: Niger | D132: LIC | E132: 16068.994 | F132: 5794.608859 | G132: 360 | H132: http://www.presidence.ne/index.php/le-gouvernement | I132: Niger Ministry of Economy & Finance | J132: 0 | K132: - | L132: 0 | M132: - | N132: 0 | O132: - | P132: 0 | Q132: - | R132: 0 | S132: 0 | T132: - | U132: 0 | V132: 0 | W132: 0 | X132: - | Y132: 0 | Z132: - | AA132: 0 | AC132: - | AD132: 0 | AF132: - | AG132: - | AH132: 0 | AJ132: - | AK132: 0 | AN132: - | AO132: 0 | AQ132: - | AR132: 1 | AS132: 1 | AT132: 0 | AU132: 0 | AV132: 0 | AW132: 0 | AX132: 0 | AY132: 0 | AZ132: 0 | BA132: 0 | BB132: 0 | BC132: - | BD132: 0 | BE132: - | BF132: 0 | BG132: - | BH132: 0 | BI132: - | BJ132: 0 | BK132: http://www.stat-niger.org | BL132: Niger Institut National de la Statistique | BM132: http://www.bceao.int | BN132: Central Bank of West African States (BCEAO) | BO132: - | BP132: 0 | BQ132: - | BR132: 0 | BS132: - | BT132: 0 | BU132: - | BV132: 0 | BW132: 1 | BX132: - | BY132: fre | BZ132: - | CA132: - | CB132: - | CC132: - | CD132: - | CE132: - | CF132: C | CG132: - | CH132: - | CI132: - | CJ132: - | CK132: - | CL132: - | CM132: - | CN132: - | CO132: Dec 2008 | CP132: Public | CQ132: C | CR132: D | CS132: C | CT132: C | CU132: D | CV132: D | CW132: D+ | CX132: C+ | CY132: D | CZ132: C+ | DA132: 1.65 | DB132: 1.983870968 | DC132: 4 | DD132: 3 | DF132: 1 | DG132: 188 | DH132: 0.1119 | DI132: 0.1961 | DJ132: 0.0293 | DK132: 0.1103 | DL132: AFR | DQ132: =C132 -> Niger | DR132: =SUM(DS132:DV132) -> 0 | DW132: =SUM(DX132:EA132) -> 0 | EC132: 0 | ED132: =EC132/26*100 -> 0 | EE132: =IF(ED132<25,"D",IF(ED132<50,"C",IF(ED132<75,"B","A"))) -> D | EG132: 130 | EH132: Niger | EI132: NER | EJ132: 2008 | EK132: 43.6 | EL132: 2007 | EM132: 59.5 | EN132: 7006.081384 | EO132: 9561.05143 | EQ132: 2009
A133: 131 | C133: Nigeria | D133: LMIC | E133: 162470.737 | F133: 207278.4641 | G133: 1280 | H133: http://www.fmf.gov.ng | I133: Nigeria Federal Ministry of Finance | J133: 1 | K133: http://www.budgetoffice.gov.ng/publications.html | L133: 2 | M133: http://www.gifmis.gov.ng/gif-mis/index.php?option=com_content&view=article&id=2&Itemid=2 | N133: 1 | O133: - | P133: 0 | Q133: - | R133: 0 | S133: 0 | T133: - | U133: 1 | V133: 1 | W133: 1 | X133: http://www.budgetoffice.gov.ng/2012_appropriation_act/A%20CITIZEN'S%20GUIDE%20TOTHE%20FGN%20BUDGET.pdf | Y133: 0 | Z133: - | AA133: 1 | AB133: 0 | AC133: 2008 | AD133: 1 | AE133: 0 | AF133: 3 | AG133: 2010 | AH133: 0 | AJ133: - | AK133: 1 | AL133: 3 | AM133: 0 | AN133: 2009 | AO133: 0 | AQ133: - | AR133: 1 | AS133: 1 | AT133: 0 | AU133: 0 | AV133: 0 | AW133: 1 | AX133: 0 | AY133: 0 | AZ133: 0 | BA133: 0 | BB133: 0 | BC133: - | BD133: 0 | BE133: - | BF133: 0 | BG133: - | BH133: 0 | BI133: - | BJ133: 0 | BK133: http://www.nigerianstat.gov.ng | BL133: Nigeria National Bureau of Statistics | BM133: http://www.cenbank.org | BN133: Central Bank of Nigeria | BO133: - | BP133: 0 | BQ133: - | BR133: 0 | BS133: - | BT133: 0 | BU133: - | BV133: 0 | BW133: 1 | BX133: - | BY133: eng | BZ133: - | CA133: - | CB133: - | CC133: - | CD133: GIFMIS | CE133: Government Integrated Financial Management Information System | CF133: C | CG133: F | CH133: 3 | CI133: 2012 | CJ133: C+L | CK133: 1 | CL133: 2 | CM133: SAP + LDSW | CN133: Web | CO133: 2013 | CP133: - | CQ133: - | CR133: - | CS133: - | CT133: - | CU133: - | CV133: - | CW133: - | CX133: - | CY133: - | CZ133: - | DA133: - | DB133: - | DC133: 16 | DD133: 18 | DF133: 1 | DG133: 162 | DH133: 0.2676 | DI133: 0.2222 | DJ133: 0.127 | DK133: 0.4535 | DL133: AFR | DQ133: Nigeria | DR133: 0 | DW133: 0 | EC133: 10 | ED133: 38.46153846 | EE133: C | EG133: 131 | EH133: Nigeria | EI133: NGA | EJ133: 2010 | EK133: 68 | EL133: 2010 | EM133: 62.6 | EN133: 110480.1012 | EO133: 101706.6814 | ER133: DAD
A134: 132 | C134: Norway | D134: HIC | E134: 4952 | F134: 440185.4094 | G134: 88890 | H134: http://www.regjeringen.no | I134: Ministry of Finance | J134: 2 | K134: http://www.statsbudsjettet.no/default.aspx?id=58965 | L134: 2 | M134: http://www.dfo.no/no/Tjenester/Driftsstatus | N134: 1 | O134: - | P134: 1 | Q134: http://www.statsbudsjettet.no/Statsbudsjettet-2011/Dokumenter/Tallene-bak-figurene/ | R134: 0 | S134: 0 | T134: - | U134: 2 | V134: 1 | W134: 1 | X134: http://www.ungokonomi.no/ | Y134: 1 | Z134: http://www.dfo.no/no/Forvaltning/Standard-kontoplan/ | AA134: 1 | AB134: 1 | AC134: 2001 | AD134: 1 | AE134: 1 | AF134: 3 | AG134: 2007 | AH134: 0 | AJ134: - | AK134: 1 | AL134: 2 | AM134: 1 | AN134: 1991 | AO134: 1 | AP134: 1 | AQ134: 1997 | AR134: 1 | AS134: 1 | AT134: 0 | AU134: 0 | AV134: 0 | AW134: 1 | AX134: 1 | AY134: 1 | AZ134: 1 | BA134: 0 | BB134: 1 | BC134: http://www.regjeringen.no/nb/dep/fin/dok/veiledninger_brosjyrer/2012/lommebudsjettet-2011.html?id=673567, http://www.peppol.eu/ | BD134: 1 | BE134: http://data.norge.no | BF134: 0 | BG134: - | BH134: 0 | BI134: - | BJ134: 3 | BK134: http://www.ssb.no | BL134: Statistics Norway | BM134: http://www.norges-bank.no | BN134: Norges Bank | BO134: http://www.dfo.no/no/Forvaltning/Statsregnskapet/ | BP134: 1 | BQ134: http://www.ub.uio.no/ujur/ulovdata/lov-20060519-016-eng.pdf | BR134: 1 | BS134: http://www.regjeringen.no/en/dep/fin/the-ministry.html?id=221 | BT134: 2 | BU134: GFS 2001 | BV134: 1 | BW134: 3 | BX134: - | BY134: nor | BZ134: smi | CA134: eng | CB134: - | CC134: 0 | CD134: FMIS | CE134: Financial Management Information System | CF134: D | CG134: F | CH134: 3 | CI134: 2013 | CJ134: C+L | CK134: 1 | CL134: 2 | CM134: Agresso + SAP | CN134: Web | CO134: Jun 2008 | CP134: Public | CQ134: A | CR134: A | CS134: B | CT134: C+ | CU134: B+ | CV134: D | CW134: C+ | CX134: A | CY134: B+ | CZ134: NA | DA134: 3.111111111 | DB134: 3.410714286 | DC134: 83 | DD134: 83 | DE134: 1 | DF134: 3 | DG134: 8 | DH134: 0.8593 | DI134: 0.8562 | DJ134: 0.787 | DK134: 0.9347 | DM134: EUR | DN134: OECD | DQ134: Norway | DR134: 5 | DS134: 1 | DT134: 1 | DU134: 2 | DV134: 1 | DW134: 2 | DX134: 1 | DZ134: 1 | EB134: 2013-04-29 | EC134: 19 | ED134: 73.07692308 | EE134: B | EG134: 132 | EH134: Norway | EI134: NOR
A135: 133 | C135: Oman | D135: HIC | E135: 2846.145 | F135: 71780 | G135: 25220.07839 | H135: http://www.mof.gov.om | I135: Oman Ministry of Finance | J135: 1 | K135: http://www.mof.gov.om/p_balance.aspx | L135: 2 | M135: http://www.ita.gov.om/ITAPortal/eServices/info_C1.aspx?NID=74 | N135: 1 | O135: - | P135: 1 | Q135: http://www.mof.gov.om/p_balance.aspx | R135: 0 | S135: 0 | T135: - | U135: 2 | V135: 1 | W135: 0 | X135: - | Y135: 0 | Z135: - | AA135: 1 | AB135: 1 | AC135: 2007 | AD135: 0 | AF135: - | AG135: - | AH135: 0 | AJ135: - | AK135: 1 | AL135: 4 | AM135: 1 | AN135: 2007 | AO135: 0 | AQ135: - | AR135: 0 | AS135: 1 | AT135: 1 | AU135: 0 | AV135: 0 | AW135: 0 | AX135: 1 | AY135: 1 | AZ135: 0 | BA135: 0 | BB135: 0 | BC135: - | BD135: 0 | BE135: - | BF135: 0 | BG135: - | BH135: 0 | BI135: - | BJ135: 1 | BK135: http://www.moneoman.gov.om | BL135: Oman Ministry of National Economy | BM135: http://www.cbo-oman.org | BN135: Central Bank of Oman | BO135: - | BP135: 0 | BQ135: - | BR135: 1 | BS135: http://www.mof.gov.om/a_chart.aspx | BT135: 0 | BU135: - | BV135: 0 | BW135: 3 | BX135: - | BY135: ara | BZ135: - | CA135: - | CB135: - | CC135: - | CD135: IFS | CE135: Integrated Financial System | CF135: C | CG135: T | CH135: 1 | CI135: 2011 | CJ135: C | CK135: 1 | CL135: 1 | CM135: LDSW ? | CN135: Web | CO135: - | CP135: - | CQ135: - | CR135: - | CS135: - | CT135: - | CU135: - | CV135: - | CW135: - | CX135: - | CY135: - | CZ135: - | DA135: - | DB135: - | DC135: - | DD135: - | DF135: 0 | DG135: 64 | DH135: 0.5944 | DI135: 0.6667 | DJ135: 0.3942 | DK135: 0.7224 | DL135: MNA | DQ135: Oman | DR135: 0 | DW135: 0 | EC135: 12 | ED135: 46.15384615 | EE135: C | EG135: 133 | EH135: Oman | EI135: OMN
A136: 134 | C136: Pakistan | D136: LMIC | E136: 176745.364 | F136: 198004.3425 | G136: 1120 | H136: http://www.finance.gov.pk | I136: Pakistan Ministry of Finance | J136: 1 | K136: http://www.finance.gov.pk/fb_2011_12.html | L136: 2 | M136: http://www.pifra.gov.pk | N136: 1 | O136: - | P136: 0 | Q136: - | R136: 0 | S136: 0 | T136: - | U136: 2 | V136: 1 | W136: 0 | X136: - | Y136: 0 | Z136: - | AA136: 1 | AB136: 1 | AC136: 2009 | AD136: 1 | AE136: 1 | AF136: 3 | AG136: 2003 | AH136: 0 | AJ136: - | AK136: 1 | AL136: 4 | AM136: 1 | AN136: 2001 | AO136: 0 | AQ136: - | AR136: 1 | AS136: 1 | AT136: 0 | AU136: 0 | AV136: 1 | AW136: 1 | AX136: 1 | AY136: 1 | AZ136: 0 | BA136: 0 | BB136: 1 | BC136: http://www.ppra.org.pk/ | BD136: 0 | BE136: - | BF136: 0 | BG136: - | BH136: 0 | BI136: - | BJ136: 2 | BK136: http://www.statpak.gov.pk | BL136: Pakistan Statistics Division | BM136: http://www.sbp.org.pk | BN136: State Bank of Pakistan | BO136: http://www.mtbfpakistan.gov.pk/aboutus-overview.htm | BP136: 0 | BQ136: - | BR136: 0 | BS136: - | BT136: 0 | BU136: - | BV136: 0 | BW136: 3 | BX136: - | BY136: eng | BZ136: - | CA136: - | CB136: - | CC136: - | CD136: FABS | CE136: Financial Accounting & Budgeting System | CF136: C | CG136: T | CH136: 1 | CI136: 2011 | CJ136: C+L | CK136: 2 | CL136: 2 | CM136: SAP | CN136: Web | CO136: Jun 2009 | CP136: Public | CQ136: A | CR136: B | CS136: C | CT136: C+ | CU136: C+ | CV136: B | CW136: C+ | CX136: B+ | CY136: C+ | CZ136: C+ | DA136: 2.8 | DB136: 2.55 | DC136: 58 | DD136: 38 | DF136: 1 | DG136: 156 | DH136: 0.2823 | DI136: 0.366 | DJ136: 0.1239 | DK136: 0.3572 | DL136: SAR | DQ136: Pakistan | DR136: 4 | DS136: 3 | DU136: 1 | DW136: 0 | EC136: 13 | ED136: 50 | EE136: B | EG136: 134 | EH136: Pakistan | EI136: PAK | EJ136: 2008 | EK136: 21 | EL136: 2006 | EM136: 22.3 | EN136: 37116.52644 | EO136: 39414.21617 | ER136: DAD
A137: 135 | C137: Palau | D137: UMIC | E137: 20.609 | F137: 134.1521938 | G137: 6510 | H137: http://www.palauembassy.com | I137: Palau Ministry of Finance | J137: 0 | K137: - | L137: 0 | M137: - | N137: 0 | O137: - | P137: 0 | Q137: - | R137: 0 | S137: 0 | T137: - | U137: 0 | V137: 0 | W137: 0 | X137: - | Y137: 0 | Z137: - | AA137: 0 | AC137: - | AD137: 0 | AF137: - | AG137: - | AH137: 0 | AJ137: - | AK137: 0 | AN137: - | AO137: 0 | AQ137: - | AR137: 0 | AS137: 0 | AT137: 0 | AU137: 0 | AV137: 0 | AW137: 0 | AX137: 0 | AY137: 0 | AZ137: 0 | BA137: 0 | BB137: 0 | BC137: - | BD137: 0 | BE137: - | BF137: 0 | BG137: - | BH137: 0 | BI137: - | BJ137: 1 | BK137: http://www.palaugov.net/stats | BL137: Palau Office of Planning & Statistics | BM137: http://www.ropfic.org/banks.html | BN137: Financial Institutions Commission / no Central Bank | BO137: - | BP137: 0 | BQ137: - | BR137: 1 | BS137: http://www.palaugov.net/stats/PalauStats/aboutus/aboutops.htm# | BT137: 0 | BU137: - | BV137: 0 | BW137: 2 | BX137: - | BY137: eng | BZ137: - | CA137: - | CB137: - | CC137: - | CD137: - | CE137: - | CF137: C | CG137: - | CH137: - | CI137: - | CJ137: - | CK137: - | CL137: - | CM137: - | CN137: - | CO137: 2013 | CP137: - | CQ137: - | CR137: - | CS137: - | CT137: - | CU137: - | CV137: - | CW137: - | CX137: - | CY137: - | CZ137: - | DA137: - | DB137: - | DC137: - | DD137: - | DF137: - | DG137: 113 | DH137: 0.4359 | DI137: 0.183 | DJ137: 0.2802 | DK137: 0.8445 | DL137: EAP | DQ137: Palau | DR137: 0 | DW137: 0 | EC137: 0 | ED137: 0 | EE137: D | EG137: 135 | EH137: Palau | EI137: PLW
A138: 136 | C138: Panama | D138: UMIC | E138: 3571.185 | F138: 26665.33864 | G138: 7470 | H138: https://www.mef.gob.pa | I138: Panama Ministry of Economy and Finance | J138: 1 | K138: https://www.mef.gob.pa/Portal/DocumentosInteres.html | L138: 2 | M138: http://www.mef.gob.pa/es/servicios/Paginas/versionesdelsiafpa.aspx | N138: 1 | O138: - | P138: 0 | Q138: - | R138: 0 | S138: 0 | T138: - | U138: 1 | V138: 1 | W138: 0 | X138: - | Y138: 0 | Z138: - | AA138: 1 | AB138: 0 | AC138: 2010 | AD138: 0 | AF138: - | AG138: - | AH138: 0 | AJ138: - | AK138: 1 | AL138: 2 | AM138: 0 | AN138: 2010 | AO138: 0 | AQ138: - | AR138: 1 | AS138: 1 | AT138: 0 | AU138: 0 | AV138: 0 | AW138: 0 | AX138: 0 | AY138: 0 | AZ138: 0 | BA138: 0 | BB138: 0 | BC138: - | BD138: 0 | BE138: - | BF138: 0 | BG138: - | BH138: 0 | BI138: - | BJ138: 3 | BK138: http://www.contraloria.gob.pa | BL138: Panama Census and Statistics Directorate | BM138: http://www.banconal.com.pa | BN138: National Bank of Panama / no CB | BO138: http://sipresweb.mef.gob.pa/diprena_web/plantilla1.asp?parm1=1&parm2=1&session=711065328&retrieval= | BP138: 0 | BQ138: - | BR138: 1 | BS138: https://www.mef.gob.pa/Portal/index.html | BT138: 0 | BU138: National laws and regulations | BV138: 0 | BW138: 2 | BX138: - | BY138: spa | BZ138: - | CA138: - | CB138: - | CC138: - | CD138: SIAFPA | CE138: Financial Management Information System | CF138: C | CG138: F | CH138: 3 | CI138: 2016 | CJ138: C | CK138: 2 | CL138: 0 | CM138: SAP | CN138: Web | CO138: 2013 | CP138: - | CQ138: - | CR138: - | CS138: - | CT138: - | CU138: - | CV138: - | CW138: - | CX138: - | CY138: - | CZ138: - | DA138: - | DB138: - | DC138: - | DD138: - | DE138: 1 | DF138: 0 | DG138: 66 | DH138: 0.5733 | DI138: 0.4641 | DJ138: 0.4408 | DK138: 0.8151 | DL138: LCR | DQ138: Panama | DR138: 0 | DW138: 0 | EC138: 8 | ED138: 30.76923077 | EE138: C | EG138: 136 | EH138: Panama | EI138: PAN | EJ138: 2010 | EK138: 6.6 | EL138: 2008 | EM138: 32.7 | EN138: 235.69821 | EO138: 1167.777495
A139: 137 | C139: Papua New Guinea | D139: LMIC | E139: 7013.829 | F139: 10386.56907 | G139: 1480 | H139: http://www.finance.gov.pg/Website%20Documents/Finance%20Ministry.htm | I139: Papua New Guinea Department of Finance | J139: 1 | K139: http://www.treasury.gov.pg/html/national_budget/national_budget.html | L139: 1 | M139: http://www.treasury.gov.pg/html/national_budget/files/2012/budget_documents/Related%20Budget%20Documents/2011.final.budget.outcome.pdf | N139: 1 | O139: - | P139: 0 | Q139: - | R139: 0 | S139: 0 | T139: - | U139: 1 | V139: 1 | W139: 0 | X139: - | Y139: 0 | Z139: - | AA139: 1 | AB139: 1 | AC139: 2007 | AD139: 1 | AE139: 0 | AF139: 5 | AG139: 2008 | AH139: 1 | AI139: 0 | AJ139: 2008 | AK139: 1 | AL139: 3 | AM139: 1 | AN139: 2007 | AO139: 0 | AQ139: - | AR139: 1 | AS139: 1 | AT139: 0 | AU139: 0 | AV139: 0 | AW139: 1 | AX139: 1 | AY139: 1 | AZ139: 1 | BA139: 0 | BB139: 0 | BC139: - | BD139: 0 | BE139: - | BF139: 0 | BG139: - | BH139: 0 | BI139: - | BJ139: 2 | BK139: http://www.spc.int/prism/country/pg/stats | BL139: Papua New Guinea National Statistical Office | BM139: http://www.bankpng.gov.pg | BN139: Bank of Papua New Guinea | BO139: http://www.treasury.gov.pg/html/national_budget/national_budget.html | BP139: 0 | BQ139: - | BR139: 1 | BS139: http://www.treasury.gov.pg/about_us.html | BT139: 2 | BU139: - | BV139: 0 | BW139: 2 | BX139: - | BY139: eng | BZ139: - | CA139: - | CB139: - | CC139: - | CD139: IFMS | CE139: Integrated Financial Management System | CF139: C | CG139: T | CH139: 1 | CI139: 2011 | CJ139: C | CK139: 1 | CL139: 0 | CM139: ? | CN139: Web | CO139: Mar 2009 | CP139: Draft | CQ139: X | CR139: X | CS139: X | CT139: X | CU139: X | CV139: X | CW139: X | CX139: X | CY139: X | CZ139: X | DA139: 2.25 | DB139: 2.275862069 | DC139: 56 | DD139: 57 | DF139: 1 | DG139: 177 | DH139: 0.2147 | DI139: 0.2288 | DJ139: 0.0411 | DK139: 0.3743 | DL139: EAP | DO139: APEC | DQ139: Papua New Guinea | DR139: 0 | DW139: 0 | EC139: 11 | ED139: 42.30769231 | EE139: C | EG139: 137 | EH139: Papua New Guinea | EI139: PNG | EJ139: 1996 | EK139: 35.8 | EN139: 2510.950782 | ER139: DAD
A140: 138 | C140: Paraguay | D140: LMIC | E140: 6568.29 | F140: 19827.05739 | G140: 3020 | H140: http://www.hacienda.gov.py | I140: Ministerio de Hacienda / Ministry of Finance | J140: 2 | K140: http://www.hacienda.gov.py/web-presupuesto/index.php?c=192 | L140: 2 | M140: http://www.hacienda.gov.py/web-presupuesto/index.php?c=147 | N140: 2 | O140: http://www.hacienda.gov.py/web-presupuesto/index.php?c=40 | P140: 0 | Q140: - | R140: 0 | S140: 1 | T140: http://www.hacienda.gov.py/web-presupuesto/archivo.php?a=9aa9ab9eacaea9ae9eacada8596b696972689da2aca9a8aca29ca2a8a79eac596b69697268a09aacada8ac68a06a6a66696a67a99d9f9a039&x=c4c4063&y=dddd07c | U140: 2 | V140: 1 | W140: 1 | X140: http://www.hacienda.gov.py/web-hacienda/index.php?c=486 | Y140: 1 | Z140: http://www.hacienda.gov.py/web-presupuesto/index.php?c=200 | AA140: 1 | AB140: 1 | AC140: 2005 | AD140: 1 | AE140: 1 | AF140: 3 | AG140: 2006 | AH140: 1 | AI140: 1 | AJ140: 2009 | AK140: 1 | AL140: 4 | AM140: 1 | AN140: 1997 | AO140: 1 | AP140: 1 | AQ140: 2006 | AR140: 1 | AS140: 1 | AT140: 0 | AU140: 1 | AV140: 1 | AW140: 1 | AX140: 1 | AY140: 1 | AZ140: 1 | BA140: 1 | BB140: 1 | BC140: http://www.economia.gov.py | BD140: 0 | BE140: - | BF140: 1 | BG140: http://websiare.hacienda.gov.py | BH140: 1 | BI140: http://www.hacienda.gov.py/web-contabilidad/archivo.php?a=d9e1e6eceae7dceddbdbe1e7e698d9e498e5d9e6edd9e498dcdd98e8eae7dbdddce1e5e1dde6ece7eba6e8dcded9078&x=6b6b00a&y=808001f | BJ140: 0 | BK140: http://www.dgeec.gov.py | BL140: Paraguay General Directorate of Statistics, Surveys and Censuses | BM140: http://www.bcp.gov.py | BN140: Central Bank of Paraguay | BO140: http://www.economia.gov.py | BP140: 0 | BQ140: - | BR140: 1 | BS140: http://www.hacienda.gov.py/web-contabilidad/index.php?c=298 | BT140: 2 | BU140: GFS 1986 | BV140: 0 | BW140: 3 | BX140: - | BY140: spa | BZ140: - | CA140: - | CB140: - | CC140: - | CD140: SIAF | CE140: Sistema Integrado de Administración Financiera | CF140: C | CG140: F | CH140: 3 | CI140: 2012 | CJ140: C+L | CK140: 1 | CL140: 2 | CM140: Oracle | CN140: Web | CO140: Mar 2011 | CP140: Draft | CQ140: X | CR140: X | CS140: X | CT140: X | CU140: X | CV140: X | CW140: X | CX140: X | CY140: X | CZ140: X | DA140: 2.25 | DB140: 2.532258065 | DC140: - | DD140: - | DE140: 1 | DF140: 1 | DG140: 104 | DH140: 0.4802 | DI140: 0.4575 | DJ140: 0.1968 | DK140: 0.7862 | DL140: LCR | DQ140: Paraguay | DR140: 1 | DS140: 1 | DW140: 0 | EB140: 2013-04-22 | EC140: 22 | ED140: 84.61538462 | EE140: A | EG140: 138 | EH140: Paraguay | EI140: PRY | EJ140: 2010 | EK140: 7.2 | EL140: 2010 | EM140: 32.4 | EN140: 472.91688 | EO140: 2128.12596
A141: 139 | C141: Peru | D141: UMIC | E141: 29399.817 | F141: 151403.0247 | G141: 5150 | H141: http://www.mef.gob.pe | I141: Peru Ministry of Economy and Finance | J141: 2 | K141: http://www.mef.gob.pe/index.php?option=com_content&view=article&id=363&Itemid=101125&lang=es | L141: 2 | M141: http://www.mef.gob.pe/index.php?option=com_content&view=article&id=2028&Itemid=101421&lang=es | N141: 3 | O141: http://ofi.mef.gob.pe/transparencia/Navegador/default.aspx | P141: 1 | Q141: http://ofi.mef.gob.pe/transparencia/Navegador/default.aspx | R141: 1 | S141: 1 | T141: http://www.mef.gob.pe/index.php?option=com_content&view=article&id=2620%3Aproyecto-de-presupuesto-ano-2011-nacional-regional-y-local-&catid=182%3Aprogramacion-formulacion-y-aprobacion&Itemid=101156&lang=es | U141: 2 | V141: 1 | W141: 2 | X141: http://www.peru.gob.pe/transparencia/pep_transparencia.asp | Y141: 1 | Z141: http://dnpp.mef.gob.pe/cnsClasif/faces/Main.jsp | AA141: 1 | AB141: 1 | AC141: 2000 | AD141: 1 | AE141: 0 | AF141: 3 | AG141: 2011 | AH141: 1 | AI141: 0 | AJ141: 2005 | AK141: 1 | AL141: 2 | AM141: 1 | AN141: 1999 | AO141: 1 | AP141: 1 | AQ141: 2004 | AR141: 1 | AS141: 1 | AT141: 1 | AU141: 0 | AV141: 0 | AW141: 1 | AX141: 1 | AY141: 1 | AZ141: 0 | BA141: 0 | BB141: 1 | BC141: http://www.mef.gob.pe/index.php?option=com_content&view=article&id=952&Itemid=101161&lang=es | BD141: 1 | BE141: http://www.datosperu.org | BF141: 2 | BG141: http://www.mef.gob.pe/index.php?option=com_content&view=article&id=2030&Itemid=101424&lang=es | BH141: 1 | BI141: http://www.mef.gob.pe/index.php?option=com_content&view=article&id=1442&Itemid=100331&lang=es | BJ141: 1 | BK141: http://www.inei.gob.pe | BL141: Peru National Institute of Statistics and Informatics | BM141: http://www.bcrp.gob.pe | BN141: Central Reserve Bank of Peru | BO141: - | BP141: 1 | BQ141: http://www.mef.gob.pe/index.php?option=com_wrapper&view=wrapper&Itemid=101731 | BR141: 1 | BS141: http://www.mef.gob.pe/index.php?option=com_content&view=article&id=563&Itemid=100559&lang=es | BT141: 0 | BU141: National laws and regulations similar to GFS | BV141: 1 | BW141: 3 | BX141: Facebook | BY141: spa | BZ141: eng | CA141: - | CB141: - | CC141: 0 | CD141: SIAF II | CE141: Sistema Integrado de Administración Financiera | CF141: C | CG141: F | CH141: 1 | CI141: 2001 | CJ141: C+L | CK141: 1 | CL141: 1 | CM141: LDSW > Oracle | CN141: Web | CO141: Apr 2009 | CP141: Public | CQ141: B | CR141: A | CS141: A | CT141: B | CU141: B+ | CV141: D | CW141: C+ | CX141: A | CY141: B+ | CZ141: C | DA141: 3.05 | DB141: 3.14516129 | DC141: 57 | DD141: 65 | DE141: 1 | DF141: 1 | DG141: 82 | DH141: 0.523 | DI141: 0.5163 | DJ141: 0.2585 | DK141: 0.7942 | DL141: LCR | DO141: APEC | DQ141: Peru | DR141: 3 | DT141: 1 | DV141: 2 | DW141: 0 | EC141: 24 | ED141: 92.30769231 | EE141: A | EG141: 139 | EH141: Peru | EI141: PER | EJ141: 2010 | EK141: 4.9 | EL141: 2011 | EM141: 27.8 | EN141: 1440.591033 | EO141: 8173.149126
A142: 140 | C142: Philippines | D142: LMIC | E142: 94852.03 | F142: 209715.8278 | G142: 2210 | H142: http://www.dof.gov.ph | I142: Philippines Department of Finance | J142: 2 | K142: http://www.dbm.gov.ph/ | L142: 2 | M142: http://www.dof.gov.ph/gifmis | N142: 1 | O142: - | P142: 1 | Q142: http://budgetngbayan.com/2013-national-expenditure-program-1643 | R142: 0 | S142: 1 | T142: http://www.dbm.gov.ph/wp-content/uploads/BESF/BESF2013/B1.pdf | U142: 1 | V142: 1 | W142: 1 | X142: http://www.dbm.gov.ph/?p=5125 | Y142: 0 | Z142: - | AA142: 1 | AB142: 1 | AC142: 2008 | AD142: 1 | AE142: 1 | AF142: 3 | AG142: 2006 | AH142: 0 | AJ142: - | AK142: 1 | AL142: 3 | AM142: 0 | AN142: 2011 | AO142: 1 | AP142: 0 | AQ142: 2010 | AR142: 1 | AS142: 1 | AT142: 1 | AU142: 0 | AV142: 0 | AW142: 1 | AX142: 1 | AY142: 1 | AZ142: 1 | BA142: 1 | BB142: 1 | BC142: http://www.procurementservice.org/psdbm/index.php | BD142: 0 | BE142: - | BF142: 0 | BG142: - | BH142: 0 | BI142: - | BJ142: 2 | BK142: http://www.census.gov.ph | BL142: Philippines National Statistics Office | BM142: http://www.bsp.gov.ph | BN142: Bangko Sentral ng Pilipinas | BO142: http://www.treasury.gov.ph/statdata/statdata.html | BP142: 0 | BQ142: - | BR142: 1 | BS142: http://www.dof.gov.ph/?page_id=180 | BT142: 0 | BU142: National laws and regulations | BV142: 0 | BW142: 2 | BX142: Twitter, Facebook, Youtube | BY142: spa | BZ142: eng | CA142: - | CB142: - | CC142: 1 | CD142: GIFMIS | CE142: Government Integrated Financial Management Information System | CF142: D | CG142: F | CH142: 3 | CI142: 2015 | CJ142: C+L | CK142: 1 | CL142: 1 | CM142: LDSW > GIFMIS | CN142: Web | CO142: May 2010 | CP142: Public | CQ142: D | CR142: B | CS142: C | CT142: D+ | CU142: D | CV142: D | CW142: D | CX142: D+ | CY142: D+ | CZ142: D | DA142: 1.45 | DB142: 2 | DC142: 48 | DD142: 55 | DE142: 1 | DF142: 1 | DG142: 88 | DH142: 0.513 | DI142: 0.4967 | DJ142: 0.2082 | DK142: 0.8341 | DL142: EAP | DO142: APEC | DQ142: Philippines | DR142: 5 | DS142: 2 | DT142: 1 | DU142: 1 | DV142: 1 | DW142: 0 | EC142: 16 | ED142: 61.53846154 | EE142: B | EG142: 140 | EH142: Philippines | EI142: PHL | EJ142: 2009 | EK142: 18.4 | EL142: 2009 | EM142: 26.5 | EN142: 17452.77352 | EO142: 25135.78795
A143: 141 | C143: Poland | D143: HIC | E143: 38216 | F143: 477008.7351 | G143: 12480 | H143: http://www.mf.gov.pl | I143: Ministry of Finance of Poland | J143: 2 | K143: http://www.mf.gov.pl/ministerstwo-finansow/dzialalnosc/finanse-publiczne | L143: 2 | M143: http://www.mf.gov.pl/ministerstwo-finansow/dzialalnosc/finanse-publiczne/budzet-panstwa/trezor | N143: 1 | O143: - | P143: 0 | Q143: - | R143: 0 | S143: 0 | T143: - | U143: 1 | V143: 1 | W143: 2 | X143: http://centrumcyfrowe.pl/projekty/otwarty-budzet-konkurs-opowiedz-nam-o-budzecie/ | Y143: 1 | Z143: http://www.mf.gov.pl/index.php?const=1&dzial=73&wysw=2&sub=sub11 | AA143: 1 | AB143: 1 | AC143: 2001 | AD143: 0 | AF143: - | AG143: - | AH143: 0 | AJ143: - | AK143: 1 | AL143: 2 | AM143: 1 | AN143: 2000 | AO143: 1 | AP143: 1 | AQ143: 1995 | AR143: 1 | AS143: 1 | AT143: 1 | AU143: 0 | AV143: 0 | AW143: 1 | AX143: 1 | AY143: 1 | AZ143: 0 | BA143: 0 | BB143: 0 | BC143: - | BD143: 1 | BE143: http://sejmometr.pl | BF143: 0 | BG143: - | BH143: 0 | BI143: - | BJ143: 1 | BK143: http://www.stat.gov.pl | BL143: Poland Central Statistical Office | BM143: http://www.nbp.pl | BN143: National Bank of Poland | BO143: - | BP143: 0 | BQ143: - | BR143: 1 | BS143: http://www.finanse.mf.gov.pl/strona-glowna | BT143: 2 | BU143: GFS 2001 | BV143: 0 | BW143: 2 | BX143: Youtube | BY143: pol | BZ143: eng | CA143: - | CB143: - | CC143: 0 | CD143: TREZOR | CE143: Informatyczny System Obsługi Budżetu Państwa / Information System of the State Budget | CF143: C | CG143: F | CH143: 1 | CI143: 2012 | CJ143: C+L | CK143: 1 | CL143: 2 | CM143: Oracle | CN143: Web | CO143: - | CP143: - | CQ143: - | CR143: - | CS143: - | CT143: - | CU143: - | CV143: - | CW143: - | CX143: - | CY143: - | CZ143: - | DA143: - | DB143: - | DC143: 59 | DD143: 64 | DF143: 1 | DG143: 47 | DH143: 0.6441 | DI143: 0.5359 | DJ143: 0.4921 | DK143: 0.9044 | DL143: ECA | DM143: EU | DN143: OECD | DQ143: Poland | DR143: 3 | DT143: 3 | DW143: 0 | EB143: 2013-04-26 | EC143: 16 | ED143: 61.53846154 | EE143: B | EG143: 141 | EH143: Poland | EI143: POL | EJ143: 2010 | EK143: <2 | EL143: 2008 | EM143: 10.6 | EN143: 27 | EO143: 4050.896
A144: 142 | C144: Portugal | D144: HIC | E144: 10637 | F144: 225607.4863 | G144: 21210 | H144: http://www.portugal.gov.pt/pt/os-ministerios/ministerio-das-financas.aspx | I144: Portugal Ministry of Finance and Public Administration | J144: 1 | K144: http://www.dgo.pt/execucaoorcamental/Paginas/Sintese-da-Execucao-Orcamental-Mensal.aspx?Ano=2012&Mes=Maio | L144: 2 | M144: http://www.rcc.gov.pt/Directorio/Temas/MA/Paginas/SIGOFA---Sistema-de-Gest%C3%A3o-Or%C3%A7amental,-Financeira-e-Administrativa.aspx | N144: 2 | O144: https://sigo.min-financas.pt/sigoRoot/sigo/default.jsp | P144: 0 | Q144: - | R144: 0 | S144: 0 | T144: - | U144: 2 | V144: 1 | W144: 2 | X144: http://www.portaldocidadao.pt/PORTAL/pt | Y144: 1 | Z144: http://www.dgo.pt/apoioaosservicos/Paginas/Documentacao.aspx?CategoriaDocumentos=Classificadores | AA144: 1 | AB144: 1 | AC144: 1997 | AD144: 1 | AE144: 1 | AF144: 4 | AG144: 2012 | AH144: 0 | AJ144: - | AK144: 1 | AL144: 2 | AM144: 1 | AN144: 1997 | AO144: 0 | AQ144: - | AR144: 1 | AS144: 1 | AT144: 1 | AU144: 0 | AV144: 0 | AW144: 1 | AX144: 1 | AY144: 1 | AZ144: 1 | BA144: 0 | BB144: 1 | BC144: http://www.peppol.eu/ | BD144: 1 | BE144: http://www.dados.gov.pt/pt/inicio/inicio.aspx | BF144: 2 | BG144: https://appls.portalautarquico.pt/DGALAplicacoes/ | BH144: 1 | BI144: http://www.portugal.gov.pt/pt/os-temas/reforma-administracao-local/reforma-administracao-local.aspx | BJ144: 2 | BK144: http://www.ine.pt | BL144: National Institute of Statistics | BM144: http://www.bportugal.pt | BN144: Bank of Portugal | BO144: http://www.dgo.pt/execucaoorcamental/Paginas/Sintese-da-Execucao-Orcamental-Mensal.aspx | BP144: 1 | BQ144: http://www.dgo.pt/legislacao/Paginas/default.aspx | BR144: 1 | BS144: http://www.dgo.pt/legislacao/Paginas/default.aspx | BT144: 2 | BU144: EU regulations and national laws | BV144: 0 | BW144: 3 | BX144: Twitter, Facebook, Youtube | BY144: por | BZ144: eng | CA144: - | CB144: - | CC144: 0 | CD144: SIGOFA | CE144: Sistema de Gestão Orçamental, Financeira e Administrativa / Budget, Financial and Administrative Management System | CF144: C | CG144: F | CH144: 1 | CI144: 2003 | CJ144: C+L | CK144: 1 | CL144: 2 | CM144: Oracle | CN144: Web | CO144: - | CP144: - | CQ144: - | CR144: - | CS144: - | CT144: - | CU144: - | CV144: - | CW144: - | CX144: - | CY144: - | CZ144: - | DA144: - | DB144: - | DC144: 62 | DD144: 58 | DF144: 1 | DG144: 33 | DH144: 0.7165 | DI144: 0.6536 | DJ144: 0.6028 | DK144: 0.8931 | DM144: EU | DN144: OECD | DQ144: Portugal | DR144: 5 | DS144: 1 | DT144: 1 | DU144: 1 | DV144: 2 | DW144: 0 | EC144: 17 | ED144: 65.38461538 | EE144: B | EG144: 142 | EH144: Portugal | EI144: PRT
A145: 143 | C145: Qatar | D145: HIC | E145: 1870.041 | F145: 150426.9062 | G145: 80440 | H145: http://www.mof.gov.qa | I145: Qatar Ministry of Economy and Finance | J145: 0 | K145: - | L145: 2 | M145: http://portal.www.gov.qa/wps/portal/about-hukoomi/integrated-e-government | N145: 0 | O145: - | P145: 0 | Q145: - | R145: 0 | S145: 0 | T145: - | U145: 0 | V145: 0 | W145: 0 | X145: - | Y145: 0 | Z145: - | AA145: 0 | AC145: - | AD145: 0 | AF145: - | AG145: - | AH145: 0 | AJ145: - | AK145: 0 | AN145: - | AO145: 0 | AQ145: - | AR145: 0 | AS145: 0 | AT145: 0 | AU145: 0 | AV145: 0 | AW145: 0 | AX145: 0 | AY145: 0 | AZ145: 0 | BA145: 0 | BB145: 0 | BC145: - | BD145: 0 | BE145: - | BF145: 0 | BG145: - | BH145: 0 | BI145: - | BJ145: 0 | BK145: http://www.qsa.gov.qa | BL145: Qatar Statistics Authority (QSA) | BM145: http://www.qcb.gov.qa | BN145: Qatar Central Bank | BO145: - | BP145: 0 | BQ145: - | BR145: 0 | BS145: - | BT145: 0 | BU145: - | BV145: 0 | BW145: 0 | BX145: - | BY145: ara | BZ145: eng | CA145: - | CB145: - | CC145: 0 | CD145: RAS | CE145: Regulatory Accounting System | CF145: C | CG145: T | CH145: 1 | CI145: 2010 | CJ145: C | CK145: 1 | CL145: 1 | CM145: LDSW | CN145: CS | CO145: - | CP145: - | CQ145: - | CR145: - | CS145: - | CT145: - | CU145: - | CV145: - | CW145: - | CX145: - | CY145: - | CZ145: - | DA145: - | DB145: - | DC145: 0 | DD145: - | DF145: 0 | DG145: 48 | DH145: 0.6405 | DI145: 0.7386 | DJ145: 0.4513 | DK145: 0.7316 | DL145: MNA | DQ145: Qatar | DR145: 0 | DW145: 0 | EC145: 2 | ED145: 7.692307692 | EE145: D | EG145: 143 | EH145: Qatar | EI145: QAT
A146: 144 | C146: Romania | D146: UMIC | E146: 21390 | F146: 169191.6195 | G146: 7910 | H146: http://www.mfinante.ro | I146: Romania Ministry of Public Finance | J146: 1 | K146: http://www.mfinante.ro/execbug.html?pagina=domenii | L146: 1 | M146: http://discutii.mfinante.ro/static/10/Mfp/sistemedeplati/RoSTEPS_Presentation.pdf | N146: 1 | O146: - | P146: 0 | Q146: - | R146: 0 | S146: 0 | T146: - | U146: 1 | V146: 1 | W146: 0 | X146: - | Y146: 1 | Z146: http://discutii.mfinante.ro/static/10/Mfp/buget2012/Ministerul_Finantelor_Publice.pdf | AA146: 1 | AB146: 1 | AC146: 2001 | AD146: 1 | AE146: 0 | AF146: 3 | AG146: 2011 | AH146: 1 | AI146: 1 | AJ146: 2006 | AK146: 1 | AL146: 2 | AM146: 1 | AN146: 2006 | AO146: 1 | AP146: 1 | AQ146: 2004 | AR146: 1 | AS146: 1 | AT146: 1 | AU146: 0 | AV146: 0 | AW146: 1 | AX146: 1 | AY146: 0 | AZ146: 1 | BA146: 0 | BB146: 0 | BC146: - | BD146: 0 | BE146: - | BF146: 0 | BG146: - | BH146: 0 | BI146: - | BJ146: 1 | BK146: http://www.insse.ro | BL146: Romania National Institute of Statistics | BM146: http://www.bnro.ro | BN146: National Bank of Romania | BO146: - | BP146: 0 | BQ146: - | BR146: 1 | BS146: http://www.mfinante.ro/rol.html?pagina=acasa | BT146: 2 | BU146: - | BV146: 0 | BW146: 2 | BX146: - | BY146: rom | BZ146: - | CA146: - | CB146: - | CC146: - | CD146: BUDGET/TREZOR | CE146: Budget Preparation and Treasury Systems | CF146: C | CG146: F | CH146: 1 | CI146: 2003 | CJ146: C+L | CK146: 1 | CL146: 1 | CM146: LDSW > Oracle | CN146: Web | CO146: - | CP146: - | CQ146: - | CR146: - | CS146: - | CT146: - | CU146: - | CV146: - | CW146: - | CX146: - | CY146: - | CZ146: - | DA146: - | DB146: - | DC146: 47 | DD146: 59 | DE146: 1 | DF146: 1 | DG146: 62 | DH146: 0.606 | DI146: 0.5163 | DJ146: 0.4232 | DK146: 0.8783 | DL146: ECA | DM146: EU | DQ146: Romania | DR146: 0 | DW146: 0 | EC146: 15 | ED146: 57.69230769 | EE146: B | EG146: 144 | EH146: Romania | EI146: ROU | EJ146: 2010 | EK146: <2 | EL146: 2006 | EM146: 13.8 | EN146: 86 | EO146: 2951.82
A147: 145 | C147: Russian Federation | D147: UMIC | E147: 141930 | F147: 1522273.552 | G147: 10730 | H147: http://www.minfin.ru | I147: Ministry of Finance of the Russian Federation | J147: 2 | K147: http://www.budget.gov.ru/ | L147: 2 | M147: http://www1.minfin.ru/ru/ebudget | N147: 3 | O147: http://datamarts.roskazna.ru/index.php/infografika | P147: 1 | Q147: http://www.budget.gov.ru/data/opendata | R147: 0 | S147: 1 | T147: http://www.roskazna.ru/ob-ispolnenii-byudzhetov/ | U147: 2 | V147: 1 | W147: 0 | X147: - | Y147: 1 | Z147: http://www1.minfin.ru/ru/budget/classandaccounting/ | AA147: 1 | AB147: 1 | AC147: 1997 | AD147: 1 | AE147: 1 | AF147: 3 | AG147: 2008 | AH147: 0 | AJ147: - | AK147: 1 | AL147: 2 | AM147: 1 | AN147: 1997 | AO147: 1 | AP147: 1 | AQ147: 2007 | AR147: 1 | AS147: 1 | AT147: 1 | AU147: 0 | AV147: 0 | AW147: 1 | AX147: 1 | AY147: 1 | AZ147: 1 | BA147: 1 | BB147: 1 | BC147: http://www.budget.gov.ru | BD147: 1 | BE147: http://opengovdata.ru | BF147: 0 | BG147: - | BH147: 1 | BI147: http://www1.minfin.ru/ru/reforms/local_government/ | BJ147: 2 | BK147: http://www.gks.ru | BL147: Russian State Committee for Statistics | BM147: http://www.cbr.ru | BN147: Central Bank of Russia | BO147: http://www.roskazna.ru/reports/eb.html | BP147: 1 | BQ147: http://www.garant.ru/products/ipo/prime/doc/12076379/ | BR147: 1 | BS147: http://www1.minfin.ru/ru/legislation/ | BT147: 2 | BU147: - | BV147: 1 | BW147: 3 | BX147: - | BY147: rus | BZ147: eng | CA147: - | CB147: - | CC147: 0 | CD147: FTAS / eBudget | CE147: Federal Treasury Automation System | CF147: C | CG147: T | CH147: 1 | CI147: 2011 | CJ147: C+L | CK147: 1 | CL147: 2 | CM147: Oracle (customized) | CN147: Web | CO147: Jan 2007 | CP147: Draft | CQ147: X | CR147: X | CS147: X | CT147: X | CU147: X | CV147: X | CW147: X | CX147: X | CY147: X | CZ147: X | DA147: 2.388888889 | DB147: 2.482142857 | DC147: 74 | DD147: 60 | DF147: 2 | DG147: 27 | DH147: 0.7345 | DI147: 0.6601 | DJ147: 0.6583 | DK147: 0.885 | DL147: ECA | DO147: APEC | DQ147: Russian Federation | DR147: 3 | DS147: 1 | DT147: 1 | DV147: 1 | DW147: 0 | EB147: 2013-05-08 | EC147: 21 | ED147: 80.76923077 | EE147: A | EG147: 145 | EH147: Russian Federation | EI147: RUS | EJ147: 2009 | EK147: <2 | EL147: 2006 | EM147: 11.1 | EN147: 28 | EO147: 15754.23 | ER147: DAD
A148: 146 | C148: Rwanda | D148: LIC | E148: 10942.95 | F148: 6212.296797 | G148: 570 | H148: http://www.minecofin.gov.rw | I148: Rwanda Ministry of Finance and Economic Planning | J148: 1 | K148: http://www.minecofin.gov.rw/node/511 | L148: 1 | M148: http://www.minecofin.gov.rw/webfm_send/2098 | N148: 1 | O148: - | P148: 0 | Q148: - | R148: 0 | S148: 0 | T148: - | U148: 1 | V148: 1 | W148: 0 | X148: - | Y148: 0 | Z148: - | AA148: 1 | AB148: 0 | AC148: 2011 | AD148: 1 | AE148: 0 | AF148: 3 | AG148: 2011 | AH148: 0 | AJ148: - | AK148: 0 | AN148: - | AO148: 0 | AQ148: - | AR148: 1 | AS148: 1 | AT148: 0 | AU148: 1 | AV148: 0 | AW148: 1 | AX148: 1 | AY148: 0 | AZ148: 1 | BA148: 0 | BB148: 0 | BC148: - | BD148: 0 | BE148: - | BF148: 0 | BG148: - | BH148: 0 | BI148: - | BJ148: 0 | BK148: http://www.statistics.gov.rw | BL148: Rwanda National Institute of Statistics | BM148: http://www.bnr.rw | BN148: National Bank of Rwanda | BO148: - | BP148: 0 | BQ148: - | BR148: 1 | BS148: http://www.minecofin.gov.rw/library/Laws%20and%20Regulations/Ministerial%20Instructions/Ministerial_instruction_on_IFMS_Rolllout.pdf | BT148: 2 | BU148: - | BV148: 0 | BW148: 1 | BX148: - | BY148: eng | BZ148: - | CA148: - | CB148: - | CC148: - | CD148: SmartFMS | CE148: Integrated Financial Management Information System | CF148: C | CG148: F | CH148: 3 | CI148: 2013 | CJ148: C | CK148: 1 | CL148: 1 | CM148: LDSW > Oracle | CN148: Web | CO148: Nov 2010 | CP148: Public | CQ148: A | CR148: A | CS148: A | CT148: C+ | CU148: B+ | CV148: D | CW148: D+ | CX148: D+ | CY148: B+ | CZ148: D+ | DA148: 2.7 | DB148: 2.919354839 | DC148: 8 | DD148: 11 | DF148: 2 | DG148: 140 | DH148: 0.3291 | DI148: 0.3399 | DJ148: 0.0614 | DK148: 0.5861 | DL148: AFR | DQ148: Rwanda | DR148: 0 | DW148: 0 | EC148: 7 | ED148: 26.92307692 | EE148: C | EG148: 146 | EH148: Rwanda | EI148: RWA | EJ148: 2011 | EK148: 63.2 | EL148: 2011 | EM148: 44.9 | EN148: 6915.9444 | EO148: 4913.38455 | ER148: DAD
A149: 147 | C149: St. Kitts and Nevis | D149: HIC | E149: 53.051 | F149: 668.8971143 | G149: 12610 | H149: http://www.gov.kn/ct.asp?xItem=1808&ctNode=62&mp=1 | I149: Ministry of Finance and Sustainable Development | J149: 0 | K149: - | L149: 1 | M149: http://www.cartac.org/UserFiles/File/FMIS%20Workshop%20Sept%202009%20-%20Belize/INTEGRATION%20OF%20SYSTEM%20REFORM%20WITH%20BROADER%20PFM%20REFORM_antigua_StKitts_sessionfive.pdf | N149: 0 | O149: - | P149: 0 | Q149: - | R149: 0 | S149: 0 | T149: - | U149: 0 | V149: 0 | W149: 0 | X149: - | Y149: 0 | Z149: - | AA149: 0 | AC149: - | AD149: 0 | AF149: - | AG149: - | AH149: 0 | AJ149: - | AK149: 0 | AN149: - | AO149: 0 | AQ149: - | AR149: 0 | AS149: 0 | AT149: 0 | AU149: 0 | AV149: 0 | AW149: 0 | AX149: 0 | AY149: 0 | AZ149: 0 | BA149: 0 | BB149: 0 | BC149: - | BD149: 0 | BE149: - | BF149: 0 | BG149: - | BH149: 0 | BI149: - | BJ149: 0 | BK149: - | BL149: Min of Finance and Sustainable Dev, Statistics Dept | BM149: http://www.eccb-centralbank.org | BN149: East Caribbean Central Bank | BO149: - | BP149: 0 | BQ149: - | BR149: 0 | BS149: - | BT149: 0 | BU149: - | BV149: 0 | BW149: 2 | BX149: - | BY149: eng | BZ149: - | CA149: - | CB149: - | CC149: - | CD149: FMIS | CE149: Financial Management Information System | CF149: C | CG149: F | CH149: 1 | CI149: 2008 | CJ149: C | CK149: 1 | CL149: 2 | CM149: FITRIX | CN149: Web | CO149: Dec 2009 | CP149: Final | CQ149: X | CR149: X | CS149: X | CT149: X | CU149: X | CV149: X | CW149: X | CX149: X | CY149: X | CZ149: X | DA149: 2.15 | DB149: 2.25 | DC149: - | DD149: - | DF149: 0 | DG149: 81 | DH149: 0.5272 | DI149: 0.183 | DJ149: 0.5648 | DK149: 0.8338 | DL149: LCR | DQ149: St. Kitts and Nevis | DR149: 0 | DW149: 0 | EC149: 1 | ED149: 3.846153846 | EE149: D | EG149: 147 | EH149: St. Kitts and Nevis | EI149: KNA
A150: 148 | C150: St. Lucia | D150: UMIC | E150: 176 | F150: 1200.673391 | G150: 6820 | H150: http://www.finance.gov.lc/ | I150: Min of Finance and Econ Affairs | J150: 1 | K150: http://www.finance.gov.lc/resources/index/25 | L150: 1 | M150: http://www.cartac.org/UserFiles/File/FMIS%20Workshop%20Sept%202009%20-%20Belize/SS%20PresentationStLuciasessionone.pdf | N150: 1 | O150: - | P150: 0 | Q150: - | R150: 0 | S150: 0 | T150: - | U150: 1 | V150: 1 | W150: 0 | X150: - | Y150: 0 | Z150: - | AA150: 1 | AB150: 1 | AC150: 1999 | AD150: 0 | AF150: - | AG150: - | AH150: 0 | AJ150: - | AK150: 0 | AN150: - | AO150: 0 | AQ150: - | AR150: 1 | AS150: 1 | AT150: 0 | AU150: 0 | AV150: 0 | AW150: 1 | AX150: 1 | AY150: 0 | AZ150: 0 | BA150: 0 | BB150: 0 | BC150: - | BD150: 0 | BE150: - | BF150: 0 | BG150: - | BH150: 0 | BI150: - | BJ150: 0 | BK150: http://www.stats.gov.lc | BL150: St Lucia Gov Statistics Dept | BM150: http://www.eccb-centralbank.org | BN150: East Caribbean Central Bank | BO150: - | BP150: 0 | BQ150: - | BR150: 0 | BS150: - | BT150: 0 | BU150: - | BV150: 0 | BW150: 2 | BX150: Facebook, Twitter, Linkedin | BY150: eng | BZ150: - | CA150: - | CB150: - | CC150: - | CD150: FMIS | CE150: Financial Management Information System | CF150: C | CG150: F | CH150: 3 | CI150: 2012 | CJ150: C+L | CK150: 2 | CL150: 2 | CM150: SmartStream | CN150: Web | CO150: Feb 2010 | CP150: Final | CQ150: X | CR150: X | CS150: X | CT150: X | CU150: X | CV150: X | CW150: X | CX150: X | CY150: X | CZ150: X | DA150: 1.8 | DB150: 2.225806452 | DC150: - | DD150: - | DF150: 2 | DG150: 90 | DH150: 0.5122 | DI150: 0.3464 | DJ150: 0.3814 | DK150: 0.8089 | DL150: LCR | DQ150: St. Lucia | DR150: 0 | DW150: 0 | EC150: 7 | ED150: 26.92307692 | EE150: C | EG150: 148 | EH150: St. Lucia | EI150: LCA | EJ150: 1995 | EK150: 20.9 | EN150: 36.784
A151: 149 | C151: St. Vincent and the Grenadines | D151: UMIC | E151: 109.365 | F151: 663.8505993 | G151: 6070 | H151: http://www.finance.gov.vc | I151: Min of Finance and Econ Planning | J151: 1 | K151: http://www.finance.gov.vc/index.php?option=com_content&view=section&layout=blog&id=21&Itemid=103 | L151: 1 | M151: http://www.caricad.net/UserFiles/File/casestudysvg.pdf | N151: 1 | O151: - | P151: 0 | Q151: - | R151: 0 | S151: 0 | T151: - | U151: 0 | V151: 0 | W151: 0 | X151: - | Y151: 0 | Z151: - | AA151: 1 | AB151: 1 | AC151: 2005 | AD151: 0 | AF151: - | AG151: - | AH151: 0 | AJ151: - | AK151: 0 | AN151: - | AO151: 0 | AQ151: - | AR151: 0 | AS151: 0 | AT151: 0 | AU151: 0 | AV151: 0 | AW151: 0 | AX151: 0 | AY151: 0 | AZ151: 0 | BA151: 0 | BB151: 0 | BC151: - | BD151: 0 | BE151: - | BF151: 0 | BG151: - | BH151: 0 | BI151: - | BJ151: 0 | BK151: http://stats.gov.vc | BL151: Min of Finance and Econ Planning, Statistics Office | BM151: http://www.eccb-centralbank.org | BN151: East Caribbean Central Bank | BO151: - | BP151: 0 | BQ151: - | BR151: 0 | BS151: - | BT151: 0 | BU151: - | BV151: 0 | BW151: 0 | BX151: - | BY151: eng | BZ151: - | CA151: - | CB151: - | CC151: - | CD151: FMIS | CE151: Financial Management Information System | CF151: C | CG151: F | CH151: 3 | CI151: 2012 | CJ151: C+L | CK151: 2 | CL151: 2 | CM151: SmartStream | CN151: Web | CO151: Sep 2006 | CP151: Final | CQ151: X | CR151: X | CS151: X | CT151: X | CU151: X | CV151: X | CW151: X | CX151: X | CY151: X | CZ151: X | DA151: 2.3125 | DB151: 2.666666667 | DC151: - | DD151: - | DF151: 0 | DG151: 85 | DH151: 0.5177 | DI151: 0.3137 | DJ151: 0.4697 | DK151: 0.7696 | DL151: LCR | DQ151: St. Vincent and the Grenadines | DR151: 0 | DW151: 0 | EC151: 5 | ED151: 19.23076923 | EE151: D | EG151: 149 | EH151: St. Vincent and the Grenadines | EI151: VCT
